Workbook

Sheet Hoja2 (hidden)
A1: =#REF! ->  | B1: =#REF! -> 
A2: =#REF! ->  | B2: =#REF! -> 
A3: =#REF! ->  | B3: =#REF! -> 
A4: =#REF! ->  | B4: =#REF! -> 
A5: =#REF! ->  | B5: =#REF! -> 
A6: =#REF! ->  | B6: =#REF! -> 
B9: =SUM(B1:B8) -> 

Sheet Matriz para imagen (hidden)
D1: Cambio climático | E1: Emisiones a la atmósfera, tierra y agua | F1: Cambios en la biodiversidad | G1: Agotamiento de energía no renovable | H1: Agotamiento de agua potable | I1: Agotamiento de recursos materiales | J1: Generación de residuos | K1: Impactos sobre el vecindario | L1: Accesibilidad | M1: Salud y confort | N1: Aspectos económicos del resultado | O1: Ahorro en el coste del ciclo de vida
B2: Parcela y Emplazamiento
B3: PyE 01 | C3: Proximidad al transporte publico. | L3: 1 | M3: 1 | N3: 1
B4: PyE 02 | C4: Proximidad a equipamiento y servicios. | L4: 1 | M4: 1 | N4: 1
B5: PyE 03 | C5: Facilidades para la bicicleta. | L5: 1 | M5: 1 | N5: 1
B6: PyE 04 | C6: Clasificación de RSU | I6: 1 | J6: 2
B7: PyE 05 | C7: Gestión y Restauración del hábitat | F7: 1 | I7: 1 | K7: 1 | N7: 1
B8: PyE 06 | C8: Uso de plantas para crear sombras | D8: 0.15 | F8: 1 | K8: 1 | M8: 1
B9: PyE 07 | C9: Efecto isla de calor | D9: 0.75 | F9: 1 | K9: 1
B10: PyE 08 | C10: Contaminación lumínica. | F10: 2 | K10: 1
B11: Energía y Atmósfera
B12: EyA 01 | C12: Demanda de calefacción y refrigeración | D12: 1 | E12: 1 | G12: 1 | M12: 2 | N12: 1 | O12: 2
B13: EyA 02 | C13: Consumo de energía primaria no renovable | D13: 1 | E13: 1 | G13: 2 | O13: 1
B14: EyA 03 | C14: Emisiones de CO2 por procesos de climatización y ACS | D14: 2 | E14: 2
B15: EyA 04 | C15: Demanda de energía eléctrica en fase de uso | D15: 0.25 | E15: 0.25 | G15: 0.25 | O15: 0.25
B16: EyA 05 | C16: Emisión de NOx en calderas de combustión. | E16: 1 | M16: 1
B17: EyA 06 | C17: Elección responsable de refrigerantes | D17: 1 | E17: 2 | F17: 1
B18: Recursos Naturales
B19: RN 01 | C19: Consumo de agua en aparatos sanitarios | E19: 1 | H19: 2 | O19: 2
B20: RN 02 | C20: Necesidades de riego en jardines | H20: 1 | N20: 1 | O20: 1
B21: RN 03 | C21: Consumo de agua en zonas comunes | H21: 0.5 | O21: 1
B22: RN 04 | C22: Uso de aguas no potables. | H22: 1 | N22: 1 | O22: 1
B23: RN 05 | C23: Uso de materiales reciclados. | I23: 1 | J23: 1
B24: RN 06 | C24: Uso de materiales obtenidos de recursos sostenibles. | I24: 0.5 | N24: 1
B25: RN 07 | C25: Uso de materiales locales. | K25: 1 | N25: 3
B26: RN 08 | C26: Planificación de una estrategia de demolición selectiva, | I26: 1 | J26: 1 | O26: 1
B27: RN 09 | C27: Gestión de los residuos de la construcción. | I27: 1 | J27: 1
B28: RN 10 | C28: Impacto de los materiales de la construcción. | E28: 2 | G28: 1 | H28: 1 | I28: 1 | J28: 1
B29: RN 11 | C29: Ecoetiquetado de producto. | I29: 1 | N29: 3
B30: Calidad del Ambiente Interior
B31: CAI 01 | C31: Limitación en las emisiones de COVs. | M31: 2 | N31: 1
B32: CAI 02 | C32: Eficacia de la ventilación natural. | M32: 3 | N32: 1
B33: CAI 03 | C33: Iluminación natural. | M33: 3 | N33: 2
B34: CAI 04 | C34: Protección frente al ruido. | M34: 3 | N34: 1
B35: Aspectos Sociales y Económicos
B36: ASE 01 | C36: Acceso universal. | K36: 1 | L36: 3 | N36: 2
B37: ASE 02 | C37: Derecho al sol. | M37: 2 | N37: 1
B38: ASE 03 | C38: Acceso a espacios abiertos privados. | M38: 1 | N38: 1
B39: ASE 04 | C39: Derecho a la intimidad. | M39: 1 | N39: 1
B40: ASE 05 | C40: Coste de construcción. | O40: 3
B41: Concepto de Calidad
B42: CC 01 | C42: Eficiencia de los espacios. | N42: 2 | O42: 1
B43: CC 02 | C43: Disponibilidad de un sistema de gestión del edificio (BMS). | G43: 1 | H43: 1 | N43: 2 | O43: 1
B44: CC 03 | C44: Custodia de la documentación del proyecto | N44: 3
B45: CC 04 | C45: El edificio como una herramienta para la educación | K45: 1 | N45: 3

Sheet Propuesta de áreas 2021 (hidden)
C2: Lista de criterios | D2: Alcance del efecto | E2: Duración del efecto | F2: Intensidad del efecto | G2: Fiabilidad de los datos | H2: Capacidad de lograr el objetivo | I2: Complejidad del criterio | J2: Cambio climático | K2: Emisiones a la atmósfera, tierra y agua | L2: Cambios en la biodiversidad | M2: Agotamiento de energía no renovable | N2: Agotamiento de agua potable | O2: Agotamiento de recursos materiales | P2: Generación de residuos | Q2: Accesibilidad | R2: Adaptabilidad | S2: Salud y confort | T2: Impactos sobre el vecindario | U2: Mantenimiento | V2: Seguridad | W2: Aspectos económicos del resultado | X2: Ahorro en el coste del ciclo de vida
B3: Listas de criterios | D3: Solidez del criterio | J3: Influencia de los impactos
D4: 3 | E4: 3 | F4: 2 | G4: 1 | H4: 2 | I4: 1 | J4: 3 | K4: 2 | L4: 3 | M4: 3 | N4: 2 | O4: 2 | P4: 1 | Q4: 2 | R4: 1 | S4: 3 | T4: 2 | U4: 1 | V4: 2 | W4: 2 | X4: 3
D5: =D4/SUM($D4:$H4) -> 0.2727272727 | E5: 0.2727272727 | F5: 0.1818181818 | G5: 0.09090909091 | H5: 0.1818181818 | I5: 0.09090909091 | J5: =J4/SUM($J4:$X4) -> 0.09375 | K5: 0.0625 | L5: 0.09375 | M5: 0.09375 | N5: 0.0625 | O5: 0.0625 | P5: 0.03125 | Q5: 0.0625 | R5: 0.03125 | S5: 0.09375 | T5: 0.0625 | U5: =U4/SUM($J4:$X4) -> 0.03125 | V5: =V4/SUM($J4:$X4) -> 0.0625 | W5: =W4/SUM($J4:$X4) -> 0.0625 | X5: =X4/SUM($J4:$X4) -> 0.09375
B6: Transporte y movilidad
B7: E 01 | C7: Proximidad al transporte publico. | D7: 2 | E7: 2 | F7: 1 | G7: 3 | H7: 1 | I7: 1 | J7: 1 | K7: 1 | Q7: 3 | R7: 2 | W7: 2
B8: E 02 | C8: Proximidad a equipamiento y servicios. | D8: 2 | E8: 2 | F8: 1 | G8: 3 | H8: 1 | I8: 2 | J8: 1 | K8: 1 | Q8: 3 | R8: 2 | W8: 2
B9: E 03 | C9: Facilidades para la bicicleta. | D9: 2 | E9: 2 | F9: 1 | G9: 3 | H9: 1 | I9: 1 | J9: 1 | K9: 1 | Q9: 3 | R9: 2 | S9: 1 | W9: 2
B10: Gestión de la parcela
B11: GP 01 | C11: Capacidad de carga de vehículos eléctricos. | D11: 2 | E11: 2 | F11: 1 | G11: 3 | H11: 2 | I11: 1 | K11: 1 | Q11: 1 | R11: 2 | W11: 2
B12: GP 02 | C12: Clasificación de RSU. | D12: 3 | E12: 2 | F12: 1 | G12: 2 | H12: 1 | I12: 1 | L12: 1 | O12: 1 | P12: 3
B13: GP 03 | C13: Gestión y Restauración del hábitat. | D13: 3 | E13: 2 | F13: 2 | G13: 1 | H13: 2 | I13: 3 | L13: 3 | O13: 1 | S13: 1 | T13: 2 | W13: 1
B14: GP 04 | C14: Uso de plantas para crear sombras. | D14: 2 | E14: 2 | F14: 1 | G14: 2 | H14: 2 | I14: 1 | J14: 1 | L14: 2 | M14: 1 | N14: 1 | S14: 1 | T14: 1
C15: Gestión de riesgos, escorrentías, terrenos contaminados
B16: Impacto en el vecindario
B17: GP 05 | C17: Efecto isla de calor. | D17: 2 | E17: 2 | F17: 2 | G17: 3 | H17: 3 | I17: 2 | J17: 2 | L17: 2 | S17: 1 | T17: 3
B18: GP 06 | C18: Contaminación lumínica. | D18: 2 | E18: 2 | F18: 2 | G18: 3 | H18: 3 | I18: 1 | J18: 1 | L18: 3 | S18: 1 | T18: 2
B19: Ciclo de la energía
B20: CE 01 | C20: Consumo de energía primaria | D20: 3 | E20: 3 | F20: 3 | G20: 3 | H20: 3 | I20: 5 | J20: 3 | K20: 3 | M20: 3 | S20: 2 | W20: 3 | X20: 3
B21: CE 02 | C21: Generación de energías renovables | D21: 3 | E21: 3 | F21: 2 | G21: 3 | H21: 2 | I21: 3 | J21: 3 | K21: 2 | M21: 3 | W21: 2 | X21: 3
B22: CE 03 | C22: Demanda de energía eléctrica en fase de uso | D22: 3 | E22: 3 | F22: 1 | G22: 3 | H22: 3 | I22: 2 | J22: 3 | K22: 2 | M22: 2 | W22: 1 | X22: 2
B23: CE 04 | C23: Emisión de NOx en calderas de combustión. | D23: 3 | E23: 3 | F23: 1 | G23: 2 | H23: 2 | I23: 1 | J23: 2 | K23: 2 | M23: 3 | S23: 2 | W23: 2 | X23: 3
B24: CE 05 | C24: Elección responsable de refrigerantes | D24: 1 | E24: 2 | F24: 1 | G24: 2 | H24: 3 | I24: 1 | K24: 2 | S24: 1
B25: Ciclo del agua
B26: CA 01 | C26: Consumo de agua en aparatos sanitarios | D26: 3 | E26: 3 | F26: 3 | G26: 2 | H26: 2 | I26: 3 | K26: 1 | N26: 3 | W26: 1 | X26: 2
B27: CA 02 | C27: Necesidades de riego en jardines. | D27: 3 | E27: 2 | F27: 3 | G27: 1 | H27: 2 | I27: 2 | N27: 3 | W27: 1 | X27: 2
B28: CA 03 | C28: Consumo de agua en zonas comunes. | D28: 3 | E28: 3 | F28: 1 | G28: 2 | H28: 2 | I28: 1 | K28: 1 | N28: 3 | W28: 1 | X28: 2
B29: CA 04 | C29: Uso de aguas no potables. | D29: 3 | E29: 3 | F29: 1 | G29: 3 | H29: 3 | I29: 2 | N29: 2 | W29: 1 | X29: 1
B30: Ciclo de los materiales
B31: CM 01 | C31: Uso de materiales reciclados. | D31: 2 | E31: 2 | F31: 2 | G31: 3 | H31: 3 | I31: 1 | O31: 2 | P31: 1
B32: CM 02 | C32: Uso de materiales obtenidos de recursos sostenibles. | D32: 2 | E32: 2 | F32: 2 | G32: 3 | H32: 3 | I32: 1 | L32: 1 | O32: 3 | S32: 1
B33: CM 03 | C33: Uso de materiales locales. | D33: 2 | E33: 2 | F33: 2 | G33: 3 | H33: 3 | I33: 1 | K33: 1 | T33: 2 | W33: 3
B34: CM 04 | C34: Planificación de una estrategia de demolición selectiva. | D34: 3 | E34: 3 | F34: 2 | G34: 3 | H34: 2 | I34: 3 | O34: 2 | P34: 3 | W34: 1 | X34: 2
B35: CM 05 | C35: Gestión de los residuos de la construcción. | D35: 2 | E35: 1 | F35: 1 | G35: 2 | H35: 2 | I35: 2 | O35: 1 | P35: 3 | X35: 1
B36: CM 06 | C36: Impacto de los materiales de la construcción. | D36: 5 | E36: 5 | F36: 3 | G36: 2 | H36: 3 | I36: 5 | J36: 3 | K36: 3 | L36: 1 | M36: 3 | N36: 3 | O36: 3 | P36: 3 | R36: 1 | U36: 3 | W36: 2 | X36: 3
B37: CM 07 | C37: Ecoetiquetado de producto. | D37: 1 | E37: 1 | F37: 1 | G37: 3 | H37: 1 | I37: 1 | J37: 1 | K37: 1 | M37: 1 | N37: 1 | O37: 1 | P37: 1 | W37: 3
B38: Salud y confort
B39: CAI 01 | C39: Limitación en las emisiones de COVs. | D39: 1 | E39: 2 | F39: 3 | G39: 3 | H39: 3 | I39: 2 | S39: 3 | W39: 1
B40: CAI 02 | C40: Monitorización de la calidad del aire | D40: 1 | E40: 2 | F40: 3 | G40: 3 | H40: 3 | I40: 1 | S40: 3 | W40: 2
B41: CAI 03 | C41: Eficacia de la ventilación natural. | D41: 1 | E41: 2 | F41: 3 | G41: 1 | H41: 2 | I41: 1 | S41: 3 | W41: 1
B42: CAI 04 | C42: Iluminación natural. | D42: 1 | E42: 2 | F42: 3 | G42: 2 | H42: 3 | I42: 2 | S42: 3 | W42: 2
B43: CAI 05 | C43: Iluminación artificial | D43: 1 | E43: 2 | F43: 2 | G43: 2 | H43: 2 | I43: 1 | S43: 2 | W43: 1
B44: CAI 06 | C44: Protección frente al ruido. | D44: 1 | E44: 2 | F44: 3 | G44: 2 | H44: 2 | I44: 1 | S44: 3 | W44: 1
B45: Aspectos Sociales y Económicos.
B46: ASE 01 | C46: Acceso universal. | D46: 2 | E46: 3 | F46: 3 | G46: 3 | H46: 2 | I46: 3 | Q46: 3 | T46: 1 | W46: 2
B47: ASE 02 | C47: Calidad de los espacios | D47: 1 | E47: 3 | F47: 3 | G47: 3 | H47: 2 | I47: 5 | R47: 2 | S47: 1 | W47: 1
B48: ASE 03 | C48: El edificio como una herramienta para la educación | D48: 3 | E48: 3 | F48: 1 | G48: 1 | H48: 2 | I48: 1 | T48: 1 | W48: 3
B49: ASE 04 | C49: Flexibilidad y adaptabilidad | D49: 1 | E49: 3 | F49: 3 | G49: 2 | H49: 2 | I49: 3 | R49: 3 | U49: 1 | W49: 2
B50: ASE 05 | C50: Viabilidad comercial | D50: 1 | E50: 2 | F50: 2 | G50: 2 | H50: 2 | I50: 3 | V50: 1 | W50: 3 | X50: 3
B51: ASE 06 | C51: Coste de ciclo de vida | D51: 2 | E51: 2 | F51: 3 | G51: 2 | H51: 2 | I51: 5 | R51: 1 | U51: 3 | W51: 2 | X51: 3
B52: Calidad de la construcción
B53: CC 01 | C53: Eficiencia de los espacios. | D53: 1 | E53: 3 | F53: 2 | G53: 3 | H53: 2 | I53: 1 | W53: 2 | X53: 1
B54: CC 02 | C54: Puesta en marcha sistemática | D54: 1 | E54: 2 | F54: 3 | G54: 3 | H54: 3 | I54: 3 | M54: 2 | N54: 2 | U54: 3 | W54: 2 | X54: 3
B55: CC 03 | C55: Custodia de la documentación del proyecto | D55: 1 | E55: 3 | F55: 2 | G55: 1 | H55: 2 | I55: 1 | U55: 1 | W55: 3
B56: CC 04 | C56: Calidad de la envolvente del edificio | D56: 1 | E56: 3 | F56: 3 | G56: 3 | H56: 3 | I56: 3 | J56: 1 | K56: 1 | M56: 1 | S56: 2 | U56: 2 | V56: 2 | W56: 3 | X56: 1
B57: CC 05 | C57: Calidad en el proceso de construcción | D57: 1 | E57: 2 | F57: 3 | G57: 3 | H57: 3 | I57: 3 | S57: 1 | U57: 3 | V57: 2 | W57: 3 | X57: 2
J58: =SUM(J7:J55) -> 22 | K58: 22 | L58: 13 | M58: 18 | N58: 18 | O58: 14 | P58: 14 | Q58: 13 | U58: =SUM(U7:U55) -> 11 | V58: =SUM(V7:V55) -> 1 | W58: =SUM(W7:W55) -> 58 | X58: =SUM(X7:X55) -> 34
J59: =SUM(J7:J55)*J5 -> 2.0625 | K59: 1.375 | L59: 1.21875 | M59: 1.6875 | N59: 1.125 | O59: 0.875 | P59: 0.4375 | Q59: 0.8125 | U59: =SUM(U7:U55)*U5 -> 0.34375 | V59: =SUM(V7:V55)*V5 -> 0.0625 | W59: =SUM(W7:W55)*W5 -> 3.625 | X59: =SUM(X7:X55)*X5 -> 3.1875

Sheet Matriz VERDE-GBCe (2) (hidden)
G1: Lista de criterios | L1: Cambio climático | M1: Emisiones a la atmósfera, tierra y agua | N1: Cambios en la biodiversidad | O1: Agotamiento de energía no renovable | P1: Agotamiento de agua potable | Q1: Agotamiento de recursos materiales | R1: Generación de residuos | S1: Impactos sobre el vecindario | T1: Accesibilidad | U1: Salud y confort | V1: Aspectos económicos del resultado | W1: Ahorro en el coste del ciclo de vida | Y1: Cambio climático | Z1: Emisiones a la atmósfera, tierra y agua | AA1: Cambios en la biodiversidad | AB1: Agotamiento de energía no renovable | AC1: Agotamiento de agua potable | AD1: Agotamiento de recursos materiales | AE1: Generación de residuos | AF1: Impactos sobre el vecindario | AG1: Accesibilidad | AH1: Salud y confort | AI1: Aspectos económicos del resultado | AJ1: Ahorro en el coste del ciclo de vida | AL1: Cambio climático | AM1: Emisiones a la atmósfera, tierra y agua | AN1: Cambios en la biodiversidad | AO1: Agotamiento de energía no renovable | AP1: Agotamiento de agua potable | AQ1: Agotamiento de recursos materiales | AR1: Generación de residuos | AS1: Impactos sobre el vecindario | AT1: Accesibilidad | AU1: Salud y confort | AV1: Aspectos económicos del resultado | AW1: Ahorro en el coste del ciclo de vida
L2: 3 | M2: 2 | N2: 1 | O2: 3 | P2: 2 | Q2: 2 | R2: 1 | S2: 2 | T2: 1 | U2: 4 | V2: 2 | W2: 2 | Y2: 4 | Z2: 2 | AA2: 1 | AB2: 3 | AC2: 2 | AD2: 2 | AE2: 1 | AF2: 1 | AG2: 1 | AH2: 3 | AI2: 1 | AJ2: 2 | AL2: 4 | AM2: 2 | AN2: 1 | AO2: 3 | AP2: 2 | AQ2: 2 | AR2: 1 | AS2: 1 | AT2: 1 | AU2: 3 | AV2: 1 | AW2: 2
B3: Nueva Edificación | C3: Rehabilitación | D3: Existente | E3: Mixto | L3: =L2/SUM($L2:$W2) -> 0.12 | M3: =M2/SUM($L2:$W2) -> 0.08 | N3: 0.04 | O3: 0.12 | P3: 0.08 | Q3: 0.08 | R3: 0.04 | S3: 0.08 | T3: 0.04 | U3: 0.16 | V3: 0.08 | W3: 0.08 | Y3: =Y2/SUM($L2:$W2) -> 0.16 | Z3: =Z2/SUM($L2:$W2) -> 0.08 | AA3: 0.04 | AB3: 0.12 | AC3: 0.08 | AD3: 0.08 | AE3: 0.04 | AF3: 0.04 | AG3: 0.04 | AH3: 0.12 | AI3: 0.04 | AJ3: 0.08 | AL3: =AL2/SUM($L2:$W2) -> 0.16 | AM3: =AM2/SUM($L2:$W2) -> 0.08 | AN3: 0.04 | AO3: 0.12 | AP3: 0.08 | AQ3: 0.08 | AR3: 0.04 | AS3: 0.04 | AT3: 0.04 | AU3: 0.12 | AV3: 0.04 | AW3: 0.08
F4: PyE | G4: Parcela y Emplazamiento. | I4: =SUM(I5:I13) -> 
F5: =VLOOKUP(G5,#REF!,5,FALSE) ->  | G5: PyE 01 | H5: Proximidad al transporte publico. | I5: =IF(J$49=0,0,J5/J$49) ->  | J5: =IF(F5="a",SUMPRODUCT(L5:W5,L$3:W$3),"0") ->  | K5: ='Informe resultados'!N27 -> 0 | T5: 1 | U5: 1 | V5: 1 | Y5: =(L5*L$3)*$I5/SUMPRODUCT($L5:$W5,$L$3:$W$3) ->  | Z5: =(M5*M$3)*$I5/SUMPRODUCT($L5:$W5,$L$3:$W$3) ->  | AL5: =(L5*L$3)*$K5/SUMPRODUCT($L5:$W5,$L$3:$W$3) -> 0 | AM5: =(M5*M$3)*$K5/SUMPRODUCT($L5:$W5,$L$3:$W$3) -> 0 | AN5: 0 | AO5: 0 | AP5: 0 | AQ5: 0 | AR5: 0 | AS5: 0 | AT5: 0 | AU5: 0 | AV5: 0 | AW5: 0
F6: =VLOOKUP(G6,#REF!,5,FALSE) ->  | G6: PyE 02 | H6: Proximidad a equipamiento y servicios. | K6: ='Informe resultados'!N28 -> 0 | T6: 1 | U6: 1 | V6: 1 | AL6: 0 | AM6: 0 | AN6: 0 | AO6: 0 | AP6: 0 | AQ6: 0 | AR6: 0 | AS6: 0 | AT6: 0 | AU6: 0 | AV6: 0 | AW6: 0
F7: =IF(OR(#REF!="",#REF!="Residencial colectivo"),VLOOKUP(G7,#REF!,5,FALSE),"") ->  | G7: PyE 03 | H7: Facilidades para la bicicleta. | K7: ='Informe resultados'!N29 -> 0 | T7: 1 | U7: 1 | V7: 1 | AL7: 0 | AM7: 0 | AN7: 0 | AO7: 0 | AP7: 0 | AQ7: 0 | AR7: 0 | AS7: 0 | AT7: 0 | AU7: 0 | AV7: 0 | AW7: 0
F8: =IF(OR(#REF!="Parte de un edificio",#REF!="NO"),"",VLOOKUP(G8,#REF!,5,FALSE)) ->  | G8: PyE 04 | H8: Capacidad de carga de vehículos eléctricos. | J8: =IF(F8="a",SUMPRODUCT(L8:W8,L$3:W$3),"0") ->  | K8: ='Informe resultados'!N31 -> 0 | L8: 0.15 | M8: 0.15 | O8: 0.15 | S8: 0.5 | T8: 0.5 | V8: 0.5 | Z8: =(M8*M$3)*$I8/SUMPRODUCT($L8:$W8,$L$3:$W$3) ->  | AL8: 0 | AM8: =(M8*M$3)*$K8/SUMPRODUCT($L8:$W8,$L$3:$W$3) -> 0 | AN8: 0 | AO8: 0 | AP8: 0 | AQ8: 0 | AR8: 0 | AS8: 0 | AT8: 0 | AU8: 0 | AV8: 0 | AW8: 0
F9: =IF(#REF!="Parte de un edificio","",VLOOKUP(G9,#REF!,5,FALSE)) ->  | G9: PyE 05 | H9: Clasificación de RSU. | K9: ='Informe resultados'!N31 -> 0 | Q9: 1 | R9: 2 | AL9: 0 | AM9: 0 | AN9: 0 | AO9: 0 | AP9: 0 | AQ9: 0 | AR9: 0 | AS9: 0 | AT9: 0 | AU9: 0 | AV9: 0 | AW9: 0
F10: =IF(#REF!="Parte de un edificio","",VLOOKUP(G10,#REF!,5,FALSE)) ->  | G10: PyE 06 | H10: Gestión y Restauración del hábitat. | K10: ='Informe resultados'!N32 -> 0 | N10: 1 | Q10: 1 | S10: 1 | V10: 1 | AL10: 0 | AM10: 0 | AN10: 0 | AO10: 0 | AP10: 0 | AQ10: 0 | AR10: 0 | AS10: 0 | AT10: 0 | AU10: 0 | AV10: 0 | AW10: 0
F11: =IF(#REF!="Parte de un edificio","",VLOOKUP(G11,#REF!,5,FALSE)) ->  | G11: PyE 07 | H11: Uso de plantas para crear sombras. | K11: ='Informe resultados'!N33 -> 0 | L11: 0.15 | N11: 1 | S11: 1 | U11: 1 | AL11: 0 | AM11: 0 | AN11: 0 | AO11: 0 | AP11: 0 | AQ11: 0 | AR11: 0 | AS11: 0 | AT11: 0 | AU11: 0 | AV11: 0 | AW11: 0
F12: =IF(#REF!="Parte de un edificio","",VLOOKUP(G12,#REF!,5,FALSE)) ->  | G12: PyE 08 | H12: Efecto isla de calor. | K12: ='Informe resultados'!N34 -> 0 | L12: 0.75 | N12: 1 | S12: 1 | AL12: 0 | AM12: 0 | AN12: 0 | AO12: 0 | AP12: 0 | AQ12: 0 | AR12: 0 | AS12: 0 | AT12: 0 | AU12: 0 | AV12: 0 | AW12: 0
F13: =IF(#REF!="Parte de un edificio","",VLOOKUP(G13,#REF!,5,FALSE)) ->  | G13: PyE 09 | H13: Contaminación lumínica. | K13: ='Informe resultados'!N35 -> 0 | N13: 2 | S13: 1 | AL13: 0 | AM13: 0 | AN13: 0 | AO13: 0 | AP13: 0 | AQ13: 0 | AR13: 0 | AS13: 0 | AT13: 0 | AU13: 0 | AV13: 0 | AW13: 0
F14: EyA | G14: Energía y Atmósfera. | I14: =SUM(I15:I20) -> 
F15: =VLOOKUP(G15,#REF!,5,FALSE) ->  | G15: EyA 01 | H15: Demanda de calefacción y refrigeración. | I15: =IF(J$49=0,0,J15/J$49) ->  | J15: =IF(F15="a",SUMPRODUCT(L15:W15,L$3:W$3),"0") ->  | K15: ='Informe resultados'!N36 -> 0 | L15: 1 | M15: 1 | O15: 1 | U15: 2 | V15: 1 | W15: 2 | Y15: =(L15*L$3)*$I15/SUMPRODUCT($L15:$W15,$L$3:$W$3) ->  | AL15: =(L15*L$3)*$K15/SUMPRODUCT($L15:$W15,$L$3:$W$3) -> 0 | AM15: 0 | AN15: 0 | AO15: 0 | AP15: 0 | AQ15: 0 | AR15: 0 | AS15: 0 | AT15: 0 | AU15: 0 | AV15: 0 | AW15: 0
F16: =VLOOKUP(G16,#REF!,5,FALSE) ->  | G16: EyA 02 | H16: Consumo de energía primaria no renovable. | K16: ='Informe resultados'!N37 -> 0 | L16: 1 | M16: 1 | O16: 2 | W16: 1 | AL16: 0 | AM16: 0 | AN16: 0 | AO16: 0 | AP16: 0 | AQ16: 0 | AR16: 0 | AS16: 0 | AT16: 0 | AU16: 0 | AV16: 0 | AW16: 0
F17: =VLOOKUP(G17,#REF!,5,FALSE) ->  | G17: EyA 03 | H17: Emisiones de CO2 | K17: ='Informe resultados'!N38 -> 0 | L17: 2 | M17: 2 | AL17: 0 | AM17: 0 | AN17: 0 | AO17: 0 | AP17: 0 | AQ17: 0 | AR17: 0 | AS17: 0 | AT17: 0 | AU17: 0 | AV17: 0 | AW17: 0
F18: =IF(OR(#REF!="",#REF!="Residencial colectivo"),VLOOKUP(G18,#REF!,5,FALSE),"") ->  | G18: EyA 04 | H18: Demanda de energía eléctrica en fase de uso. | K18: ='Informe resultados'!#REF! ->  | L18: 0.25 | M18: 0.5 | O18: 0.5 | W18: 0.25
F19: =VLOOKUP(G19,#REF!,5,FALSE) ->  | G19: EyA 05 | H19: Emisión de NOx en calderas de combustión. | K19: ='Informe resultados'!#REF! ->  | M19: 1 | U19: 1
F20: =VLOOKUP(G20,#REF!,5,FALSE) ->  | G20: EyA 06 | H20: Elección responsable de refrigerantes. | K20: ='Informe resultados'!#REF! ->  | L20: 1 | M20: 2 | N20: 1
F21: RN | G21: Recursos Naturales. | I21: =SUM(I22:I32) -> 
F22: =VLOOKUP(G22,#REF!,5,FALSE) ->  | G22: RN 01 | H22: Consumo de agua en aparatos sanitarios. | I22: =IF(J$49=0,0,J22/J$49) ->  | J22: =IF(F22="a",SUMPRODUCT(L22:W22,L$3:W$3),"0") ->  | K22: ='Informe resultados'!N40 -> 0 | M22: 1 | P22: 2 | W22: 2 | Y22: =(L22*L$3)*$I22/SUMPRODUCT($L22:$W22,$L$3:$W$3) ->  | AL22: =(L22*L$3)*$K22/SUMPRODUCT($L22:$W22,$L$3:$W$3) -> 0 | AM22: 0 | AN22: 0 | AO22: 0 | AP22: 0 | AQ22: 0 | AR22: 0 | AS22: 0 | AT22: 0 | AU22: 0 | AV22: 0 | AW22: 0
F23: =IF(#REF!="Parte de un edificio","",VLOOKUP(G23,#REF!,5,FALSE)) ->  | G23: RN 02 | H23: Necesidades de riego en jardines. | J23: =IF(F23="a",IF(#REF!="no",0,SUMPRODUCT(L23:W23,L$3:W$3)),"0") ->  | K23: ='Informe resultados'!N41 -> 0 | P23: 1 | V23: 1 | W23: 1 | AL23: 0 | AM23: 0 | AN23: 0 | AO23: 0 | AP23: 0 | AQ23: 0 | AR23: 0 | AS23: 0 | AT23: 0 | AU23: 0 | AV23: 0 | AW23: 0
F24: =IF(OR(#REF!="",#REF!="Residencial colectivo"),VLOOKUP(G24,#REF!,5,FALSE),"") ->  | G24: RN 03 | H24: Consumo de agua en zonas comunes. | J24: =IF(F24="a",IF(#REF!="no",0,SUMPRODUCT(L24:W24,L$3:W$3)),"0") ->  | K24: ='Informe resultados'!N42 -> 0 | P24: 1 | W24: 1 | AL24: 0 | AM24: 0 | AN24: 0 | AO24: 0 | AP24: 0 | AQ24: 0 | AR24: 0 | AS24: 0 | AT24: 0 | AU24: 0 | AV24: 0 | AW24: 0
F25: =IF(#REF!="Parte de un edificio","",VLOOKUP(G25,#REF!,5,FALSE)) ->  | G25: RN 04 | H25: Uso de aguas no potables. | J25: =IF(F25="a",SUMPRODUCT(L25:W25,L$3:W$3),"0") ->  | K25: ='Informe resultados'!N43 -> 0 | P25: 1 | V25: 1 | W25: 1 | AL25: 0 | AM25: 0 | AN25: 0 | AO25: 0 | AP25: 0 | AQ25: 0 | AR25: 0 | AS25: 0 | AT25: 0 | AU25: 0 | AV25: 0 | AW25: 0
F26: =IF(OR(#REF!="Parte de un edificio",#REF!="Edificio existente"),"",VLOOKUP(G26,#REF!,5,FALSE)) ->  | G26: RN 05 | H26: Uso de materiales reciclados. | K26: ='Informe resultados'!N44 -> 0 | Q26: 3 | R26: 2 | AL26: 0 | AM26: 0 | AN26: 0 | AO26: 0 | AP26: 0 | AQ26: 0 | AR26: 0 | AS26: 0 | AT26: 0 | AU26: 0 | AV26: 0 | AW26: 0
F27: =IF(OR(#REF!="Parte de un edificio",#REF!="Edificio existente"),"",VLOOKUP(G27,#REF!,5,FALSE)) ->  | G27: RN 06 | H27: Uso de materiales obtenidos de recursos sostenibles. | K27: ='Informe resultados'!N45 -> 0 | Q27: 1 | V27: 1 | AL27: 0 | AM27: 0 | AN27: 0 | AO27: 0 | AP27: 0 | AQ27: 0 | AR27: 0 | AS27: 0 | AT27: 0 | AU27: 0 | AV27: 0 | AW27: 0
F28: =IF(OR(#REF!="Parte de un edificio",#REF!="Edificio existente"),"",VLOOKUP(G28,#REF!,5,FALSE)) ->  | G28: RN 07 | H28: Uso de materiales locales. | K28: ='Informe resultados'!N46 -> 0 | S28: 1 | V28: 3 | AL28: 0 | AM28: 0 | AN28: 0 | AO28: 0 | AP28: 0 | AQ28: 0 | AR28: 0 | AS28: 0 | AT28: 0 | AU28: 0 | AV28: 0 | AW28: 0
F29: =IF(OR(#REF!="Parte de un edificio",#REF!="Edificio existente"),"",VLOOKUP(G29,#REF!,5,FALSE)) ->  | G29: RN 08 | H29: Planificación de una estrategia de demolición selectiva. | K29: ='Informe resultados'!N47 -> 0 | Q29: 1 | R29: 1 | W29: 1 | AL29: 0 | AM29: 0 | AN29: 0 | AO29: 0 | AP29: 0 | AQ29: 0 | AR29: 0 | AS29: 0 | AT29: 0 | AU29: 0 | AV29: 0 | AW29: 0
F30: =IF(OR(#REF!="Parte de un edificio",#REF!="Edificio existente"),"",VLOOKUP(G30,#REF!,5,FALSE)) ->  | G30: RN 09 | H30: Gestión de los residuos de la construcción. | K30: ='Informe resultados'!N48 -> 0 | Q30: 1 | R30: 2 | AL30: 0 | AM30: 0 | AN30: 0 | AO30: 0 | AP30: 0 | AQ30: 0 | AR30: 0 | AS30: 0 | AT30: 0 | AU30: 0 | AV30: 0 | AW30: 0
F31: =IF(OR(#REF!="Parte de un edificio",#REF!="Edificio existente"),"",VLOOKUP(G31,#REF!,5,FALSE)) ->  | G31: RN 10 | H31: Impacto de los materiales de la construcción. | K31: ='Informe resultados'!N50 -> 0 | M31: 3 | O31: 2 | P31: 2 | Q31: 2 | R31: 2 | AL31: 0 | AM31: 0 | AN31: 0 | AO31: 0 | AP31: 0 | AQ31: 0 | AR31: 0 | AS31: 0 | AT31: 0 | AU31: 0 | AV31: 0 | AW31: 0
F32: =IF(OR(#REF!="Edificio existente",#REF!="Parte de un edificio"),"",VLOOKUP(G32,#REF!,5,FALSE)) ->  | G32: RN 11 | H32: Ecoetiquetado de producto. | K32: ='Informe resultados'!N51 -> 0 | Q32: 1 | V32: 3 | AL32: 0 | AM32: 0 | AN32: 0 | AO32: 0 | AP32: 0 | AQ32: 0 | AR32: 0 | AS32: 0 | AT32: 0 | AU32: 0 | AV32: 0 | AW32: 0
F33: CAI | G33: Calidad del Ambiente Interior. | I33: =SUM(I34:I37) -> 
F34: =IF(#REF!="Edificio existente","",VLOOKUP(G34,#REF!,5,FALSE)) ->  | G34: CAI 01 | H34: Limitación en las emisiones de COVs. | I34: =IF(J$49=0,0,J34/J$49) ->  | J34: =IF(F34="a",SUMPRODUCT(L34:W34,L$3:W$3),"0") ->  | K34: ='Informe resultados'!N52 -> 0 | U34: 2 | V34: 1 | Y34: =(L34*L$3)*$I34/SUMPRODUCT($L34:$W34,$L$3:$W$3) ->  | AL34: =(L34*L$3)*$K34/SUMPRODUCT($L34:$W34,$L$3:$W$3) -> 0 | AM34: 0 | AN34: 0 | AO34: 0 | AP34: 0 | AQ34: 0 | AR34: 0 | AS34: 0 | AT34: 0 | AU34: 0 | AV34: 0 | AW34: 0
F35: =IF(OR(#REF!="Unifamiliar",#REF!="Urbanización"),"",VLOOKUP(G35,#REF!,5,FALSE)) ->  | G35: CAI 02 | H35: Eficacia de la ventilación natural. | I35: =IF(J$49=0,0,J35/J$49) ->  | J35: =IF(F35="a",SUMPRODUCT(L35:W35,L$3:W$3),"0") ->  | K35: ='Informe resultados'!N53 -> 0 | U35: 3 | V35: 1 | AL35: 0 | AM35: 0 | AN35: 0 | AO35: 0 | AP35: 0 | AQ35: 0 | AR35: 0 | AS35: 0 | AT35: 0 | AU35: 0 | AV35: 0 | AW35: 0
F36: =IF(OR(#REF!="Unifamiliar",#REF!="Urbanización"),"",VLOOKUP(G36,#REF!,5,FALSE)) ->  | G36: CAI 03 | H36: Iluminación natural. | I36: =IF(J$49=0,0,J36/J$49) ->  | J36: =IF(F36="a",SUMPRODUCT(L36:W36,L$3:W$3),"0") ->  | K36: ='Informe resultados'!N54 -> 0 | U36: 3 | V36: 2 | AL36: 0 | AM36: 0 | AN36: 0 | AO36: 0 | AP36: 0 | AQ36: 0 | AR36: 0 | AS36: 0 | AT36: 0 | AU36: 0 | AV36: 0 | AW36: 0
F37: =VLOOKUP(G37,#REF!,5,FALSE) ->  | G37: CAI 04 | H37: Protección frente al ruido. | I37: =IF(J$49=0,0,J37/J$49) ->  | J37: =IF(F37="a",SUMPRODUCT(L37:W37,L$3:W$3),"0") ->  | K37: ='Informe resultados'!N55 -> 0 | U37: 3 | V37: 1 | AL37: 0 | AM37: 0 | AN37: 0 | AO37: 0 | AP37: 0 | AQ37: 0 | AR37: 0 | AS37: 0 | AT37: 0 | AU37: 0 | AV37: 0 | AW37: 0
F38: ASE | G38: Aspectos Sociales y Económicos. | I38: =SUM(I39:I43) -> 
F39: =IF(OR(#REF!="Unifamiliar",#REF!="Urbanización",#REF!="Parte de un edificio"),"",VLOOKUP(G39,#REF!,5,FALSE)) ->  | G39: ASE 01 | H39: Acceso universal. | I39: =IF(J$49=0,0,J39/J$49) ->  | J39: =IF(F39="a",SUMPRODUCT(L39:W39,L$3:W$3),"0") ->  | K39: ='Informe resultados'!N57 -> 0 | S39: 1 | T39: 3 | V39: 2 | Y39: =(L39*L$3)*$I39/SUMPRODUCT($L39:$W39,$L$3:$W$3) ->  | AL39: =(L39*L$3)*$K39/SUMPRODUCT($L39:$W39,$L$3:$W$3) -> 0 | AM39: 0 | AN39: 0 | AO39: 0 | AP39: 0 | AQ39: 0 | AR39: 0 | AS39: 0 | AT39: 0 | AU39: 0 | AV39: 0 | AW39: 0
F40: =VLOOKUP(G40,#REF!,5,FALSE) ->  | G40: ASE 02 | H40: Derecho al sol. | I40: =IF(J$49=0,0,J40/J$49) ->  | J40: =IF(F40="a",SUMPRODUCT(L40:W40,L$3:W$3),"0") ->  | K40: ='Informe resultados'!N58 -> 0 | U40: 2 | V40: 1 | AL40: 0 | AM40: 0 | AN40: 0 | AO40: 0 | AP40: 0 | AQ40: 0 | AR40: 0 | AS40: 0 | AT40: 0 | AU40: 0 | AV40: 0 | AW40: 0
F41: =IF(OR(#REF!="Unifamiliar",#REF!="Urbanización"),"",VLOOKUP(G41,#REF!,5,FALSE)) ->  | G41: ASE 03 | H41: Acceso a espacios abiertos privados. | I41: =IF(J$49=0,0,J41/J$49) ->  | J41: =IF(F41="a",SUMPRODUCT(L41:W41,L$3:W$3),"0") ->  | K41: ='Informe resultados'!N60 -> 0 | U41: 1 | V41: 1 | AL41: 0 | AM41: 0 | AN41: 0 | AO41: 0 | AP41: 0 | AQ41: 0 | AR41: 0 | AS41: 0 | AT41: 0 | AU41: 0 | AV41: 0 | AW41: 0
F42: =VLOOKUP(G42,#REF!,5,FALSE) ->  | G42: ASE 04 | H42: Derecho a la intimidad. | I42: =IF(J$49=0,0,J42/J$49) ->  | J42: =IF(F42="a",SUMPRODUCT(L42:W42,L$3:W$3),"0") ->  | K42: ='Informe resultados'!N61 -> 0 | U42: 1 | V42: 1 | AL42: 0 | AM42: 0 | AN42: 0 | AO42: 0 | AP42: 0 | AQ42: 0 | AR42: 0 | AS42: 0 | AT42: 0 | AU42: 0 | AV42: 0 | AW42: 0
F43: =IF(OR(#REF!="",#REF!="Residencial colectivo"),VLOOKUP(G43,#REF!,5,FALSE),"") ->  | G43: ASE 05 | H43: Coste de construcción. | I43: =IF(J$49=0,0,J43/J$49) ->  | J43: =IF(F43="a",SUMPRODUCT(L43:W43,L$3:W$3),"0") ->  | K43: ='Informe resultados'!N65 -> 0 | W43: 3 | AL43: 0 | AM43: 0 | AN43: 0 | AO43: 0 | AP43: 0 | AQ43: 0 | AR43: 0 | AS43: 0 | AT43: 0 | AU43: 0 | AV43: 0 | AW43: 0
F44: CC | G44: Concepto de Calidad. | I44: =SUM(I45:I48) -> 
F45: =IF(OR(#REF!="",#REF!="Residencial colectivo"),VLOOKUP(G45,#REF!,5,FALSE),"") ->  | G45: CC 01 | H45: Eficiencia de los espacios. | I45: =IF(J$49=0,0,J45/J$49) ->  | J45: =IF(F45="a",SUMPRODUCT(L45:W45,L$3:W$3),"0") ->  | K45: ='Informe resultados'!N66 -> 0 | V45: 2 | W45: 1 | Y45: =(L45*L$3)*$I45/SUMPRODUCT($L45:$W45,$L$3:$W$3) ->  | AL45: =(L45*L$3)*$K45/SUMPRODUCT($L45:$W45,$L$3:$W$3) -> 0 | AM45: 0 | AN45: 0 | AO45: 0 | AP45: 0 | AQ45: 0 | AR45: 0 | AS45: 0 | AT45: 0 | AU45: 0 | AV45: 0 | AW45: 0
F46: =VLOOKUP(G46,#REF!,5,FALSE) ->  | G46: CC 02 | H46: Sistema de gestión del edificio (BMS). | I46: =IF(J$49=0,0,J46/J$49) ->  | J46: =IF(F46="a",SUMPRODUCT(L46:W46,L$3:W$3),"0") ->  | K46: ='Informe resultados'!N67 -> 0 | O46: 1 | P46: 1 | V46: 2 | W46: 1 | AL46: 0 | AM46: 0 | AN46: 0 | AO46: 0 | AP46: 0 | AQ46: 0 | AR46: 0 | AS46: 0 | AT46: 0 | AU46: 0 | AV46: 0 | AW46: 0
F47: =IF(#REF!="Parte de un edificio","",VLOOKUP(G47,#REF!,5,FALSE)) ->  | G47: CC 03 | H47: Custodia de la documentación del proyecto. | I47: =IF(J$49=0,0,J47/J$49) ->  | J47: =IF(F47="a",SUMPRODUCT(L47:W47,L$3:W$3),"0") ->  | K47: ='Informe resultados'!N68 -> 0 | V47: 3 | AL47: 0 | AM47: 0 | AN47: 0 | AO47: 0 | AP47: 0 | AQ47: 0 | AR47: 0 | AS47: 0 | AT47: 0 | AU47: 0 | AV47: 0 | AW47: 0
F48: =IF(#REF!="Parte de un edificio","",VLOOKUP(G48,#REF!,5,FALSE)) ->  | G48: CC 04 | H48: El edificio como una herramienta para la educación. | I48: =IF(J$49=0,0,J48/J$49) ->  | J48: =IF(F48="a",SUMPRODUCT(L48:W48,L$3:W$3),"0") ->  | K48: ='Informe resultados'!N72 -> 0 | S48: 1 | V48: 3 | AL48: 0 | AM48: 0 | AN48: 0 | AO48: 0 | AP48: 0 | AQ48: 0 | AR48: 0 | AS48: 0 | AT48: 0 | AU48: 0 | AV48: 0 | AW48: 0
I49: =I4+I14+I21+I33+I38+I44 ->  | J49: =SUM(J4:J48) ->  | L49: =SUM(L5:L48) -> 6.3 | M49: 11.65 | N49: 6 | O49: 6.65 | P49: 8 | Q49: 11 | R49: 9 | S49: 7.5 | T49: 6.5 | U49: 22 | V49: 34.5 | W49: 14.25 | Y49: =SUM(Y5:Y48) ->  | AL49: =SUM(AL5:AL48) ->  | AY49: =SUM(Y49:AJ49) -> 
L50: =SUM(L5:L48)*L3 -> 0.756 | M50: 0.932 | N50: 0.24 | O50: 0.798 | P50: 0.64 | Q50: 0.88 | R50: 0.36 | S50: 0.6 | T50: 0.26 | U50: 3.52 | V50: 2.76 | W50: 1.14

Sheet tablas y gráficos Guía (hidden)
B1: PRODUCTO | E1: CONSTRUCCIÓN | G1: USO | N1: FIN DE VIDA
B2: A1 | C2: A2 | D2: A3 | E2: A4 | F2: A5 | G2: B1 | H2: B2 | I2: B3 | J2: B4 | K2: B5 | L2: B6 | M2: B7 | N2: C1 | O2: C2 | P2: C3 | Q2: C4
A3: Cambio climático | B3: 3 | C3: 3 | D3: 3 | E3: 2 | L3: 2 | S3: Cambio climático | T3: ='Matriz VERDE-GBCe'!AJ5 -> 0.09375
A4: Emisiones a la atmósfera, tierra y agua | B4: 3 | C4: 3 | D4: 3 | E4: 1 | L4: 2 | S4: Emisiones a la atmósfera, tierra y agua | T4: ='Matriz VERDE-GBCe'!AK5 -> 0.0625
A5: Cambios en la biodiversidad | B5: 1 | F5: 2 | G5: 2 | S5: Cambios en la biodiversidad | T5: ='Matriz VERDE-GBCe'!AL5 -> 0.09375
A6: Agotamiento de energía no renovable | B6: 3 | C6: 3 | D6: 3 | E6: 2 | F6: 1 | L6: 3 | S6: Agotamiento de energía no renovable | T6: ='Matriz VERDE-GBCe'!AM5 -> 0.09375
A7: Agotamiento de agua potable | M7: 3 | S7: Agotamiento de agua potable | T7: ='Matriz VERDE-GBCe'!AN5 -> 0.0625
A8: Agotamiento de recursos materiales | B8: 3 | C8: 3 | D8: 3 | J8: 2 | N8: 1 | S8: Agotamiento de recursos materiales | T8: ='Matriz VERDE-GBCe'!AO5 -> 0.0625
A9: Generación de residuos | B9: 2 | C9: 2 | D9: 2 | F9: 3 | J9: 1 | K9: 1 | N9: 2 | P9: 2 | S9: Generación de residuos | T9: ='Matriz VERDE-GBCe'!AP5 -> 0.03125
A10: Accesibilidad | G10: 3 | S10: Accesibilidad | T10: ='Matriz VERDE-GBCe'!AQ5 -> 0.0625
A11: Adaptabilidad | G11: 3 | S11: Adaptabilidad | T11: ='Matriz VERDE-GBCe'!AR5 -> 0.03125
A12: Salud y confort | G12: 3 | S12: Salud y confort | T12: ='Matriz VERDE-GBCe'!AS5 -> 0.09375
A13: Impactos sobre el vecindario | G13: 3 | S13: Impactos sobre el vecindario | T13: ='Matriz VERDE-GBCe'!AT5 -> 0.0625
A14: Mantenimiento | G14: 3 | H14: 3 | I14: 3 | J14: 2 | K14: 2 | S14: Mantenimiento | T14: ='Matriz VERDE-GBCe'!AU5 -> 0.03125
A15: Seguridad | G15: 3 | S15: Seguridad | T15: ='Matriz VERDE-GBCe'!AV5 -> 0.0625
A16: Aspectos económicos del resultado | F16: 3 | G16: 2 | H16: 1 | I16: 1 | J16: 2 | K16: 1 | L16: 2 | M16: 2 | N16: 2 | S16: Aspectos económicos del resultado | T16: ='Matriz VERDE-GBCe'!AW5 -> 0.0625
A17: Ahorro en el coste del ciclo de vida | B17: 3 | C17: 3 | D17: 3 | F17: 3 | G17: 2 | J17: 3 | L17: 2 | M17: 2 | N17: 3 | S17: Ahorro en el coste del ciclo de vida | T17: ='Matriz VERDE-GBCe'!AX5 -> 0.09375
S19: Comportamiento ambiental | T19: =SUM(T20:T26) -> 0.5 | U19: Comportamiento social | V19: =SUM(V20:V26) -> 0.34375 | W19: Comportamiento económico | X19: =SUM(X20:X26) -> 0.15625 | Z19: Comportamiento ambiental | AA19: =SUM(T20:T26) -> 0.5
S20: Cambio climático | T20: ='Matriz VERDE-GBCe'!AZ5 -> 0.09375 | U20: Accesibilidad | V20: ='Matriz VERDE-GBCe'!BG5 -> 0.0625 | W20: Aspectos económicos del resultado | X20: ='Matriz VERDE-GBCe'!BM5 -> 0.0625 | Z20: Comportamiento social | AA20: =SUM(V20:V26) -> 0.34375
S21: Emisiones a la atmósfera, tierra y agua | T21: ='Matriz VERDE-GBCe'!BA5 -> 0.0625 | U21: Adaptabilidad | V21: ='Matriz VERDE-GBCe'!BH5 -> 0.03125 | W21: Ahorro en el coste del ciclo de vida | X21: ='Matriz VERDE-GBCe'!BN5 -> 0.09375 | Z21: Comportamiento económico | AA21: =SUM(X20:X25) -> 0.15625
S22: Cambios en la biodiversidad | T22: ='Matriz VERDE-GBCe'!BB5 -> 0.09375 | U22: Salud y confort | V22: ='Matriz VERDE-GBCe'!BI5 -> 0.09375
S23: Agotamiento de energía no renovable | T23: ='Matriz VERDE-GBCe'!BC5 -> 0.09375 | U23: Impactos sobre el vecindario | V23: ='Matriz VERDE-GBCe'!BJ5 -> 0.0625
S24: Agotamiento de agua potable | T24: ='Matriz VERDE-GBCe'!BD5 -> 0.0625 | U24: Mantenimiento | V24: ='Matriz VERDE-GBCe'!BK5 -> 0.03125
S25: Agotamiento de recursos materiales | T25: ='Matriz VERDE-GBCe'!BE5 -> 0.0625 | U25: Seguridad | V25: ='Matriz VERDE-GBCe'!BL5 -> 0.0625
S26: Generación de residuos | T26: ='Matriz VERDE-GBCe'!BF5 -> 0.03125
S29: ='Matriz VERDE-GBCe'!V6 -> Parcela y emplazamiento | T29: ='Matriz VERDE-GBCe'!X6 -> 0.1599859921
S30: ='Matriz VERDE-GBCe'!V16 -> Energía y atmósfera | T30: ='Matriz VERDE-GBCe'!X16 -> 0.1847152632
S31: ='Matriz VERDE-GBCe'!V23 -> Recursos naturales | T31: ='Matriz VERDE-GBCe'!X23 -> 0.2634556328
S32: ='Matriz VERDE-GBCe'!V36 -> Ambiente Interior. | T32: ='Matriz VERDE-GBCe'!X36 -> 0.07855180217
S33: ='Matriz VERDE-GBCe'!V42 -> Aspectos sociales | T33: ='Matriz VERDE-GBCe'!X42 -> 0.1754215829
S34: ='Matriz VERDE-GBCe'!V52 -> Calidad de la edificación | T34: ='Matriz VERDE-GBCe'!X52 -> 0.1378697268
T36: =SUM(T29:T35) -> 1
T39: 17.84
T40: 15.47
T41: 24.07
T42: 14.16
T43: 12.79
T44: 15.67
T46: =SUM(T39:T45) -> 100

Sheet Matriz VERDE-GBCe (hidden)
A2: Residencial colectivo | B2: Unifamiliar | C2: Urbanizaciones | D2: Vivienda en un edificio | E2: Edificios administrativos | F2: Equipamiento público | G2: Edificios docentes | H2: Edificios comerciales | I2: Alojamiento y hospedaje | J2: Servicios de restauración | K2: Edificios deportivos | L2: Edificios sanitarios | M2: Industria ligera o logística | N2: Local o parte de un edificio | P2: Nueva Edificación | Q2: Rehabilitación | R2: Existente | S2: Mixto | T2: Límites de aplicabilidad | W2: Lista de criterios | X2: Peso del criterio | Z2: Solidez del criterio | AA2: Solidez del criterio | AB2: Alcance del efecto | AC2: Duración del efecto | AD2: Intensidad del efecto | AE2: Fiabilidad de los datos | AF2: Capacidad de lograr el objetivo | AG2: Complejidad del criterio | AH2: Peso por impactos | AI2: Peso por impactos | AJ2: Cambio climático | AK2: Emisiones a la atmósfera, tierra y agua | AL2: Cambios en la biodiversidad | AM2: Agotamiento de energía no renovable | AN2: Agotamiento de agua potable | AO2: Agotamiento de recursos materiales | AP2: Generación de residuos | AQ2: Accesibilidad | AR2: Adaptabilidad | AS2: Salud y confort | AT2: Impactos sobre el vecindario | AU2: Mantenimiento | AV2: Seguridad | AW2: Aspectos económicos del resultado | AX2: Ahorro en el coste del ciclo de vida | AZ2: Cambio climático | BA2: Emisiones a la atmósfera, tierra y agua | BB2: Cambios en la biodiversidad | BC2: Agotamiento de energía no renovable | BD2: Agotamiento de agua potable | BE2: Agotamiento de recursos materiales | BF2: Generación de residuos | BG2: Accesibilidad | BH2: Adaptabilidad | BI2: Salud y confort | BJ2: Impactos sobre el vecindario | BK2: Mantenimiento | BL2: Seguridad | BM2: Aspectos económicos del resultado | BN2: Ahorro en el coste del ciclo de vida | BP2: Cambio climático | BQ2: Emisiones a la atmósfera, tierra y agua | BR2: Cambios en la biodiversidad | BS2: Agotamiento de energía no renovable | BT2: Agotamiento de agua potable | BU2: Agotamiento de recursos materiales | BV2: Generación de residuos | BW2: Accesibilidad | BX2: Adaptabilidad | BY2: Salud y confort | BZ2: Impactos sobre el vecindario | CA2: Mantenimiento | CB2: Seguridad | CC2: Aspectos económicos del resultado | CD2: Ahorro en el coste del ciclo de vida
V3: Listas de criterios | X3: Peso | AB3: Solidez del criterio | AJ3: Influencia de los impactos
AB4: 3 | AC4: 3 | AD4: 2 | AE4: 1 | AF4: 3 | AG4: 1 | AJ4: 3 | AK4: 2 | AL4: 3 | AM4: 3 | AN4: 2 | AO4: 2 | AP4: 1 | AQ4: 2 | AR4: 1 | AS4: 3 | AT4: 2 | AU4: 1 | AV4: 2 | AW4: 2 | AX4: 3 | AZ4: 3 | BA4: 2 | BB4: 3 | BC4: 3 | BD4: 2 | BE4: 2 | BF4: 1 | BG4: 2 | BH4: 1 | BI4: 3 | BJ4: 2 | BK4: 1 | BL4: 2 | BM4: 2 | BN4: 3 | BP4: 3 | BQ4: 2 | BR4: 3 | BS4: 3 | BT4: 2 | BU4: 2 | BV4: 1 | BW4: 2 | BX4: 1 | BY4: 3 | BZ4: 2 | CA4: 1 | CB4: 2 | CC4: 2 | CD4: 3
AA5: =SUM(AB5:AG5) -> 1 | AB5: =AB4/SUM($AB4:$AG4) -> 0.2307692308 | AC5: 0.2307692308 | AD5: 0.1538461538 | AE5: 0.07692307692 | AF5: 0.2307692308 | AG5: 0.07692307692 | AI5: =SUM(AJ5:AX5) -> 1 | AJ5: =AJ4/SUM($AJ4:$AX4) -> 0.09375 | AK5: 0.0625 | AL5: 0.09375 | AM5: 0.09375 | AN5: 0.0625 | AO5: 0.0625 | AP5: 0.03125 | AQ5: 0.0625 | AR5: =AR4/SUM($AJ4:$AX4) -> 0.03125 | AS5: 0.09375 | AT5: 0.0625 | AU5: 0.03125 | AV5: 0.0625 | AW5: 0.0625 | AX5: 0.09375 | AZ5: =AZ4/SUM($AJ4:$AX4) -> 0.09375 | BA5: 0.0625 | BB5: 0.09375 | BC5: 0.09375 | BD5: 0.0625 | BE5: 0.0625 | BF5: 0.03125 | BG5: 0.0625 | BH5: =BH4/SUM($AJ4:$AX4) -> 0.03125 | BI5: 0.09375 | BJ5: 0.0625 | BK5: 0.03125 | BL5: 0.0625 | BM5: 0.0625 | BN5: 0.09375 | BP5: =BP4/SUM($AJ4:$AX4) -> 0.09375 | BQ5: 0.0625 | BR5: 0.09375 | BS5: 0.09375 | BT5: 0.0625 | BU5: 0.0625 | BV5: 0.03125 | BW5: 0.0625 | BX5: =BX4/SUM($AJ4:$AX4) -> 0.03125 | BY5: 0.09375 | BZ5: 0.0625 | CA5: 0.03125 | CB5: 0.0625 | CC5: 0.0625 | CD5: 0.09375
U6: PE | V6: Parcela y emplazamiento | X6: =SUM(X7:X15) -> 0.1599859921 | AA6: =SUM(AA7:AA15) -> 0.1540656205 | AI6: =SUM(AI7:AI15) -> 0.1690265487
A7: si | B7: si | C7: si | D7: si | E7: si | F7: si | G7: si | H7: si | I7: si | J7: si | K7: si | L7: si | M7: si | N7: si | T7: NO | U7: =VLOOKUP(V7,CA!$E$9:$I$128,5,FALSE) -> 1 | V7: PE 01 | W7: Proximidad al transporte publico. | X7: =($Z7+2*$AH7)/($Z$60+2*$AH$60) -> 0.01500457949 | Y7: ='Informe resultados'!N27 -> 0 | Z7: =IF($U7=1,SUMPRODUCT(AB7:AG7,AB$5:AG$5),"0") -> 1.615384615 | AA7: =IF($Z$60=0,0,$Z7/$Z$60) -> 0.014978602 | AB7: 2 | AC7: 2 | AD7: 1 | AE7: 3 | AF7: 1 | AG7: 1 | AH7: =IF($U7=1,SUMPRODUCT(AJ7:AX7,AJ$5:AX$5),"0") -> 0.53125 | AI7: =IF($AH$60=0,0,$AH7/$AH$60) -> 0.01504424779 | AJ7: 1 | AK7: 1 | AQ7: 3 | AR7: 2 | AW7: 2 | AZ7: =(AJ7*AJ$5)*$X7/SUMPRODUCT($AJ7:$AX7,$AJ$5:$AX$5) -> 0.00264786697 | BA7: =(AK7*AK$5)*$X7/SUMPRODUCT($AJ7:$AX7,$AJ$5:$AX$5) -> 0.001765244646 | BB7: =(AL7*AL$5)*$X7/SUMPRODUCT($AJ7:$AX7,$AJ$5:$AX$5) -> 0 | BC7: =(AM7*AM$5)*$X7/SUMPRODUCT($AJ7:$AX7,$AJ$5:$AX$5) -> 0 | BD7: =(AN7*AN$5)*$X7/SUMPRODUCT($AJ7:$AX7,$AJ$5:$AX$5) -> 0 | BE7: =(AO7*AO$5)*$X7/SUMPRODUCT($AJ7:$AX7,$AJ$5:$AX$5) -> 0 | BF7: =(AP7*AP$5)*$X7/SUMPRODUCT($AJ7:$AX7,$AJ$5:$AX$5) -> 0 | BG7: =(AQ7*AQ$5)*$X7/SUMPRODUCT($AJ7:$AX7,$AJ$5:$AX$5) -> 0.005295733939 | BH7: =(AU7*AU$5)*$X7/SUMPRODUCT($AJ7:$AX7,$AJ$5:$AX$5) -> 0 | BI7: =(AV7*AV$5)*$X7/SUMPRODUCT($AJ7:$AX7,$AJ$5:$AX$5) -> 0 | BJ7: 0.003530489293 | BK7: 0 | BL7: =(AV7*AV$5)*$X7/SUMPRODUCT($AJ7:$AX7,$AJ$5:$AX$5) -> 0 | BM7: =(AW7*AW$5)*$X7/SUMPRODUCT($AJ7:$AX7,$AJ$5:$AX$5) -> 0.003530489293 | BN7: =(AX7*AX$5)*$X7/SUMPRODUCT($AJ7:$AX7,$AJ$5:$AX$5) -> 0 | BP7: =(AJ7*AJ$5)*$Y7/SUMPRODUCT($AJ7:$AX7,$AJ$5:$AX$5) -> 0 | BQ7: =(AK7*AK$5)*$Y7/SUMPRODUCT($AJ7:$AX7,$AJ$5:$AX$5) -> 0 | BR7: =(AL7*AL$5)*$Y7/SUMPRODUCT($AJ7:$AX7,$AJ$5:$AX$5) -> 0 | BS7: =(AM7*AM$5)*$Y7/SUMPRODUCT($AJ7:$AX7,$AJ$5:$AX$5) -> 0 | BT7: =(AN7*AN$5)*$Y7/SUMPRODUCT($AJ7:$AX7,$AJ$5:$AX$5) -> 0 | BU7: =(AO7*AO$5)*$Y7/SUMPRODUCT($AJ7:$AX7,$AJ$5:$AX$5) -> 0 | BV7: 0 | BW7: 0 | BX7: =(AO7*AO$5)*$Y7/SUMPRODUCT($AJ7:$AX7,$AJ$5:$AX$5) -> 0 | BY7: =(AP7*AP$5)*$Y7/SUMPRODUCT($AJ7:$AX7,$AJ$5:$AX$5) -> 0 | BZ7: =(AQ7*AQ$5)*$Y7/SUMPRODUCT($AJ7:$AX7,$AJ$5:$AX$5) -> 0 | CA7: =(AU7*AU$5)*$Y7/SUMPRODUCT($AJ7:$AX7,$AJ$5:$AX$5) -> 0 | CB7: =(AV7*AV$5)*$Y7/SUMPRODUCT($AJ7:$AX7,$AJ$5:$AX$5) -> 0 | CC7: =(AW7*AW$5)*$Y7/SUMPRODUCT($AJ7:$AX7,$AJ$5:$AX$5) -> 0 | CD7: =(AX7*AX$5)*$Y7/SUMPRODUCT($AJ7:$AX7,$AJ$5:$AX$5) -> 0
A8: si | B8: si | C8: si | D8: si | E8: si | F8: si | G8: si | H8: si | I8: si | J8: si | K8: si | L8: si | M8: si | N8: si | T8: NO | U8: =VLOOKUP(V8,CA!$E$9:$I$128,5,FALSE) -> 1 | V8: PE 02 | W8: Proximidad a equipamiento y servicios. | X8: =($Z8+2*$AH8)/($Z$60+2*$AH$60) -> 0.01414255697 | Y8: ='Informe resultados'!N28 -> 0 | Z8: =IF($U8=1,SUMPRODUCT(AB8:AG8,AB$5:AG$5),"0") -> 1.461538462 | AA8: 0.01355206847 | AB8: 2 | AC8: 1 | AD8: 1 | AE8: 3 | AF8: 1 | AG8: 2 | AH8: =IF($U8=1,SUMPRODUCT(AJ8:AX8,AJ$5:AX$5),"0") -> 0.53125 | AI8: 0.01504424779 | AJ8: 1 | AK8: 1 | AQ8: 3 | AR8: 2 | AW8: 2 | AZ8: =(AJ8*AJ$5)*$X8/SUMPRODUCT($AJ8:$AX8,$AJ$5:$AX$5) -> 0.002495745348 | BA8: 0.001663830232 | BB8: 0 | BC8: 0 | BD8: 0 | BE8: 0 | BF8: 0 | BG8: 0.004991490697 | BH8: 0 | BI8: 0 | BJ8: 0.003327660465 | BK8: 0 | BL8: 0 | BM8: 0.003327660465 | BN8: 0 | BP8: 0 | BQ8: 0 | BR8: 0 | BS8: 0 | BT8: 0 | BU8: 0 | BV8: 0 | BW8: 0 | BX8: 0 | BY8: 0 | BZ8: 0 | CA8: 0 | CB8: 0 | CC8: 0 | CD8: 0
A9: si | B9: no | C9: no | D9: no | E9: si | F9: si | G9: si | H9: si | I9: si | J9: si | K9: si | L9: si | M9: si | N9: no | U9: =IF(OR('DG '!F$27="Unifamiliar",'DG '!F$27="Urbanizaciones",'DG '!F$27="Vivienda en un edificio",'DG '!F$27="Local o parte de un edificio"),0,VLOOKUP(V9,CA!$E$9:$I$128,5,FALSE)) -> 1 | V9: PE 03 | W9: Facilidades para la bicicleta. | X9: 0.01710575939 | Y9: ='Informe resultados'!N29 -> 0 | Z9: =IF($U9=1,SUMPRODUCT(AB9:AG9,AB$5:AG$5),"0") -> 1.615384615 | AA9: 0.014978602 | AB9: 2 | AC9: 2 | AD9: 1 | AE9: 3 | AF9: 1 | AG9: 1 | AH9: =IF($U9=1,SUMPRODUCT(AJ9:AX9,AJ$5:AX$5),"0") -> 0.71875 | AI9: 0.0203539823 | AJ9: 1 | AK9: 1 | AQ9: 3 | AR9: 2 | AS9: 2 | AW9: 2 | AZ9: 0.002231186007 | BA9: 0.001487457338 | BB9: 0 | BC9: 0 | BD9: 0 | BE9: 0 | BF9: 0 | BG9: 0.004462372014 | BH9: 0 | BI9: 0 | BJ9: 0.002974914676 | BK9: 0 | BL9: 0 | BM9: 0.002974914676 | BN9: 0 | BP9: 0 | BQ9: 0 | BR9: 0 | BS9: 0 | BT9: 0 | BU9: 0 | BV9: 0 | BW9: 0 | BX9: 0 | BY9: 0 | BZ9: 0 | CA9: 0 | CB9: 0 | CC9: 0 | CD9: 0
A10: si | B10: si | C10: si | D10: no | E10: si | F10: si | G10: si | H10: si | I10: si | J10: si | K10: si | L10: si | M10: si | N10: no | U10: =IF(OR('DG '!F27="Vivienda en un edificio",'DG '!F27="Parte de un edificio",'DG '!F41="NO"),0,VLOOKUP(V10,CA!$E$9:$I$128,5,FALSE)) -> 1 | V10: PE 04 | W10: Capacidad de carga de vehículos eléctricos. | X10: 0.01680943915 | Y10: ='Informe resultados'!N31 -> 0 | Z10: =IF($U10=1,SUMPRODUCT(AB10:AG10,AB$5:AG$5),"0") -> 2 | AA10: 0.01854493581 | AB10: 2 | AC10: 2 | AD10: 2 | AE10: 3 | AF10: 2 | AG10: 1 | AH10: =IF($U10=1,SUMPRODUCT(AJ10:AX10,AJ$5:AX$5),"0") -> 0.5 | AI10: 0.01415929204 | AJ10: 1 | AK10: 1 | AQ10: 1 | AR10: 2 | AW10: 2 | AX10: 1 | AZ10: 0.00315176984 | BA10: 0.002101179893 | BB10: 0 | BC10: 0 | BD10: 0 | BE10: 0 | BF10: 0 | BG10: 0.002101179893 | BH10: 0 | BI10: =(AV10*AV$5)*$X10/SUMPRODUCT($AJ10:$AX10,$AJ$5:$AX$5) -> 0 | BJ10: 0.004202359787 | BK10: 0.00315176984 | BL10: 0 | BM10: 0.004202359787 | BN10: 0.00315176984 | BP10: 0 | BQ10: 0 | BR10: 0 | BS10: 0 | BT10: 0 | BU10: =(AO10*AO$5)*$Y10/SUMPRODUCT($AJ10:$AX10,$AJ$5:$AX$5) -> 0 | BV10: 0 | BW10: 0 | BX10: 0 | BY10: 0 | BZ10: 0 | CA10: 0 | CB10: 0 | CC10: 0 | CD10: 0
A11: si | B11: si | C11: si | D11: no | E11: si | F11: si | G11: si | H11: si | I11: si | J11: si | K11: si | L11: si | M11: si | N11: no | U11: =IF(OR('DG '!F$27="Vivienda en un edificio",'DG '!F$27="Parte de un edificio"),0,VLOOKUP(V11,CA!$E$9:$I$128,5,FALSE)) -> 1 | V11: PE 05 | W11: Clasificación de RSU. | X11: 0.01185280965 | Y11: ='Informe resultados'!N31 -> 0 | Z11: 1.615384615 | AA11: 0.014978602 | AB11: 2 | AC11: 1 | AD11: 1 | AE11: 3 | AF11: 2 | AG11: 1 | AH11: 0.25 | AI11: 0.007079646018 | AL11: 1 | AO11: 1 | AP11: 3 | AZ11: 0 | BA11: 0 | BB11: 0.00444480362 | BC11: 0 | BD11: 0 | BE11: 0.002963202414 | BF11: 0.00444480362 | BG11: 0 | BH11: 0 | BI11: 0 | BJ11: 0 | BK11: 0 | BL11: 0 | BM11: 0 | BN11: 0 | BP11: 0 | BQ11: 0 | BR11: 0 | BS11: 0 | BT11: 0 | BU11: 0 | BV11: 0 | BW11: 0 | BX11: 0 | BY11: 0 | BZ11: 0 | CA11: 0 | CB11: 0 | CC11: 0 | CD11: 0
A12: si | B12: si | C12: si | D12: no | E12: si | F12: si | G12: si | H12: si | I12: si | J12: si | K12: si | L12: si | M12: si | N12: no | U12: =IF(OR('DG '!F$27="Vivienda en un edificio",'DG '!F$27="Parte de un edificio"),0,VLOOKUP(V12,CA!$E$9:$I$128,5,FALSE)) -> 1 | V12: PE 06 | W12: Gestión y Restauración del hábitat. | X12: 0.02394806314 | Y12: ='Informe resultados'!N32 -> 0 | Z12: 2.461538462 | AA12: 0.02282453638 | AB12: 2 | AC12: 3 | AD12: 2 | AE12: 2 | AF12: 3 | AG12: 2 | AH12: 0.90625 | AI12: 0.02566371681 | AJ12: 1 | AK12: 1 | AL12: 3 | AN12: 2 | AO12: 1 | AS12: 1 | AT12: 2 | AW12: 1 | AZ12: 0.002477385842 | BA12: 0.001651590562 | BB12: 0.007432157527 | BC12: 0 | BD12: 0.003303181123 | BE12: 0.001651590562 | BF12: 0 | BG12: 0 | BH12: 0 | BI12: 0 | BJ12: 0.001651590562 | BK12: 0 | BL12: 0 | BM12: 0.001651590562 | BN12: 0 | BP12: 0 | BQ12: 0 | BR12: 0 | BS12: 0 | BT12: 0 | BU12: 0 | BV12: 0 | BW12: 0 | BX12: 0 | BY12: 0 | BZ12: 0 | CA12: 0 | CB12: 0 | CC12: 0 | CD12: 0
A13: si | B13: si | C13: si | D13: no | E13: si | F13: si | G13: si | H13: si | I13: si | J13: si | K13: si | L13: si | M13: si | N13: no | U13: =IF(OR('DG '!F$27="Vivienda en un edificio",'DG '!F$27="Parte de un edificio"),0,VLOOKUP(V13,CA!$E$9:$I$128,5,FALSE)) -> 1 | V13: PE 07 | W13: Uso de plantas para crear sombras. | X13: 0.01901837185 | Y13: ='Informe resultados'!N33 -> 0 | Z13: 1.769230769 | AA13: 0.01640513552 | AB13: 2 | AC13: 1 | AD13: 1 | AE13: 2 | AF13: 3 | AG13: 1 | AH13: 0.8125 | AI13: 0.02300884956 | AJ13: 1 | AK13: 1 | AL13: 3 | AM13: 1 | AN13: 2 | AS13: 1 | AT13: 1 | AZ13: 0.002194427522 | BA13: 0.001462951681 | BB13: 0.006583282565 | BC13: 0.002194427522 | BD13: 0.002925903362 | BE13: 0 | BF13: 0 | BG13: 0 | BH13: 0 | BI13: 0 | BJ13: 0 | BK13: 0 | BL13: 0 | BM13: 0 | BN13: 0 | BP13: 0 | BQ13: 0 | BR13: 0 | BS13: 0 | BT13: 0 | BU13: 0 | BV13: 0 | BW13: 0 | BX13: 0 | BY13: 0 | BZ13: 0 | CA13: 0 | CB13: 0 | CC13: 0 | CD13: 0
A14: si | B14: si | C14: si | D14: no | E14: si | F14: si | G14: si | H14: si | I14: si | J14: si | K14: si | L14: si | M14: si | N14: no | U14: =IF(OR('DG '!F$27="Vivienda en un edificio",'DG '!F$27="Parte de un edificio"),0,VLOOKUP(V14,CA!$E$9:$I$128,5,FALSE)) -> 1 | V14: PE 08 | W14: Efecto isla de calor. | X14: 0.02144281019 | Y14: ='Informe resultados'!N34 -> 0 | Z14: 2.076923077 | AA14: 0.01925820257 | AB14: 2 | AC14: 1 | AD14: 2 | AE14: 3 | AF14: 3 | AG14: 2 | AH14: 0.875 | AI14: 0.02477876106 | AJ14: 2 | AK14: 2 | AL14: 2 | AS14: 2 | AT14: 3 | AZ14: 0.004594887899 | BA14: 0.003063258599 | BB14: 0.004594887899 | BC14: 0 | BD14: 0 | BE14: 0 | BF14: 0 | BG14: 0 | BH14: 0 | BI14: 0 | BJ14: 0 | BK14: 0 | BL14: 0 | BM14: 0 | BN14: 0 | BP14: 0 | BQ14: 0 | BR14: 0 | BS14: 0 | BT14: 0 | BU14: 0 | BV14: 0 | BW14: 0 | BX14: 0 | BY14: 0 | BZ14: 0 | CA14: 0 | CB14: 0 | CC14: 0 | CD14: 0
A15: si | B15: si | C15: si | D15: no | E15: si | F15: si | G15: si | H15: si | I15: si | J15: si | K15: si | L15: si | M15: si | N15: no | U15: =IF(OR('DG '!F$27="Vivienda en un edificio",'DG '!F$27="Parte de un edificio"),0,VLOOKUP(V15,CA!$E$9:$I$128,5,FALSE)) -> 1 | V15: PE 09 | W15: Contaminación lumínica. | X15: 0.02066160228 | Y15: ='Informe resultados'!N35 -> 0 | Z15: 2 | AA15: 0.01854493581 | AB15: 2 | AC15: 1 | AD15: 2 | AE15: 3 | AF15: 3 | AG15: 1 | AH15: 0.84375 | AI15: 0.02389380531 | AK15: 3 | AL15: 3 | AS15: 2 | AT15: 3 | AZ15: 0 | BA15: 0.004591467174 | BB15: 0.006887200761 | BC15: 0 | BD15: 0 | BE15: 0 | BF15: 0 | BG15: 0 | BH15: 0 | BI15: 0 | BJ15: 0 | BK15: 0 | BL15: 0 | BM15: 0 | BN15: 0 | BP15: 0 | BQ15: 0 | BR15: 0 | BS15: 0 | BT15: 0 | BU15: 0 | BV15: 0 | BW15: 0 | BX15: 0 | BY15: 0 | BZ15: 0 | CA15: 0 | CB15: 0 | CC15: 0 | CD15: 0
U16: EA | V16: Energía y atmósfera | X16: =SUM(X17:X22) -> 0.1847152632 | AA16: =SUM(AA17:AA22) -> 0.1961483595 | AI16: =SUM(AI17:AI22) -> 0.1672566372
U17: 0 | V17: EA 00 | W17: Demanda de calefacción y refrigeración | X17: =($Z17+2*$AH17)/($Z$60+2*$AH$60) -> 0 | Z17: =IF($U17=1,SUMPRODUCT(AB17:AG17,AB$5:AG$5),"0") -> 0 | AA17: =IF($Z$60=0,0,$Z17/$Z$60) -> 0 | AB17: 3 | AC17: 3 | AD17: 3 | AE17: 3 | AF17: 3 | AG17: 5 | AH17: =IF($U17=1,SUMPRODUCT(AJ17:AX17,AJ$5:AX$5),"0") -> 0 | AI17: =IF($AH$60=0,0,$AH17/$AH$60) -> 0 | AJ17: 3 | AK17: 3 | AM17: 3 | AS17: 3 | AW17: 3 | AX17: 3 | AZ17: =(AJ17*AJ$5)*$X17/SUMPRODUCT($AJ17:$AX17,$AJ$5:$AX$5) -> 0 | BA17: 0 | BB17: 0 | BC17: 0 | BD17: 0 | BE17: 0 | BF17: 0 | BG17: 0 | BH17: =(AU17*AU$5)*$X17/SUMPRODUCT($AJ17:$AX17,$AJ$5:$AX$5) -> 0 | BI17: =(AV17*AV$5)*$X17/SUMPRODUCT($AJ17:$AX17,$AJ$5:$AX$5) -> 0 | BJ17: 0 | BK17: 0 | BL17: =(AV17*AV$5)*$X17/SUMPRODUCT($AJ17:$AX17,$AJ$5:$AX$5) -> 0 | BM17: 0 | BN17: 0 | BP17: =(AJ17*AJ$5)*$Y17/SUMPRODUCT($AJ17:$AX17,$AJ$5:$AX$5) -> 0 | BQ17: 0 | BR17: 0 | BS17: 0 | BT17: 0 | BU17: 0 | BV17: 0 | BW17: 0 | BX17: =(AO17*AO$5)*$Y17/SUMPRODUCT($AJ17:$AX17,$AJ$5:$AX$5) -> 0 | BY17: 0 | BZ17: 0 | CA17: =(AU17*AU$5)*$Y17/SUMPRODUCT($AJ17:$AX17,$AJ$5:$AX$5) -> 0 | CB17: 0 | CC17: 0 | CD17: 0
A18: si | B18: si | C18: si | D18: si | E18: si | F18: si | G18: si | H18: si | I18: si | J18: si | K18: si | L18: si | M18: si | N18: si | T18: NO | U18: =VLOOKUP(V18,CA!$E$9:$I$128,5,FALSE) -> 1 | V18: EA 01 | W18: Consumo de energía primaria | X18: 0.07914444265 | Y18: ='Informe resultados'!N36 -> 0 | Z18: 10 | AA18: 0.09272467903 | AB18: 10 | AC18: 10 | AD18: 10 | AE18: 10 | AF18: 10 | AG18: 10 | AH18: 2.0625 | AI18: 0.05840707965 | AJ18: 10 | AK18: 3 | AL18: 2 | AM18: 3 | AW18: 3 | AX18: 3 | AZ18: 0.03597474666 | BA18: 0.007194949332 | BB18: 0.007194949332 | BC18: 0.010792424 | BD18: 0 | BE18: 0 | BF18: 0 | BG18: 0 | BH18: 0 | BI18: 0 | BJ18: 0.007194949332 | BK18: 0.010792424 | BL18: 0 | BM18: 0.007194949332 | BN18: 0.010792424 | BP18: 0 | BQ18: 0 | BR18: 0 | BS18: 0 | BT18: 0 | BU18: 0 | BV18: 0 | BW18: 0 | BX18: 0 | BY18: 0 | BZ18: 0 | CA18: 0 | CB18: 0 | CC18: 0 | CD18: 0
A19: si | B19: si | C19: si | D19: no | E19: si | F19: si | G19: si | H19: si | I19: si | J19: si | K19: si | L19: si | M19: si | N19: no | U19: =IF(OR('DG '!F$27="Vivienda en un edificio",'DG '!F$27="Parte de un edificio"),0,VLOOKUP(V19,CA!$E$9:$I$128,5,FALSE)) -> 1 | V19: EA 02 | W19: Generación distribuida | X19: 0.05091320511 | Y19: ='Informe resultados'!N37 -> 0 | Z19: 5.461538462 | AA19: 0.05064194009 | AB19: 5 | AC19: 5 | AD19: 3 | AE19: 3 | AF19: 10 | AG19: 2 | AH19: 1.8125 | AI19: 0.05132743363 | AJ19: 10 | AK19: 3 | AL19: 2 | AM19: 2 | AW19: 2 | AX19: 2 | AZ19: 0.02633441643 | BA19: 0.005266883287 | BB19: 0.005266883287 | BC19: 0.005266883287 | BD19: 0 | BE19: 0 | BF19: 0 | BG19: 0 | BH19: 0 | BI19: 0 | BJ19: 0.003511255525 | BK19: 0.005266883287 | BL19: 0 | BM19: 0.003511255525 | BN19: 0.005266883287 | BP19: 0 | BQ19: 0 | BR19: 0 | BS19: 0 | BT19: 0 | BU19: 0 | BV19: 0 | BW19: 0 | BX19: 0 | BY19: 0 | BZ19: 0 | CA19: 0 | CB19: 0 | CC19: 0 | CD19: 0
A20: si | B20: no | C20: no | D20: no | E20: si | F20: si | G20: si | H20: si | I20: si | J20: si | K20: si | L20: si | M20: si | N20: si | U20: =IF(OR('DG '!F$27="Unifamiliar",'DG '!F$27="Urbanizaciones",'DG '!F$27="Vivienda en un edificio"),0,VLOOKUP(V20,CA!$E$9:$I$128,5,FALSE)) -> 1 | V20: EA 03 | W20: Consumo en zonas comunes | X20: 0.02666882172 | Y20: ='Informe resultados'!N38 -> 0 | Z20: 2.384615385 | AA20: 0.02211126961 | AB20: 3 | AC20: 3 | AD20: 2 | AE20: 2 | AF20: 2 | AG20: 1 | AH20: 1.1875 | AI20: 0.03362831858 | AJ20: 2 | AK20: 2 | AL20: 2 | AM20: 3 | AW20: 2 | AX20: 3 | AZ20: 0.004210866588 | BA20: 0.002807244392 | BB20: 0.004210866588 | BC20: 0.006316299882 | BD20: 0 | BE20: 0 | BF20: 0 | BG20: 0 | BH20: 0 | BI20: 0 | BJ20: 0.002807244392 | BK20: 0.006316299882 | BL20: 0 | BM20: 0.002807244392 | BN20: 0.006316299882 | BP20: 0 | BQ20: 0 | BR20: 0 | BS20: 0 | BT20: 0 | BU20: 0 | BV20: 0 | BW20: 0 | BX20: 0 | BY20: 0 | BZ20: 0 | CA20: 0 | CB20: 0 | CC20: 0 | CD20: 0
U21: 0 | V21: EA 05 | W21: Emisión de NOx en calderas de combustión. | X21: 0 | Z21: 0 | AA21: 0 | AB21: 1 | AC21: 2 | AD21: 1 | AE21: 2 | AF21: 3 | AG21: 1 | AH21: 0 | AI21: 0 | AK21: 2 | AS21: 1 | AZ21: 0 | BA21: 0 | BB21: 0 | BC21: 0 | BD21: 0 | BE21: 0 | BF21: 0 | BG21: 0 | BH21: 0 | BI21: 0 | BJ21: 0 | BK21: 0 | BL21: 0 | BM21: 0 | BN21: 0 | BP21: 0 | BQ21: 0 | BR21: 0 | BS21: 0 | BT21: 0 | BU21: 0 | BV21: 0 | BW21: 0 | BX21: 0 | BY21: 0 | BZ21: 0 | CA21: 0 | CB21: 0 | CC21: 0 | CD21: 0
A22: si | B22: si | C22: si | D22: si | E22: si | F22: si | G22: si | H22: si | I22: si | J22: si | K22: si | L22: si | M22: si | N22: si | T22: NO | U22: =VLOOKUP(V22,CA!$E$9:$I$128,5,FALSE) -> 1 | V22: EA 04 | W22: Elección responsable de refrigerantes | X22: 0.02798879371 | Y22: ='Informe resultados'!N39 -> 0 | Z22: 3.307692308 | AA22: 0.03067047076 | AB22: 3 | AC22: 3 | AD22: 3 | AE22: 3 | AF22: 5 | AG22: 1 | AH22: 0.84375 | AI22: 0.02389380531 | AJ22: 5 | AK22: 3 | AL22: 2 | AZ22: 0.01554932984 | BA22: 0.006219731935 | BB22: 0.006219731935 | BC22: 0 | BD22: 0 | BE22: 0 | BF22: 0 | BG22: 0 | BH22: 0 | BI22: 0 | BJ22: 0 | BK22: 0 | BL22: 0 | BM22: 0 | BN22: 0 | BP22: 0 | BQ22: 0 | BR22: 0 | BS22: 0 | BT22: 0 | BU22: 0 | BV22: 0 | BW22: 0 | BX22: 0 | BY22: 0 | BZ22: 0 | CA22: 0 | CB22: 0 | CC22: 0 | CD22: 0
U23: RN | V23: Recursos naturales | X23: =SUM(X24:X35) -> 0.2634556328 | AA23: =SUM(AA24:AA35) -> 0.2853067047 | AI23: =SUM(AI24:AI35) -> 0.2300884956
A24: si | B24: si | C24: si | D24: si | E24: si | F24: si | G24: si | H24: si | I24: si | J24: si | K24: si | L24: si | M24: si | N24: si | T24: NO | U24: =VLOOKUP(V24,CA!$E$9:$I$128,5,FALSE) -> 1 | V24: RN 01 | W24: Consumo de agua en aparatos sanitarios | X24: =($Z24+2*$AH24)/($Z$60+2*$AH$60) -> 0.02246646194 | Y24: ='Informe resultados'!N40 -> 0 | Z24: =IF($U24=1,SUMPRODUCT(AB24:AG24,AB$5:AG$5),"0") -> 2.384615385 | AA24: =IF($Z$60=0,0,$Z24/$Z$60) -> 0.02211126961 | AB24: 3 | AC24: 1 | AD24: 3 | AE24: 3 | AF24: 3 | AG24: 1 | AH24: =IF($U24=1,SUMPRODUCT(AJ24:AX24,AJ$5:AX$5),"0") -> 0.8125 | AI24: =IF($AH$60=0,0,$AH24/$AH$60) -> 0.02300884956 | AK24: 2 | AL24: 1 | AN24: 3 | AW24: 2 | AX24: 3 | AZ24: =(AJ24*AJ$5)*$X24/SUMPRODUCT($AJ24:$AX24,$AJ$5:$AX$5) -> 0 | BA24: =(AK24*AK$5)*$X24/SUMPRODUCT($AJ24:$AX24,$AJ$5:$AX$5) -> 0.003456378759 | BB24: =(AL24*AL$5)*$X24/SUMPRODUCT($AJ24:$AX24,$AJ$5:$AX$5) -> 0.00259228407 | BC24: =(AM24*AM$5)*$X24/SUMPRODUCT($AJ24:$AX24,$AJ$5:$AX$5) -> 0 | BD24: =(AN24*AN$5)*$X24/SUMPRODUCT($AJ24:$AX24,$AJ$5:$AX$5) -> 0.005184568139 | BE24: =(AO24*AO$5)*$X24/SUMPRODUCT($AJ24:$AX24,$AJ$5:$AX$5) -> 0 | BF24: =(AP24*AP$5)*$X24/SUMPRODUCT($AJ24:$AX24,$AJ$5:$AX$5) -> 0 | BG24: =(AQ24*AQ$5)*$X24/SUMPRODUCT($AJ24:$AX24,$AJ$5:$AX$5) -> 0 | BH24: =(AU24*AU$5)*$X24/SUMPRODUCT($AJ24:$AX24,$AJ$5:$AX$5) -> 0 | BI24: =(AV24*AV$5)*$X24/SUMPRODUCT($AJ24:$AX24,$AJ$5:$AX$5) -> 0 | BJ24: 0.003456378759 | BK24: 0.007776852209 | BL24: =(AV24*AV$5)*$X24/SUMPRODUCT($AJ24:$AX24,$AJ$5:$AX$5) -> 0 | BM24: =(AW24*AW$5)*$X24/SUMPRODUCT($AJ24:$AX24,$AJ$5:$AX$5) -> 0.003456378759 | BN24: =(AX24*AX$5)*$X24/SUMPRODUCT($AJ24:$AX24,$AJ$5:$AX$5) -> 0.007776852209 | BP24: =(AJ24*AJ$5)*$Y24/SUMPRODUCT($AJ24:$AX24,$AJ$5:$AX$5) -> 0 | BQ24: =(AK24*AK$5)*$Y24/SUMPRODUCT($AJ24:$AX24,$AJ$5:$AX$5) -> 0 | BR24: =(AL24*AL$5)*$Y24/SUMPRODUCT($AJ24:$AX24,$AJ$5:$AX$5) -> 0 | BS24: =(AM24*AM$5)*$Y24/SUMPRODUCT($AJ24:$AX24,$AJ$5:$AX$5) -> 0 | BT24: =(AN24*AN$5)*$Y24/SUMPRODUCT($AJ24:$AX24,$AJ$5:$AX$5) -> 0 | BU24: =(AO24*AO$5)*$Y24/SUMPRODUCT($AJ24:$AX24,$AJ$5:$AX$5) -> 0 | BV24: 0 | BW24: 0 | BX24: =(AO24*AO$5)*$Y24/SUMPRODUCT($AJ24:$AX24,$AJ$5:$AX$5) -> 0 | BY24: =(AP24*AP$5)*$Y24/SUMPRODUCT($AJ24:$AX24,$AJ$5:$AX$5) -> 0 | BZ24: =(AQ24*AQ$5)*$Y24/SUMPRODUCT($AJ24:$AX24,$AJ$5:$AX$5) -> 0 | CA24: =(AU24*AU$5)*$Y24/SUMPRODUCT($AJ24:$AX24,$AJ$5:$AX$5) -> 0 | CB24: =(AV24*AV$5)*$Y24/SUMPRODUCT($AJ24:$AX24,$AJ$5:$AX$5) -> 0 | CC24: =(AW24*AW$5)*$Y24/SUMPRODUCT($AJ24:$AX24,$AJ$5:$AX$5) -> 0 | CD24: =(AX24*AX$5)*$Y24/SUMPRODUCT($AJ24:$AX24,$AJ$5:$AX$5) -> 0
A25: si | B25: si | C25: si | D25: no | E25: si | F25: si | G25: si | H25: si | I25: si | J25: si | K25: si | L25: si | M25: si | N25: no | U25: =IF(OR('DG '!F$27="Vivienda en un edificio",'DG '!F$27="Parte de un edificio"),0,VLOOKUP(V25,CA!$E$9:$I$128,5,FALSE)) -> 1 | V25: RN 02 | W25: Necesidades de riego en jardines. | X25: 0.0228974732 | Y25: ='Informe resultados'!N41 -> 0 | Z25: =IF($U25=1,SUMPRODUCT(AB25:AG25,AB$5:AG$5),"0") -> 2.461538462 | AA25: 0.02282453638 | AB25: 3 | AC25: 1 | AD25: 3 | AE25: 3 | AF25: 3 | AG25: 2 | AH25: =IF($U25=1,SUMPRODUCT(AJ25:AX25,AJ$5:AX$5),"0") -> 0.8125 | AI25: 0.02300884956 | AK25: 2 | AL25: 1 | AN25: 3 | AW25: 2 | AX25: 3 | AZ25: 0 | BA25: 0.003522688184 | BB25: 0.002642016138 | BC25: 0 | BD25: 0.005284032276 | BE25: 0 | BF25: 0 | BG25: 0 | BH25: 0 | BI25: 0 | BJ25: 0.003522688184 | BK25: 0.007926048414 | BL25: 0 | BM25: 0.003522688184 | BN25: 0.007926048414 | BP25: 0 | BQ25: 0 | BR25: 0 | BS25: 0 | BT25: 0 | BU25: 0 | BV25: 0 | BW25: 0 | BX25: 0 | BY25: 0 | BZ25: 0 | CA25: 0 | CB25: 0 | CC25: 0 | CD25: 0
A26: si | B26: no | C26: no | D26: no | E26: si | F26: si | G26: si | H26: si | I26: si | J26: si | K26: si | L26: si | M26: si | N26: si | U26: =IF(OR('DG '!F$27="Unifamiliar",'DG '!F$27="Urbanizaciones",'DG '!F$27="Vivienda en un edificio"),0,VLOOKUP(V26,CA!$E$9:$I$128,5,FALSE)) -> 1 | V26: RN 03 | W26: Consumos de agua singulares. | X26: 0.01901837185 | Y26: ='Informe resultados'!N42 -> 0 | Z26: =IF($U26=1,SUMPRODUCT(AB26:AG26,AB$5:AG$5),"0") -> 1.769230769 | AA26: 0.01640513552 | AB26: 3 | AC26: 1 | AD26: 1 | AE26: 2 | AF26: 2 | AG26: 1 | AH26: =IF($U26=1,SUMPRODUCT(AJ26:AX26,AJ$5:AX$5),"0") -> 0.8125 | AI26: 0.02300884956 | AK26: 2 | AL26: 1 | AN26: 3 | AW26: 2 | AX26: 3 | AZ26: 0 | BA26: 0.002925903362 | BB26: 0.002194427522 | BC26: 0 | BD26: 0.004388855043 | BE26: 0 | BF26: 0 | BG26: 0 | BH26: 0 | BI26: 0 | BJ26: 0.002925903362 | BK26: 0.006583282565 | BL26: 0 | BM26: 0.002925903362 | BN26: 0.006583282565 | BP26: 0 | BQ26: 0 | BR26: 0 | BS26: 0 | BT26: 0 | BU26: 0 | BV26: 0 | BW26: 0 | BX26: 0 | BY26: 0 | BZ26: 0 | CA26: 0 | CB26: 0 | CC26: 0 | CD26: 0
A27: si | B27: si | C27: si | D27: no | E27: si | F27: si | G27: si | H27: si | I27: si | J27: si | K27: si | L27: si | M27: si | N27: no | U27: =IF(OR('DG '!F$27="Vivienda en un edificio",'DG '!F$27="Parte de un edificio"),0,VLOOKUP(V27,CA!$E$9:$I$128,5,FALSE)) -> 1 | V27: RN 04 | W27: Uso de agua no potable. | X27: 0.02187382145 | Y27: ='Informe resultados'!N43 -> 0 | Z27: =IF($U27=1,SUMPRODUCT(AB27:AG27,AB$5:AG$5),"0") -> 2.153846154 | AA27: 0.01997146933 | AB27: 3 | AC27: 1 | AD27: 1 | AE27: 3 | AF27: 3 | AG27: 2 | AH27: =IF($U27=1,SUMPRODUCT(AJ27:AX27,AJ$5:AX$5),"0") -> 0.875 | AI27: 0.02477876106 | AK27: 2 | AL27: 1 | AN27: 3 | AW27: 3 | AX27: 3 | AZ27: 0 | BA27: 0.003124831636 | BB27: 0.002343623727 | BC27: 0 | BD27: 0.004687247454 | BE27: 0 | BF27: 0 | BG27: 0 | BH27: 0 | BI27: 0 | BJ27: 0.004687247454 | BK27: 0.007030871182 | BL27: 0 | BM27: 0.004687247454 | BN27: 0.007030871182 | BP27: 0 | BQ27: 0 | BR27: 0 | BS27: 0 | BT27: 0 | BU27: 0 | BV27: 0 | BW27: 0 | BX27: 0 | BY27: 0 | BZ27: 0 | CA27: 0 | CB27: 0 | CC27: 0 | CD27: 0
A28: si | B28: si | C28: si | D28: si | E28: si | F28: si | G28: si | H28: si | I28: si | J28: si | K28: si | L28: si | M28: si | N28: si | R28: no | U28: =IF('DG '!F$29="Edificio existente",0,VLOOKUP(V28,CA!$E$9:$I$128,5,FALSE)) -> 1 | V28: RN 05 | W28: Uso de materiales reciclados. | X28: 0.01901837185 | Y28: ='Informe resultados'!N44 -> 0 | Z28: =IF($U28=1,SUMPRODUCT(AB28:AG28,AB$5:AG$5),"0") -> 2.769230769 | AA28: 0.02567760342 | AB28: 3 | AC28: 3 | AD28: 2 | AE28: 3 | AF28: 3 | AG28: 2 | AH28: =IF($U28=1,SUMPRODUCT(AJ28:AX28,AJ$5:AX$5),"0") -> 0.3125 | AI28: 0.008849557522 | AO28: 3 | AP28: 1 | AX28: 1 | AZ28: 0 | BA28: 0 | BB28: 0 | BC28: 0 | BD28: 0 | BE28: 0.01141102311 | BF28: 0.001901837185 | BG28: 0 | BH28: 0 | BI28: =(AV28*AV$5)*$X28/SUMPRODUCT($AJ28:$AX28,$AJ$5:$AX$5) -> 0 | BJ28: 0 | BK28: 0.005705511556 | BL28: 0 | BM28: 0 | BN28: 0.005705511556 | BP28: 0 | BQ28: 0 | BR28: 0 | BS28: 0 | BT28: 0 | BU28: =(AO28*AO$5)*$Y28/SUMPRODUCT($AJ28:$AX28,$AJ$5:$AX$5) -> 0 | BV28: 0 | BW28: 0 | BX28: 0 | BY28: 0 | BZ28: 0 | CA28: 0 | CB28: 0 | CC28: 0 | CD28: 0
A29: si | B29: si | C29: si | D29: si | E29: si | F29: si | G29: si | H29: si | I29: si | J29: si | K29: si | L29: si | M29: si | N29: si | R29: no | U29: =IF('DG '!F$29="Edificio existente",0,VLOOKUP(V29,CA!$E$9:$I$128,5,FALSE)) -> 1 | V29: RN 06 | W29: Elección responsable de materiales | X29: 0.01971876515 | Y29: ='Informe resultados'!N45 -> 0 | Z29: 2.769230769 | AA29: 0.02567760342 | AB29: 3 | AC29: 3 | AD29: 2 | AE29: 3 | AF29: 3 | AG29: 2 | AH29: 0.375 | AI29: 0.01061946903 | AL29: 1 | AO29: 3 | AS29: 1 | AZ29: 0 | BA29: 0 | BB29: 0.004929691288 | BC29: 0 | BD29: 0 | BE29: 0.009859382576 | BF29: 0 | BG29: 0 | BH29: 0 | BI29: 0 | BJ29: 0 | BK29: 0 | BL29: 0 | BM29: 0 | BN29: 0 | BP29: 0 | BQ29: 0 | BR29: 0 | BS29: 0 | BT29: 0 | BU29: 0 | BV29: 0 | BW29: 0 | BX29: 0 | BY29: 0 | BZ29: 0 | CA29: 0 | CB29: 0 | CC29: 0 | CD29: 0
A30: si | B30: si | C30: si | D30: si | E30: si | F30: si | G30: si | H30: si | I30: si | J30: si | K30: si | L30: si | M30: si | N30: si | R30: no | U30: =IF('DG '!F$29="Edificio existente",0,VLOOKUP(V30,CA!$E$9:$I$128,5,FALSE)) -> 1 | V30: RN 07 | W30: Uso de materiales de producción local. | X30: 0.02071547869 | Y30: ='Informe resultados'!N46 -> 0 | Z30: 2.384615385 | AA30: 0.02211126961 | AB30: 3 | AC30: 1 | AD30: 3 | AE30: 3 | AF30: 3 | AG30: 1 | AH30: 0.65625 | AI30: 0.0185840708 | AJ30: 1 | AK30: 1 | AT30: 3 | AW30: 2 | AX30: 2 | AZ30: 0.002959354099 | BA30: 0.001972902733 | BB30: 0 | BC30: 0 | BD30: 0 | BE30: 0 | BF30: 0 | BG30: 0 | BH30: 0 | BI30: 0 | BJ30: 0.003945805465 | BK30: 0.005918708198 | BL30: 0 | BM30: 0.003945805465 | BN30: 0.005918708198 | BP30: 0 | BQ30: 0 | BR30: 0 | BS30: 0 | BT30: 0 | BU30: 0 | BV30: 0 | BW30: 0 | BX30: 0 | BY30: 0 | BZ30: 0 | CA30: 0 | CB30: 0 | CC30: 0 | CD30: 0
A31: si | B31: si | C31: si | D31: si | E31: si | F31: si | G31: si | H31: si | I31: si | J31: si | K31: si | L31: si | M31: si | N31: si | R31: no | U31: =IF('DG '!F$29="Edificio existente",0,VLOOKUP(V31,CA!$E$9:$I$128,5,FALSE)) -> 1 | V31: RN 08 | W31: El edificio como banco de materiales | X31: 0.02270890577 | Y31: ='Informe resultados'!N47 -> 0 | Z31: 2.615384615 | AA31: 0.0242510699 | AB31: 3 | AC31: 2 | AD31: 3 | AE31: 2 | AF31: 3 | AG31: 2 | AH31: 0.71875 | AI31: 0.0203539823 | AO31: 3 | AP31: 3 | AR31: 3 | AW31: 1 | AX31: 3 | AZ31: 0 | BA31: 0 | BB31: 0 | BC31: 0 | BD31: 0 | BE31: 0.005924062375 | BF31: 0.002962031187 | BG31: 0 | BH31: 0 | BI31: 0 | BJ31: 0.001974687458 | BK31: 0.008886093562 | BL31: 0 | BM31: 0.001974687458 | BN31: 0.008886093562 | BP31: 0 | BQ31: 0 | BR31: 0 | BS31: 0 | BT31: 0 | BU31: 0 | BV31: 0 | BW31: 0 | BX31: 0 | BY31: 0 | BZ31: 0 | CA31: 0 | CB31: 0 | CC31: 0 | CD31: 0
A32: si | B32: si | C32: si | D32: si | E32: si | F32: si | G32: si | H32: si | I32: si | J32: si | K32: si | L32: si | M32: si | N32: si | R32: no | U32: =IF('DG '!F$29="Edificio existente",0,VLOOKUP(V32,CA!$E$9:$I$128,5,FALSE)) -> 1 | V32: RN 09 | W32: Gestión de los residuos de la construcción. | X32: 0.01643230429 | Y32: ='Informe resultados'!N48 -> 0 | Z32: 2.307692308 | AA32: 0.02139800285 | AB32: 3 | AC32: 2 | AD32: 1 | AE32: 3 | AF32: 3 | AG32: 1 | AH32: 0.3125 | AI32: 0.008849557522 | AO32: 2 | AP32: 3 | AX32: 1 | AZ32: 0 | BA32: 0 | BB32: 0 | BC32: 0 | BD32: 0 | BE32: 0.006572921718 | BF32: 0.004929691288 | BG32: 0 | BH32: 0 | BI32: 0 | BJ32: 0 | BK32: 0.004929691288 | BL32: 0 | BM32: 0 | BN32: 0.004929691288 | BP32: 0 | BQ32: 0 | BR32: 0 | BS32: 0 | BT32: 0 | BU32: 0 | BV32: 0 | BW32: 0 | BX32: 0 | BY32: 0 | BZ32: 0 | CA32: 0 | CB32: 0 | CC32: 0 | CD32: 0
A33: si | B33: si | C33: si | D33: si | E33: si | F33: si | G33: si | H33: si | I33: si | J33: si | K33: si | L33: si | M33: si | N33: si | P33: no | R33: no | U33: =IF('DG '!F$29="Rehabilitación",VLOOKUP(V33,CA!$E$9:$I$128,5,FALSE),0) -> 0 | V33: RN 10 | W33: Nivel de intervención en rehabilitaciones | X33: 0 | Y33: ='Informe resultados'!N50 -> 0 | Z33: =IF($U33=1,SUMPRODUCT(AB33:AG33,AB$5:AG$5),"0") -> 0 | AA33: 0 | AB33: 3 | AC33: 2 | AD33: 2 | AE33: 2 | AF33: 3 | AG33: 2 | AH33: =IF($U33=1,SUMPRODUCT(AJ33:AX33,AJ$5:AX$5),"0") -> 0 | AI33: 0 | AO33: 3 | AP33: 3 | AR33: 2 | AX33: 3 | AZ33: =(AJ33*AJ$5)*$X33/SUMPRODUCT($AJ33:$AX33,$AJ$5:$AX$5) -> 0 | BA33: 0 | BB33: 0 | BC33: 0 | BD33: 0 | BE33: 0 | BF33: 0 | BG33: 0 | BH33: =(AU33*AU$5)*$X33/SUMPRODUCT($AJ33:$AX33,$AJ$5:$AX$5) -> 0 | BI33: =(AV33*AV$5)*$X33/SUMPRODUCT($AJ33:$AX33,$AJ$5:$AX$5) -> 0 | BJ33: =(AW33*AW$5)*$X33/SUMPRODUCT($AJ33:$AX33,$AJ$5:$AX$5) -> 0 | BK33: =(AX33*AX$5)*$X33/SUMPRODUCT($AJ33:$AX33,$AJ$5:$AX$5) -> 0 | BL33: =(AV33*AV$5)*$X33/SUMPRODUCT($AJ33:$AX33,$AJ$5:$AX$5) -> 0 | BM33: =(AW33*AW$5)*$X33/SUMPRODUCT($AJ33:$AX33,$AJ$5:$AX$5) -> 0 | BN33: =(AX33*AX$5)*$X33/SUMPRODUCT($AJ33:$AX33,$AJ$5:$AX$5) -> 0 | BP33: =(AJ33*AJ$5)*$Y33/SUMPRODUCT($AJ33:$AX33,$AJ$5:$AX$5) -> 0 | BQ33: 0 | BR33: 0 | BS33: 0 | BT33: 0 | BU33: 0 | BV33: 0 | BW33: 0 | BX33: =(AO33*AO$5)*$Y33/SUMPRODUCT($AJ33:$AX33,$AJ$5:$AX$5) -> 0 | BY33: =(AP33*AP$5)*$Y33/SUMPRODUCT($AJ33:$AX33,$AJ$5:$AX$5) -> 0 | BZ33: =(AQ33*AQ$5)*$Y33/SUMPRODUCT($AJ33:$AX33,$AJ$5:$AX$5) -> 0 | CA33: =(AU33*AU$5)*$Y33/SUMPRODUCT($AJ33:$AX33,$AJ$5:$AX$5) -> 0 | CB33: =(AV33*AV$5)*$Y33/SUMPRODUCT($AJ33:$AX33,$AJ$5:$AX$5) -> 0 | CC33: =(AW33*AW$5)*$Y33/SUMPRODUCT($AJ33:$AX33,$AJ$5:$AX$5) -> 0 | CD33: =(AX33*AX$5)*$Y33/SUMPRODUCT($AJ33:$AX33,$AJ$5:$AX$5) -> 0
A34: si | B34: si | C34: si | D34: si | E34: si | F34: si | G34: si | H34: si | I34: si | J34: si | K34: si | L34: si | M34: si | N34: si | R34: no | U34: =IF('DG '!F$29="Edificio existente",0,VLOOKUP(V34,CA!$E$9:$I$128,5,FALSE)) -> 1 | V34: RN 11 | W34: Impacto de los materiales de la construcción. | X34: 0.05756694144 | Y34: ='Informe resultados'!N51 -> 0 | Z34: 6.461538462 | AA34: 0.05991440799 | AB34: 8 | AC34: 3 | AD34: 8 | AE34: 3 | AF34: 8 | AG34: 8 | AH34: 1.90625 | AI34: 0.05398230088 | AJ34: 3 | AK34: 3 | AL34: 1 | AM34: 3 | AN34: 3 | AO34: 3 | AP34: 3 | AR34: 1 | AU34: 3 | AW34: 3 | AX34: 3 | AZ34: 0.008493483163 | BA34: 0.005662322108 | BB34: 0.002831161054 | BC34: 0.008493483163 | BD34: 0.005662322108 | BE34: 0.005662322108 | BF34: 0.002831161054 | BG34: 0 | BH34: 0.002831161054 | BI34: 0 | BJ34: 0.005662322108 | BK34: 0.008493483163 | BL34: 0 | BM34: 0.005662322108 | BN34: 0.008493483163 | BP34: 0 | BQ34: 0 | BR34: 0 | BS34: 0 | BT34: 0 | BU34: 0 | BV34: 0 | BW34: 0 | BX34: 0 | BY34: 0 | BZ34: 0 | CA34: 0 | CB34: 0 | CC34: 0 | CD34: 0
A35: si | B35: si | C35: si | D35: si | E35: si | F35: si | G35: si | H35: si | I35: si | J35: si | K35: si | L35: si | M35: si | N35: si | R35: no | U35: =IF('DG '!F$29="Edificio existente",0,VLOOKUP(V35,CA!$E$9:$I$128,5,FALSE)) -> 1 | V35: RN 12 | W35: Ecoetiquetado de producto. | X35: 0.02103873714 | Y35: ='Informe resultados'!N52 -> 0 | Z35: 2.692307692 | AA35: 0.02496433666 | AB35: 3 | AC35: 3 | AD35: 2 | AE35: 3 | AF35: 3 | AG35: 1 | AH35: 0.53125 | AI35: 0.01504424779 | AJ35: 1 | AK35: 1 | AM35: 1 | AN35: 1 | AO35: 1 | AP35: 1 | AW35: 2 | AZ35: 0.003712718318 | BA35: 0.002475145546 | BB35: 0 | BC35: 0.003712718318 | BD35: 0.002475145546 | BE35: 0.002475145546 | BF35: 0.001237572773 | BG35: 0 | BH35: 0 | BI35: 0 | BJ35: 0.004950291091 | BK35: 0 | BL35: 0 | BM35: 0.004950291091 | BN35: 0 | BP35: 0 | BQ35: 0 | BR35: 0 | BS35: 0 | BT35: 0 | BU35: 0 | BV35: 0 | BW35: 0 | BX35: 0 | BY35: 0 | BZ35: 0 | CA35: 0 | CB35: 0 | CC35: 0 | CD35: 0
U36: AI | V36: Ambiente Interior. | X36: =SUM(X37:X41) -> 0.07855180217 | AA36: =SUM(AA37:AA41) -> 0.07203994294 | AI36: =SUM(AI37:AI41) -> 0.08849557522
A37: si | B37: si | C37: si | D37: si | E37: si | F37: si | G37: si | H37: si | I37: si | J37: si | K37: si | L37: si | M37: si | N37: si | R37: no | U37: =IF('DG '!F$29="Edificio existente",0,VLOOKUP(V37,CA!$E$9:$I$128,5,FALSE)) -> 1 | V37: AI 01 | W37: Limitación de las emisiones de COVs | X37: =($Z37+2*$AH37)/($Z$60+2*$AH$60) -> 0.01996120899 | Y37: ='Informe resultados'!N53 -> 0 | Z37: =IF($U37=1,SUMPRODUCT(AB37:AG37,AB$5:AG$5),"0") -> 2 | AA37: =IF($Z$60=0,0,$Z37/$Z$60) -> 0.01854493581 | AB37: 1 | AC37: 1 | AD37: 3 | AE37: 3 | AF37: 3 | AG37: 2 | AH37: =IF($U37=1,SUMPRODUCT(AJ37:AX37,AJ$5:AX$5),"0") -> 0.78125 | AI37: =IF($AH$60=0,0,$AH37/$AH$60) -> 0.02212389381 | AS37: 5 | AW37: 5 | AZ37: =(AJ37*AJ$5)*$X37/SUMPRODUCT($AJ37:$AX37,$AJ$5:$AX$5) -> 0 | BA37: 0 | BB37: 0 | BC37: 0 | BD37: 0 | BE37: 0 | BF37: 0 | BG37: 0 | BH37: =(AU37*AU$5)*$X37/SUMPRODUCT($AJ37:$AX37,$AJ$5:$AX$5) -> 0 | BI37: 0 | BJ37: 0.007984483595 | BK37: 0 | BL37: =(AV37*AV$5)*$X37/SUMPRODUCT($AJ37:$AX37,$AJ$5:$AX$5) -> 0 | BM37: 0.007984483595 | BN37: 0 | BP37: =(AJ37*AJ$5)*$Y37/SUMPRODUCT($AJ37:$AX37,$AJ$5:$AX$5) -> 0 | BQ37: 0 | BR37: 0 | BS37: 0 | BT37: 0 | BU37: 0 | BV37: 0 | BW37: 0 | BX37: =(AO37*AO$5)*$Y37/SUMPRODUCT($AJ37:$AX37,$AJ$5:$AX$5) -> 0 | BY37: 0 | BZ37: 0 | CA37: =(AU37*AU$5)*$Y37/SUMPRODUCT($AJ37:$AX37,$AJ$5:$AX$5) -> 0 | CB37: 0 | CC37: 0 | CD37: 0
A38: si | B38: si | C38: si | D38: si | E38: si | F38: si | G38: si | H38: si | I38: si | J38: si | K38: si | L38: si | M38: si | N38: si | T38: NO | U38: =VLOOKUP(V38,CA!$E$9:$I$128,5,FALSE) -> 1 | V38: AI 02 | W38: Control de la calidad del aire | X38: =($Z38+2*$AH38)/($Z$60+2*$AH$60) -> 0.01953019773 | Y38: ='Informe resultados'!N54 -> 0 | Z38: =IF($U38=1,SUMPRODUCT(AB38:AG38,AB$5:AG$5),"0") -> 1.923076923 | AA38: =IF($Z$60=0,0,$Z38/$Z$60) -> 0.01783166904 | AB38: 1 | AC38: 1 | AD38: 3 | AE38: 3 | AF38: 3 | AG38: 1 | AH38: =IF($U38=1,SUMPRODUCT(AJ38:AX38,AJ$5:AX$5),"0") -> 0.78125 | AI38: =IF($AH$60=0,0,$AH38/$AH$60) -> 0.02212389381 | AS38: 5 | AW38: 5 | AZ38: 0 | BA38: 0 | BB38: 0 | BC38: 0 | BD38: 0 | BE38: 0 | BF38: 0 | BG38: 0 | BH38: 0 | BI38: 0 | BJ38: 0.007812079091 | BK38: 0 | BL38: 0 | BM38: 0.007812079091 | BN38: 0 | BP38: 0 | BQ38: 0 | BR38: 0 | BS38: 0 | BT38: 0 | BU38: 0 | BV38: 0 | BW38: 0 | BX38: 0 | BY38: 0 | BZ38: 0 | CA38: 0 | CB38: 0 | CC38: 0 | CD38: 0
A39: si | B39: no | C39: no | D39: si | E39: si | F39: si | G39: si | H39: si | I39: si | J39: si | K39: si | L39: si | M39: si | N39: si | U39: =IF(OR('DG '!F$27="Unifamiliar",'DG '!F$27="Urbanizaciones"),0,VLOOKUP(V39,CA!$E$9:$I$128,5,FALSE)) -> 1 | V39: AI 03 | W39: Iluminación natural. | X39: =($Z39+2*$AH39)/($Z$60+2*$AH$60) -> 0.01953019773 | Y39: ='Informe resultados'!N55 -> 0 | Z39: =IF($U39=1,SUMPRODUCT(AB39:AG39,AB$5:AG$5),"0") -> 1.923076923 | AA39: =IF($Z$60=0,0,$Z39/$Z$60) -> 0.01783166904 | AB39: 1 | AC39: 1 | AD39: 3 | AE39: 2 | AF39: 3 | AG39: 2 | AH39: =IF($U39=1,SUMPRODUCT(AJ39:AX39,AJ$5:AX$5),"0") -> 0.78125 | AI39: =IF($AH$60=0,0,$AH39/$AH$60) -> 0.02212389381 | AS39: 5 | AW39: 5 | AZ39: 0 | BA39: 0 | BB39: 0 | BC39: 0 | BD39: 0 | BE39: 0 | BF39: 0 | BG39: 0 | BH39: 0 | BI39: 0 | BJ39: 0.007812079091 | BK39: 0 | BL39: 0 | BM39: 0.007812079091 | BN39: 0 | BP39: 0 | BQ39: 0 | BR39: 0 | BS39: 0 | BT39: 0 | BU39: 0 | BV39: 0 | BW39: 0 | BX39: 0 | BY39: 0 | BZ39: 0 | CA39: 0 | CB39: 0 | CC39: 0 | CD39: 0
A40: no | B40: no | C40: no | D40: no | E40: si | F40: si | G40: si | H40: si | I40: si | J40: si | K40: si | L40: si | M40: si | N40: si | U40: =IF(OR('DG '!F$27="Residencial colectivo",'DG '!F$27="Unifamiliar",'DG '!F$27="Urbanizaciones",'DG '!F$27="Vivienda en un edificio",'DG '!F$27=""),0,VLOOKUP(V40,CA!$D$9:$I$128,5,FALSE)) -> 0 | V40: AI 04 | W40: Iluminación artificial | X40: =($Z40+2*$AH40)/($Z$60+2*$AH$60) -> 0 | Y40: ='Informe resultados'!N56 -> 0 | Z40: =IF($U40=1,SUMPRODUCT(AB40:AG40,AB$5:AG$5),"0") -> 0 | AA40: =IF($Z$60=0,0,$Z40/$Z$60) -> 0 | AB40: 1 | AC40: 1 | AD40: 3 | AE40: 3 | AF40: 3 | AG40: 2 | AH40: =IF($U40=1,SUMPRODUCT(AJ40:AX40,AJ$5:AX$5),"0") -> 0 | AI40: =IF($AH$60=0,0,$AH40/$AH$60) -> 0 | AJ40: 1 | AS40: 5 | AW40: 5 | AZ40: 0 | BA40: 0 | BB40: 0 | BC40: 0 | BD40: 0 | BE40: 0 | BF40: 0 | BG40: 0 | BH40: 0 | BI40: 0 | BJ40: 0 | BK40: 0 | BL40: 0 | BM40: 0 | BN40: 0 | BP40: 0 | BQ40: 0 | BR40: 0 | BS40: 0 | BT40: 0 | BU40: 0 | BV40: 0 | BW40: 0 | BX40: 0 | BY40: 0 | BZ40: 0 | CA40: 0 | CB40: 0 | CC40: 0 | CD40: 0
A41: si | B41: si | C41: si | D41: si | E41: si | F41: si | G41: si | H41: si | I41: si | J41: si | K41: si | L41: si | M41: si | N41: si | T41: NO | U41: =VLOOKUP(V41,CA!$E$9:$I$128,5,FALSE) -> 1 | V41: AI 05 | W41: Protección frente al ruido. | X41: =($Z41+2*$AH41)/($Z$60+2*$AH$60) -> 0.01953019773 | Y41: ='Informe resultados'!N57 -> 0 | Z41: =IF($U41=1,SUMPRODUCT(AB41:AG41,AB$5:AG$5),"0") -> 1.923076923 | AA41: =IF($Z$60=0,0,$Z41/$Z$60) -> 0.01783166904 | AB41: 1 | AC41: 1 | AD41: 3 | AE41: 3 | AF41: 3 | AG41: 1 | AH41: =IF($U41=1,SUMPRODUCT(AJ41:AX41,AJ$5:AX$5),"0") -> 0.78125 | AI41: =IF($AH$60=0,0,$AH41/$AH$60) -> 0.02212389381 | AS41: 5 | AW41: 5 | AZ41: =(AJ41*AJ$5)*$X41/SUMPRODUCT($AJ41:$AX41,$AJ$5:$AX$5) -> 0 | BA41: 0 | BB41: 0 | BC41: 0 | BD41: 0 | BE41: 0 | BF41: 0 | BG41: 0 | BH41: =(AU41*AU$5)*$X41/SUMPRODUCT($AJ41:$AX41,$AJ$5:$AX$5) -> 0 | BI41: =(AV41*AV$5)*$X41/SUMPRODUCT($AJ41:$AX41,$AJ$5:$AX$5) -> 0 | BJ41: =(AW41*AW$5)*$X41/SUMPRODUCT($AJ41:$AX41,$AJ$5:$AX$5) -> 0.007812079091 | BK41: =(AX41*AX$5)*$X41/SUMPRODUCT($AJ41:$AX41,$AJ$5:$AX$5) -> 0 | BL41: =(AV41*AV$5)*$X41/SUMPRODUCT($AJ41:$AX41,$AJ$5:$AX$5) -> 0 | BM41: =(AW41*AW$5)*$X41/SUMPRODUCT($AJ41:$AX41,$AJ$5:$AX$5) -> 0.007812079091 | BN41: =(AX41*AX$5)*$X41/SUMPRODUCT($AJ41:$AX41,$AJ$5:$AX$5) -> 0 | BP41: =(AJ41*AJ$5)*$Y41/SUMPRODUCT($AJ41:$AX41,$AJ$5:$AX$5) -> 0 | BQ41: 0 | BR41: 0 | BS41: 0 | BT41: 0 | BU41: 0 | BV41: 0 | BW41: 0 | BX41: =(AO41*AO$5)*$Y41/SUMPRODUCT($AJ41:$AX41,$AJ$5:$AX$5) -> 0 | BY41: =(AP41*AP$5)*$Y41/SUMPRODUCT($AJ41:$AX41,$AJ$5:$AX$5) -> 0 | BZ41: =(AQ41*AQ$5)*$Y41/SUMPRODUCT($AJ41:$AX41,$AJ$5:$AX$5) -> 0 | CA41: =(AU41*AU$5)*$Y41/SUMPRODUCT($AJ41:$AX41,$AJ$5:$AX$5) -> 0 | CB41: =(AV41*AV$5)*$Y41/SUMPRODUCT($AJ41:$AX41,$AJ$5:$AX$5) -> 0 | CC41: =(AW41*AW$5)*$Y41/SUMPRODUCT($AJ41:$AX41,$AJ$5:$AX$5) -> 0 | CD41: =(AX41*AX$5)*$Y41/SUMPRODUCT($AJ41:$AX41,$AJ$5:$AX$5) -> 0
U42: AS | V42: Aspectos sociales | X42: =SUM(X43:X51) -> 0.1754215829 | AA42: =SUM(AA43:AA51) -> 0.1790299572 | AI42: =SUM(AI43:AI51) -> 0.1699115044
A43: si | B43: si | C43: si | D43: si | E43: si | F43: si | G43: si | H43: si | I43: si | J43: si | K43: si | L43: si | M43: si | N43: si | T43: NO | U43: =VLOOKUP(V43,CA!$E$9:$I$128,5,FALSE) -> 1 | V43: AS 01 | W43: Espacios para todas las personas | X43: =($Z43+2*$AH43)/($Z$60+2*$AH$60) -> 0.01918000108 | Y43: ='Informe resultados'!N58 -> 0 | Z43: =IF($U43=1,SUMPRODUCT(AB43:AG43,AB$5:AG$5),"0") -> 1.923076923 | AA43: =IF($Z$60=0,0,$Z43/$Z$60) -> 0.01783166904 | AB43: 1 | AC43: 1 | AD43: 3 | AE43: 2 | AF43: 3 | AG43: 2 | AH43: =IF($U43=1,SUMPRODUCT(AJ43:AX43,AJ$5:AX$5),"0") -> 0.75 | AI43: =IF($AH$60=0,0,$AH43/$AH$60) -> 0.02123893805 | AQ43: 3 | AR43: 3 | AS43: 3 | AT43: 1 | AW43: 2 | AZ43: =(AJ43*AJ$5)*$X43/SUMPRODUCT($AJ43:$AX43,$AJ$5:$AX$5) -> 0 | BA43: =(AK43*AK$5)*$X43/SUMPRODUCT($AJ43:$AX43,$AJ$5:$AX$5) -> 0 | BB43: =(AL43*AL$5)*$X43/SUMPRODUCT($AJ43:$AX43,$AJ$5:$AX$5) -> 0 | BC43: =(AM43*AM$5)*$X43/SUMPRODUCT($AJ43:$AX43,$AJ$5:$AX$5) -> 0 | BD43: =(AN43*AN$5)*$X43/SUMPRODUCT($AJ43:$AX43,$AJ$5:$AX$5) -> 0 | BE43: =(AO43*AO$5)*$X43/SUMPRODUCT($AJ43:$AX43,$AJ$5:$AX$5) -> 0 | BF43: =(AP43*AP$5)*$X43/SUMPRODUCT($AJ43:$AX43,$AJ$5:$AX$5) -> 0 | BG43: =(AQ43*AQ$5)*$X43/SUMPRODUCT($AJ43:$AX43,$AJ$5:$AX$5) -> 0.004795000269 | BH43: =(AU43*AU$5)*$X43/SUMPRODUCT($AJ43:$AX43,$AJ$5:$AX$5) -> 0 | BI43: =(AV43*AV$5)*$X43/SUMPRODUCT($AJ43:$AX43,$AJ$5:$AX$5) -> 0 | BJ43: =(AW43*AW$5)*$X43/SUMPRODUCT($AJ43:$AX43,$AJ$5:$AX$5) -> 0.003196666846 | BK43: =(AX43*AX$5)*$X43/SUMPRODUCT($AJ43:$AX43,$AJ$5:$AX$5) -> 0 | BL43: =(AV43*AV$5)*$X43/SUMPRODUCT($AJ43:$AX43,$AJ$5:$AX$5) -> 0 | BM43: =(AW43*AW$5)*$X43/SUMPRODUCT($AJ43:$AX43,$AJ$5:$AX$5) -> 0.003196666846 | BN43: =(AX43*AX$5)*$X43/SUMPRODUCT($AJ43:$AX43,$AJ$5:$AX$5) -> 0 | BP43: =(AJ43*AJ$5)*$Y43/SUMPRODUCT($AJ43:$AX43,$AJ$5:$AX$5) -> 0 | BQ43: =(AK43*AK$5)*$Y43/SUMPRODUCT($AJ43:$AX43,$AJ$5:$AX$5) -> 0 | BR43: =(AL43*AL$5)*$Y43/SUMPRODUCT($AJ43:$AX43,$AJ$5:$AX$5) -> 0 | BS43: =(AM43*AM$5)*$Y43/SUMPRODUCT($AJ43:$AX43,$AJ$5:$AX$5) -> 0 | BT43: =(AN43*AN$5)*$Y43/SUMPRODUCT($AJ43:$AX43,$AJ$5:$AX$5) -> 0 | BU43: =(AO43*AO$5)*$Y43/SUMPRODUCT($AJ43:$AX43,$AJ$5:$AX$5) -> 0 | BV43: =(AP43*AP$5)*$Y43/SUMPRODUCT($AJ43:$AX43,$AJ$5:$AX$5) -> 0 | BW43: =(AQ43*AQ$5)*$Y43/SUMPRODUCT($AJ43:$AX43,$AJ$5:$AX$5) -> 0 | BX43: =(AO43*AO$5)*$Y43/SUMPRODUCT($AJ43:$AX43,$AJ$5:$AX$5) -> 0 | BY43: =(AP43*AP$5)*$Y43/SUMPRODUCT($AJ43:$AX43,$AJ$5:$AX$5) -> 0 | BZ43: =(AQ43*AQ$5)*$Y43/SUMPRODUCT($AJ43:$AX43,$AJ$5:$AX$5) -> 0 | CA43: =(AU43*AU$5)*$Y43/SUMPRODUCT($AJ43:$AX43,$AJ$5:$AX$5) -> 0 | CB43: =(AV43*AV$5)*$Y43/SUMPRODUCT($AJ43:$AX43,$AJ$5:$AX$5) -> 0 | CC43: =(AW43*AW$5)*$Y43/SUMPRODUCT($AJ43:$AX43,$AJ$5:$AX$5) -> 0 | CD43: =(AX43*AX$5)*$Y43/SUMPRODUCT($AJ43:$AX43,$AJ$5:$AX$5) -> 0
A44: si | B44: no | C44: no | D44: no | E44: si | F44: si | G44: si | H44: si | I44: si | J44: no | K44: no | L44: si | M44: si | N44: no | U44: =IF(OR('DG '!F$27="Unifamiliar",'DG '!F$27="Urbanizaciones",'DG '!F$27="Vivienda en un edificio",'DG '!F$27="Servicios de restauración",'DG '!F$27="Edificios deportivos",'DG '!F$27="Local o parte de un edificio"),0,VLOOKUP(V44,CA!$E$9:$I$128,5,FALSE)) -> 1 | V44: AS 02 | W44: Espacios para la comunicación | X44: 0.01847960778 | Y44: ='Informe resultados'!N59 -> 0 | Z44: 1.923076923 | AA44: 0.01783166904 | AB44: 1 | AC44: 1 | AD44: 3 | AE44: 2 | AF44: 3 | AG44: 2 | AH44: 0.6875 | AI44: 0.01946902655 | AQ44: 3 | AR44: 3 | AS44: 3 | AW44: 2 | AZ44: 0 | BA44: 0 | BB44: 0 | BC44: 0 | BD44: 0 | BE44: 0 | BF44: 0 | BG44: 0.005039893031 | BH44: 0 | BI44: 0 | BJ44: 0.003359928687 | BK44: 0 | BL44: 0 | BM44: 0.003359928687 | BN44: 0 | BP44: 0 | BQ44: 0 | BR44: 0 | BS44: 0 | BT44: 0 | BU44: 0 | BV44: 0 | BW44: 0 | BX44: 0 | BY44: 0 | BZ44: 0 | CA44: 0 | CB44: 0 | CC44: 0 | CD44: 0
A45: si | B45: si | C45: si | D45: si | E45: no | F45: no | G45: no | H45: no | I45: si | J45: no | K45: no | L45: si | M45: no | N45: si | U45: =IF(OR('DG '!F$27="Servicios de restauración",'DG '!F$27="Edificios deportivos",'DG '!F$27="Local o parte de un edificio"),0,VLOOKUP(V45,CA!$E$9:$I$128,5,FALSE)) -> 1 | V45: AS 03 | W45: Derecho al sol | X45: 0.01742901783 | Y45: ='Informe resultados'!N60 -> 0 | Z45: 1.923076923 | AA45: 0.01783166904 | AB45: 1 | AC45: 1 | AD45: 3 | AE45: 3 | AF45: 3 | AG45: 1 | AH45: 0.59375 | AI45: 0.01681415929 | AR45: 2 | AS45: 3 | AT45: 1 | AW45: 3 | AZ45: 0 | BA45: 0 | BB45: 0 | BC45: 0 | BD45: 0 | BE45: 0 | BF45: 0 | BG45: 0 | BH45: 0 | BI45: 0 | BJ45: 0.005503900368 | BK45: 0 | BL45: 0 | BM45: 0.005503900368 | BN45: 0 | BP45: 0 | BQ45: 0 | BR45: 0 | BS45: 0 | BT45: 0 | BU45: 0 | BV45: 0 | BW45: 0 | BX45: 0 | BY45: 0 | BZ45: 0 | CA45: 0 | CB45: 0 | CC45: 0 | CD45: 0
A46: si | B46: si | C46: si | D46: si | E46: no | F46: no | G46: no | H46: no | I46: si | J46: no | K46: no | L46: no | M46: no | N46: si | U46: =IF(OR('DG '!F27="Edificios administrativos",'DG '!F27="equipamiento público",'DG '!F27="Edificios docentes",'DG '!F27="Edificios comerciales",'DG '!F27="Servicios de restauración",'DG '!F27="Edificios deportivos",'DG '!F27="Edificios sanitarios",'DG '!F27="Industria ligera o logística"),0,VLOOKUP(V46,CA!$E$9:$I$128,5,FALSE)) -> 1 | V46: AS 04 | W46: Derecho a la intimidad | X46: 0.01680943915 | Y46: ='Informe resultados'!N61 -> 0 | Z46: 2 | AA46: 0.01854493581 | AB46: 1 | AC46: 1 | AD46: 3 | AE46: 3 | AF46: 3 | AG46: 2 | AH46: 0.5 | AI46: 0.01415929204 | AR46: 2 | AS46: 3 | AU46: 1 | AW46: 2 | AZ46: 0 | BA46: 0 | BB46: 0 | BC46: 0 | BD46: 0 | BE46: 0 | BF46: 0 | BG46: 0 | BH46: 0.001050589947 | BI46: 0 | BJ46: 0.004202359787 | BK46: 0 | BL46: 0 | BM46: 0.004202359787 | BN46: 0 | BP46: 0 | BQ46: 0 | BR46: 0 | BS46: 0 | BT46: 0 | BU46: 0 | BV46: 0 | BW46: 0 | BX46: 0 | BY46: 0 | BZ46: 0 | CA46: 0 | CB46: 0 | CC46: 0 | CD46: 0
A47: si | B47: si | C47: si | D47: si | E47: si | F47: no | G47: si | H47: no | I47: si | J47: no | K47: si | L47: si | M47: no | N47: si | U47: =IF(OR('DG '!F27="equipamiento público",'DG '!F27="Edificios comerciales",'DG '!F27="Servicios de restauración",'DG '!F27="Industria ligera o logística"),0,VLOOKUP(V47,CA!$E$9:$I$128,5,FALSE)) -> 1 | V47: AS 05 | W47: Contacto visual con el exterior | X47: 0.01786002909 | Y47: ='Informe resultados'!N62 -> 0 | Z47: 2 | AA47: 0.01854493581 | AB47: 1 | AC47: 1 | AD47: 3 | AE47: 3 | AF47: 3 | AG47: 2 | AH47: 0.59375 | AI47: 0.01681415929 | AR47: 2 | AS47: 3 | AV47: 1 | AW47: 3 | AZ47: 0 | BA47: 0 | BB47: 0 | BC47: 0 | BD47: 0 | BE47: 0 | BF47: 0 | BG47: 0 | BH47: 0 | BI47: 0.001880003062 | BJ47: 0.005640009187 | BK47: 0 | BL47: 0.001880003062 | BM47: 0.005640009187 | BN47: 0 | BP47: 0 | BQ47: 0 | BR47: 0 | BS47: 0 | BT47: 0 | BU47: 0 | BV47: 0 | BW47: 0 | BX47: 0 | BY47: 0 | BZ47: 0 | CA47: 0 | CB47: 0 | CC47: 0 | CD47: 0
A48: si | B48: si | C48: si | D48: si | E48: si | F48: no | G48: no | H48: no | I48: no | J48: no | K48: no | L48: si | M48: no | N48: no | U48: =IF(OR('DG '!F27="equipamiento público",'DG '!F27="Edificios docentes",'DG '!F27="Edificios comerciales",'DG '!F27="Alojamiento y hospedaje",'DG '!F27="Servicios de restauración",'DG '!F27="Edificios deportivos",'DG '!F27="Industria ligera o logística",'DG '!F27="local o parte de un edificio"),0,VLOOKUP(V48,CA!$E$9:$I$128,5,FALSE)) -> 1 | V48: AS 06 | W48: Espacios abiertos privados | X48: 0.01821022574 | Y48: ='Informe resultados'!N63 -> 0 | Z48: 2 | AA48: 0.01854493581 | AB48: 1 | AC48: 1 | AD48: 3 | AE48: 3 | AF48: 3 | AG48: 2 | AH48: 0.625 | AI48: 0.01769911504 | AR48: 3 | AS48: 3 | AV48: 1 | AW48: 3 | AZ48: 0 | BA48: 0 | BB48: 0 | BC48: 0 | BD48: 0 | BE48: 0 | BF48: 0 | BG48: 0 | BH48: 0 | BI48: 0.001821022574 | BJ48: 0.005463067723 | BK48: 0 | BL48: 0.001821022574 | BM48: 0.005463067723 | BN48: 0 | BP48: 0 | BQ48: 0 | BR48: 0 | BS48: 0 | BT48: 0 | BU48: 0 | BV48: 0 | BW48: 0 | BX48: 0 | BY48: 0 | BZ48: 0 | CA48: 0 | CB48: 0 | CC48: 0 | CD48: 0
A49: si | B49: si | C49: si | D49: si | E49: si | F49: si | G49: si | H49: si | I49: si | J49: si | K49: si | L49: si | M49: si | N49: si | T49: NO | U49: =VLOOKUP(V49,CA!$E$9:$I$128,5,FALSE) -> 1 | V49: AS 07 | W49: Diseño inclusivo | X49: 0.0207424169 | Y49: ='Informe resultados'!N64 -> 0 | Z49: 2.076923077 | AA49: 0.01925820257 | AB49: 1 | AC49: 1 | AD49: 3 | AE49: 3 | AF49: 3 | AG49: 3 | AH49: 0.8125 | AI49: 0.02300884956 | AQ49: 3 | AR49: 3 | AS49: 3 | AV49: 1 | AW49: 3 | AZ49: 0 | BA49: 0 | BB49: 0 | BC49: 0 | BD49: 0 | BE49: 0 | BF49: 0 | BG49: 0.004786711591 | BH49: 0 | BI49: 0.00159557053 | BJ49: 0.004786711591 | BK49: 0 | BL49: 0.00159557053 | BM49: 0.004786711591 | BN49: 0 | BP49: 0 | BQ49: 0 | BR49: 0 | BS49: 0 | BT49: 0 | BU49: 0 | BV49: 0 | BW49: 0 | BX49: 0 | BY49: 0 | BZ49: 0 | CA49: 0 | CB49: 0 | CC49: 0 | CD49: 0
A50: si | B50: si | C50: si | D50: si | E50: si | F50: si | G50: si | H50: si | I50: si | J50: si | K50: si | L50: si | M50: si | N50: si | T50: NO | U50: =VLOOKUP(V50,CA!$E$9:$I$128,5,FALSE) -> 1 | V50: AS 08 | W50: Conexión con la naturaleza | X50: 0.02734227682 | Y50: ='Informe resultados'!N65 -> 0 | Z50: 2.692307692 | AA50: 0.02496433666 | AB50: 2 | AC50: 3 | AD50: 3 | AE50: 2 | AF50: 3 | AG50: 3 | AH50: 1.09375 | AI50: 0.03097345133 | AJ50: 1 | AL50: 3 | AN50: 2 | AR50: 2 | AS50: 3 | AV50: 1 | AW50: 3 | AZ50: 0.002343623727 | BA50: 0 | BB50: 0.007030871182 | BC50: 0 | BD50: 0.003124831636 | BE50: 0 | BF50: 0 | BG50: 0 | BH50: 0 | BI50: 0.001562415818 | BJ50: 0.004687247454 | BK50: 0 | BL50: 0.001562415818 | BM50: 0.004687247454 | BN50: 0 | BP50: 0 | BQ50: 0 | BR50: 0 | BS50: 0 | BT50: 0 | BU50: 0 | BV50: 0 | BW50: 0 | BX50: 0 | BY50: 0 | BZ50: 0 | CA50: 0 | CB50: 0 | CC50: 0 | CD50: 0
A51: si | B51: si | C51: si | D51: si | E51: si | F51: si | G51: si | H51: si | I51: si | J51: si | K51: si | L51: si | M51: si | N51: si | T51: NO | U51: =VLOOKUP(V51,CA!$E$9:$I$128,5,FALSE) -> 1 | V51: AS 09 | W51: El edificio como herramienta de comunicación | X51: 0.0193685685 | Y51: ='Informe resultados'!N66 -> 0 | Z51: 2.769230769 | AA51: 0.02567760342 | AB51: 3 | AC51: 3 | AD51: 2 | AE51: 2 | AF51: 3 | AG51: 3 | AH51: 0.34375 | AI51: 0.009734513274 | AJ51: 1 | AT51: 3 | AV51: 1 | AZ51: 0.005282336865 | BA51: 0 | BB51: 0 | BC51: 0 | BD51: 0 | BE51: 0 | BF51: 0 | BG51: 0 | BH51: 0 | BI51: 0.00352155791 | BJ51: 0 | BK51: 0 | BL51: 0.00352155791 | BM51: 0 | BN51: 0 | BP51: 0 | BQ51: 0 | BR51: 0 | BS51: 0 | BT51: 0 | BU51: 0 | BV51: 0 | BW51: 0 | BX51: 0 | BY51: 0 | BZ51: 0 | CA51: 0 | CB51: 0 | CC51: 0 | CD51: 0
U52: CE | V52: Calidad de la edificación | X52: =SUM(X53:X59) -> 0.1378697268 | AA52: =SUM(AA53:AA59) -> 0.1134094151 | AI52: =SUM(AI53:AI59) -> 0.1752212389
A53: si | B53: si | C53: si | D53: si | E53: si | F53: si | G53: si | H53: si | I53: si | J53: si | K53: si | L53: si | M53: si | N53: si | T53: NO | U53: =VLOOKUP(V53,CA!$E$9:$I$128,5,FALSE) -> 1 | V53: CE 01 | W53: Diseño pasivo | X53: =($Z53+2*$AH53)/($Z$60+2*$AH$60) -> 0.02976671516 | Y53: ='Informe resultados'!N67 -> 0 | Z53: =IF($U53=1,SUMPRODUCT(AB53:AG53,AB$5:AG$5),"0") -> 3 | AA53: =IF($Z$60=0,0,$Z53/$Z$60) -> 0.02781740371 | AB53: 3 | AC53: 3 | AD53: 3 | AE53: 3 | AF53: 3 | AG53: 3 | AH53: =IF($U53=1,SUMPRODUCT(AJ53:AX53,AJ$5:AX$5),"0") -> 1.15625 | AI53: =IF($AH$60=0,0,$AH53/$AH$60) -> 0.03274336283 | AJ53: 3 | AK53: 3 | AM53: 3 | AW53: 2 | AX53: 3 | AZ53: =(AJ53*AJ$5)*$X53/SUMPRODUCT($AJ53:$AX53,$AJ$5:$AX$5) -> 0.007240552335 | BA53: 0.00482703489 | BB53: 0 | BC53: 0.007240552335 | BD53: 0 | BE53: 0 | BF53: 0 | BG53: 0 | BH53: =(AU53*AU$5)*$X53/SUMPRODUCT($AJ53:$AX53,$AJ$5:$AX$5) -> 0 | BI53: 0 | BJ53: 0.00321802326 | BK53: 0.007240552335 | BL53: =(AV53*AV$5)*$X53/SUMPRODUCT($AJ53:$AX53,$AJ$5:$AX$5) -> 0 | BM53: 0.00321802326 | BN53: 0.007240552335 | BP53: =(AJ53*AJ$5)*$Y53/SUMPRODUCT($AJ53:$AX53,$AJ$5:$AX$5) -> 0 | BQ53: 0 | BR53: 0 | BS53: 0 | BT53: 0 | BU53: 0 | BV53: 0 | BW53: 0 | BX53: =(AO53*AO$5)*$Y53/SUMPRODUCT($AJ53:$AX53,$AJ$5:$AX$5) -> 0 | BY53: 0 | BZ53: 0 | CA53: =(AU53*AU$5)*$Y53/SUMPRODUCT($AJ53:$AX53,$AJ$5:$AX$5) -> 0 | CB53: 0 | CC53: 0 | CD53: 0
A54: no | B54: no | C54: no | D54: no | E54: si | F54: si | G54: si | H54: si | I54: si | J54: si | K54: si | L54: si | M54: si | N54: si | U54: =IF(OR('DG '!F$27="Residencial colectivo",'DG '!F$27="Unifamiliar",'DG '!F$27="Urbanizaciones",'DG '!F$27="Vivienda en un edificio",'DG '!F$27=""),0,VLOOKUP(V54,CA!$D$9:$I$128,5,FALSE)) -> 0 | V54: CE 02 | W54: Control parcial de los sistemas de clima | X54: =($Z54+2*$AH54)/($Z$60+2*$AH$60) -> 0 | Y54: ='Informe resultados'!N68 -> 0 | Z54: 0 | AA54: 0 | AB54: 3 | AC54: 3 | AD54: 3 | AE54: 3 | AF54: 3 | AG54: 3 | AH54: 0 | AI54: 0 | AJ54: 2 | AK54: 2 | AM54: 2 | AU54: 3 | AW54: 2 | AX54: 3 | AZ54: 0 | BA54: 0 | BB54: 0 | BC54: 0 | BD54: 0 | BE54: 0 | BF54: 0 | BG54: 0 | BH54: 0 | BI54: 0 | BJ54: 0 | BK54: 0 | BL54: 0 | BM54: 0 | BN54: 0 | BP54: 0 | BQ54: 0 | BR54: 0 | BS54: 0 | BT54: 0 | BU54: 0 | BV54: 0 | BW54: 0 | BX54: 0 | BY54: 0 | BZ54: 0 | CA54: 0 | CB54: 0 | CC54: 0 | CD54: 0
A55: no | B55: no | C55: no | D55: no | E55: si | F55: si | G55: si | H55: si | I55: si | J55: si | K55: si | L55: si | M55: si | N55: si | U55: =IF(OR('DG '!F$27="Residencial colectivo",'DG '!F$27="Unifamiliar",'DG '!F$27="Urbanizaciones",'DG '!F$27="Vivienda en un edificio",'DG '!F$27=""),0,VLOOKUP(V55,CA!$D$9:$I$128,5,FALSE)) -> 0 | V55: CE 03 | W55: Control local de la iluminación | X55: =($Z55+2*$AH55)/($Z$60+2*$AH$60) -> 0 | Y55: ='Informe resultados'!N69 -> 0 | Z55: 0 | AA55: 0 | AB55: 3 | AC55: 3 | AD55: 2 | AE55: 1 | AF55: 3 | AG55: 1 | AH55: 0 | AI55: 0 | AJ55: 1 | AK55: 1 | AM55: 1 | AU55: 3 | AW55: 3 | AX55: 3 | AZ55: 0 | BA55: 0 | BB55: 0 | BC55: 0 | BD55: 0 | BE55: 0 | BF55: 0 | BG55: 0 | BH55: 0 | BI55: 0 | BJ55: 0 | BK55: 0 | BL55: 0 | BM55: 0 | BN55: 0 | BP55: 0 | BQ55: 0 | BR55: 0 | BS55: 0 | BT55: 0 | BU55: 0 | BV55: 0 | BW55: 0 | BX55: 0 | BY55: 0 | BZ55: 0 | CA55: 0 | CB55: 0 | CC55: 0 | CD55: 0
A56: si | B56: si | C56: si | D56: si | E56: si | F56: si | G56: si | H56: si | I56: si | J56: si | K56: si | L56: si | M56: si | N56: si | T56: NO | U56: =VLOOKUP(V56,CA!$E$9:$I$128,5,FALSE) -> 1 | V56: CE 04 | W56: Calidad en la construcción | X56: =($Z56+(2*$AH56))/($Z$60+(2*$AH$60)) -> 0.0365012661 | Y56: ='Informe resultados'!N70 -> 0 | Z56: 3.076923077 | AA56: 0.02853067047 | AB56: 2 | AC56: 2 | AD56: 3 | AE56: 2 | AF56: 5 | AG56: 5 | AH56: 1.71875 | AI56: 0.04867256637 | AJ56: 3 | AK56: 3 | AM56: 3 | AS56: 3 | AU56: 3 | AV56: 2 | AW56: 3 | AX56: 3 | AZ56: 0.005972934452 | BA56: 0.003981956301 | BB56: 0 | BC56: 0.005972934452 | BD56: 0 | BE56: 0 | BF56: 0 | BG56: 0 | BH56: 0.001990978151 | BI56: 0.002654637534 | BJ56: 0.003981956301 | BK56: 0.005972934452 | BL56: 0.002654637534 | BM56: 0.003981956301 | BN56: 0.005972934452 | BP56: 0 | BQ56: 0 | BR56: 0 | BS56: 0 | BT56: 0 | BU56: 0 | BV56: 0 | BW56: 0 | BX56: 0 | BY56: 0 | BZ56: 0 | CA56: 0 | CB56: 0 | CC56: 0 | CD56: 0
A57: si | B57: si | C57: si | D57: si | E57: si | F57: si | G57: si | H57: si | I57: si | J57: si | K57: si | L57: si | M57: si | N57: si | T57: NO | U57: =VLOOKUP(V57,CA!$E$9:$I$128,5,FALSE) -> 1 | V57: CE 05 | W57: Puesta en marcha sistemática | X57: =($Z57+(2*$AH57))/($Z$60+(2*$AH$60)) -> 0.03790205269 | Y57: ='Informe resultados'!N71 -> 0 | Z57: 3.076923077 | AA57: 0.02853067047 | AB57: 2 | AC57: 2 | AD57: 3 | AE57: 2 | AF57: 5 | AG57: 5 | AH57: 1.84375 | AI57: 0.05221238938 | AJ57: 3 | AK57: 3 | AM57: 3 | AN57: 2 | AS57: 3 | AU57: 3 | AV57: 2 | AW57: 3 | AX57: 3 | AZ57: =(AJ57*AJ$5)*$X57/SUMPRODUCT($AJ57:$AX57,$AJ$5:$AX$5) -> 0.005781669055 | BA57: 0.003854446036 | BB57: 0 | BC57: 0.005781669055 | BD57: 0.002569630691 | BE57: 0 | BF57: 0 | BG57: 0 | BH57: =(AU57*AU$5)*$X57/SUMPRODUCT($AJ57:$AX57,$AJ$5:$AX$5) -> 0.001927223018 | BI57: 0.002569630691 | BJ57: 0.003854446036 | BK57: 0.005781669055 | BL57: =(AV57*AV$5)*$X57/SUMPRODUCT($AJ57:$AX57,$AJ$5:$AX$5) -> 0.002569630691 | BM57: 0.003854446036 | BN57: 0.005781669055 | BP57: =(AJ57*AJ$5)*$Y57/SUMPRODUCT($AJ57:$AX57,$AJ$5:$AX$5) -> 0 | BQ57: 0 | BR57: 0 | BS57: 0 | BT57: 0 | BU57: 0 | BV57: 0 | BW57: 0 | BX57: =(AO57*AO$5)*$Y57/SUMPRODUCT($AJ57:$AX57,$AJ$5:$AX$5) -> 0 | BY57: 0 | BZ57: 0 | CA57: =(AU57*AU$5)*$Y57/SUMPRODUCT($AJ57:$AX57,$AJ$5:$AX$5) -> 0 | CB57: 0 | CC57: 0 | CD57: 0
A58: si | B58: si | C58: si | D58: si | E58: si | F58: si | G58: si | H58: si | I58: si | J58: si | K58: si | L58: si | M58: si | N58: si | T58: NO | U58: =VLOOKUP(V58,CA!$E$9:$I$128,5,FALSE) -> 1 | V58: CE 06 | W58: Custodia de la documentación del proyecto | X58: =($Z58+(2*$AH58))/($Z$60+(2*$AH$60)) -> 0.0336996929 | Y58: ='Informe resultados'!N72 -> 0 | Z58: 3.076923077 | AA58: 0.02853067047 | AB58: 2 | AC58: 2 | AD58: 3 | AE58: 2 | AF58: 5 | AG58: 5 | AH58: 1.46875 | AI58: 0.04159292035 | AJ58: 2 | AK58: 2 | AM58: 2 | AS58: 3 | AU58: 3 | AV58: 2 | AW58: 3 | AX58: 3 | AZ58: 0.004302088456 | BA58: 0.002868058971 | BB58: 0 | BC58: 0.004302088456 | BD58: 0 | BE58: 0 | BF58: 0 | BG58: 0 | BH58: 0.002151044228 | BI58: 0.002868058971 | BJ58: 0.004302088456 | BK58: 0.006453132684 | BL58: 0.002868058971 | BM58: 0.004302088456 | BN58: 0.006453132684 | BP58: 0 | BQ58: 0 | BR58: 0 | BS58: 0 | BT58: 0 | BU58: 0 | BV58: 0 | BW58: 0 | BX58: 0 | BY58: 0 | BZ58: 0 | CA58: 0 | CB58: 0 | CC58: 0 | CD58: 0
A59: no | B59: no | C59: no | D59: si | E59: no | F59: no | G59: no | H59: no | I59: no | J59: no | K59: no | L59: no | M59: no | N59: si | U59: =IF(OR('DG '!F$27="Vivienda en un edificio",'DG '!F$27="Parte de un edificio"),VLOOKUP(V59,CA!$E$9:$I$128,5,FALSE),0) -> 0 | V59: CE 07 | W59: Certificaciones voluntarias de edificios | X59: =($Z59+(2*$AH59))/($Z$60+(2*$AH$60)) -> 0 | Y59: ='Informe resultados'!N73 -> 0 | Z59: 0 | AA59: 0 | AB59: 3 | AC59: 3 | AD59: 5 | AE59: 2 | AF59: 5 | AG59: 1 | AH59: 0 | AI59: 0 | AJ59: 3 | AK59: 3 | AM59: 2 | AS59: 3 | AU59: 2 | AV59: 2 | AW59: 3 | AX59: 1 | AZ59: 0 | BA59: 0 | BB59: 0 | BC59: 0 | BD59: 0 | BE59: 0 | BF59: 0 | BG59: 0 | BH59: 0 | BI59: 0 | BJ59: 0 | BK59: 0 | BL59: 0 | BM59: 0 | BN59: 0 | BP59: 0 | BQ59: 0 | BR59: 0 | BS59: 0 | BT59: 0 | BU59: 0 | BV59: 0 | BW59: 0 | BX59: 0 | BY59: 0 | BZ59: 0 | CA59: 0 | CB59: 0 | CC59: 0 | CD59: 0
X60: =SUM(X6:X59) -> 2 | Z60: =SUM(Z7:Z59) -> 107.8461538 | AA60: =SUM(AA6:AA59) -> 2 | AH60: =SUM(AH7:AH59) -> 35.3125 | AI60: =SUM(AI6:AI59) -> 2 | AJ60: =SUM(AJ7:AJ59) -> 63 | AK60: 57 | AL60: 29 | AM60: 32 | AN60: 24 | AO60: 20 | AP60: 17 | AQ60: 19 | AR60: 34 | AS60: 74 | AT60: 17 | AU60: 21 | AV60: 13 | AW60: 101 | AX60: 56 | AZ60: =SUM(AZ7:AZ59) -> 0.1479513894 | BA60: 0.0779474576 | BB60: 0.07739883849 | BC60: 0.06007348047 | BD60: 0.03960571738 | BE60: 0.04651965041 | BF60: 0.01830709711 | BG60: 0.03147238144 | BH60: 0.009950996398 | BI60: 0.01847289709 | BJ60: 0.1439429145 | BK60: 0.1142262077 | BL60: 0.01847289709 | BM60: 0.1439429145 | BN60: 0.1142262077 | BP60: =SUM(BP7:BP59) -> 0 | BQ60: 0 | BR60: 0 | BS60: 0 | BT60: 0 | BU60: 0 | BV60: 0 | BW60: 0 | BX60: 0 | BY60: 0 | BZ60: 0 | CA60: 0 | CB60: 0 | CC60: 0 | CD60: 0 | CF60: =SUM(AZ60:BN60) -> 1.062511047
AJ61: =SUM(AJ7:AJ59)*AJ5 -> 5.90625 | AK61: 3.5625 | AL61: 2.71875 | AM61: 3 | AN61: 1.5 | AO61: 1.25 | AP61: 0.53125 | AQ61: 1.1875 | AR61: 1.0625 | AS61: 6.9375 | AT61: 1.0625 | AU61: 0.65625 | AV61: 0.8125 | AW61: 6.3125 | AX61: 5.25 | AZ61: 0.01387044276 | BA61: 0.0048717161 | BB61: 0.007256141109 | BC61: 0.005631888794 | BD61: 0.002475357336 | BE61: 0.002907478151 | BF61: 0.0005720967846 | BG61: 0.00196702384 | BH61: 0.0003109686374 | BI61: 0.001731834102 | BJ61: 0.008996432155 | BK61: 0.00356956899 | BL61: 0.001154556068 | BM61: 0.008996432155 | BN61: 0.01070870697 | BP61: 0 | BQ61: 0 | BR61: 0 | BS61: 0 | BT61: 0 | BU61: 0 | BV61: 0 | BW61: 0 | BX61: 0 | BY61: 0 | BZ61: 0 | CA61: 0 | CB61: 0 | CC61: 0 | CD61: 0

Sheet Revisión (hidden)
B2: VERDE W Residencial | Y2: SEGURO
B3: REVISIÓN | Y3: EN REVISIÓN
B4: ='Matriz VERDE-GBCe'!U6 -> PE | D4: =VLOOKUP($B4,'Matriz VERDE-GBCe'!$U$6:$V$61,2,FALSE) -> Parcela y emplazamiento | E4: =VLOOKUP($D4,'Matriz VERDE-GBCe'!$V$6:$AH$61,2,FALSE) -> 0 | Y4: NO CUMPLE
D7: ='Matriz VERDE-GBCe'!V7 -> PE 01 | E7: =VLOOKUP($D7,'Matriz VERDE-GBCe'!$V$6:$AH$61,2,FALSE) -> Proximidad al transporte publico. | F7: =VLOOKUP($D7,'Matriz VERDE-GBCe'!$V$6:$Y$61,5,FALSE) ->  | Y7: Target | Z7: SEGURO | AB7: EN REVISIÓN | AD7: NO CUMPLE | AF7: NO APLICA
D9: D.J | E9: Fecha de entrega del archivo
D11: AA 01.1 | E11: Mantenimiento de corredores naturales | Y11: =IF(AF11=0,1,0) -> 1 | Z11: =+IF($H11="seguro",$Y11,0) -> 0 | AB11: =+IF($H11="EN REVISIÓN",$Y11,0) -> 0 | AD11: =+IF($H11="NO CUMPLE",$Y11,0) -> 0 | AF11: =+IF($H11="no aplica",2,0) -> 0
D14: AA 01.2 | E14: Medidas de protección de la biodiversidad | Y14: =IF(AF14=0,1,0) -> 1 | Z14: =+IF($H14="seguro",$Y14,0) -> 0 | AB14: =+IF($H14="EN REVISIÓN",$Y14,0) -> 0 | AD14: =+IF($H14="NO CUMPLE",$Y14,0) -> 0 | AF14: =+IF($H14="no aplica",2,0) -> 0
Y16: =SUM(Y11:Y14) -> 2 | Z16: =IF($F7="",0,SUM(Z11:Z14)*$F7/$Y16) ->  | AB16: =IF($F7="",0,SUM(AB11:AB14)*$F7/$Y16) ->  | AD16: =IF($F7="",0,SUM(AD11:AD14)*$F7/$Y16) -> 
D19: ='Matriz VERDE-GBCe'!V11 -> PE 05 | E19: =VLOOKUP($D19,'Matriz VERDE-GBCe'!$V$6:$AH$61,2,FALSE) -> Clasificación de RSU. | F19: 0.04159733777 | L19: NOTAS | Y19: Target | Z19: SEGURO | AB19: EN REVISIÓN | AD19: NO CUMPLE | AF19: NO APLICA
D21: D.J | E21: Fecha del archivo
D23: AA 02.1 | E23: 20% de superficie ajardinada con plantas autóctonas o adaptadas | Y23: =IF(AF23=0,0.4,0) -> 0.4 | Z23: =+IF($H23="seguro",$Y23,0) -> 0 | AB23: =+IF($H23="EN REVISIÓN",$Y23,0) -> 0 | AD23: =+IF($H23="NO CUMPLE",$Y23,0) -> 0 | AF23: =+IF($H23="no aplica",2,0) -> 0
D26: AA 02.2 | E26: Existe un estudio previo del terreno | Y26: =IF(AF26=0,0.3,0) -> 0.3 | Z26: =+IF($H26="seguro",$Y26,0) -> 0 | AB26: =+IF($H26="EN REVISIÓN",$Y26,0) -> 0 | AD26: =+IF($H26="NO CUMPLE",$Y26,0) -> 0 | AF26: =+IF($H26="no aplica",2,0) -> 0
D29: AA 02.3 | E29: Se supera en un 10% las superficies ajardinadas fijadas por normativa | Y29: =IF(AF29=0,0.3,0) -> 0.3 | Z29: =+IF($H29="seguro",$Y29,0) -> 0 | AB29: =+IF($H29="EN REVISIÓN",$Y29,0) -> 0 | AD29: =+IF($H29="NO CUMPLE",$Y29,0) -> 0 | AF29: =+IF($H29="no aplica",2,0) -> 0
Y31: =SUM(Y23:Y29) -> 1 | Z31: =IF($F19="",0,SUM(Z22:Z29)*$F19/$Y31) -> 0 | AB31: =IF($F19="",0,SUM(AB22:AB29)*$F19/$Y31) -> 0 | AD31: =IF($F19="",0,SUM(AD22:AD29)*$F19/$Y31) -> 0
D34: ='Matriz VERDE-GBCe'!V15 -> PE 09 | E34: =VLOOKUP($D34,'Matriz VERDE-GBCe'!$V$6:$AH$61,2,FALSE) -> Contaminación lumínica. | F34: =VLOOKUP($D34,'Matriz VERDE-GBCe'!$V$6:$AH$61,6,FALSE) -> 0.01854493581 | L34: NOTAS | Y34: Target | Z34: SEGURO | AB34: EN REVISIÓN | AD34: NO CUMPLE | AF34: NO APLICA
D36: D.J | E36: Fecha del archivo
D38: AA 03.1 | E38: Valor ecológico previo de la zona | Y38: =IF(AF38=0,0.4,0) -> 0.4 | Z38: =+IF($H38="seguro",$Y38,0) -> 0 | AB38: =+IF($H38="EN REVISIÓN",$Y38,0) -> 0 | AD38: =+IF($H38="NO CUMPLE",$Y38,0) -> 0 | AF38: =+IF($H38="no aplica",2,0) -> 0
D41: AA 03.2 | E41: Implantación sobre terrenos ya urbanizados | Y41: =IF(AF41=0,0.3,0) -> 0.3 | Z41: =+IF($H41="seguro",$Y41,0) -> 0 | AB41: =+IF($H41="EN REVISIÓN",$Y41,0) -> 0 | AD41: =+IF($H41="NO CUMPLE",$Y41,0) -> 0 | AF41: =+IF($H41="no aplica",2,0) -> 0
D44: AA 03.3 | E44: Estudio previo de la contaminación del suelo | Y44: =IF(AF44=0,0.3,0) -> 0.3 | Z44: =+IF($H44="seguro",$Y44,0) -> 0 | AB44: =+IF($H44="EN REVISIÓN",$Y44,0) -> 0 | AD44: =+IF($H44="NO CUMPLE",$Y44,0) -> 0 | AF44: =+IF($H44="no aplica",2,0) -> 0
Y46: =SUM(Y38:Y44) -> 1 | Z46: =IF($F34="",0,SUM(Z37:Z44)*$F34/$Y46) -> 0 | AB46: =IF($F34="",0,SUM(AB37:AB44)*$F34/$Y46) -> 0 | AD46: =IF($F34="",0,SUM(AD37:AD44)*$F34/$Y46) -> 0
D48: ='Matriz VERDE-GBCe'!V16 -> Energía y atmósfera
D51: ='Matriz VERDE-GBCe'!V17 -> EA 00 | E51: =VLOOKUP($D51,'Matriz VERDE-GBCe'!$V$6:$AH$61,2,FALSE) -> Demanda de calefacción y refrigeración | F51: =VLOOKUP($D51,'Matriz VERDE-GBCe'!$V$6:$AH$61,6,FALSE) -> 0 | L51: NOTAS | Y51: Target | Z51: SEGURO | AB51: EN REVISIÓN | AD51: NO CUMPLE | AF51: NO APLICA
D53: D.J | E53: Fecha del archivo
D55: AA 05.1 | E55: El Índice de calificación energética es D | Y55: =IF(AF55=0,0.1,0) -> 0.1 | Z55: =+IF($H55="seguro",$Y55,0) -> 0 | AB55: =+IF($H55="EN REVISIÓN",$Y55,0) -> 0 | AD55: =+IF($H55="NO CUMPLE",$Y55,0) -> 0 | AF55: =+IF($H55="no aplica",2,0) -> 0
D58: AA 05.2 | E58: El Índice de calificación energética es C | Y58: =IF(AF58=0,0.2,0) -> 0.2 | Z58: =+IF($H58="seguro",$Y58,0) -> 0 | AB58: =+IF($H58="EN REVISIÓN",$Y58,0) -> 0 | AD58: =+IF($H58="NO CUMPLE",$Y58,0) -> 0 | AF58: =+IF($H58="no aplica",2,0) -> 0
D61: AA 05.3 | E61: El Índice de calificación energética es B | Y61: 0.5 | Z61: =+IF($H61="seguro",$Y61,0) -> 0 | AB61: =+IF($H61="EN REVISIÓN",$Y61,0) -> 0 | AD61: =+IF($H61="NO CUMPLE",$Y61,0) -> 0 | AF61: =+IF($H61="no aplica",2,0) -> 0
D64: AA 05.4 | E64: El Índice de calificación energética es A | Y64: 0.7 | Z64: =+IF($H64="seguro",$Y64,0) -> 0 | AB64: =+IF($H64="EN REVISIÓN",$Y64,0) -> 0 | AD64: =+IF($H64="NO CUMPLE",$Y64,0) -> 0 | AF64: =+IF($H64="no aplica",2,0) -> 0
D67: AA 05.5 | E67: Se utilizan equipos de bombeo eficientes | Y67: =IF(AF67=0,0.2,0) -> 0.2 | Z67: =+IF($H67="seguro",$Y67,0) -> 0 | AB67: =+IF($H67="EN REVISIÓN",$Y67,0) -> 0 | AD67: =+IF($H67="NO CUMPLE",$Y67,0) -> 0 | AF67: =+IF($H67="no aplica",2,0) -> 0
D70: AA 05.6 | E70: Medidas de telecontrol para gestionart los sistemas de bombeo | Y70: =IF(AF70=0,0.1,0) -> 0.1 | Z70: =+IF($H70="seguro",$Y70,0) -> 0 | AB70: =+IF($H70="EN REVISIÓN",$Y70,0) -> 0 | AD70: =+IF($H70="NO CUMPLE",$Y70,0) -> 0 | AF70: =+IF($H70="no aplica",2,0) -> 0
Y72: =SUM(Y63:Y70) -> 1 | Z72: =IF($F51="",0,SUM(Z55:Z70)*$F51/$Y72) -> 0 | AB72: =IF($F51="",0,SUM(AB55:AB70)*$F51/$Y72) -> 0 | AD72: =IF($F51="",0,SUM(AD55:AD70)*$F51/$Y72) -> 0
D75: ='Matriz VERDE-GBCe'!V22 -> EA 04 | E75: =VLOOKUP($D75,'Matriz VERDE-GBCe'!$V$6:$AH$61,2,FALSE) -> Elección responsable de refrigerantes | F75: =VLOOKUP($D75,'Matriz VERDE-GBCe'!$V$6:$AH$61,6,FALSE) -> 0.03067047076 | L75: NOTAS | Y75: Target | Z75: SEGURO | AB75: EN REVISIÓN | AD75: NO CUMPLE | AF75: NO APLICA
D77: D.J | E77: Fecha del archivo
D79: AA 06.1 | E79: Estudio previo de implantación de renovables | Y79: 0.4 | Z79: =+IF($H79="seguro",$Y79,0) -> 0 | AB79: =+IF($H79="EN REVISIÓN",$Y79,0) -> 0 | AD79: =+IF($H79="NO CUMPLE",$Y79,0) -> 0 | AF79: =+IF($H79="no aplica",2,0) -> 0
D82: AA 06.2 | E82: Sistema de producción y distribución de energía cumunitario | Y82: 0.6 | Z82: =+IF($H82="seguro",$Y82,0) -> 0 | AB82: =+IF($H82="EN REVISIÓN",$Y82,0) -> 0 | AD82: =+IF($H82="NO CUMPLE",$Y82,0) -> 0 | AF82: =+IF($H82="no aplica",2,0) -> 0
Y84: =SUM(Y79:Y82) -> 1 | Z84: =IF($F75="",0,SUM(Z79:Z82)*$F75/$Y84) -> 0 | AB84: =IF($F75="",0,SUM(AB79:AB82)*$F75/$Y84) -> 0 | AD84: =IF($F75="",0,SUM(AD79:AD82)*$F75/$Y84) -> 0
D86: ='Matriz VERDE-GBCe'!V23 -> Recursos naturales
D89: ='Matriz VERDE-GBCe'!V24 -> RN 01 | E89: =VLOOKUP($D89,'Matriz VERDE-GBCe'!$V$6:$AH$61,2,FALSE) -> Consumo de agua en aparatos sanitarios | F89: =VLOOKUP($D89,'Matriz VERDE-GBCe'!$V$6:$AH$61,6,FALSE) -> 0.02211126961 | L89: NOTAS | Y89: Target | Z89: SEGURO | AB89: EN REVISIÓN | AD89: NO CUMPLE | AF89: NO APLICA
D91: D.J | E91: Fecha del archivo
D93: AA 07.1 | E93: Las necesidades de riego se reducen en un 20% | Y93: =IF(AF93=0,0.15,0) -> 0.15 | Z93: =+IF($H93="seguro",$Y93,0) -> 0 | AB93: =+IF($H93="EN REVISIÓN",$Y93,0) -> 0 | AD93: =+IF($H93="NO CUMPLE",$Y93,0) -> 0 | AF93: =+IF($H93="no aplica",2,0) -> 0
D96: AA 07.2 | E96: Las necesidades de riego se reducen en un 50% | Y96: =IF(AF96=0,0.25,0) -> 0.25 | Z96: =+IF($H96="seguro",$Y96,0) -> 0 | AB96: =+IF($H96="EN REVISIÓN",$Y96,0) -> 0 | AD96: =+IF($H96="NO CUMPLE",$Y96,0) -> 0 | AF96: =+IF($H96="no aplica",2,0) -> 0
D99: AA 07.3 | E99: Sistema de monitorización para gestionar el consumo de agua | Y99: =IF(AF99=0,0.3,0) -> 0.3 | Z99: =+IF($H99="seguro",$Y99,0) -> 0 | AB99: =+IF($H99="EN REVISIÓN",$Y99,0) -> 0 | AD99: =+IF($H99="NO CUMPLE",$Y99,0) -> 0 | AF99: =+IF($H99="no aplica",2,0) -> 0
D102: AA 07.4 | E102: Se reaprovechas las aguas pluviales y/o grises | Y102: =IF(AF102=0,0.3,0) -> 0.3 | Z102: =+IF($H102="seguro",$Y102,0) -> 0 | AB102: =+IF($H102="EN REVISIÓN",$Y102,0) -> 0 | AD102: =+IF($H102="NO CUMPLE",$Y102,0) -> 0 | AF102: =+IF($H102="no aplica",2,0) -> 0
Y104: =SUM(Y93:Y102) -> 1 | Z104: =IF($F89="",0,SUM(Z93:Z102)*$F89/$Y104) -> 0 | AB104: =IF($F89="",0,SUM(AB93:AB102)*$F89/$Y104) -> 0 | AD104: =IF($F89="",0,SUM(AD93:AD102)*$F89/$Y104) -> 0
D107: ='Matriz VERDE-GBCe'!V35 -> RN 12 | E107: =VLOOKUP($D107,'Matriz VERDE-GBCe'!$V$6:$AH$61,2,FALSE) -> Ecoetiquetado de producto. | F107: =VLOOKUP($D107,'Matriz VERDE-GBCe'!$V$6:$AH$61,6,FALSE) -> 0.02496433666 | L107: NOTAS | Y107: Target | Z107: SEGURO | AB107: EN REVISIÓN | AD107: NO CUMPLE | AF107: NO APLICA
D109: D.J | E109: Fecha del archivo
D111: AA 06.1 | E111: Estudio previo de implantación de renovables | Y111: 0.4 | Z111: =+IF($H111="seguro",$Y111,0) -> 0 | AB111: =+IF($H111="EN REVISIÓN",$Y111,0) -> 0 | AD111: =+IF($H111="NO CUMPLE",$Y111,0) -> 0 | AF111: =+IF($H111="no aplica",2,0) -> 0
D114: AA 06.2 | E114: Sistema de producción y distribución de energía cumunitario | Y114: 0.6 | Z114: =+IF($H114="seguro",$Y114,0) -> 0 | AB114: =+IF($H114="EN REVISIÓN",$Y114,0) -> 0 | AD114: =+IF($H114="NO CUMPLE",$Y114,0) -> 0 | AF114: =+IF($H114="no aplica",2,0) -> 0
Y116: =SUM(Y111:Y114) -> 1 | Z116: =IF($F107="",0,SUM(Z111:Z114)*$F107/$Y116) -> 0 | AB116: =IF($F107="",0,SUM(AB111:AB114)*$F107/$Y116) -> 0 | AD116: =IF($F107="",0,SUM(AD111:AD114)*$F107/$Y116) -> 0
D118: ='Matriz VERDE-GBCe'!V36 -> Ambiente Interior.
D122: ='Matriz VERDE-GBCe'!V37 -> AI 01 | E122: =VLOOKUP($D122,'Matriz VERDE-GBCe'!$V$6:$AH$61,2,FALSE) -> Limitación de las emisiones de COVs | F122: =VLOOKUP($D122,'Matriz VERDE-GBCe'!$V$6:$AH$61,6,FALSE) -> 0.01854493581 | L122: NOTAS | Y122: Target | Z122: SEGURO | AB122: EN REVISIÓN | AD122: NO CUMPLE | AF122: NO APLICA
D124: D.J | E124: Fecha del archivo
D126: AA 09.1 | E126: Se ha reutilizado, al menos, un 5% del material | Y126: =IF(AF126=0,0.25,0) -> 0.25 | Z126: =+IF($H126="seguro",$Y126,0) -> 0 | AB126: =+IF($H126="EN REVISIÓN",$Y126,0) -> 0 | AD126: =+IF($H126="NO CUMPLE",$Y126,0) -> 0 | AF126: =+IF($H126="no aplica",2,0) -> 0
D129: AA 09.2 | E129: Los materiles reciclados alcanzan, al menos, un 40% del total | Y129: =IF(AF129=0,0.25,0) -> 0.25 | Z129: =+IF($H129="seguro",$Y129,0) -> 0 | AB129: =+IF($H129="EN REVISIÓN",$Y129,0) -> 0 | AD129: =+IF($H129="NO CUMPLE",$Y129,0) -> 0 | AF129: =+IF($H129="no aplica",2,0) -> 0
D132: AA 09.3 | E132: Se alcanza, al menos, un 15% de materiales de origen sostenible | Y132: =IF(AF132=0,0.25,0) -> 0.25 | Z132: =+IF($H132="seguro",$Y132,0) -> 0 | AB132: =+IF($H132="EN REVISIÓN",$Y132,0) -> 0 | AD132: =+IF($H132="NO CUMPLE",$Y132,0) -> 0 | AF132: =+IF($H132="no aplica",2,0) -> 0
D135: AA 09.4 | E135: Se disponene de, al menos, 5 materiales con ecoetiqueta tipo I o III | Y135: =IF(AF135=0,0.25,0) -> 0.25 | Z135: =+IF($H135="seguro",$Y135,0) -> 0 | AB135: =+IF($H135="EN REVISIÓN",$Y135,0) -> 0 | AD135: =+IF($H135="NO CUMPLE",$Y135,0) -> 0 | AF135: =+IF($H135="no aplica",2,0) -> 0
Y137: =SUM(Y126:Y135) -> 1 | Z137: =IF($F122="",0,SUM(Z126:Z135)*$F122/$Y137) -> 0 | AB137: =IF($F122="",0,SUM(AB126:AB135)*$F122/$Y137) -> 0 | AD137: =IF($F122="",0,SUM(AD126:AD135)*$F122/$Y137) -> 0
D140: ='Matriz VERDE-GBCe'!#REF! ->  | E140: =VLOOKUP($D140,'Matriz VERDE-GBCe'!$V$6:$AH$61,2,FALSE) ->  | F140: 0.08874098724 | L140: NOTAS | Y140: Target | Z140: SEGURO | AB140: EN REVISIÓN | AD140: NO CUMPLE | AF140: NO APLICA
D142: D.J | E142: Fecha del archivo
D144: AA 10.1 | E144: Se ha desarrollado un ACV de los materiales empleados | Y144: =IF(AF144=0,1,0) -> 1 | Z144: =+IF($H144="seguro",$Y144,0) -> 0 | AB144: =+IF($H144="EN REVISIÓN",$Y144,0) -> 0 | AD144: =+IF($H144="NO CUMPLE",$Y144,0) -> 0 | AF144: =+IF($H144="no aplica",2,0) -> 0
Y146: =Y144 -> 1 | Z146: =IF($F140="",0,Z144*$F140) -> 0 | AB146: =IF($F140="",0,AB144*$F140) -> 0 | AD146: =IF($F140="",0,AD144*$F140) -> 0
D148: ='Matriz VERDE-GBCe'!V52 -> Calidad de la edificación
D151: ='Matriz VERDE-GBCe'!V53 -> CE 01 | E151: =VLOOKUP($D151,'Matriz VERDE-GBCe'!$V$6:$AH$61,2,FALSE) -> Diseño pasivo | F151: =VLOOKUP($D151,'Matriz VERDE-GBCe'!$V$6:$AH$61,6,FALSE) -> 0.02781740371 | L151: NOTAS | Y151: Target | Z151: SEGURO | AB151: EN REVISIÓN | AD151: NO CUMPLE | AF151: NO APLICA
D153: D.J | E153: Fecha del archivo
D155: AA 11.1 | E155: Instalación de contenedores por fracciones para residuos NO peligrosos | Y155: 0.25 | Z155: =+IF($H155="seguro",$Y155,0) -> 0 | AB155: =+IF($H155="EN REVISIÓN",$Y155,0) -> 0 | AD155: =+IF($H155="NO CUMPLE",$Y155,0) -> 0 | AF155: =+IF($H155="no aplica",2,0) -> 0
D158: AA 11.2 | E158: Instalacción de contenedores para residuos peligrosos | Y158: 0.25 | Z158: =+IF($H158="seguro",$Y158,0) -> 0 | AB158: =+IF($H158="EN REVISIÓN",$Y158,0) -> 0 | AD158: =+IF($H158="NO CUMPLE",$Y158,0) -> 0 | AF158: =+IF($H158="no aplica",2,0) -> 0
D161: AA 11.3 | E161: Compromiso de retirada selectiva de residuos | Y161: 0.25 | Z161: =+IF($H161="seguro",$Y161,0) -> 0 | AB161: =+IF($H161="EN REVISIÓN",$Y161,0) -> 0 | AD161: =+IF($H161="NO CUMPLE",$Y161,0) -> 0 | AF161: =+IF($H161="no aplica",2,0) -> 0
D164: AA 11.4 | E164: Mejora sustancial en la gestión de residuos | Y164: 0.25 | Z164: =+IF($H164="seguro",$Y164,0) -> 0 | AB164: =+IF($H164="EN REVISIÓN",$Y164,0) -> 0 | AD164: =+IF($H164="NO CUMPLE",$Y164,0) -> 0 | AF164: =+IF($H164="no aplica",2,0) -> 0
Y166: =SUM(Y155:Y164) -> 1 | Z166: =IF($F151="",0,SUM(Z154:Z164)*$F151/$Y166) -> 0 | AB166: =IF($F151="",0,SUM(AB154:AB164)*$F151/$Y166) -> 0 | AD166: =IF($F151="",0,SUM(AD154:AD164)*$F151/$Y166) -> 0
D169: ='Matriz VERDE-GBCe'!V54 -> CE 02 | E169: =VLOOKUP($D169,'Matriz VERDE-GBCe'!$V$6:$AH$61,2,FALSE) -> Control parcial de los sistemas de clima | F169: =VLOOKUP($D169,'Matriz VERDE-GBCe'!$V$6:$AH$61,6,FALSE) -> 0 | L169: NOTAS | Y169: Target | Z169: SEGURO | AB169: EN REVISIÓN | AD169: NO CUMPLE | AF169: NO APLICA
D171: D.J | E171: Fecha del archivo
D173: AA 12.1 | E173: Existe un plan de prevención de las actividades de la construcción | Y173: =IF(AF173=0,1,0) -> 1 | Z173: =+IF($H173="seguro",$Y173,0) -> 0 | AB173: =+IF($H173="EN REVISIÓN",$Y173,0) -> 0 | AD173: =+IF($H173="NO CUMPLE",$Y173,0) -> 0 | AF173: =+IF($H173="no aplica",2,0) -> 0
Y175: =Y173 -> 1 | Z175: =IF($F169="",0,Z173*$F169) -> 0 | AB175: =IF($F169="",0,AB173*$F169) -> 0 | AD175: =IF($F169="",0,AD173*$F169) -> 0
D178: ='Matriz VERDE-GBCe'!#REF! ->  | E178: =VLOOKUP($D178,'Matriz VERDE-GBCe'!$V$6:$AH$61,2,FALSE) ->  | F178: =VLOOKUP($D178,'Matriz VERDE-GBCe'!$V$6:$AH$61,6,FALSE) ->  | L178: NOTAS | Y178: Target | Z178: SEGURO | AB178: EN REVISIÓN | AD178: NO CUMPLE | AF178: NO APLICA
D180: D.J | E180: Fecha del archivo
D182: AA 13.1 | E182: Red separativa de pluviales | Y182: 0.6 | Z182: =+IF($H182="seguro",$Y182,0) -> 0 | AB182: =+IF($H182="EN REVISIÓN",$Y182,0) -> 0 | AD182: =+IF($H182="NO CUMPLE",$Y182,0) -> 0 | AF182: =+IF($H182="no aplica",2,0) -> 0
D185: AA 13.2 | E185: Separadores de contaminantes (hidrocarburos y otros) | Y185: 0.2 | Z185: =+IF($H185="seguro",$Y185,0) -> 0 | AB185: =+IF($H185="EN REVISIÓN",$Y185,0) -> 0 | AD185: =+IF($H185="NO CUMPLE",$Y185,0) -> 0 | AF185: =+IF($H185="no aplica",2,0) -> 0
D188: AA 13.3 | E188: Gestión de escorrentías | Y188: 0.2 | Z188: =+IF($H188="seguro",$Y188,0) -> 0 | AB188: =+IF($H188="EN REVISIÓN",$Y188,0) -> 0 | AD188: =+IF($H188="NO CUMPLE",$Y188,0) -> 0 | AF188: =+IF($H188="no aplica",2,0) -> 0
Y190: =SUM(Y182:Y189) -> 1 | Z190: =IF($F178="",0,SUM(Z181:Z188)*$F178/$Y190) ->  | AB190: =IF($F178="",0,SUM(AB181:AB188)*$F178/$Y190) ->  | AD190: =IF($F178="",0,SUM(AD181:AD188)*$F178/$Y190) -> 
D193: ='Matriz VERDE-GBCe'!#REF! ->  | E193: =VLOOKUP($D193,'Matriz VERDE-GBCe'!$V$6:$AH$61,2,FALSE) ->  | F193: =VLOOKUP($D193,'Matriz VERDE-GBCe'!$V$6:$AH$61,6,FALSE) ->  | L193: NOTAS | Y193: Target | Z193: SEGURO | AB193: EN REVISIÓN | AD193: NO CUMPLE | AF193: NO APLICA
D195: D.J | E195: Fecha del archivo
D197: AA 14.1 | E197: El FHS reduce el exigido por normativa en un 50% | Y197: =IF(AF197=0,1,0) -> 1 | Z197: =+IF($H197="seguro",$Y197,0) -> 0 | AB197: =+IF($H197="EN REVISIÓN",$Y197,0) -> 0 | AD197: =+IF($H197="NO CUMPLE",$Y197,0) -> 0 | AF197: =+IF($H197="no aplica",2,0) -> 0
Y199: =Y197 -> 1 | Z199: =IF($F193="",0,Z197*$F193) ->  | AB199: =IF($F193="",0,AB197*$F193) ->  | AD199: =IF($F193="",0,AD197*$F193) -> 
D202: ='Matriz VERDE-GBCe'!#REF! ->  | E202: =VLOOKUP($D202,'Matriz VERDE-GBCe'!$V$6:$AH$61,2,FALSE) ->  | F202: =VLOOKUP($D202,'Matriz VERDE-GBCe'!$V$6:$AH$61,6,FALSE) ->  | L202: NOTAS | Y202: Target | Z202: SEGURO | AB202: EN REVISIÓN | AD202: NO CUMPLE | AF202: NO APLICA
D203: ='Matriz VERDE-GBCe'!#REF! -> 
D204: D.J | E204: Fecha del archivo
D206: AA 15.1 | E206: Las superficies tratadas para evitar la isla de calor supera el 25% | Y206: =IF(AF206=0,1,0) -> 1 | Z206: =+IF($H206="seguro",$Y206,0) -> 0 | AB206: =+IF($H206="EN REVISIÓN",$Y206,0) -> 0 | AD206: =+IF($H206="NO CUMPLE",$Y206,0) -> 0 | AF206: =+IF($H206="no aplica",2,0) -> 0
Y208: =Y206 -> 1 | Z208: =IF($F202="",0,Z206*$F202) ->  | AB208: =IF($F202="",0,AB206*$F202) ->  | AD208: =IF($F202="",0,AD206*$F202) -> 
D211: ='Matriz VERDE-GBCe'!#REF! ->  | E211: =VLOOKUP($D211,'Matriz VERDE-GBCe'!$V$6:$AH$61,2,FALSE) ->  | F211: =VLOOKUP($D211,'Matriz VERDE-GBCe'!$V$6:$AH$61,6,FALSE) ->  | L211: NOTAS | Y211: Target | Z211: SEGURO | AB211: EN REVISIÓN | AD211: NO CUMPLE | AF211: NO APLICA
D213: D.J | E213: Fecha del archivo
X214: =D211 -> 
D215: AA 16.1 | E215: Se emplea asfalto fonoabsorvente (solo cerca de poblaciones) | Y215: =IF(AF215=0,1,0) -> 1 | Z215: =+IF($H215="seguro",$Y215,0) -> 0 | AB215: =+IF($H215="EN REVISIÓN",$Y215,0) -> 0 | AD215: =+IF($H215="NO CUMPLE",$Y215,0) -> 0 | AF215: =+IF($H215="no aplica",2,0) -> 0
Y217: =Y215 -> 1 | Z217: =IF($F211="",0,Z215*$F211) ->  | AB217: =IF($F211="",0,AB215*$F211) ->  | AD217: =IF($F211="",0,AD215*$F211) -> 
B220: ='Matriz VERDE-GBCe'!U42 -> AS | D220: ='Matriz VERDE-GBCe'!V42 -> Aspectos sociales
D223: ='Matriz VERDE-GBCe'!V43 -> AS 01 | E223: =VLOOKUP($D223,'Matriz VERDE-GBCe'!$V$6:$AH$61,2,FALSE) -> Espacios para todas las personas | F223: =VLOOKUP($D223,'Matriz VERDE-GBCe'!$V$6:$AH$61,6,FALSE) -> 0.01783166904 | L223: NOTAS | Y223: Target | Z223: SEGURO | AB223: EN REVISIÓN | AD223: NO CUMPLE | AF223: NO APLICA
D225: D.J | E225: Fecha del archivo
D227: AS 01.1 | E227: Existe una estación que mide la calidad del aire | Y227: =IF(AF227=0,1,0) -> 1 | Z227: =+IF($H227="seguro",$Y227,0) -> 0 | AB227: =+IF($H227="EN REVISIÓN",$Y227,0) -> 0 | AD227: =+IF($H227="NO CUMPLE",$Y227,0) -> 0 | AF227: =+IF($H227="no aplica",2,0) -> 0
D230: AS 01.2 | E230: Los datos de dicha estación se comparten con los servicios municipales | Y230: =IF(AF230=0,1,0) -> 1 | Z230: =+IF($H230="seguro",$Y230,0) -> 0 | AB230: =+IF($H230="EN REVISIÓN",$Y230,0) -> 0 | AD230: =+IF($H230="NO CUMPLE",$Y230,0) -> 0 | AF230: =+IF($H230="no aplica",2,0) -> 0
D233: AS 01.3 | E233: Los datos de la estación son públicos | Y233: =IF(AF233=0,1,0) -> 1 | Z233: =+IF($H233="seguro",$Y233,0) -> 0 | AB233: =+IF($H233="EN REVISIÓN",$Y233,0) -> 0 | AD233: =+IF($H233="NO CUMPLE",$Y233,0) -> 0 | AF233: =+IF($H233="no aplica",2,0) -> 0
Y235: =SUM(Y226:Y233) -> 3 | Z235: =IF($F223="",0,SUM(Z227:Z233)*$F223/$Y235) -> 0 | AB235: =IF($F223="",0,SUM(AB227:AB233)*$F223/$Y235) -> 0 | AD235: =IF($F223="",0,SUM(AD227:AD233)*$F223/$Y235) -> 0
D238: ='Matriz VERDE-GBCe'!V44 -> AS 02 | E238: =VLOOKUP($D238,'Matriz VERDE-GBCe'!$V$6:$AH$61,2,FALSE) -> Espacios para la comunicación | F238: =VLOOKUP($D238,'Matriz VERDE-GBCe'!$V$6:$AH$61,6,FALSE) -> 0.01783166904 | L238: NOTAS | Y238: Target | Z238: SEGURO | AB238: EN REVISIÓN | AD238: NO CUMPLE | AF238: NO APLICA
D240: D.J | E240: Fecha del archivo
D242: AS 02.1 | E242: El 70% tienen acceso a equipamientos a menos de 1,000 m | Y242: =IF(AF242=0,0.4,0) -> 0.4 | Z242: =+IF($H242="seguro",$Y242,0) -> 0 | AB242: =+IF($H242="EN REVISIÓN",$Y242,0) -> 0 | AD242: =+IF($H242="NO CUMPLE",$Y242,0) -> 0 | AF242: =+IF($H242="no aplica",2,0) -> 0
D245: AS 02.2 | E245: Las zonas verdes están dotadas de, al menos, 3 equipaciones | Y245: =IF(AF245=0,0.3,0) -> 0.3 | Z245: =+IF($H245="seguro",$Y245,0) -> 0 | AB245: =+IF($H245="EN REVISIÓN",$Y245,0) -> 0 | AD245: =+IF($H245="NO CUMPLE",$Y245,0) -> 0 | AF245: =+IF($H245="no aplica",2,0) -> 0
D248: AS 02.3 | E248: Existen, al menos, dos usos complementarios al de nave logística. | Y248: =IF(AF248=0,0.3,0) -> 0.3 | Z248: =+IF($H248="seguro",$Y248,0) -> 0 | AB248: =+IF($H248="EN REVISIÓN",$Y248,0) -> 0 | AD248: =+IF($H248="NO CUMPLE",$Y248,0) -> 0 | AF248: =+IF($H248="no aplica",2,0) -> 0
Y250: =SUM(Y242:Y248) -> 1 | Z250: =IF($F238="",0,SUM(Z242:Z248)*$F238/$Y250) -> 0 | AB250: =IF($F238="",0,SUM(AB242:AB248)*$F238/$Y250) -> 0 | AD250: =IF($F238="",0,SUM(AD242:AD248)*$F238/$Y250) -> 0
D253: ='Matriz VERDE-GBCe'!#REF! ->  | E253: =VLOOKUP($D253,'Matriz VERDE-GBCe'!$V$6:$AH$61,2,FALSE) ->  | F253: =VLOOKUP($D253,'Matriz VERDE-GBCe'!$V$6:$AH$61,6,FALSE) ->  | L253: NOTAS | Y253: Target | Z253: SEGURO | AB253: EN REVISIÓN | AD253: NO CUMPLE | AF253: NO APLICA
D255: D.J | E255: Fecha del archivo
D257: AS 02.1 | E257: El 70% tienen acceso a equipamientos a menos de 1,000 m | Y257: =IF(AF257=0,0.4,0) -> 0.4 | Z257: =+IF($H257="seguro",$Y257,0) -> 0 | AB257: =+IF($H257="EN REVISIÓN",$Y257,0) -> 0 | AD257: =+IF($H257="NO CUMPLE",$Y257,0) -> 0 | AF257: =+IF($H257="no aplica",2,0) -> 0
D260: AS 02.2 | E260: Las zonas verdes están dotadas de, al menos, 3 equipaciones | Y260: =IF(AF260=0,0.3,0) -> 0.3 | Z260: =+IF($H260="seguro",$Y260,0) -> 0 | AB260: =+IF($H260="EN REVISIÓN",$Y260,0) -> 0 | AD260: =+IF($H260="NO CUMPLE",$Y260,0) -> 0 | AF260: =+IF($H260="no aplica",2,0) -> 0
D263: AS 02.3 | E263: Existen, al menos, dos usos complementarios al de nave logística. | Y263: =IF(AF263=0,0.3,0) -> 0.3 | Z263: =+IF($H263="seguro",$Y263,0) -> 0 | AB263: =+IF($H263="EN REVISIÓN",$Y263,0) -> 0 | AD263: =+IF($H263="NO CUMPLE",$Y263,0) -> 0 | AF263: =+IF($H263="no aplica",2,0) -> 0
Y265: =SUM(Y257:Y263) -> 1 | Z265: =IF($F253="",0,SUM(Z257:Z263)*$F253/$Y265) ->  | AB265: =IF($F253="",0,SUM(AB257:AB263)*$F253/$Y265) ->  | AD265: =IF($F253="",0,SUM(AD257:AD263)*$F253/$Y265) -> 
D268: ='Matriz VERDE-GBCe'!V47 -> AS 05 | E268: =VLOOKUP($D268,'Matriz VERDE-GBCe'!$V$6:$AH$61,2,FALSE) -> Contacto visual con el exterior | F268: =VLOOKUP($D268,'Matriz VERDE-GBCe'!$V$6:$AH$61,6,FALSE) -> 0.01854493581 | L268: NOTAS | Y268: Target | Z268: SEGURO | AB268: EN REVISIÓN | AD268: NO CUMPLE | AF268: NO APLICA
D270: D.J | E270: Fecha del archivo
D272: AS 03.1 | E272: Existe un núcleo que cumple con el criterio a menos de 15,000 m | Y272: 0.25 | Z272: =+IF($H272="seguro",$Y272,0) -> 0 | AB272: =+IF($H272="EN REVISIÓN",$Y272,0) -> 0 | AD272: =+IF($H272="NO CUMPLE",$Y272,0) -> 0 | AF272: =+IF($H272="no aplica",2,0) -> 0
D275: AS 03.2 | E275: Existe un núcleo que cumple con el criterio a menos de 10,000 m | Y275: 0.25 | Z275: =+IF($H275="seguro",$Y275,0) -> 0 | AB275: =+IF($H275="EN REVISIÓN",$Y275,0) -> 0 | AD275: =+IF($H275="NO CUMPLE",$Y275,0) -> 0 | AF275: =+IF($H275="no aplica",2,0) -> 0
D278: AS 03.3 | E278: Existe un núcleo que cumple con el criterio a menos de 5,000 m | Y278: 0.25 | Z278: =+IF($H278="seguro",$Y278,0) -> 0 | AB278: =+IF($H278="EN REVISIÓN",$Y278,0) -> 0 | AD278: =+IF($H278="NO CUMPLE",$Y278,0) -> 0 | AF278: =+IF($H278="no aplica",2,0) -> 0
D281: AS 03.4 | E281: Existe un núcleo que cumple con el criterio a menos de 2,000 m | Y281: 0.25 | Z281: =+IF($H281="seguro",$Y281,0) -> 0 | AB281: =+IF($H281="EN REVISIÓN",$Y281,0) -> 0 | AD281: =+IF($H281="NO CUMPLE",$Y281,0) -> 0 | AF281: =+IF($H281="no aplica",2,0) -> 0
Y283: =SUM(Y271:Y281) -> 1 | Z283: =IF($F268="",0,SUM(Z271:Z281)*$F268/$Y283) -> 0 | AB283: =IF($F268="",0,SUM(AB271:AB281)*$F268/$Y283) -> 0 | AD283: =IF($F268="",0,SUM(AD271:AD281)*$F268/$Y283) -> 0
D286: ='Matriz VERDE-GBCe'!V47 -> AS 05 | E286: =VLOOKUP($D286,'Matriz VERDE-GBCe'!$V$6:$AH$61,2,FALSE) -> Contacto visual con el exterior | F286: =VLOOKUP($D286,'Matriz VERDE-GBCe'!$V$6:$AH$61,6,FALSE) -> 0.01854493581 | L286: NOTAS | Y286: Target | Z286: SEGURO | AB286: EN REVISIÓN | AD286: NO CUMPLE | AF286: NO APLICA
D288: D.J | E288: Fecha del archivo
D290: AS 04.1 | E290: Existe un Plan de Movilidad Sostenible | Y290: 1 | Z290: =+IF($H290="seguro",$Y290,0) -> 0 | AB290: =+IF($H290="EN REVISIÓN",$Y290,0) -> 0 | AD290: =+IF($H290="NO CUMPLE",$Y290,0) -> 0 | AF290: =+IF($H290="no aplica",2,0) -> 0
Y292: =SUM(Y289:Y290) -> 1 | Z292: =IF($F286="",0,SUM(Z289:Z290)*$F286/$Y292) -> 0 | AB292: =IF($F286="",0,SUM(AB289:AB290)*$F286/$Y292) -> 0 | AD292: =IF($F286="",0,SUM(AD289:AD290)*$F286/$Y292) -> 0
D295: ='Matriz VERDE-GBCe'!#REF! ->  | E295: =VLOOKUP($D295,'Matriz VERDE-GBCe'!$V$6:$AH$61,2,FALSE) ->  | F295: =VLOOKUP($D295,'Matriz VERDE-GBCe'!$V$6:$AH$61,6,FALSE) ->  | L295: NOTAS | Y295: Target | Z295: SEGURO | AB295: EN REVISIÓN | AD295: NO CUMPLE | AF295: NO APLICA
D297: D.J | E297: Fecha del archivo
D299: AS 05.1 | E299: El diseño de los viales garantizan la accesibilidad | Y299: =IF(AF299=0,0.7,0) -> 0.7 | Z299: =+IF($H299="seguro",$Y299,0) -> 0 | AB299: =+IF($H299="EN REVISIÓN",$Y299,0) -> 0 | AD299: =+IF($H299="NO CUMPLE",$Y299,0) -> 0 | AF299: =+IF($H299="no aplica",2,0) -> 0
D302: AS 05.2 | E302: La señalización del parque es adecuada | Y302: =IF(AF302=0,0.3,0) -> 0.3 | Z302: =+IF($H302="seguro",$Y302,0) -> 0 | AB302: =+IF($H302="EN REVISIÓN",$Y302,0) -> 0 | AD302: =+IF($H302="NO CUMPLE",$Y302,0) -> 0 | AF302: =+IF($H302="no aplica",2,0) -> 0
Y304: =SUM(Y299:Y302) -> 1 | Z304: =IF($F295="",0,SUM(Z299:Z302)*$F295/$Y304) ->  | AB304: =IF($F295="",0,SUM(AB299:AB302)*$F295/$Y304) ->  | AD304: =IF($F295="",0,SUM(AD299:AD302)*$F295/$Y304) -> 
D307: ='Matriz VERDE-GBCe'!#REF! ->  | E307: =VLOOKUP($D307,'Matriz VERDE-GBCe'!$V$6:$AH$61,2,FALSE) ->  | F307: =VLOOKUP($D307,'Matriz VERDE-GBCe'!$V$6:$AH$61,6,FALSE) ->  | L307: NOTAS | Y307: Target | Z307: SEGURO | AB307: EN REVISIÓN | AD307: NO CUMPLE | AF307: NO APLICA
D309: D.J | E309: Fecha del archivo
D311: AS 06.1 | E311: Existe aparcamiento de bicicletas | Y311: 0.5 | Z311: =+IF($H311="seguro",$Y311,0) -> 0 | AB311: =+IF($H311="EN REVISIÓN",$Y311,0) -> 0 | AD311: =+IF($H311="NO CUMPLE",$Y311,0) -> 0 | AF311: =+IF($H311="no aplica",2,0) -> 0
D314: AS 06.2 | E314: Se ha diseñado una red viaria para bicicletas | Y314: 0.5 | Z314: =+IF($H314="seguro",$Y314,0) -> 0 | AB314: =+IF($H314="EN REVISIÓN",$Y314,0) -> 0 | AD314: =+IF($H314="NO CUMPLE",$Y314,0) -> 0 | AF314: =+IF($H314="no aplica",2,0) -> 0
Y316: =SUM(Y311:Y314) -> 1 | Z316: =IF($F307="",0,SUM(Z311:Z314)*$F307/$Y316) ->  | AB316: =IF($F307="",0,SUM(AB311:AB314)*$F307/$Y316) ->  | AD316: =IF($F307="",0,SUM(AD311:AD314)*$F307/$Y316) -> 
D319: ='Matriz VERDE-GBCe'!#REF! ->  | E319: =VLOOKUP($D319,'Matriz VERDE-GBCe'!$V$6:$AH$61,2,FALSE) ->  | F319: =VLOOKUP($D319,'Matriz VERDE-GBCe'!$V$6:$AH$61,6,FALSE) ->  | L319: NOTAS | Y319: Target | Z319: SEGURO | AB319: EN REVISIÓN | AD319: NO CUMPLE | AF319: NO APLICA
D321: D.J | E321: Fecha del archivo
D323: AS 07.1 | E323: El 70% de las parcelas tienen un nodo de trasnporte a menos de 1.000 m | Y323: =IF(AF323=0,0.7,0) -> 0.7 | Z323: =+IF($H323="seguro",$Y323,0) -> 0 | AB323: =+IF($H323="EN REVISIÓN",$Y323,0) -> 0 | AD323: =+IF($H323="NO CUMPLE",$Y323,0) -> 0 | AF323: =+IF($H323="no aplica",2,0) -> 0
D326: AS 07.2 | E326: El parque tiene conexión con al menos, dos lineas de trasnporte | Y326: =IF(AF326=0,0.3,0) -> 0.3 | Z326: =+IF($H326="seguro",$Y326,0) -> 0 | AB326: =+IF($H326="EN REVISIÓN",$Y326,0) -> 0 | AD326: =+IF($H326="NO CUMPLE",$Y326,0) -> 0 | AF326: =+IF($H326="no aplica",2,0) -> 0
Y328: =SUM(Y323:Y326) -> 1 | Z328: =IF($F319="",0,SUM(Z323:Z326)*$F319/$Y328) ->  | AB328: =IF($F319="",0,SUM(AB323:AB326)*$F319/$Y328) ->  | AD328: =IF($F319="",0,SUM(AD323:AD326)*$F319/$Y328) -> 
D331: ='Matriz VERDE-GBCe'!#REF! ->  | E331: =VLOOKUP($D331,'Matriz VERDE-GBCe'!$V$6:$AH$61,2,FALSE) ->  | F331: =VLOOKUP($D331,'Matriz VERDE-GBCe'!$V$6:$AH$61,6,FALSE) ->  | L331: NOTAS | Y331: Target | Z331: SEGURO | AB331: EN REVISIÓN | AD331: NO CUMPLE | AF331: NO APLICA
D333: D.J | E333: Fecha del archivo
D335: AS 08.1 | E335: Las plazas de aparcamiento no superan las exigencias normativas | Y335: =IF(AF335=0,0.7,0) -> 0.7 | Z335: =+IF($H335="seguro",$Y335,0) -> 0 | AB335: =+IF($H335="EN REVISIÓN",$Y335,0) -> 0 | AD335: =+IF($H335="NO CUMPLE",$Y335,0) -> 0 | AF335: =+IF($H335="no aplica",2,0) -> 0
D338: AS 08.2 | E338: Se cumple con la reserva de plazas para vehículos eléctricos | Y338: =IF(AF338=0,0.3,0) -> 0.3 | Z338: =+IF($H338="seguro",$Y338,0) -> 0 | AB338: =+IF($H338="EN REVISIÓN",$Y338,0) -> 0 | AD338: =+IF($H338="NO CUMPLE",$Y338,0) -> 0 | AF338: =+IF($H338="no aplica",2,0) -> 0
Y340: =SUM(Y335:Y338) -> 1 | Z340: =IF($F331="",0,SUM(Z335:Z338)*$F331/$Y340) ->  | AB340: =IF($F331="",0,SUM(AB335:AB338)*$F331/$Y340) ->  | AD340: =IF($F331="",0,SUM(AD335:AD338)*$F331/$Y340) -> 
D343: ='Matriz VERDE-GBCe'!#REF! ->  | E343: =VLOOKUP($D343,'Matriz VERDE-GBCe'!$V$6:$AH$61,2,FALSE) ->  | F343: =VLOOKUP($D343,'Matriz VERDE-GBCe'!$V$6:$AH$61,6,FALSE) ->  | L343: NOTAS | Y343: Target | Z343: SEGURO | AB343: EN REVISIÓN | AD343: NO CUMPLE | AF343: NO APLICA
D345: D.J | E345: Fecha del archivo
D347: AS 09.1 | E347: Se cumple con una de las medidas propuestas | Y347: =IF(AF347=0,0.2,0) -> 0.2 | Z347: =+IF($H347="seguro",$Y347,0) -> 0 | AB347: =+IF($H347="EN REVISIÓN",$Y347,0) -> 0 | AD347: =+IF($H347="NO CUMPLE",$Y347,0) -> 0 | AF347: =+IF($H347="no aplica",2,0) -> 0
D350: AS 09.2 | E350: Se cumple con dos de las medidas propuestas | Y350: =IF(AF350=0,0.2,0) -> 0.2 | Z350: =+IF($H350="seguro",$Y350,0) -> 0 | AB350: =+IF($H350="EN REVISIÓN",$Y350,0) -> 0 | AD350: =+IF($H350="NO CUMPLE",$Y350,0) -> 0 | AF350: =+IF($H350="no aplica",2,0) -> 0
D353: AS 09.3 | E353: Se cumple con tres de las medidas propuestas | Y353: =IF(AF353=0,0.2,0) -> 0.2 | Z353: =+IF($H353="seguro",$Y353,0) -> 0 | AB353: =+IF($H353="EN REVISIÓN",$Y353,0) -> 0 | AD353: =+IF($H353="NO CUMPLE",$Y353,0) -> 0 | AF353: =+IF($H353="no aplica",2,0) -> 0
D356: AS 09.4 | E356: Se cumple con cuatro de las medidas propuestas | Y356: =IF(AF356=0,0.2,0) -> 0.2 | Z356: =+IF($H356="seguro",$Y356,0) -> 0 | AB356: =+IF($H356="EN REVISIÓN",$Y356,0) -> 0 | AD356: =+IF($H356="NO CUMPLE",$Y356,0) -> 0 | AF356: =+IF($H356="no aplica",2,0) -> 0
D359: AS 09.5 | E359: Se cumplen con cinco de las medidas propuestas | Y359: =IF(AF359=0,0.2,0) -> 0.2 | Z359: =+IF($H359="seguro",$Y359,0) -> 0 | AB359: =+IF($H359="EN REVISIÓN",$Y359,0) -> 0 | AD359: =+IF($H359="NO CUMPLE",$Y359,0) -> 0 | AF359: =+IF($H359="no aplica",2,0) -> 0
Y361: =SUM(Y347:Y359) -> 1 | Z361: =IF($F343="",0,SUM(Z347:Z359)*$F343/$Y361) ->  | AB361: =IF($F343="",0,SUM(AB347:AB359)*$F343/$Y361) ->  | AD361: =IF($F343="",0,SUM(AD347:AD359)*$F343/$Y361) -> 
D364: ='Matriz VERDE-GBCe'!#REF! ->  | E364: =VLOOKUP($D364,'Matriz VERDE-GBCe'!$V$6:$AH$61,2,FALSE) ->  | F364: =VLOOKUP($D364,'Matriz VERDE-GBCe'!$V$6:$AH$61,6,FALSE) ->  | L364: NOTAS | Y364: Target | Z364: SEGURO | AB364: EN REVISIÓN | AD364: NO CUMPLE | AF364: NO APLICA
D366: D.J | E366: Fecha del archivo
D368: AS 10.1 | E368: Control de acceso | Y368: 0.5 | Z368: =+IF($H368="seguro",$Y368,0) -> 0 | AB368: =+IF($H368="EN REVISIÓN",$Y368,0) -> 0 | AD368: =+IF($H368="NO CUMPLE",$Y368,0) -> 0 | AF368: =+IF($H368="no aplica",2,0) -> 0
D371: AS 10.2 | E371: Estudio de seguridad | Y371: 0.25 | Z371: =+IF($H371="seguro",$Y371,0) -> 0 | AB371: =+IF($H371="EN REVISIÓN",$Y371,0) -> 0 | AD371: =+IF($H371="NO CUMPLE",$Y371,0) -> 0 | AF371: =+IF($H371="no aplica",2,0) -> 0
D374: AS 10.3 | E374: Medidas extraordinarias de seguridad | Y374: 0.25 | Z374: =+IF($H374="seguro",$Y374,0) -> 0 | AB374: =+IF($H374="EN REVISIÓN",$Y374,0) -> 0 | AD374: =+IF($H374="NO CUMPLE",$Y374,0) -> 0 | AF374: =+IF($H374="no aplica",2,0) -> 0
Y376: =SUM(Y368:Y374) -> 1 | Z376: =IF($F364="",0,SUM(Z368:Z374)*$F364/$Y376) ->  | AB376: =IF($F364="",0,SUM(AB368:AB374)*$F364/$Y376) ->  | AD376: =IF($F364="",0,SUM(AD368:AD374)*$F364/$Y376) -> 
B378: ='Matriz VERDE-GBCe'!#REF! ->  | D378: ='Matriz VERDE-GBCe'!#REF! -> 
D381: ='Matriz VERDE-GBCe'!#REF! ->  | E381: =VLOOKUP($D381,'Matriz VERDE-GBCe'!$V$6:$AH$61,2,FALSE) ->  | F381: =VLOOKUP($D381,'Matriz VERDE-GBCe'!$V$6:$AH$61,6,FALSE) ->  | L381: NOTAS | Y381: Target | Z381: SEGURO | AB381: EN REVISIÓN | AD381: NO CUMPLE | AF381: NO APLICA
D383: D.J | E383: Fecha del archivo
D385: AE 01.1 | E385: Existe un estudio de viabilidad económica del polígono | Y385: 0.5 | Z385: =+IF($H385="seguro",$Y385,0) -> 0 | AB385: =+IF($H385="EN REVISIÓN",$Y385,0) -> 0 | AD385: =+IF($H385="NO CUMPLE",$Y385,0) -> 0 | AF385: =+IF($H385="no aplica",2,0) -> 0
D388: AE 01.2 | E388: Se han adoptado medidas para mejorar la viabilidad económica | Y388: 0.5 | Z388: =+IF($H388="seguro",$Y388,0) -> 0 | AB388: =+IF($H388="EN REVISIÓN",$Y388,0) -> 0 | AD388: =+IF($H388="NO CUMPLE",$Y388,0) -> 0 | AF388: =+IF($H388="no aplica",2,0) -> 0
Y390: =SUM(Y385:Y388) -> 1 | Z390: =IF($F381="",0,SUM(Z385:Z388)*$F381/$Y390) ->  | AB390: =IF($F381="",0,SUM(AB385:AB388)*$F381/$Y390) ->  | AD390: =IF($F381="",0,SUM(AD385:AD388)*$F381/$Y390) -> 
D393: ='Matriz VERDE-GBCe'!#REF! ->  | E393: =VLOOKUP($D393,'Matriz VERDE-GBCe'!$V$6:$AH$61,2,FALSE) ->  | F393: =VLOOKUP($D393,'Matriz VERDE-GBCe'!$V$6:$AH$61,6,FALSE) ->  | L393: NOTAS | Y393: Target | Z393: SEGURO | AB393: EN REVISIÓN | AD393: NO CUMPLE | AF393: NO APLICA
D395: D.J | E395: Fecha del archivo
D397: AE 02.1 | E397: No hay coste de iluminación para el municipio | Y397: 0.2 | Z397: =+IF($H397="seguro",$Y397,0) -> 0 | AB397: =+IF($H397="EN REVISIÓN",$Y397,0) -> 0 | AD397: =+IF($H397="NO CUMPLE",$Y397,0) -> 0 | AF397: =+IF($H397="no aplica",2,0) -> 0
D400: AE 02.2 | E400: No hay coste de depuración de aguas para el municipio | Y400: 0.2 | Z400: =+IF($H400="seguro",$Y400,0) -> 0 | AB400: =+IF($H400="EN REVISIÓN",$Y400,0) -> 0 | AD400: =+IF($H400="NO CUMPLE",$Y400,0) -> 0 | AF400: =+IF($H400="no aplica",2,0) -> 0
D403: AE 02.3 | E403: No hay coste de recogida de residuos para el municipio | Y403: 0.2 | Z403: =+IF($H403="seguro",$Y403,0) -> 0 | AB403: =+IF($H403="EN REVISIÓN",$Y403,0) -> 0 | AD403: =+IF($H403="NO CUMPLE",$Y403,0) -> 0 | AF403: =+IF($H403="no aplica",2,0) -> 0
D406: AE 02.4 | E406: No hay coste de limpieza del viario para el municipio | Y406: 0.2 | Z406: =+IF($H406="seguro",$Y406,0) -> 0 | AB406: =+IF($H406="EN REVISIÓN",$Y406,0) -> 0 | AD406: =+IF($H406="NO CUMPLE",$Y406,0) -> 0 | AF406: =+IF($H406="no aplica",2,0) -> 0
D409: AE 02.5 | E409: No hay coste de mantenimiento para el municipio | Y409: 0.2 | Z409: =+IF($H409="seguro",$Y409,0) -> 0 | AB409: =+IF($H409="EN REVISIÓN",$Y409,0) -> 0 | AD409: =+IF($H409="NO CUMPLE",$Y409,0) -> 0 | AF409: =+IF($H409="no aplica",2,0) -> 0
Y411: =SUM(Y397:Y409) -> 1 | Z411: =IF($F393="",0,SUM(Z397:Z409)*$F393) ->  | AB411: =IF($F393="",0,SUM(AB397:AB409)*$F393) ->  | AD411: =IF($F393="",0,SUM(AD397:AD409)*$F393) -> 
D414: ='Matriz VERDE-GBCe'!#REF! ->  | E414: =VLOOKUP($D414,'Matriz VERDE-GBCe'!$V$6:$AH$61,2,FALSE) ->  | F414: =VLOOKUP($D414,'Matriz VERDE-GBCe'!$V$6:$AH$61,6,FALSE) ->  | L414: NOTAS | Y414: Target | Z414: SEGURO | AB414: EN REVISIÓN | AD414: NO CUMPLE | AF414: NO APLICA
D416: D.J | E416: Fecha del archivo
D418: AE 03.1 | E418: El 30% de las parcelas están reservadas | Y418: 0.5 | Z418: =+IF($H418="seguro",$Y418,0) -> 0 | AB418: =+IF($H418="EN REVISIÓN",$Y418,0) -> 0 | AD418: =+IF($H418="NO CUMPLE",$Y418,0) -> 0 | AF418: =+IF($H418="no aplica",2,0) -> 0
D421: AE 03.2 | E421: El 70% de las parcelas están reservadas | Y421: 0.5 | Z421: =+IF($H421="seguro",$Y421,0) -> 0 | AB421: =+IF($H421="EN REVISIÓN",$Y421,0) -> 0 | AD421: =+IF($H421="NO CUMPLE",$Y421,0) -> 0 | AF421: =+IF($H421="no aplica",2,0) -> 0
Y423: =SUM(Y418:Y421) -> 1 | Z423: =IF($F414="",0,SUM(Z418:Z421)*$F414/$Y423) ->  | AB423: =IF($F414="",0,SUM(AB418:AB421)*$F414/$Y423) ->  | AD423: =IF($F414="",0,SUM(AD418:AD421)*$F414/$Y423) -> 
D426: ='Matriz VERDE-GBCe'!#REF! ->  | E426: =VLOOKUP($D426,'Matriz VERDE-GBCe'!$V$6:$AH$61,2,FALSE) ->  | F426: =VLOOKUP($D426,'Matriz VERDE-GBCe'!$V$6:$AH$61,6,FALSE) ->  | L426: NOTAS | Y426: Target | Z426: SEGURO | AB426: EN REVISIÓN | AD426: NO CUMPLE | AF426: NO APLICA
D428: D.J | E428: Fecha del archivo
D430: AE 04.1 | E430: Incentivar las certificaciones sostenibles de los edificios | Y430: 0.4 | Z430: =+IF($H430="seguro",$Y430,0) -> 0 | AB430: =+IF($H430="EN REVISIÓN",$Y430,0) -> 0 | AD430: =+IF($H430="NO CUMPLE",$Y430,0) -> 0 | AF430: =+IF($H430="no aplica",2,0) -> 0
D433: AE 04.1 | E433: Existe infraestructura de uso comunitario | Y433: 0.3 | Z433: =+IF($H433="seguro",$Y433,0) -> 0 | AB433: =+IF($H433="EN REVISIÓN",$Y433,0) -> 0 | AD433: =+IF($H433="NO CUMPLE",$Y433,0) -> 0 | AF433: =+IF($H433="no aplica",2,0) -> 0
D436: AE 04.1 | E436: Fondo de formación y bolsa de trabajo para empleo local | Y436: 0.3 | Z436: =+IF($H436="seguro",$Y436,0) -> 0 | AB436: =+IF($H436="EN REVISIÓN",$Y436,0) -> 0 | AD436: =+IF($H436="NO CUMPLE",$Y436,0) -> 0 | AF436: =+IF($H436="no aplica",2,0) -> 0
Y438: =SUM(Y430:Y436) -> 1 | Z438: =IF($F426="",0,Z430*$F426) ->  | AB438: =IF($F426="",0,AB430*$F426) ->  | AD438: =IF($F426="",0,AD430*$F426) -> 
D441: ='Matriz VERDE-GBCe'!#REF! ->  | E441: =VLOOKUP($D441,'Matriz VERDE-GBCe'!$V$6:$AH$61,2,FALSE) ->  | F441: =VLOOKUP($D441,'Matriz VERDE-GBCe'!$V$6:$AH$61,6,FALSE) ->  | L441: NOTAS | Y441: Target | Z441: SEGURO | AB441: EN REVISIÓN | AD441: NO CUMPLE | AF441: NO APLICA
D443: D.J | E443: Fecha del archivo
D445: AE 05.1 | E445: El acceso a una vía rápida rodada está a menos de 1.500 m | Y445: =IF(AF445=0,0.7,0) -> 0.7 | Z445: =+IF($H445="seguro",$Y445,0) -> 0 | AB445: =+IF($H445="EN REVISIÓN",$Y445,0) -> 0 | AD445: =+IF($H445="NO CUMPLE",$Y445,0) -> 0 | AF445: =+IF($H445="no aplica",2,0) -> 0
D448: AE 05.2 | E448: El acceso a otras infraestructuras de transporte a menos de 5.000 m | Y448: =IF(AF448=0,0.3,0) -> 0.3 | Z448: =+IF($H448="seguro",$Y448,0) -> 0 | AB448: =+IF($H448="EN REVISIÓN",$Y448,0) -> 0 | AD448: =+IF($H448="NO CUMPLE",$Y448,0) -> 0 | AF448: =+IF($H448="no aplica",2,0) -> 0
Y450: =SUM(Y445:Y448) -> 1 | Z450: =IF($F441="",0,SUM(Z445:Z448)*$F441/$Y450) ->  | AB450: =IF($F441="",0,SUM(AB445:AB448)*$F441/$Y450) ->  | AD450: =IF($F441="",0,SUM(AD445:AD448)*$F441/$Y450) -> 
D453: ='Matriz VERDE-GBCe'!#REF! ->  | E453: =VLOOKUP($D453,'Matriz VERDE-GBCe'!$V$6:$AH$61,2,FALSE) ->  | F453: =VLOOKUP($D453,'Matriz VERDE-GBCe'!$V$6:$AH$61,6,FALSE) ->  | L453: NOTAS | Y453: Target | Z453: SEGURO | AB453: EN REVISIÓN | AD453: NO CUMPLE | AF453: NO APLICA
D455: D.J | E455: Fecha del archivo
D457: AE 06.1 | E457: Toma de medidas de consumo energético por usos | Y457: 0.35 | Z457: =+IF($H457="seguro",$Y457,0) -> 0 | AB457: =+IF($H457="EN REVISIÓN",$Y457,0) -> 0 | AD457: =+IF($H457="NO CUMPLE",$Y457,0) -> 0 | AF457: =+IF($H457="no aplica",2,0) -> 0
D460: AE 06.2 | E460: Toma de medidas de consumo de agua por usos | Y460: 0.15 | Z460: =+IF($H460="seguro",$Y460,0) -> 0 | AB460: =+IF($H460="EN REVISIÓN",$Y460,0) -> 0 | AD460: =+IF($H460="NO CUMPLE",$Y460,0) -> 0 | AF460: =+IF($H460="no aplica",2,0) -> 0
D463: AE 06.3 | E463: Sistemas de monitorización y telemedida por usos | Y463: 0.2 | Z463: =+IF($H463="seguro",$Y463,0) -> 0 | AB463: =+IF($H463="EN REVISIÓN",$Y463,0) -> 0 | AD463: =+IF($H463="NO CUMPLE",$Y463,0) -> 0 | AF463: =+IF($H463="no aplica",2,0) -> 0
D466: AE 06.4 | E466: Sistemas de monitorización y telemedida sectorizado | Y466: 0.2 | Z466: =+IF($H466="seguro",$Y466,0) -> 0 | AB466: =+IF($H466="EN REVISIÓN",$Y466,0) -> 0 | AD466: =+IF($H466="NO CUMPLE",$Y466,0) -> 0 | AF466: =+IF($H466="no aplica",2,0) -> 0
D469: AE 06.5 | E469: Archivo de registro de medidas | Y469: 0.1 | Z469: =+IF($H469="seguro",$Y469,0) -> 0 | AB469: =+IF($H469="EN REVISIÓN",$Y469,0) -> 0 | AD469: =+IF($H469="NO CUMPLE",$Y469,0) -> 0 | AF469: =+IF($H469="no aplica",2,0) -> 0
Y471: =SUM(Y457:Y469) -> 1 | Z471: =IF($F453="",0,SUM(Z456:Z469)*$F453/$Y471) ->  | AB471: =IF($F453="",0,SUM(AB456:AB469)*$F453/$Y471) ->  | AD471: =IF($F453="",0,SUM(AD457:AD469)*$F453/$Y471) -> 
B473: ='Matriz VERDE-GBCe'!#REF! ->  | D473: ='Matriz VERDE-GBCe'!#REF! -> 
D476: ='Matriz VERDE-GBCe'!#REF! ->  | E476: =VLOOKUP($D476,'Matriz VERDE-GBCe'!$V$6:$AH$61,2,FALSE) ->  | F476: =VLOOKUP($D476,'Matriz VERDE-GBCe'!$V$6:$AH$61,6,FALSE) ->  | L476: NOTAS | Y476: Target | Z476: SEGURO | AB476: EN REVISIÓN | AD476: NO CUMPLE | AF476: NO APLICA
D478: D.J | E478: Fecha del archivo
D480: CC 01.1 | E480: Documento de requisitos previo al proyecto | Y480: 0.2 | Z480: =+IF($H480="seguro",$Y480,0) -> 0 | AB480: =+IF($H480="EN REVISIÓN",$Y480,0) -> 0 | AD480: =+IF($H480="NO CUMPLE",$Y480,0) -> 0 | AF480: =+IF($H480="no aplica",2,0) -> 0
D483: CC 01.2 | E483: Análisis de alternativas constructivas y de diseño | Y483: 0.2 | Z483: =+IF($H483="seguro",$Y483,0) -> 0 | AB483: =+IF($H483="EN REVISIÓN",$Y483,0) -> 0 | AD483: =+IF($H483="NO CUMPLE",$Y483,0) -> 0 | AF483: =+IF($H483="no aplica",2,0) -> 0
D486: CC 01.3 | E486: Guías de diseño que se han tenido en cuenta | Y486: 0.2 | Z486: =+IF($H486="seguro",$Y486,0) -> 0 | AB486: =+IF($H486="EN REVISIÓN",$Y486,0) -> 0 | AD486: =+IF($H486="NO CUMPLE",$Y486,0) -> 0 | AF486: =+IF($H486="no aplica",2,0) -> 0
... 35 more rows

Sheet Portada
C3: VERDE Edificios 2020
E4: Evaluación de la sostenibilidad en edificios
E5: Residencial privado
E6: Nueva Edificación, ReHabilitación, Edificios Existentes y mixtos
E8: VERDE Edificios 2020
E9: Revisión diciembre de 2021

Sheet Instrucciones
B3: VERDE Edificios 2020
D4: Instrucciones de uso
C6: Celdas a rellenar
D8: Solo se rellenan las celdas sombreadas.
C11: Pestañas
D13: Para navegar por la herramienta existen una serie de pestañas que se pueden ver en el margen inferior de la ventana, a continación se describen los contenidos de cada una de ellas:
D15: DG (datos generales): En ella se introducirán los datos del edificio, el proyecto y el EA VERDE que realiza la evaluación.
D17: CA (criterios aplicables): En esta pestaña se pueden personalizar los criterios que serán de aplicación para una evaluación. De cara a una certificación, deberán estar todos los criterios activos a menos que se haya justificado la no aplicabilidad de alguno de ellos y se haya aprobado por GBCe.
D19: PRE (pre-evaluación): En esta pestaña se puede hacer una preevaluación del edificio. En el listado de criterios, se indicará qué criterios es seguro (s) que se van a cumplir, cuáles son probables (p), difícil (d) o cuáles no se van a cumplir (n). En función de los datos introducidos, la herramienta informará de las posibles valoraciones del edificio.
D21: Pestañas de certificación: por cada una de las áreas de evaluación, tenemos una pestaña donde se introducirán los datos generales para la evaluación y los resultados criterio a criterio. Al final de la hoja, aparece la valoración que se ha obtenido en la misma.
D23: Informe resultados: en esta hoja aparecen los resultados de la evaluación, con la calificación de la certificación y un resumen de los resultados por criterios
D25: Resultados por impactos: en esta hoja se ofrece la mejora alcanzada por el edificio en los distintos impactos evaluados sobre la referencia establecida.
D27: Indicadores: en esta hoja se ofrecen los datos cuantitativos de los indicadores correspondientes a cada impacto de forma cualitativa y referido a la referencia establecida. Se indica a qué fase del ciclo de vida se hace referencia y cuál es el alcance del cálculo.
C30: Celdas Documento Justificativos
D32: Estas celdas aparecen, tanto en la pestaña de datos generales, como en las pestañas de certificación, en cada uno de los criterios. En ellas habrá que indicar si se han incluido, no se han incluido o no son de aplicación, en los archivos de evaluación los Documentos Justificativos (D.J.) correspondientes.
D33: Los D.J. solicitados para justificar la evaluación de cara a una certificación con VERDE, se describen en la guía de la herramienta.
C36: ¿Cómo hacer la evaluación de los criterios?
D38: El método de evaluación de cada uno de los criterios, aparece definido en la guía de evaluación de la herramienta que se puede descargar en la página web.

Sheet zona clima (hidden)
I1: A | J1: B | K1: C | L1: D | M1: E
I2: 1 | J2: 2 | K2: 3 | L2: 4
E4: CAPITAL | F4: Z.C. INVIERNO | G4: Z.C. VERANO | H4: ALTITUD | I4: 0-50 | K4: 50-100 | M4: 100-150 | O4: 150-200 | Q4: 200-250 | S4: 250-300 | U4: 300-350 | W4: 350-400 | Y4: 400-450 | AA4: 450-500 | AC4: 500-550 | AE4: 550-600 | AG4: 600-650 | AI4: 650-700 | AK4: 700-750 | AM4: 750-800 | AO4: 800-850 | AQ4: 850-900 | AS4: 900-950 | AU4: 950-1000 | AW4: 1000-1050 | AY4: 1100-1150 | BA4: 1150-1200 | BC4: 1200-1250 | BE4: 1250-1300 | BG4: >=1300 | BJ4: A4 | BK4: A3 | BL4: A2 | BM4: A1 | BN4: B4 | BO4: B3 | BP4: B2 | BQ4: B1 | BR4: C4 | BS4: C3 | BT4: C2 | BU4: C1 | BV4: D3 | BW4: D2 | BX4: D1 | BY4: E1
B5: capital de provincia | C5: =IF('DG '!F14=0,"",'DG '!F14) ->  | E5: Albacete | F5: =$L$1 -> D | G5: =$K$2 -> 3 | H5: 677 | I5: =$K$1 -> C | J5: =$K$2 -> 3 | K5: =$K$1 -> C | L5: =$K$2 -> 3 | M5: =$K$1 -> C | N5: =$K$2 -> 3 | O5: =$K$1 -> C | P5: =$K$2 -> 3 | Q5: =$K$1 -> C | R5: =$K$2 -> 3 | S5: =$K$1 -> C | T5: =$K$2 -> 3 | U5: =$K$1 -> C | V5: =$K$2 -> 3 | W5: =$K$1 -> C | X5: =$K$2 -> 3 | Y5: =$K$1 -> C | Z5: =$K$2 -> 3 | AA5: =$L$1 -> D | AB5: =$K$2 -> 3 | AC5: =$L$1 -> D | AD5: =$K$2 -> 3 | AE5: =$L$1 -> D | AF5: =$K$2 -> 3 | AG5: =$L$1 -> D | AH5: =$K$2 -> 3 | AI5: =$L$1 -> D | AJ5: =$K$2 -> 3 | AK5: =$L$1 -> D | AL5: =$K$2 -> 3 | AM5: =$L$1 -> D | AN5: =$K$2 -> 3 | AO5: =$L$1 -> D | AP5: =$K$2 -> 3 | AQ5: =$L$1 -> D | AR5: =$K$2 -> 3 | AS5: =$L$1 -> D | AT5: =$K$2 -> 3 | AU5: =$M$1 -> E | AV5: =$I$2 -> 1 | AW5: E | AX5: 1 | AY5: E | AZ5: 1 | BA5: E | BB5: 1 | BC5: E | BD5: 1 | BE5: E | BF5: 1 | BG5: E | BH5: 1 | BS5: <450 | BV5: <950 | BY5: >=950
B6: altura capital | C6: =IF(C5="","",VLOOKUP(C5,E5:BJ55,3,FALSE)) ->  | E6: Alicante | F6: =$J$1 -> B | G6: =$L$2 -> 4 | H6: 7 | I6: =$J$1 -> B | J6: =$L$2 -> 4 | K6: =$J$1 -> B | L6: =$L$2 -> 4 | M6: =$J$1 -> B | N6: =$L$2 -> 4 | O6: =$J$1 -> B | P6: =$L$2 -> 4 | Q6: =$J$1 -> B | R6: =$L$2 -> 4 | S6: =$K$1 -> C | T6: =$K$2 -> 3 | U6: =$K$1 -> C | V6: =$K$2 -> 3 | W6: =$K$1 -> C | X6: =$K$2 -> 3 | Y6: =$K$1 -> C | Z6: =$K$2 -> 3 | AA6: =$K$1 -> C | AB6: =$K$2 -> 3 | AC6: =$K$1 -> C | AD6: =$K$2 -> 3 | AE6: =$K$1 -> C | AF6: =$K$2 -> 3 | AG6: =$K$1 -> C | AH6: =$K$2 -> 3 | AI6: =$K$1 -> C | AJ6: =$K$2 -> 3 | AK6: =$L$1 -> D | AL6: =$K$2 -> 3 | AM6: =$L$1 -> D | AN6: =$K$2 -> 3 | AO6: =$L$1 -> D | AP6: =$K$2 -> 3 | AQ6: =$L$1 -> D | AR6: =$K$2 -> 3 | AS6: =$L$1 -> D | AT6: =$K$2 -> 3 | AU6: =$L$1 -> D | AV6: =$K$2 -> 3 | AW6: =$L$1 -> D | AX6: =$K$2 -> 3 | AY6: =$L$1 -> D | AZ6: =$K$2 -> 3 | BA6: =$L$1 -> D | BB6: =$K$2 -> 3 | BC6: =$L$1 -> D | BD6: =$K$2 -> 3 | BE6: =$L$1 -> D | BF6: =$K$2 -> 3 | BG6: =$L$1 -> D | BH6: =$K$2 -> 3 | BN6: <250 | BS6: <700 | BV6: >=700
B7: altura localidad | C7: =IF('DG '!F16="","",'DG '!F16) ->  | E7: Almería | F7: =$I$1 -> A | G7: =$L$2 -> 4 | H7: 0 | I7: A | J7: =$L$2 -> 4 | K7: A | L7: =$L$2 -> 4 | M7: =$J$1 -> B | N7: =$L$2 -> 4 | O7: =$J$1 -> B | P7: =$L$2 -> 4 | Q7: =$J$1 -> B | R7: =$L$2 -> 4 | S7: =$J$1 -> B | T7: =$K$2 -> 3 | U7: =$J$1 -> B | V7: =$K$2 -> 3 | W7: =$J$1 -> B | X7: =$K$2 -> 3 | Y7: =$K$1 -> C | Z7: =$K$2 -> 3 | AA7: =$K$1 -> C | AB7: =$K$2 -> 3 | AC7: =$K$1 -> C | AD7: =$K$2 -> 3 | AE7: =$K$1 -> C | AF7: =$K$2 -> 3 | AG7: =$K$1 -> C | AH7: =$K$2 -> 3 | AI7: =$K$1 -> C | AJ7: =$K$2 -> 3 | AK7: =$K$1 -> C | AL7: =$K$2 -> 3 | AM7: =$K$1 -> C | AN7: =$K$2 -> 3 | AO7: =$L$1 -> D | AP7: =$K$2 -> 3 | AQ7: =$L$1 -> D | AR7: =$K$2 -> 3 | AS7: =$L$1 -> D | AT7: =$K$2 -> 3 | AU7: =$L$1 -> D | AV7: =$K$2 -> 3 | AW7: =$L$1 -> D | AX7: =$K$2 -> 3 | AY7: =$L$1 -> D | AZ7: =$K$2 -> 3 | BA7: =$L$1 -> D | BB7: =$K$2 -> 3 | BC7: =$L$1 -> D | BD7: =$K$2 -> 3 | BE7: =$L$1 -> D | BF7: =$K$2 -> 3 | BG7: =$L$1 -> D | BH7: =$K$2 -> 3 | BJ7: <100 | BN7: <250 | BO7: <400 | BS7: <800 | BV7: >=800
B8: REDONDEO ALTITUD | C8: =IF(C7>=1300,1300,IF(AND(C7>=1250,C7<1300),1250,ROUND((C7+25)/50,0)*50)) -> 1300 | E8: Ávila | F8: =$M$1 -> E | G8: =$I$2 -> 1 | H8: 1054 | I8: =$L$1 -> D | J8: =$J$2 -> 2 | K8: =$L$1 -> D | L8: =$J$2 -> 2 | M8: =$L$1 -> D | N8: =$J$2 -> 2 | O8: =$L$1 -> D | P8: =$J$2 -> 2 | Q8: =$L$1 -> D | R8: =$J$2 -> 2 | S8: =$L$1 -> D | T8: =$J$2 -> 2 | U8: =$L$1 -> D | V8: =$J$2 -> 2 | W8: =$L$1 -> D | X8: =$J$2 -> 2 | Y8: =$L$1 -> D | Z8: =$J$2 -> 2 | AA8: =$L$1 -> D | AB8: =$J$2 -> 2 | AC8: =$L$1 -> D | AD8: =$J$2 -> 2 | AE8: =$L$1 -> D | AF8: =$I$2 -> 1 | AG8: =$L$1 -> D | AH8: =$I$2 -> 1 | AI8: =$L$1 -> D | AJ8: =$I$2 -> 1 | AK8: =$L$1 -> D | AL8: =$I$2 -> 1 | AM8: =$L$1 -> D | AN8: =$I$2 -> 1 | AO8: =$L$1 -> D | AP8: =$I$2 -> 1 | AQ8: =$M$1 -> E | AR8: =$I$2 -> 1 | AS8: =$M$1 -> E | AT8: =$I$2 -> 1 | AU8: =$M$1 -> E | AV8: =$I$2 -> 1 | AW8: =$M$1 -> E | AX8: =$I$2 -> 1 | AY8: =$M$1 -> E | AZ8: =$I$2 -> 1 | BA8: =$M$1 -> E | BB8: =$I$2 -> 1 | BC8: =$M$1 -> E | BD8: =$I$2 -> 1 | BE8: =$M$1 -> E | BF8: =$I$2 -> 1 | BG8: =$M$1 -> E | BH8: =$I$2 -> 1 | BU8: <50 | BX8: <550 | BY8: >=550
B9: Nº DE COLUMNA | C9: =(C8/50)*2 -> 52 | E9: Badajoz | F9: =$K$1 -> C | G9: =$L$2 -> 4 | H9: 168 | I9: =$K$1 -> C | J9: =$L$2 -> 4 | K9: =$K$1 -> C | L9: =$L$2 -> 4 | M9: =$K$1 -> C | N9: =$L$2 -> 4 | O9: =$K$1 -> C | P9: =$L$2 -> 4 | Q9: =$K$1 -> C | R9: =$L$2 -> 4 | S9: =$K$1 -> C | T9: =$L$2 -> 4 | U9: =$K$1 -> C | V9: =$L$2 -> 4 | W9: =$K$1 -> C | X9: =$L$2 -> 4 | Y9: =$K$1 -> C | Z9: =$K$2 -> 3 | AA9: =$L$1 -> D | AB9: =$K$2 -> 3 | AC9: =$L$1 -> D | AD9: =$K$2 -> 3 | AE9: =$L$1 -> D | AF9: =$K$2 -> 3 | AG9: =$L$1 -> D | AH9: =$K$2 -> 3 | AI9: =$L$1 -> D | AJ9: =$K$2 -> 3 | AK9: =$L$1 -> D | AL9: =$K$2 -> 3 | AM9: =$L$1 -> D | AN9: =$K$2 -> 3 | AO9: =$L$1 -> D | AP9: =$K$2 -> 3 | AQ9: =$L$1 -> D | AR9: =$K$2 -> 3 | AS9: =$L$1 -> D | AT9: =$K$2 -> 3 | AU9: =$L$1 -> D | AV9: =$K$2 -> 3 | AW9: =$L$1 -> D | AX9: =$K$2 -> 3 | AY9: =$L$1 -> D | AZ9: =$K$2 -> 3 | BA9: =$L$1 -> D | BB9: =$K$2 -> 3 | BC9: =$L$1 -> D | BD9: =$K$2 -> 3 | BE9: =$L$1 -> D | BF9: =$K$2 -> 3 | BG9: =$L$1 -> D | BH9: =$K$2 -> 3 | BW9: <550 | BX9: <850 | BY9: >=850
B10: ZC Invierno localidad | C10: =IF(C5="","",VLOOKUP(C$5,$E:$BH,C$9+3,FALSE)) ->  | E10: Barcelona | F10: =$K$1 -> C | G10: =$J$2 -> 2 | H10: 1 | I10: =$K$1 -> C | J10: =$J$2 -> 2 | K10: =$K$1 -> C | L10: =$J$2 -> 2 | M10: =$K$1 -> C | N10: =$J$2 -> 2 | O10: =$K$1 -> C | P10: =$J$2 -> 2 | Q10: =$K$1 -> C | R10: =$J$2 -> 2 | S10: =$L$1 -> D | T10: =$J$2 -> 2 | U10: =$L$1 -> D | V10: =$J$2 -> 2 | W10: =$L$1 -> D | X10: =$J$2 -> 2 | Y10: =$L$1 -> D | Z10: =$J$2 -> 2 | AA10: =$L$1 -> D | AB10: =$I$2 -> 1 | AC10: =$L$1 -> D | AD10: =$I$2 -> 1 | AE10: =$L$1 -> D | AF10: =$I$2 -> 1 | AG10: =$L$1 -> D | AH10: =$I$2 -> 1 | AI10: =$L$1 -> D | AJ10: =$I$2 -> 1 | AK10: =$L$1 -> D | AL10: =$I$2 -> 1 | AM10: =$M$1 -> E | AN10: =$I$2 -> 1 | AO10: =$M$1 -> E | AP10: =$I$2 -> 1 | AQ10: =$M$1 -> E | AR10: =$I$2 -> 1 | AS10: =$M$1 -> E | AT10: =$I$2 -> 1 | AU10: =$M$1 -> E | AV10: =$I$2 -> 1 | AW10: =$M$1 -> E | AX10: =$I$2 -> 1 | AY10: =$M$1 -> E | AZ10: =$I$2 -> 1 | BA10: =$M$1 -> E | BB10: =$I$2 -> 1 | BC10: =$M$1 -> E | BD10: =$I$2 -> 1 | BE10: =$M$1 -> E | BF10: =$I$2 -> 1 | BG10: =$M$1 -> E | BH10: =$I$2 -> 1 | BR10: <400 | BS10: <450 | BV10: >=450
B11: ZC Verano localidad | C11: =IF(C5="","",VLOOKUP(C$5,$E:$BH,C$9+4,FALSE)) ->  | E11: Bilbao | F11: =$K$1 -> C | G11: =$I$2 -> 1 | H11: 214 | I11: =$K$1 -> C | J11: =$I$2 -> 1 | K11: =$K$1 -> C | L11: =$I$2 -> 1 | M11: =$K$1 -> C | N11: =$I$2 -> 1 | O11: =$K$1 -> C | P11: =$I$2 -> 1 | Q11: =$K$1 -> C | R11: =$I$2 -> 1 | S11: =$L$1 -> D | T11: =$I$2 -> 1 | U11: =$L$1 -> D | V11: =$I$2 -> 1 | W11: =$L$1 -> D | X11: =$I$2 -> 1 | Y11: =$L$1 -> D | Z11: =$I$2 -> 1 | AA11: =$L$1 -> D | AB11: =$I$2 -> 1 | AC11: =$L$1 -> D | AD11: =$I$2 -> 1 | AE11: =$L$1 -> D | AF11: =$I$2 -> 1 | AG11: =$L$1 -> D | AH11: =$I$2 -> 1 | AI11: =$L$1 -> D | AJ11: =$I$2 -> 1 | AK11: =$L$1 -> D | AL11: =$I$2 -> 1 | AM11: =$L$1 -> D | AN11: =$I$2 -> 1 | AO11: =$L$1 -> D | AP11: =$I$2 -> 1 | AQ11: =$L$1 -> D | AR11: =$I$2 -> 1 | AS11: =$L$1 -> D | AT11: =$I$2 -> 1 | AU11: =$L$1 -> D | AV11: =$I$2 -> 1 | AW11: =$L$1 -> D | AX11: =$I$2 -> 1 | AY11: =$L$1 -> D | AZ11: =$I$2 -> 1 | BA11: =$L$1 -> D | BB11: =$I$2 -> 1 | BC11: =$L$1 -> D | BD11: =$I$2 -> 1 | BE11: =$L$1 -> D | BF11: =$I$2 -> 1 | BG11: =$L$1 -> D | BH11: =$I$2 -> 1 | BT11: <250 | BW11: <450 | BX11: <750 | BY11: >=750
B12: ZONA CLIMATICA PROVINCIA | C12: =IF(C5="","",VLOOKUP(C$5,E$5:H$56,2,FALSE)) ->  | E12: Burgos | F12: E | G12: =$I$2 -> 1 | H12: 861 | I12: =$L$1 -> D | J12: =$I$2 -> 1 | K12: D | L12: =$I$2 -> 1 | M12: D | N12: =$I$2 -> 1 | O12: D | P12: =$I$2 -> 1 | Q12: D | R12: =$I$2 -> 1 | S12: D | T12: =$I$2 -> 1 | U12: D | V12: =$I$2 -> 1 | W12: D | X12: =$I$2 -> 1 | Y12: D | Z12: =$I$2 -> 1 | AA12: =$L$1 -> D | AB12: =$I$2 -> 1 | AC12: =$L$1 -> D | AD12: =$I$2 -> 1 | AE12: =$L$1 -> D | AF12: =$I$2 -> 1 | AG12: =$M$1 -> E | AH12: =$I$2 -> 1 | AI12: =$M$1 -> E | AJ12: =$I$2 -> 1 | AK12: =$M$1 -> E | AL12: =$I$2 -> 1 | AM12: =$M$1 -> E | AN12: =$I$2 -> 1 | AO12: =$M$1 -> E | AP12: =$I$2 -> 1 | AQ12: =$M$1 -> E | AR12: =$I$2 -> 1 | AS12: =$M$1 -> E | AT12: =$I$2 -> 1 | AU12: =$M$1 -> E | AV12: =$I$2 -> 1 | AW12: =$M$1 -> E | AX12: =$I$2 -> 1 | AY12: =$M$1 -> E | AZ12: =$I$2 -> 1 | BA12: =$M$1 -> E | BB12: =$I$2 -> 1 | BC12: =$M$1 -> E | BD12: =$I$2 -> 1 | BE12: =$M$1 -> E | BF12: =$I$2 -> 1 | BG12: =$M$1 -> E | BH12: =$I$2 -> 1
B13: ZONA CLIMATICA PROVINCIA | C13: =IF(C5="","",VLOOKUP(C$5,E$5:H$56,3,FALSE)) ->  | E13: Cáceres | F13: =$K$1 -> C | G13: =$L$2 -> 4 | H13: 385 | I13: =$K$1 -> C | J13: =$L$2 -> 4 | K13: =$K$1 -> C | L13: =$L$2 -> 4 | M13: =$K$1 -> C | N13: =$L$2 -> 4 | O13: =$K$1 -> C | P13: =$L$2 -> 4 | Q13: =$K$1 -> C | R13: =$L$2 -> 4 | S13: =$K$1 -> C | T13: =$L$2 -> 4 | U13: =$K$1 -> C | V13: =$L$2 -> 4 | W13: =$K$1 -> C | X13: =$L$2 -> 4 | Y13: =$K$1 -> C | Z13: =$L$2 -> 4 | AA13: =$K$1 -> C | AB13: =$L$2 -> 4 | AC13: =$K$1 -> C | AD13: =$L$2 -> 4 | AE13: =$K$1 -> C | AF13: =$L$2 -> 4 | AG13: =$L$1 -> D | AH13: =$K$2 -> 3 | AI13: =$L$1 -> D | AJ13: 3 | AK13: =$L$1 -> D | AL13: 3 | AM13: =$L$1 -> D | AN13: 3 | AO13: =$L$1 -> D | AP13: 3 | AQ13: =$L$1 -> D | AR13: 3 | AS13: =$L$1 -> D | AT13: 3 | AU13: =$L$1 -> D | AV13: 3 | AW13: =$L$1 -> D | AX13: 3 | AY13: =$M$1 -> E | AZ13: =$I$2 -> 1 | BA13: =$M$1 -> E | BB13: =$I$2 -> 1 | BC13: =$M$1 -> E | BD13: =$I$2 -> 1 | BE13: =$M$1 -> E | BF13: =$I$2 -> 1 | BG13: =$M$1 -> E | BH13: =$I$2 -> 1 | BX13: <600 | BY13: >=600
E14: Cádiz | F14: =$I$1 -> A | G14: =$K$2 -> 3 | H14: 0 | I14: =$I$1 -> A | J14: =$K$2 -> 3 | K14: =$I$1 -> A | L14: =$K$2 -> 3 | M14: =$I$1 -> A | N14: =$K$2 -> 3 | O14: =$J$1 -> B | P14: =$K$2 -> 3 | Q14: B | R14: =$K$2 -> 3 | S14: B | T14: =$K$2 -> 3 | U14: B | V14: =$K$2 -> 3 | W14: B | X14: =$K$2 -> 3 | Y14: B | Z14: =$K$2 -> 3 | AA14: =$K$1 -> C | AB14: =$K$2 -> 3 | AC14: =$K$1 -> C | AD14: =$K$2 -> 3 | AE14: =$K$1 -> C | AF14: =$K$2 -> 3 | AG14: =$K$1 -> C | AH14: =$J$2 -> 2 | AI14: C | AJ14: 2 | AK14: C | AL14: 2 | AM14: C | AN14: 2 | AO14: C | AP14: 2 | AQ14: =$L$1 -> D | AR14: =$J$2 -> 2 | AS14: =$L$1 -> D | AT14: =$J$2 -> 2 | AU14: =$L$1 -> D | AV14: =$J$2 -> 2 | AW14: =$L$1 -> D | AX14: =$J$2 -> 2 | AY14: =$L$1 -> D | AZ14: =$J$2 -> 2 | BA14: =$L$1 -> D | BB14: =$J$2 -> 2 | BC14: =$L$1 -> D | BD14: =$J$2 -> 2 | BE14: =$L$1 -> D | BF14: =$J$2 -> 2 | BG14: =$L$1 -> D | BH14: =$J$2 -> 2 | BR14: <600 | BV14: <1050 | BY14: >=1050
E15: Castellón | F15: =$J$1 -> B | G15: =$K$2 -> 3 | H15: 18 | I15: =$J$1 -> B | J15: =$K$2 -> 3 | K15: =$K$1 -> C | L15: =$K$2 -> 3 | M15: =$K$1 -> C | N15: =$K$2 -> 3 | O15: =$K$1 -> C | P15: =$K$2 -> 3 | Q15: =$K$1 -> C | R15: =$K$2 -> 3 | S15: =$K$1 -> C | T15: =$K$2 -> 3 | U15: =$K$1 -> C | V15: =$K$2 -> 3 | W15: =$K$1 -> C | X15: =$K$2 -> 3 | Y15: =$K$1 -> C | Z15: =$K$2 -> 3 | AA15: =$K$1 -> C | AB15: =$K$2 -> 3 | AC15: =$L$1 -> D | AD15: =$K$2 -> 3 | AE15: =$L$1 -> D | AF15: =$K$2 -> 3 | AG15: =$L$1 -> D | AH15: 2 | AI15: =$L$1 -> D | AJ15: 2 | AK15: =$L$1 -> D | AL15: 2 | AM15: =$L$1 -> D | AN15: 2 | AO15: =$L$1 -> D | AP15: 2 | AQ15: =$L$1 -> D | AR15: =$J$2 -> 2 | AS15: =$L$1 -> D | AT15: =$J$2 -> 2 | AU15: =$L$1 -> D | AV15: =$J$2 -> 2 | AW15: =$M$1 -> E | AX15: =$I$2 -> 1 | AY15: =$M$1 -> E | AZ15: =$I$2 -> 1 | BA15: =$M$1 -> E | BB15: =$I$2 -> 1 | BC15: =$M$1 -> E | BD15: =$I$2 -> 1 | BE15: =$M$1 -> E | BF15: =$I$2 -> 1 | BG15: =$M$1 -> E | BH15: =$I$2 -> 1 | BU15: <150 | BX15: <650
E16: Ceuta | F16: =$J$1 -> B | G16: =$K$2 -> 3 | H16: 0 | I16: =$J$1 -> B | J16: =$K$2 -> 3 | K16: =$J$1 -> B | L16: =$K$2 -> 3 | M16: =$J$1 -> B | N16: =$K$2 -> 3 | O16: =$J$1 -> B | P16: =$K$2 -> 3 | Q16: =$J$1 -> B | R16: =$K$2 -> 3 | S16: =$J$1 -> B | T16: =$K$2 -> 3 | U16: =$J$1 -> B | V16: =$K$2 -> 3 | W16: =$J$1 -> B | X16: =$K$2 -> 3 | Y16: =$J$1 -> B | Z16: =$K$2 -> 3 | AA16: B | AB16: =$K$2 -> 3 | AC16: B | AD16: =$K$2 -> 3 | AE16: B | AF16: =$K$2 -> 3 | AG16: B | AH16: =$K$2 -> 3 | AI16: B | AJ16: =$K$2 -> 3 | AK16: B | AL16: =$K$2 -> 3 | AM16: B | AN16: =$K$2 -> 3 | AO16: B | AP16: =$K$2 -> 3 | AQ16: B | AR16: =$K$2 -> 3 | AS16: B | AT16: =$K$2 -> 3 | AU16: B | AV16: 3 | AW16: B | AX16: 3 | AY16: B | AZ16: 3 | BA16: B | BB16: 3 | BC16: B | BD16: 3 | BE16: B | BF16: 3 | BG16: B | BH16: 3 | BO16: <50 | BS16: <500 | BV16: <600 | BW16: <1000 | BY16: >=1000
E17: CiudadReal | F17: =$L$1 -> D | G17: =$K$2 -> 3 | H17: 630 | I17: =$K$1 -> C | J17: =$L$2 -> 4 | K17: =$K$1 -> C | L17: =$L$2 -> 4 | M17: =$K$1 -> C | N17: =$L$2 -> 4 | O17: =$K$1 -> C | P17: =$L$2 -> 4 | Q17: =$K$1 -> C | R17: =$L$2 -> 4 | S17: =$K$1 -> C | T17: =$L$2 -> 4 | U17: =$K$1 -> C | V17: =$L$2 -> 4 | W17: =$K$1 -> C | X17: =$L$2 -> 4 | Y17: =$K$1 -> C | Z17: =$L$2 -> 4 | AA17: =$K$1 -> C | AB17: =$K$2 -> 3 | AC17: =$L$1 -> D | AD17: =$K$2 -> 3 | AE17: =$L$1 -> D | AF17: =$K$2 -> 3 | AG17: =$L$1 -> D | AH17: =$K$2 -> 3 | AI17: =$L$1 -> D | AJ17: =$K$2 -> 3 | AK17: =$L$1 -> D | AL17: =$K$2 -> 3 | AM17: =$L$1 -> D | AN17: =$K$2 -> 3 | AO17: =$L$1 -> D | AP17: =$K$2 -> 3 | AQ17: =$L$1 -> D | AR17: =$K$2 -> 3 | AS17: =$L$1 -> D | AT17: 3 | AU17: =$L$1 -> D | AV17: 3 | AW17: =$L$1 -> D | AX17: 3 | AY17: =$L$1 -> D | AZ17: 3 | BA17: =$L$1 -> D | BB17: 3 | BC17: =$L$1 -> D | BD17: 3 | BE17: =$L$1 -> D | BF17: 3 | BG17: =$L$1 -> D | BH17: 3
E18: Córdoba | F18: =$J$1 -> B | G18: =$L$2 -> 4 | H18: 113 | I18: =$J$1 -> B | J18: =$L$2 -> 4 | K18: =$J$1 -> B | L18: =$L$2 -> 4 | M18: =$J$1 -> B | N18: =$L$2 -> 4 | O18: =$K$1 -> C | P18: =$L$2 -> 4 | Q18: =$K$1 -> C | R18: =$L$2 -> 4 | S18: =$K$1 -> C | T18: =$L$2 -> 4 | U18: =$K$1 -> C | V18: =$L$2 -> 4 | W18: =$K$1 -> C | X18: =$L$2 -> 4 | Y18: =$K$1 -> C | Z18: =$L$2 -> 4 | AA18: =$K$1 -> C | AB18: =$L$2 -> 4 | AC18: =$K$1 -> C | AD18: =$L$2 -> 4 | AE18: =$L$1 -> D | AF18: =$K$2 -> 3 | AG18: =$L$1 -> D | AH18: =$K$2 -> 3 | AI18: =$L$1 -> D | AJ18: =$K$2 -> 3 | AK18: =$L$1 -> D | AL18: =$K$2 -> 3 | AM18: =$L$1 -> D | AN18: =$K$2 -> 3 | AO18: =$L$1 -> D | AP18: =$K$2 -> 3 | AQ18: =$L$1 -> D | AR18: =$K$2 -> 3 | AS18: =$L$1 -> D | AT18: 3 | AU18: =$L$1 -> D | AV18: 3 | AW18: =$L$1 -> D | AX18: 3 | AY18: =$L$1 -> D | AZ18: 3 | BA18: =$L$1 -> D | BB18: 3 | BC18: =$L$1 -> D | BD18: 3 | BE18: =$L$1 -> D | BF18: 3 | BG18: =$L$1 -> D | BH18: 3 | BR18: <450 | BS18: <500 | BV18: >=500
B19: DESNIVEL | C19: =ROUNDUP((C7-C6)/100,0) ->  | E19: LaCoruña | F19: =$K$1 -> C | G19: =$I$2 -> 1 | H19: 0 | I19: =$K$1 -> C | J19: =$I$2 -> 1 | K19: =$K$1 -> C | L19: =$I$2 -> 1 | M19: =$K$1 -> C | N19: =$I$2 -> 1 | O19: =$K$1 -> C | P19: =$I$2 -> 1 | Q19: =$L$1 -> D | R19: =$I$2 -> 1 | S19: =$L$1 -> D | T19: =$I$2 -> 1 | U19: =$L$1 -> D | V19: =$I$2 -> 1 | W19: =$L$1 -> D | X19: =$I$2 -> 1 | Y19: =$L$1 -> D | Z19: =$I$2 -> 1 | AA19: =$L$1 -> D | AB19: =$I$2 -> 1 | AC19: =$L$1 -> D | AD19: =$I$2 -> 1 | AE19: =$L$1 -> D | AF19: =$I$2 -> 1 | AG19: =$L$1 -> D | AH19: =$I$2 -> 1 | AI19: =$L$1 -> D | AJ19: =$I$2 -> 1 | AK19: =$L$1 -> D | AL19: =$I$2 -> 1 | AM19: =$L$1 -> D | AN19: =$I$2 -> 1 | AO19: =$L$1 -> D | AP19: =$I$2 -> 1 | AQ19: =$L$1 -> D | AR19: =$I$2 -> 1 | AS19: =$L$1 -> D | AT19: =$I$2 -> 1 | AU19: =$L$1 -> D | AV19: =$I$2 -> 1 | AW19: =$L$1 -> D | AX19: =$I$2 -> 1 | AY19: =$L$1 -> D | AZ19: =$I$2 -> 1 | BA19: =$L$1 -> D | BB19: =$I$2 -> 1 | BC19: =$L$1 -> D | BD19: =$I$2 -> 1 | BE19: =$L$1 -> D | BF19: =$I$2 -> 1 | BG19: =$L$1 -> D | BH19: =$I$2 -> 1 | BN19: <150 | BR19: <550 | BV19: >=550
B20: CORRECCION ZONA CLIMATICA | C20: =3+IF(C19>10,5,IF(C19>8,4,IF(C19>6,3,IF(C19>4,2,IF(C19>2,1,IF(C19>0,0,0)))))) ->  | E20: Cuenca | F20: =$L$1 -> D | G20: =$J$2 -> 2 | H20: 975 | I20: =$L$1 -> D | J20: =$K$2 -> 3 | K20: =$L$1 -> D | L20: 3 | M20: =$L$1 -> D | N20: 3 | O20: =$L$1 -> D | P20: 3 | Q20: =$L$1 -> D | R20: 3 | S20: =$L$1 -> D | T20: 3 | U20: =$L$1 -> D | V20: 3 | W20: =$L$1 -> D | X20: 3 | Y20: =$L$1 -> D | Z20: 3 | AA20: =$L$1 -> D | AB20: 3 | AC20: =$L$1 -> D | AD20: 3 | AE20: =$L$1 -> D | AF20: 3 | AG20: =$L$1 -> D | AH20: 3 | AI20: =$L$1 -> D | AJ20: 3 | AK20: =$L$1 -> D | AL20: 3 | AM20: =$L$1 -> D | AN20: 3 | AO20: =$L$1 -> D | AP20: =$J$2 -> 2 | AQ20: =$L$1 -> D | AR20: 2 | AS20: =$L$1 -> D | AT20: 2 | AU20: =$L$1 -> D | AV20: 2 | AW20: =$L$1 -> D | AX20: 2 | AY20: =$M$1 -> E | AZ20: =$I$2 -> 1 | BA20: E | BB20: =$I$2 -> 1 | BC20: E | BD20: =$I$2 -> 1 | BE20: E | BF20: =$I$2 -> 1 | BG20: E | BH20: =$I$2 -> 1
E21: Gerona | F21: =$L$1 -> D | G21: =$J$2 -> 2 | H21: 143 | I21: =$K$1 -> C | J21: =$J$2 -> 2 | K21: =$K$1 -> C | L21: =$J$2 -> 2 | M21: =$L$1 -> D | N21: =$J$2 -> 2 | O21: =$L$1 -> D | P21: =$J$2 -> 2 | Q21: =$L$1 -> D | R21: =$J$2 -> 2 | S21: =$L$1 -> D | T21: =$J$2 -> 2 | U21: =$L$1 -> D | V21: =$J$2 -> 2 | W21: =$L$1 -> D | X21: =$J$2 -> 2 | Y21: =$L$1 -> D | Z21: =$J$2 -> 2 | AA21: =$L$1 -> D | AB21: =$J$2 -> 2 | AC21: =$L$1 -> D | AD21: =$J$2 -> 2 | AE21: =$L$1 -> D | AF21: =$J$2 -> 2 | AG21: =$M$1 -> E | AH21: =$I$2 -> 1 | AI21: =$M$1 -> E | AJ21: =$I$2 -> 1 | AK21: =$M$1 -> E | AL21: =$I$2 -> 1 | AM21: =$M$1 -> E | AN21: =$I$2 -> 1 | AO21: =$M$1 -> E | AP21: =$I$2 -> 1 | AQ21: =$M$1 -> E | AR21: =$I$2 -> 1 | AS21: =$M$1 -> E | AT21: =$I$2 -> 1 | AU21: =$M$1 -> E | AV21: =$I$2 -> 1 | AW21: =$M$1 -> E | AX21: =$I$2 -> 1 | AY21: =$M$1 -> E | AZ21: =$I$2 -> 1 | BA21: =$M$1 -> E | BB21: =$I$2 -> 1 | BC21: =$M$1 -> E | BD21: =$I$2 -> 1 | BE21: =$M$1 -> E | BF21: =$I$2 -> 1 | BG21: =$M$1 -> E | BH21: =$I$2 -> 1 | BU21: <200 | BX21: >=200
E22: Granada | F22: =$K$1 -> C | G22: =$K$2 -> 3 | H22: 754 | I22: =$I$1 -> A | J22: =$L$2 -> 4 | K22: =$J$1 -> B | L22: =$L$2 -> 4 | M22: =$J$1 -> B | N22: =$L$2 -> 4 | O22: =$J$1 -> B | P22: =$L$2 -> 4 | Q22: =$J$1 -> B | R22: =$L$2 -> 4 | S22: =$J$1 -> B | T22: =$L$2 -> 4 | U22: =$J$1 -> B | V22: =$L$2 -> 4 | W22: =$K$1 -> C | X22: =$L$2 -> 4 | Y22: C | Z22: 4 | AA22: C | AB22: 4 | AC22: C | AD22: 4 | AE22: C | AF22: 4 | AG22: =$K$1 -> C | AH22: =$K$2 -> 3 | AI22: C | AJ22: 3 | AK22: C | AL22: 3 | AM22: C | AN22: 3 | AO22: =$L$1 -> D | AP22: =$K$2 -> 3 | AQ22: =$L$1 -> D | AR22: 3 | AS22: =$L$1 -> D | AT22: 3 | AU22: =$L$1 -> D | AV22: 3 | AW22: =$L$1 -> D | AX22: 3 | AY22: =$L$1 -> D | AZ22: 3 | BA22: =$L$1 -> D | BB22: 3 | BC22: =$L$1 -> D | BD22: 3 | BE22: =$L$1 -> D | BF22: 3 | BG22: =$M$1 -> E | BH22: =$I$2 -> 1 | BV22: <800 | BW22: <1050 | BY22: >=1050
E23: Guadalajara | F23: =$L$1 -> D | G23: =$K$2 -> 3 | H23: 708 | I23: =$L$1 -> D | J23: =$K$2 -> 3 | K23: =$L$1 -> D | L23: =$K$2 -> 3 | M23: =$L$1 -> D | N23: =$K$2 -> 3 | O23: =$L$1 -> D | P23: =$K$2 -> 3 | Q23: =$L$1 -> D | R23: =$K$2 -> 3 | S23: =$L$1 -> D | T23: =$K$2 -> 3 | U23: =$L$1 -> D | V23: =$K$2 -> 3 | W23: =$L$1 -> D | X23: =$K$2 -> 3 | Y23: =$L$1 -> D | Z23: =$K$2 -> 3 | AA23: =$L$1 -> D | AB23: =$K$2 -> 3 | AC23: =$L$1 -> D | AD23: =$K$2 -> 3 | AE23: =$L$1 -> D | AF23: =$K$2 -> 3 | AG23: =$L$1 -> D | AH23: =$K$2 -> 3 | AI23: =$L$1 -> D | AJ23: =$K$2 -> 3 | AK23: =$L$1 -> D | AL23: =$K$2 -> 3 | AM23: =$L$1 -> D | AN23: =$K$2 -> 3 | AO23: =$L$1 -> D | AP23: =$K$2 -> 3 | AQ23: =$L$1 -> D | AR23: =$K$2 -> 3 | AS23: =$L$1 -> D | AT23: =$K$2 -> 3 | AU23: =$L$1 -> D | AV23: =$J$2 -> 2 | AW23: =$M$1 -> E | AX23: =$I$2 -> 1 | AY23: =$M$1 -> E | AZ23: =$I$2 -> 1 | BA23: =$M$1 -> E | BB23: =$I$2 -> 1 | BC23: =$M$1 -> E | BD23: =$I$2 -> 1 | BE23: =$M$1 -> E | BF23: =$I$2 -> 1 | BG23: =$M$1 -> E | BH23: =$I$2 -> 1 | BT23: <100 | BW23: <600 | BY23: >=600
E24: Huelva | F24: =$I$1 -> A | G24: =$L$2 -> 4 | H24: 50 | I24: =$I$1 -> A | J24: =$L$2 -> 4 | K24: =$J$1 -> B | L24: =$L$2 -> 4 | M24: =$J$1 -> B | N24: =$L$2 -> 4 | O24: =$J$1 -> B | P24: =$K$2 -> 3 | Q24: B | R24: =$K$2 -> 3 | S24: B | T24: =$K$2 -> 3 | U24: B | V24: =$K$2 -> 3 | W24: =$K$1 -> C | X24: =$K$2 -> 3 | Y24: C | Z24: =$K$2 -> 3 | AA24: C | AB24: =$K$2 -> 3 | AC24: C | AD24: =$K$2 -> 3 | AE24: C | AF24: =$K$2 -> 3 | AG24: C | AH24: =$K$2 -> 3 | AI24: C | AJ24: =$K$2 -> 3 | AK24: C | AL24: =$K$2 -> 3 | AM24: C | AN24: =$K$2 -> 3 | AO24: =$L$1 -> D | AP24: =$K$2 -> 3 | AQ24: =$L$1 -> D | AR24: =$K$2 -> 3 | AS24: =$L$1 -> D | AT24: =$K$2 -> 3 | AU24: =$L$1 -> D | AV24: =$K$2 -> 3 | AW24: =$L$1 -> D | AX24: 3 | AY24: =$L$1 -> D | AZ24: 3 | BA24: =$L$1 -> D | BB24: 3 | BC24: =$L$1 -> D | BD24: 3 | BE24: =$L$1 -> D | BF24: 3 | BG24: =$L$1 -> D | BH24: 3 | BV24: <950 | BW24: <1000 | BY24: >=1000
E25: Huesca | F25: =$L$1 -> D | G25: =$J$2 -> 2 | H25: 432 | I25: =$K$1 -> C | J25: =$K$2 -> 3 | K25: C | L25: 3 | M25: C | N25: 3 | O25: C | P25: 3 | Q25: =$L$1 -> D | R25: =$K$2 -> 3 | S25: =$L$1 -> D | T25: =$K$2 -> 3 | U25: =$L$1 -> D | V25: =$K$2 -> 3 | W25: =$L$1 -> D | X25: =$K$2 -> 3 | Y25: =$L$1 -> D | Z25: =$J$2 -> 2 | AA25: D | AB25: 2 | AC25: D | AD25: 2 | AE25: D | AF25: 2 | AG25: D | AH25: 2 | AI25: D | AJ25: 2 | AK25: =$M$1 -> E | AL25: =$I$2 -> 1 | AM25: =$M$1 -> E | AN25: =$I$2 -> 1 | AO25: =$M$1 -> E | AP25: =$I$2 -> 1 | AQ25: =$M$1 -> E | AR25: =$I$2 -> 1 | AS25: =$M$1 -> E | AT25: =$I$2 -> 1 | AU25: =$M$1 -> E | AV25: =$I$2 -> 1 | AW25: =$M$1 -> E | AX25: =$I$2 -> 1 | AY25: =$M$1 -> E | AZ25: =$I$2 -> 1 | BA25: =$M$1 -> E | BB25: =$I$2 -> 1 | BC25: =$M$1 -> E | BD25: =$I$2 -> 1 | BE25: =$M$1 -> E | BF25: =$I$2 -> 1 | BG25: =$M$1 -> E | BH25: =$I$2 -> 1 | BX25: <400 | BY25: >=400
E26: Jaén | F26: =$K$1 -> C | G26: =$L$2 -> 4 | H26: 436 | I26: =$J$1 -> B | J26: =$L$2 -> 4 | K26: =$J$1 -> B | L26: =$L$2 -> 4 | M26: =$J$1 -> B | N26: =$L$2 -> 4 | O26: =$J$1 -> B | P26: =$L$2 -> 4 | Q26: =$J$1 -> B | R26: =$L$2 -> 4 | S26: =$J$1 -> B | T26: =$L$2 -> 4 | U26: =$J$1 -> B | V26: =$L$2 -> 4 | W26: =$K$1 -> C | X26: =$L$2 -> 4 | Y26: C | Z26: 4 | AA26: C | AB26: 4 | AC26: C | AD26: 4 | AE26: C | AF26: 4 | AG26: C | AH26: 4 | AI26: C | AJ26: 4 | AK26: C | AL26: 4 | AM26: =$L$1 -> D | AN26: =$K$2 -> 3 | AO26: D | AP26: 3 | AQ26: D | AR26: 3 | AS26: D | AT26: 3 | AU26: D | AV26: 3 | AW26: D | AX26: 3 | AY26: D | AZ26: 3 | BA26: D | BB26: 3 | BC26: D | BD26: 3 | BE26: =$M$1 -> E | BF26: =$I$2 -> 1 | BG26: =$M$1 -> E | BH26: =$I$2 -> 1 | BS26: <200 | BV26: <400 | BW26: <700 | BY26: >=700
E27: León | F27: =$M$1 -> E | G27: =$I$2 -> 1 | H27: 346 | I27: =$M$1 -> E | J27: =$I$2 -> 1 | K27: =$M$1 -> E | L27: =$I$2 -> 1 | M27: =$M$1 -> E | N27: =$I$2 -> 1 | O27: =$M$1 -> E | P27: =$I$2 -> 1 | Q27: =$M$1 -> E | R27: =$I$2 -> 1 | S27: =$M$1 -> E | T27: =$I$2 -> 1 | U27: =$M$1 -> E | V27: =$I$2 -> 1 | W27: =$M$1 -> E | X27: =$I$2 -> 1 | Y27: =$M$1 -> E | Z27: =$I$2 -> 1 | AA27: =$M$1 -> E | AB27: =$I$2 -> 1 | AC27: =$M$1 -> E | AD27: =$I$2 -> 1 | AE27: =$M$1 -> E | AF27: =$I$2 -> 1 | AG27: =$M$1 -> E | AH27: =$I$2 -> 1 | AI27: =$M$1 -> E | AJ27: =$I$2 -> 1 | AK27: =$M$1 -> E | AL27: =$I$2 -> 1 | AM27: =$M$1 -> E | AN27: =$I$2 -> 1 | AO27: =$M$1 -> E | AP27: =$I$2 -> 1 | AQ27: =$M$1 -> E | AR27: =$I$2 -> 1 | AS27: =$M$1 -> E | AT27: =$I$2 -> 1 | AU27: =$M$1 -> E | AV27: =$I$2 -> 1 | AW27: =$M$1 -> E | AX27: =$I$2 -> 1 | AY27: =$M$1 -> E | AZ27: =$I$2 -> 1 | BA27: =$M$1 -> E | BB27: =$I$2 -> 1 | BC27: =$M$1 -> E | BD27: =$I$2 -> 1 | BE27: =$M$1 -> E | BF27: =$I$2 -> 1 | BG27: =$M$1 -> E | BH27: =$I$2 -> 1 | BK27: <350 | BL27: <750 | BP27: <1000 | BT27: >=1000
E28: Lérida | F28: =$L$1 -> D | G28: =$K$2 -> 3 | H28: 131 | I28: =$K$1 -> C | J28: =$K$2 -> 3 | K28: =$K$1 -> C | L28: =$K$2 -> 3 | M28: =$L$1 -> D | N28: =$K$2 -> 3 | O28: =$L$1 -> D | P28: 3 | Q28: =$L$1 -> D | R28: 3 | S28: =$L$1 -> D | T28: 3 | U28: =$L$1 -> D | V28: 3 | W28: =$L$1 -> D | X28: 3 | Y28: =$L$1 -> D | Z28: 3 | AA28: =$L$1 -> D | AB28: 3 | AC28: =$L$1 -> D | AD28: 3 | AE28: =$L$1 -> D | AF28: 3 | AG28: =$M$1 -> E | AH28: =$I$2 -> 1 | AI28: =$M$1 -> E | AJ28: =$I$2 -> 1 | AK28: =$M$1 -> E | AL28: =$I$2 -> 1 | AM28: =$M$1 -> E | AN28: =$I$2 -> 1 | AO28: =$M$1 -> E | AP28: =$I$2 -> 1 | AQ28: =$M$1 -> E | AR28: =$I$2 -> 1 | AS28: =$M$1 -> E | AT28: =$I$2 -> 1 | AU28: =$M$1 -> E | AV28: =$I$2 -> 1 | AW28: =$M$1 -> E | AX28: =$I$2 -> 1 | AY28: =$M$1 -> E | AZ28: =$I$2 -> 1 | BA28: =$M$1 -> E | BB28: =$I$2 -> 1 | BC28: =$M$1 -> E | BD28: =$I$2 -> 1 | BE28: =$M$1 -> E | BF28: =$I$2 -> 1 | BG28: =$M$1 -> E | BH28: =$I$2 -> 1 | BY28: <1250
E29: Logroño | F29: =$L$1 -> D | G29: =$J$2 -> 2 | H29: 379 | I29: =$K$1 -> C | J29: =$J$2 -> 2 | K29: =$K$1 -> C | L29: 2 | M29: =$K$1 -> C | N29: 2 | O29: =$K$1 -> C | P29: 2 | Q29: =$L$1 -> D | R29: =$J$2 -> 2 | S29: =$L$1 -> D | T29: 2 | U29: =$L$1 -> D | V29: 2 | W29: =$L$1 -> D | X29: 2 | Y29: =$L$1 -> D | Z29: 2 | AA29: =$L$1 -> D | AB29: 2 | AC29: =$L$1 -> D | AD29: 2 | AE29: =$L$1 -> D | AF29: 2 | AG29: =$L$1 -> D | AH29: 2 | AI29: =$L$1 -> D | AJ29: 2 | AK29: =$M$1 -> E | AL29: =$I$2 -> 1 | AM29: =$M$1 -> E | AN29: =$I$2 -> 1 | AO29: =$M$1 -> E | AP29: =$I$2 -> 1 | AQ29: =$M$1 -> E | AR29: =$I$2 -> 1 | AS29: =$M$1 -> E | AT29: =$I$2 -> 1 | AU29: =$M$1 -> E | AV29: =$I$2 -> 1 | AW29: =$M$1 -> E | AX29: =$I$2 -> 1 | AY29: =$M$1 -> E | AZ29: =$I$2 -> 1 | BA29: =$M$1 -> E | BB29: =$I$2 -> 1 | BC29: =$M$1 -> E | BD29: =$I$2 -> 1 | BE29: =$M$1 -> E | BF29: =$I$2 -> 1 | BG29: =$M$1 -> E | BH29: =$I$2 -> 1 | BS29: <100 | BV29: <600 | BY29: >=600
E30: Lugo | F30: =$L$1 -> D | G30: =$I$2 -> 1 | H30: 412 | I30: =$L$1 -> D | J30: =$I$2 -> 1 | K30: D | L30: 1 | M30: D | N30: 1 | O30: D | P30: 1 | Q30: D | R30: 1 | S30: D | T30: 1 | U30: D | V30: 1 | W30: D | X30: 1 | Y30: D | Z30: 1 | AA30: D | AB30: 1 | AC30: =$M$1 -> E | AD30: =$I$2 -> 1 | AE30: E | AF30: 1 | AG30: E | AH30: 1 | AI30: E | AJ30: 1 | AK30: E | AL30: 1 | AM30: E | AN30: 1 | AO30: E | AP30: 1 | AQ30: E | AR30: 1 | AS30: E | AT30: 1 | AU30: E | AV30: 1 | AW30: E | AX30: 1 | AY30: E | AZ30: 1 | BA30: E | BB30: 1 | BC30: E | BD30: 1 | BE30: E | BF30: 1 | BG30: E | BH30: 1
E31: Madrid | F31: =$L$1 -> D | G31: =$K$2 -> 3 | H31: 589 | I31: =$K$1 -> C | J31: =$K$2 -> 3 | K31: =$K$1 -> C | L31: =$K$2 -> 3 | M31: =$K$1 -> C | N31: =$K$2 -> 3 | O31: =$K$1 -> C | P31: =$K$2 -> 3 | Q31: =$K$1 -> C | R31: =$K$2 -> 3 | S31: =$K$1 -> C | T31: =$K$2 -> 3 | U31: =$K$1 -> C | V31: =$K$2 -> 3 | W31: =$K$1 -> C | X31: =$K$2 -> 3 | Y31: =$K$1 -> C | Z31: =$K$2 -> 3 | AA31: =$K$1 -> C | AB31: =$K$2 -> 3 | AC31: =$L$1 -> D | AD31: =$K$2 -> 3 | AE31: =$L$1 -> D | AF31: 3 | AG31: =$L$1 -> D | AH31: 3 | AI31: =$L$1 -> D | AJ31: 3 | AK31: =$L$1 -> D | AL31: 3 | AM31: =$L$1 -> D | AN31: 3 | AO31: =$L$1 -> D | AP31: 3 | AQ31: =$L$1 -> D | AR31: 3 | AS31: =$L$1 -> D | AT31: 3 | AU31: =$L$1 -> D | AV31: =$J$2 -> 2 | AW31: =$M$1 -> E | AX31: =$I$2 -> 1 | AY31: =$M$1 -> E | AZ31: =$I$2 -> 1 | BA31: =$M$1 -> E | BB31: =$I$2 -> 1 | BC31: =$M$1 -> E | BD31: =$I$2 -> 1 | BE31: =$M$1 -> E | BF31: =$I$2 -> 1 | BG31: =$M$1 -> E | BH31: =$I$2 -> 1 | BX31: <500 | BY31: >=500
E32: Málaga | F32: =$I$1 -> A | G32: =$K$2 -> 3 | H32: 0 | I32: =$J$1 -> B | J32: =$K$2 -> 3 | K32: B | L32: =$K$2 -> 3 | M32: B | N32: =$K$2 -> 3 | O32: B | P32: =$K$2 -> 3 | Q32: B | R32: =$K$2 -> 3 | S32: B | T32: =$K$2 -> 3 | U32: =$K$1 -> C | V32: =$K$2 -> 3 | W32: =$K$1 -> C | X32: =$K$2 -> 3 | Y32: =$K$1 -> C | Z32: =$K$2 -> 3 | AA32: =$K$1 -> C | AB32: =$K$2 -> 3 | AC32: =$K$1 -> C | AD32: 3 | AE32: C | AF32: 3 | AG32: C | AH32: 3 | AI32: C | AJ32: 3 | AK32: =$L$1 -> D | AL32: 3 | AM32: =$L$1 -> D | AN32: 3 | AO32: =$L$1 -> D | AP32: 3 | AQ32: =$L$1 -> D | AR32: 3 | AS32: =$L$1 -> D | AT32: 3 | AU32: =$L$1 -> D | AV32: =$K$2 -> 3 | AW32: =$L$1 -> D | AX32: 3 | AY32: =$L$1 -> D | AZ32: 3 | BA32: =$L$1 -> D | BB32: 3 | BC32: D | BD32: 3 | BE32: D | BF32: 3 | BG32: D | BH32: 3 | BS32: <500 | BV32: <950 | BW32: <1000 | BY32: >=1000
E33: Melilla | F33: =$I$1 -> A | G33: =$K$2 -> 3 | H33: 130 | I33: =$I$1 -> A | J33: =$K$2 -> 3 | K33: A | L33: =$K$2 -> 3 | M33: A | N33: =$K$2 -> 3 | O33: A | P33: =$K$2 -> 3 | Q33: A | R33: =$K$2 -> 3 | S33: A | T33: =$K$2 -> 3 | U33: A | V33: =$K$2 -> 3 | W33: A | X33: =$K$2 -> 3 | Y33: A | Z33: =$K$2 -> 3 | AA33: A | AB33: =$K$2 -> 3 | AC33: A | AD33: 3 | AE33: A | AF33: 3 | AG33: A | AH33: 3 | AI33: A | AJ33: 3 | AK33: A | AL33: 3 | AM33: A | AN33: 3 | AO33: A | AP33: 3 | AQ33: A | AR33: 3 | AS33: A | AT33: 3 | AU33: A | AV33: 3 | AW33: A | AX33: 3 | AY33: A | AZ33: 3 | BA33: A | BB33: 3 | BC33: A | BD33: 3 | BE33: A | BF33: 3 | BG33: A | BH33: 3 | BO33: <300 | BS33: <700 | BV33: >=700
E34: Murcia | F34: =$J$1 -> B | G34: =$K$2 -> 3 | H34: 25 | I34: =$J$1 -> B | J34: =$K$2 -> 3 | K34: =$J$1 -> B | L34: =$K$2 -> 3 | M34: =$K$1 -> C | N34: =$K$2 -> 3 | O34: =$K$1 -> C | P34: =$K$2 -> 3 | Q34: =$K$1 -> C | R34: =$K$2 -> 3 | S34: =$K$1 -> C | T34: =$K$2 -> 3 | U34: =$K$1 -> C | V34: =$K$2 -> 3 | W34: =$K$1 -> C | X34: =$K$2 -> 3 | Y34: =$K$1 -> C | Z34: =$K$2 -> 3 | AA34: =$K$1 -> C | AB34: =$K$2 -> 3 | AC34: =$K$1 -> C | AD34: 3 | AE34: =$L$1 -> D | AF34: 3 | AG34: D | AH34: 3 | AI34: D | AJ34: 3 | AK34: D | AL34: 3 | AM34: D | AN34: 3 | AO34: D | AP34: 3 | AQ34: D | AR34: 3 | AS34: D | AT34: 3 | AU34: D | AV34: 3 | AW34: D | AX34: 3 | AY34: D | AZ34: 3 | BA34: D | BB34: 3 | BC34: D | BD34: 3 | BE34: D | BF34: 3 | BG34: D | BH34: 3
E35: Orense | F35: =$L$1 -> D | G35: =$J$2 -> 2 | H35: 327 | I35: =$K$1 -> C | J35: =$K$2 -> 3 | K35: =$K$1 -> C | L35: =$K$2 -> 3 | M35: =$K$1 -> C | N35: =$K$2 -> 3 | O35: =$K$1 -> C | P35: =$J$2 -> 2 | Q35: =$K$1 -> C | R35: =$J$2 -> 2 | S35: =$K$1 -> C | T35: =$J$2 -> 2 | U35: =$L$1 -> D | V35: =$J$2 -> 2 | W35: D | X35: 2 | Y35: D | Z35: 2 | AA35: D | AB35: 2 | AC35: D | AD35: 2 | AE35: D | AF35: 2 | AG35: D | AH35: 2 | AI35: D | AJ35: 2 | AK35: D | AL35: 2 | AM35: D | AN35: 2 | AO35: =$M$1 -> E | AP35: =$I$2 -> 1 | AQ35: E | AR35: 1 | AS35: E | AT35: 1 | AU35: E | AV35: 1 | AW35: E | AX35: 1 | AY35: E | AZ35: 1 | BA35: E | BB35: 1 | BC35: E | BD35: 1 | BE35: E | BF35: 1 | BG35: E | BH35: 1 | BT35: <100 | BW35: <300 | BX35: <600 | BY35: >=600
E36: Oviedo | F36: =$L$1 -> D | G36: =$I$2 -> 1 | H36: 214 | I36: =$K$1 -> C | J36: =$I$2 -> 1 | K36: =$L$1 -> D | L36: =$I$2 -> 1 | M36: =$L$1 -> D | N36: =$I$2 -> 1 | O36: =$L$1 -> D | P36: =$I$2 -> 1 | Q36: =$L$1 -> D | R36: =$I$2 -> 1 | S36: =$L$1 -> D | T36: =$I$2 -> 1 | U36: =$L$1 -> D | V36: =$I$2 -> 1 | W36: =$L$1 -> D | X36: =$I$2 -> 1 | Y36: =$L$1 -> D | Z36: =$I$2 -> 1 | AA36: =$L$1 -> D | AB36: =$I$2 -> 1 | AC36: =$L$1 -> D | AD36: =$I$2 -> 1 | AE36: =$M$1 -> E | AF36: =$I$2 -> 1 | AG36: =$M$1 -> E | AH36: =$I$2 -> 1 | AI36: =$M$1 -> E | AJ36: =$I$2 -> 1 | AK36: =$M$1 -> E | AL36: =$I$2 -> 1 | AM36: =$M$1 -> E | AN36: =$I$2 -> 1 | AO36: =$M$1 -> E | AP36: =$I$2 -> 1 | AQ36: =$M$1 -> E | AR36: =$I$2 -> 1 | AS36: =$M$1 -> E | AT36: =$I$2 -> 1 | AU36: =$M$1 -> E | AV36: =$I$2 -> 1 | AW36: =$M$1 -> E | AX36: =$I$2 -> 1 | AY36: =$M$1 -> E | AZ36: =$I$2 -> 1 | BA36: =$M$1 -> E | BB36: =$I$2 -> 1 | BC36: =$M$1 -> E | BD36: =$I$2 -> 1 | BE36: =$M$1 -> E | BF36: =$I$2 -> 1 | BG36: =$M$1 -> E | BH36: =$I$2 -> 1 | BS36: <150 | BT36: <300 | BW36: <800 | BY36: >=800
E37: Palencia | F37: =$L$1 -> D | G37: =$I$2 -> 1 | H37: 722 | I37: =$L$1 -> D | J37: =$I$2 -> 1 | K37: =$L$1 -> D | L37: =$I$2 -> 1 | M37: =$L$1 -> D | N37: =$I$2 -> 1 | O37: =$L$1 -> D | P37: =$I$2 -> 1 | Q37: =$L$1 -> D | R37: =$I$2 -> 1 | S37: =$L$1 -> D | T37: =$I$2 -> 1 | U37: =$L$1 -> D | V37: =$I$2 -> 1 | W37: =$L$1 -> D | X37: =$I$2 -> 1 | Y37: =$L$1 -> D | Z37: =$I$2 -> 1 | AA37: =$L$1 -> D | AB37: =$I$2 -> 1 | AC37: =$L$1 -> D | AD37: =$I$2 -> 1 | AE37: =$L$1 -> D | AF37: =$I$2 -> 1 | AG37: D | AH37: =$I$2 -> 1 | AI37: D | AJ37: =$I$2 -> 1 | AK37: D | AL37: =$I$2 -> 1 | AM37: D | AN37: =$I$2 -> 1 | AO37: =$M$1 -> E | AP37: =$I$2 -> 1 | AQ37: =$M$1 -> E | AR37: =$I$2 -> 1 | AS37: =$M$1 -> E | AT37: =$I$2 -> 1 | AU37: =$M$1 -> E | AV37: =$I$2 -> 1 | AW37: =$M$1 -> E | AX37: =$I$2 -> 1 | AY37: =$M$1 -> E | AZ37: =$I$2 -> 1 | BA37: =$M$1 -> E | BB37: =$I$2 -> 1 | BC37: =$M$1 -> E | BD37: =$I$2 -> 1 | BE37: =$M$1 -> E | BF37: =$I$2 -> 1 | BG37: =$M$1 -> E | BH37: =$I$2 -> 1
E38: LasPalmasdeGranCanaria | F38: Alfa | G38: =$K$2 -> 3 | H38: 114 | I38: =$F$59 -> Alfa | J38: =$K$2 -> 3 | K38: =$F$59 -> Alfa | L38: =$K$2 -> 3 | M38: =$F$59 -> Alfa | N38: =$K$2 -> 3 | O38: =$F$59 -> Alfa | P38: =$K$2 -> 3 | Q38: =$F$59 -> Alfa | R38: =$K$2 -> 3 | S38: =$F$59 -> Alfa | T38: =$K$2 -> 3 | U38: =$F$59 -> Alfa | V38: =$K$2 -> 3 | W38: =$I$1 -> A | X38: =$J$2 -> 2 | Y38: A | Z38: 2 | AA38: A | AB38: 2 | AC38: A | AD38: 2 | AE38: A | AF38: 2 | AG38: A | AH38: 2 | AI38: A | AJ38: 2 | AK38: A | AL38: 2 | AM38: =$J$1 -> B | AN38: =$J$2 -> 2 | AO38: =$J$1 -> B | AP38: 2 | AQ38: =$J$1 -> B | AR38: 2 | AS38: =$J$1 -> B | AT38: 2 | AU38: =$J$1 -> B | AV38: 2 | AW38: =$K$1 -> C | AX38: =$J$2 -> 2 | AY38: C | AZ38: =$J$2 -> 2 | BA38: C | BB38: =$J$2 -> 2 | BC38: C | BD38: =$J$2 -> 2 | BE38: C | BF38: =$J$2 -> 2 | BG38: C | BH38: =$J$2 -> 2 | BX38: <800 | BY38: >=800
E39: PalmadeMallorca | F39: =$J$1 -> B | G39: =$K$2 -> 3 | H39: 1 | I39: =$J$1 -> B | J39: =$K$2 -> 3 | K39: B | L39: 3 | M39: B | N39: 3 | O39: B | P39: 3 | Q39: B | R39: 3 | S39: =$K$1 -> C | T39: =$K$2 -> 3 | U39: =$K$1 -> C | V39: 3 | W39: =$K$1 -> C | X39: 3 | Y39: =$K$1 -> C | Z39: 3 | AA39: =$K$1 -> C | AB39: 3 | AC39: =$K$1 -> C | AD39: 3 | AE39: C | AF39: 3 | AG39: C | AH39: 3 | AI39: C | AJ39: 3 | AK39: C | AL39: 3 | AM39: C | AN39: 3 | AO39: C | AP39: 3 | AQ39: C | AR39: 3 | AS39: C | AT39: 3 | AU39: C | AV39: 3 | AW39: C | AX39: 3 | AY39: C | AZ39: 3 | BA39: C | BB39: 3 | BC39: C | BD39: 3 | BE39: C | BF39: 3 | BG39: C | BH39: 3
E40: Pamplona | F40: =$L$1 -> D | G40: =$I$2 -> 1 | H40: 456 | I40: =$K$1 -> C | J40: =$J$2 -> 2 | K40: =$K$1 -> C | L40: =$J$2 -> 2 | M40: =$L$1 -> D | N40: =$J$2 -> 2 | O40: D | P40: 2 | Q40: D | R40: 2 | S40: D | T40: 2 | U40: =$L$1 -> D | V40: =$I$2 -> 1 | W40: =$L$1 -> D | X40: =$I$2 -> 1 | Y40: =$L$1 -> D | Z40: =$I$2 -> 1 | AA40: =$L$1 -> D | AB40: =$I$2 -> 1 | AC40: =$L$1 -> D | AD40: =$I$2 -> 1 | AE40: =$L$1 -> D | AF40: =$I$2 -> 1 | AG40: =$M$1 -> E | AH40: =$I$2 -> 1 | AI40: =$M$1 -> E | AJ40: =$I$2 -> 1 | AK40: =$M$1 -> E | AL40: =$I$2 -> 1 | AM40: =$M$1 -> E | AN40: =$I$2 -> 1 | AO40: =$M$1 -> E | AP40: =$I$2 -> 1 | AQ40: =$M$1 -> E | AR40: =$I$2 -> 1 | AS40: =$M$1 -> E | AT40: =$I$2 -> 1 | AU40: =$M$1 -> E | AV40: =$I$2 -> 1 | AW40: =$M$1 -> E | AX40: =$I$2 -> 1 | AY40: =$M$1 -> E | AZ40: =$I$2 -> 1 | BA40: =$M$1 -> E | BB40: =$I$2 -> 1 | BC40: =$M$1 -> E | BD40: =$I$2 -> 1 | BE40: =$M$1 -> E | BF40: =$I$2 -> 1 | BG40: =$M$1 -> E | BH40: =$I$2 -> 1
E41: Pontevedra | F41: =$K$1 -> C | G41: =$I$2 -> 1 | H41: 77 | I41: =$K$1 -> C | J41: =$I$2 -> 1 | K41: =$K$1 -> C | L41: 1 | M41: =$K$1 -> C | N41: 1 | O41: =$K$1 -> C | P41: 1 | Q41: =$K$1 -> C | R41: 1 | S41: =$K$1 -> C | T41: 1 | U41: =$K$1 -> C | V41: 1 | W41: =$L$1 -> D | X41: =$I$2 -> 1 | Y41: =$L$1 -> D | Z41: =$I$2 -> 1 | AA41: =$L$1 -> D | AB41: =$I$2 -> 1 | AC41: =$L$1 -> D | AD41: =$I$2 -> 1 | AE41: =$L$1 -> D | AF41: =$I$2 -> 1 | AG41: =$L$1 -> D | AH41: =$I$2 -> 1 | AI41: =$L$1 -> D | AJ41: =$I$2 -> 1 | AK41: =$L$1 -> D | AL41: =$I$2 -> 1 | AM41: =$L$1 -> D | AN41: =$I$2 -> 1 | AO41: =$L$1 -> D | AP41: =$I$2 -> 1 | AQ41: =$L$1 -> D | AR41: =$I$2 -> 1 | AS41: =$L$1 -> D | AT41: =$I$2 -> 1 | AU41: =$L$1 -> D | AV41: =$I$2 -> 1 | AW41: D | AX41: =$I$2 -> 1 | AY41: D | AZ41: =$I$2 -> 1 | BA41: D | BB41: =$I$2 -> 1 | BC41: D | BD41: =$I$2 -> 1 | BE41: D | BF41: =$I$2 -> 1 | BG41: D | BH41: =$I$2 -> 1 | BU41: <350 | BX41: >=350
E42: Salamanca | F42: =$L$1 -> D | G42: =$J$2 -> 2 | H42: 770 | I42: =$L$1 -> D | J42: =$J$2 -> 2 | K42: D | L42: 2 | M42: D | N42: 2 | O42: D | P42: 2 | Q42: D | R42: 2 | S42: D | T42: 2 | U42: D | V42: 2 | W42: D | X42: 2 | Y42: D | Z42: 2 | AA42: D | AB42: 2 | AC42: D | AD42: 2 | AE42: D | AF42: 2 | AG42: D | AH42: 2 | AI42: D | AJ42: 2 | AK42: D | AL42: 2 | AM42: D | AN42: 2 | AO42: =$M$1 -> E | AP42: =$I$2 -> 1 | AQ42: =$M$1 -> E | AR42: =$I$2 -> 1 | AS42: =$M$1 -> E | AT42: =$I$2 -> 1 | AU42: =$M$1 -> E | AV42: =$I$2 -> 1 | AW42: =$M$1 -> E | AX42: =$I$2 -> 1 | AY42: =$M$1 -> E | AZ42: =$I$2 -> 1 | BA42: =$M$1 -> E | BB42: =$I$2 -> 1 | BC42: =$M$1 -> E | BD42: =$I$2 -> 1 | BE42: =$M$1 -> E | BF42: =$I$2 -> 1 | BG42: =$M$1 -> E | BH42: =$I$2 -> 1 | BW42: <800 | BY42: >=800
E43: SanSebastián | F43: =$L$1 -> D | G43: =$I$2 -> 1 | H43: 5 | I43: =$L$1 -> D | J43: =$I$2 -> 1 | K43: =$L$1 -> D | L43: =$I$2 -> 1 | M43: =$L$1 -> D | N43: =$I$2 -> 1 | O43: =$L$1 -> D | P43: =$I$2 -> 1 | Q43: =$L$1 -> D | R43: =$I$2 -> 1 | S43: =$L$1 -> D | T43: =$I$2 -> 1 | U43: =$L$1 -> D | V43: =$I$2 -> 1 | W43: =$L$1 -> D | X43: =$I$2 -> 1 | Y43: =$M$1 -> E | Z43: =$I$2 -> 1 | AA43: =$M$1 -> E | AB43: =$I$2 -> 1 | AC43: =$M$1 -> E | AD43: =$I$2 -> 1 | AE43: =$M$1 -> E | AF43: =$I$2 -> 1 | AG43: =$M$1 -> E | AH43: =$I$2 -> 1 | AI43: =$M$1 -> E | AJ43: =$I$2 -> 1 | AK43: =$M$1 -> E | AL43: =$I$2 -> 1 | AM43: =$M$1 -> E | AN43: =$I$2 -> 1 | AO43: =$M$1 -> E | AP43: =$I$2 -> 1 | AQ43: =$M$1 -> E | AR43: =$I$2 -> 1 | AS43: =$M$1 -> E | AT43: =$I$2 -> 1 | AU43: =$M$1 -> E | AV43: =$I$2 -> 1 | AW43: =$M$1 -> E | AX43: =$I$2 -> 1 | AY43: =$M$1 -> E | AZ43: =$I$2 -> 1 | BA43: =$M$1 -> E | BB43: =$I$2 -> 1 | BC43: =$M$1 -> E | BD43: =$I$2 -> 1 | BE43: =$M$1 -> E | BF43: =$I$2 -> 1 | BG43: =$M$1 -> E | BH43: =$I$2 -> 1
E44: SantaCruzDeTenerife | F44: Alfa | G44: =$K$2 -> 3 | H44: 0 | I44: =$F$60 -> Alfa | J44: =$K$2 -> 3 | K44: =$F$60 -> Alfa | L44: =$K$2 -> 3 | M44: =$F$60 -> Alfa | N44: =$K$2 -> 3 | O44: =$F$60 -> Alfa | P44: =$K$2 -> 3 | Q44: =$F$60 -> Alfa | R44: =$K$2 -> 3 | S44: =$F$60 -> Alfa | T44: =$K$2 -> 3 | U44: =$F$60 -> Alfa | V44: =$K$2 -> 3 | W44: =$I$1 -> A | X44: =$J$2 -> 2 | Y44: A | Z44: 2 | AA44: A | AB44: 2 | AC44: A | AD44: 2 | AE44: A | AF44: 2 | AG44: A | AH44: 2 | AI44: A | AJ44: 2 | AK44: A | AL44: 2 | AM44: =$J$1 -> B | AN44: =$J$2 -> 2 | AO44: =$J$1 -> B | AP44: 2 | AQ44: =$J$1 -> B | AR44: 2 | AS44: =$J$1 -> B | AT44: 2 | AU44: =$J$1 -> B | AV44: 2 | AW44: =$K$1 -> C | AX44: =$J$2 -> 2 | AY44: C | AZ44: =$J$2 -> 2 | BA44: C | BB44: =$J$2 -> 2 | BC44: C | BD44: =$J$2 -> 2 | BE44: C | BF44: =$J$2 -> 2 | BG44: C | BH44: =$J$2 -> 2
E45: Santander | F45: =$K$1 -> C | G45: =$I$2 -> 1 | H45: 1 | I45: =$K$1 -> C | J45: =$I$2 -> 1 | K45: =$K$1 -> C | L45: =$I$2 -> 1 | M45: =$K$1 -> C | N45: =$I$2 -> 1 | O45: =$L$1 -> D | P45: =$I$2 -> 1 | Q45: =$L$1 -> D | R45: =$I$2 -> 1 | S45: =$L$1 -> D | T45: =$I$2 -> 1 | U45: =$L$1 -> D | V45: =$I$2 -> 1 | W45: =$L$1 -> D | X45: =$I$2 -> 1 | Y45: =$L$1 -> D | Z45: =$I$2 -> 1 | AA45: =$L$1 -> D | AB45: =$I$2 -> 1 | AC45: =$L$1 -> D | AD45: =$I$2 -> 1 | AE45: =$L$1 -> D | AF45: =$I$2 -> 1 | AG45: =$L$1 -> D | AH45: =$I$2 -> 1 | AI45: =$M$1 -> E | AJ45: =$I$2 -> 1 | AK45: =$M$1 -> E | AL45: =$I$2 -> 1 | AM45: =$M$1 -> E | AN45: =$I$2 -> 1 | AO45: =$M$1 -> E | AP45: =$I$2 -> 1 | AQ45: =$M$1 -> E | AR45: =$I$2 -> 1 | AS45: =$M$1 -> E | AT45: =$I$2 -> 1 | AU45: =$M$1 -> E | AV45: =$I$2 -> 1 | AW45: =$M$1 -> E | AX45: =$I$2 -> 1 | AY45: =$M$1 -> E | AZ45: =$I$2 -> 1 | BA45: =$M$1 -> E | BB45: =$I$2 -> 1 | BC45: =$M$1 -> E | BD45: =$I$2 -> 1 | BE45: =$M$1 -> E | BF45: =$I$2 -> 1 | BG45: =$M$1 -> E | BH45: =$I$2 -> 1 | BW45: <1000 | BY45: >=1000
E46: Segovia | F46: =$L$1 -> D | G46: =$J$2 -> 2 | H46: 1013 | I46: =$L$1 -> D | J46: =$J$2 -> 2 | K46: =$L$1 -> D | L46: =$J$2 -> 2 | M46: =$L$1 -> D | N46: =$J$2 -> 2 | O46: =$L$1 -> D | P46: =$J$2 -> 2 | Q46: =$L$1 -> D | R46: =$J$2 -> 2 | S46: =$L$1 -> D | T46: =$J$2 -> 2 | U46: =$L$1 -> D | V46: =$J$2 -> 2 | W46: =$L$1 -> D | X46: =$J$2 -> 2 | Y46: =$L$1 -> D | Z46: =$J$2 -> 2 | AA46: =$L$1 -> D | AB46: =$J$2 -> 2 | AC46: =$L$1 -> D | AD46: =$J$2 -> 2 | AE46: =$L$1 -> D | AF46: =$J$2 -> 2 | AG46: =$L$1 -> D | AH46: =$J$2 -> 2 | AI46: =$L$1 -> D | AJ46: =$J$2 -> 2 | AK46: =$L$1 -> D | AL46: =$J$2 -> 2 | AM46: =$L$1 -> D | AN46: =$J$2 -> 2 | AO46: =$L$1 -> D | AP46: =$J$2 -> 2 | AQ46: =$L$1 -> D | AR46: =$J$2 -> 2 | AS46: =$L$1 -> D | AT46: =$J$2 -> 2 | AU46: =$L$1 -> D | AV46: =$J$2 -> 2 | AW46: =$M$1 -> E | AX46: =$I$2 -> 1 | AY46: =$M$1 -> E | AZ46: =$I$2 -> 1 | BA46: =$M$1 -> E | BB46: =$I$2 -> 1 | BC46: =$M$1 -> E | BD46: =$I$2 -> 1 | BE46: =$M$1 -> E | BF46: =$I$2 -> 1 | BG46: =$M$1 -> E | BH46: =$I$2 -> 1 | BN46: <200 | BR46: >=200
E47: Sevilla | F47: =$J$1 -> B | G47: =$L$2 -> 4 | H47: 9 | I47: =$J$1 -> B | J47: =$L$2 -> 4 | K47: =$J$1 -> B | L47: =$L$2 -> 4 | M47: =$J$1 -> B | N47: =$L$2 -> 4 | O47: =$J$1 -> B | P47: =$L$2 -> 4 | Q47: =$K$1 -> C | R47: =$L$2 -> 4 | S47: =$K$1 -> C | T47: =$L$2 -> 4 | U47: =$K$1 -> C | V47: =$L$2 -> 4 | W47: =$K$1 -> C | X47: =$L$2 -> 4 | Y47: =$K$1 -> C | Z47: =$L$2 -> 4 | AA47: =$K$1 -> C | AB47: =$L$2 -> 4 | AC47: =$K$1 -> C | AD47: =$L$2 -> 4 | AE47: =$K$1 -> C | AF47: =$L$2 -> 4 | AG47: =$K$1 -> C | AH47: =$L$2 -> 4 | AI47: =$K$1 -> C | AJ47: =$L$2 -> 4 | AK47: =$K$1 -> C | AL47: =$L$2 -> 4 | AM47: =$K$1 -> C | AN47: =$L$2 -> 4 | AO47: =$K$1 -> C | AP47: =$L$2 -> 4 | AQ47: =$K$1 -> C | AR47: =$L$2 -> 4 | AS47: =$K$1 -> C | AT47: =$L$2 -> 4 | AU47: =$K$1 -> C | AV47: =$L$2 -> 4 | AW47: =$K$1 -> C | AX47: =$L$2 -> 4 | AY47: =$K$1 -> C | AZ47: =$L$2 -> 4 | BA47: =$K$1 -> C | BB47: =$L$2 -> 4 | BC47: =$K$1 -> C | BD47: =$L$2 -> 4 | BE47: =$K$1 -> C | BF47: =$L$2 -> 4 | BG47: =$K$1 -> C | BH47: =$L$2 -> 4 | BW47: <750 | BX47: <800 | BY47: >=800
E48: Soria | F48: =$M$1 -> E | G48: =$I$2 -> 1 | H48: 984 | I48: =$L$1 -> D | J48: =$J$2 -> 2 | K48: =$L$1 -> D | L48: =$J$2 -> 2 | M48: =$L$1 -> D | N48: =$J$2 -> 2 | O48: =$L$1 -> D | P48: =$J$2 -> 2 | Q48: =$L$1 -> D | R48: =$J$2 -> 2 | S48: =$L$1 -> D | T48: =$J$2 -> 2 | U48: =$L$1 -> D | V48: =$J$2 -> 2 | W48: =$L$1 -> D | X48: =$J$2 -> 2 | Y48: =$L$1 -> D | Z48: =$J$2 -> 2 | AA48: =$L$1 -> D | AB48: =$J$2 -> 2 | AC48: =$L$1 -> D | AD48: =$J$2 -> 2 | AE48: =$L$1 -> D | AF48: =$J$2 -> 2 | AG48: =$L$1 -> D | AH48: =$J$2 -> 2 | AI48: =$L$1 -> D | AJ48: =$J$2 -> 2 | AK48: =$L$1 -> D | AL48: =$J$2 -> 2 | AM48: =$L$1 -> D | AN48: =$I$2 -> 1 | AO48: =$M$1 -> E | AP48: =$I$2 -> 1 | AQ48: =$M$1 -> E | AR48: =$I$2 -> 1 | AS48: =$M$1 -> E | AT48: =$I$2 -> 1 | AU48: =$M$1 -> E | AV48: =$I$2 -> 1 | AW48: =$M$1 -> E | AX48: =$I$2 -> 1 | AY48: =$M$1 -> E | AZ48: =$I$2 -> 1 | BA48: =$M$1 -> E | BB48: =$I$2 -> 1 | BC48: =$M$1 -> E | BD48: =$I$2 -> 1 | BE48: =$M$1 -> E | BF48: =$I$2 -> 1 | BG48: =$M$1 -> E | BH48: =$I$2 -> 1 | BO48: <50 | BS48: <500 | BV48: >=500
E49: Tarragona | F49: =$J$1 -> B | G49: =$K$2 -> 3 | H49: 1 | I49: =$J$1 -> B | J49: =$K$2 -> 3 | K49: =$K$1 -> C | L49: =$K$2 -> 3 | M49: C | N49: =$K$2 -> 3 | O49: C | P49: =$K$2 -> 3 | Q49: C | R49: =$K$2 -> 3 | S49: C | T49: =$K$2 -> 3 | U49: C | V49: =$K$2 -> 3 | W49: C | X49: =$K$2 -> 3 | Y49: C | Z49: =$K$2 -> 3 | AA49: C | AB49: =$K$2 -> 3 | AC49: D | AD49: =$K$2 -> 3 | AE49: D | AF49: 3 | AG49: D | AH49: 3 | AI49: D | AJ49: 3 | AK49: D | AL49: 3 | AM49: D | AN49: 3 | AO49: =$L$1 -> D | AP49: 3 | AQ49: =$L$1 -> D | AR49: 3 | AS49: =$L$1 -> D | AT49: 3 | AU49: =$L$1 -> D | AV49: 3 | AW49: =$L$1 -> D | AX49: 3 | AY49: D | AZ49: 3 | BA49: D | BB49: 3 | BC49: D | BD49: 3 | BE49: D | BF49: 3 | BG49: D | BH49: 3 | BS49: <450 | BT49: <500 | BW49: <1000 | BY49: >=1000
E50: Teruel | F50: =$L$1 -> D | G50: =$J$2 -> 2 | H50: 995 | I50: C | J50: =$K$2 -> 3 | K50: C | L50: =$K$2 -> 3 | M50: C | N50: =$K$2 -> 3 | O50: C | P50: =$K$2 -> 3 | Q50: C | R50: =$K$2 -> 3 | S50: C | T50: =$K$2 -> 3 | U50: C | V50: =$K$2 -> 3 | W50: C | X50: =$K$2 -> 3 | Y50: C | Z50: =$K$2 -> 3 | AA50: C | AB50: =$J$2 -> 2 | AC50: D | AD50: =$J$2 -> 2 | AE50: D | AF50: =$J$2 -> 2 | AG50: D | AH50: =$J$2 -> 2 | AI50: D | AJ50: =$J$2 -> 2 | AK50: D | AL50: =$J$2 -> 2 | AM50: D | AN50: =$J$2 -> 2 | AO50: =$L$1 -> D | AP50: =$J$2 -> 2 | AQ50: =$L$1 -> D | AR50: =$J$2 -> 2 | AS50: =$L$1 -> D | AT50: =$J$2 -> 2 | AU50: =$L$1 -> D | AV50: =$J$2 -> 2 | AW50: =$M$1 -> E | AX50: =$I$2 -> 1 | AY50: =$M$1 -> E | AZ50: =$I$2 -> 1 | BA50: =$M$1 -> E | BB50: =$I$2 -> 1 | BC50: =$M$1 -> E | BD50: =$I$2 -> 1 | BE50: =$M$1 -> E | BF50: =$I$2 -> 1 | BG50: =$M$1 -> E | BH50: =$I$2 -> 1 | BR50: <500 | BV50: >=500
E51: Toledo | F51: =$K$1 -> C | G51: =$L$2 -> 4 | H51: 445 | I51: C | J51: =$L$2 -> 4 | K51: C | L51: =$L$2 -> 4 | M51: C | N51: =$L$2 -> 4 | O51: C | P51: =$L$2 -> 4 | Q51: C | R51: =$L$2 -> 4 | S51: C | T51: =$L$2 -> 4 | U51: C | V51: =$L$2 -> 4 | W51: C | X51: =$L$2 -> 4 | Y51: C | Z51: =$L$2 -> 4 | AA51: C | AB51: =$L$2 -> 4 | AC51: D | AD51: =$K$2 -> 3 | AE51: D | AF51: 3 | AG51: D | AH51: 3 | AI51: D | AJ51: 3 | AK51: D | AL51: 3 | AM51: D | AN51: 3 | AO51: =$L$1 -> D | AP51: 3 | AQ51: =$L$1 -> D | AR51: 3 | AS51: =$L$1 -> D | AT51: 3 | AU51: =$L$1 -> D | AV51: 3 | AW51: =$L$1 -> D | AX51: 3 | AY51: D | AZ51: 3 | BA51: D | BB51: 3 | BC51: D | BD51: 3 | BE51: D | BF51: 3 | BG51: D | BH51: 3 | BO51: <50 | BS51: <500 | BW51: <950 | BY51: >=950
E52: Valencia | F52: =$J$1 -> B | G52: =$K$2 -> 3 | H52: 8 | I52: =$J$1 -> B | J52: =$K$2 -> 3 | K52: C | L52: =$K$2 -> 3 | M52: C | N52: =$K$2 -> 3 | O52: C | P52: =$K$2 -> 3 | Q52: C | R52: =$K$2 -> 3 | S52: C | T52: =$K$2 -> 3 | U52: C | V52: =$K$2 -> 3 | W52: C | X52: =$K$2 -> 3 | Y52: C | Z52: =$K$2 -> 3 | AA52: C | AB52: =$K$2 -> 3 | AC52: D | AD52: =$J$2 -> 2 | AE52: D | AF52: =$J$2 -> 2 | AG52: D | AH52: =$J$2 -> 2 | AI52: D | AJ52: =$J$2 -> 2 | AK52: D | AL52: =$J$2 -> 2 | AM52: D | AN52: =$J$2 -> 2 | AO52: =$L$1 -> D | AP52: =$J$2 -> 2 | AQ52: =$L$1 -> D | AR52: =$J$2 -> 2 | AS52: =$L$1 -> D | AT52: =$J$2 -> 2 | AU52: =$M$1 -> E | AV52: =$I$2 -> 1 | AW52: =$M$1 -> E | AX52: =$I$2 -> 1 | AY52: =$M$1 -> E | AZ52: =$I$2 -> 1 | BA52: =$M$1 -> E | BB52: =$I$2 -> 1 | BC52: =$M$1 -> E | BD52: =$I$2 -> 1 | BE52: =$M$1 -> E | BF52: =$I$2 -> 1 | BG52: =$M$1 -> E | BH52: =$I$2 -> 1 | BW52: <800 | BY52: >=800
E53: Valladolid | F53: =$L$1 -> D | G53: =$J$2 -> 2 | H53: 704 | I53: =$L$1 -> D | J53: =$J$2 -> 2 | K53: =$L$1 -> D | L53: =$J$2 -> 2 | M53: =$L$1 -> D | N53: =$J$2 -> 2 | O53: =$L$1 -> D | P53: =$J$2 -> 2 | Q53: =$L$1 -> D | R53: =$J$2 -> 2 | S53: =$L$1 -> D | T53: =$J$2 -> 2 | U53: =$L$1 -> D | V53: =$J$2 -> 2 | W53: =$L$1 -> D | X53: =$J$2 -> 2 | Y53: =$L$1 -> D | Z53: =$J$2 -> 2 | AA53: =$L$1 -> D | AB53: =$J$2 -> 2 | AC53: D | AD53: =$J$2 -> 2 | AE53: D | AF53: =$J$2 -> 2 | AG53: D | AH53: =$J$2 -> 2 | AI53: D | AJ53: =$J$2 -> 2 | AK53: D | AL53: =$J$2 -> 2 | AM53: D | AN53: =$J$2 -> 2 | AO53: =$M$1 -> E | AP53: =$I$2 -> 1 | AQ53: =$M$1 -> E | AR53: =$I$2 -> 1 | AS53: =$M$1 -> E | AT53: =$I$2 -> 1 | AU53: =$M$1 -> E | AV53: =$I$2 -> 1 | AW53: =$M$1 -> E | AX53: =$I$2 -> 1 | AY53: =$M$1 -> E | AZ53: =$I$2 -> 1 | BA53: =$M$1 -> E | BB53: =$I$2 -> 1 | BC53: =$M$1 -> E | BD53: =$I$2 -> 1 | BE53: =$M$1 -> E | BF53: =$I$2 -> 1 | BG53: =$M$1 -> E | BH53: =$I$2 -> 1
E54: Vitoria | F54: =$L$1 -> D | G54: =$I$2 -> 1 | H54: 512 | I54: =$L$1 -> D | J54: =$I$2 -> 1 | K54: =$L$1 -> D | L54: 1 | M54: =$L$1 -> D | N54: 1 | O54: =$L$1 -> D | P54: 1 | Q54: =$L$1 -> D | R54: 1 | S54: =$L$1 -> D | T54: 1 | U54: =$L$1 -> D | V54: 1 | W54: =$L$1 -> D | X54: 1 | Y54: =$L$1 -> D | Z54: 1 | AA54: =$L$1 -> D | AB54: 1 | AC54: =$M$1 -> E | AD54: =$I$2 -> 1 | AE54: =$M$1 -> E | AF54: =$I$2 -> 1 | AG54: =$M$1 -> E | AH54: =$I$2 -> 1 | AI54: =$M$1 -> E | AJ54: =$I$2 -> 1 | AK54: =$M$1 -> E | AL54: =$I$2 -> 1 | AM54: =$M$1 -> E | AN54: =$I$2 -> 1 | AO54: =$M$1 -> E | AP54: =$I$2 -> 1 | AQ54: =$M$1 -> E | AR54: =$I$2 -> 1 | AS54: =$M$1 -> E | AT54: =$I$2 -> 1 | AU54: =$M$1 -> E | AV54: =$I$2 -> 1 | AW54: =$M$1 -> E | AX54: =$I$2 -> 1 | AY54: =$M$1 -> E | AZ54: =$I$2 -> 1 | BA54: =$M$1 -> E | BB54: =$I$2 -> 1 | BC54: =$M$1 -> E | BD54: =$I$2 -> 1 | BE54: =$M$1 -> E | BF54: =$I$2 -> 1 | BG54: =$M$1 -> E | BH54: =$I$2 -> 1 | BW54: <800 | BY54: >=800
E55: Zamora | F55: =$L$1 -> D | G55: =$J$2 -> 2 | H55: 617 | I55: =$L$1 -> D | J55: =$J$2 -> 2 | K55: =$L$1 -> D | L55: =$J$2 -> 2 | M55: =$L$1 -> D | N55: =$J$2 -> 2 | O55: =$L$1 -> D | P55: =$J$2 -> 2 | Q55: =$L$1 -> D | R55: =$J$2 -> 2 | S55: =$L$1 -> D | T55: =$J$2 -> 2 | U55: =$L$1 -> D | V55: =$J$2 -> 2 | W55: =$L$1 -> D | X55: =$J$2 -> 2 | Y55: =$L$1 -> D | Z55: =$J$2 -> 2 | AA55: =$L$1 -> D | AB55: =$J$2 -> 2 | AC55: =$L$1 -> D | AD55: =$J$2 -> 2 | AE55: =$L$1 -> D | AF55: =$J$2 -> 2 | AG55: =$L$1 -> D | AH55: =$J$2 -> 2 | AI55: =$L$1 -> D | AJ55: =$J$2 -> 2 | AK55: =$L$1 -> D | AL55: =$J$2 -> 2 | AM55: =$L$1 -> D | AN55: =$J$2 -> 2 | AO55: =$M$1 -> E | AP55: =$I$2 -> 1 | AQ55: =$M$1 -> E | AR55: =$I$2 -> 1 | AS55: =$M$1 -> E | AT55: =$I$2 -> 1 | AU55: =$M$1 -> E | AV55: =$I$2 -> 1 | AW55: =$M$1 -> E | AX55: =$I$2 -> 1 | AY55: =$M$1 -> E | AZ55: =$I$2 -> 1 | BA55: =$M$1 -> E | BB55: =$I$2 -> 1 | BC55: =$M$1 -> E | BD55: =$I$2 -> 1 | BE55: =$M$1 -> E | BF55: =$I$2 -> 1 | BG55: =$M$1 -> E | BH55: =$I$2 -> 1 | BS55: <200 | BV55: <650 | BY55: >=650
E56: Zaragoza | F56: =$L$1 -> D | G56: =$K$2 -> 3 | H56: 207 | I56: =$K$1 -> C | J56: =$K$2 -> 3 | K56: C | L56: 3 | M56: C | N56: 3 | O56: C | P56: 3 | Q56: =$L$1 -> D | R56: =$K$2 -> 3 | S56: =$L$1 -> D | T56: 3 | U56: =$L$1 -> D | V56: 3 | W56: =$L$1 -> D | X56: 3 | Y56: =$L$1 -> D | Z56: 3 | AA56: =$L$1 -> D | AB56: 3 | AC56: =$L$1 -> D | AD56: 3 | AE56: =$L$1 -> D | AF56: 3 | AG56: =$L$1 -> D | AH56: 3 | AI56: =$M$1 -> E | AJ56: =$I$2 -> 1 | AK56: =$M$1 -> E | AL56: =$I$2 -> 1 | AM56: =$M$1 -> E | AN56: =$I$2 -> 1 | AO56: =$M$1 -> E | AP56: =$I$2 -> 1 | AQ56: =$M$1 -> E | AR56: =$I$2 -> 1 | AS56: =$M$1 -> E | AT56: =$I$2 -> 1 | AU56: =$M$1 -> E | AV56: =$I$2 -> 1 | AW56: =$M$1 -> E | AX56: =$I$2 -> 1 | AY56: =$M$1 -> E | AZ56: =$I$2 -> 1 | BA56: =$M$1 -> E | BB56: =$I$2 -> 1 | BC56: =$M$1 -> E | BD56: =$I$2 -> 1 | BE56: =$M$1 -> E | BF56: =$I$2 -> 1 | BG56: =$M$1 -> E | BH56: =$I$2 -> 1
E58: CAPITAL | F58: Z.C. INVIERNO | G58: Z.C. VERANO | H58: ALTITUD | I58: 0-50 | K58: 50-100 | M58: 100-150 | O58: 150-200 | Q58: 200-250 | S58: 250-300 | U58: 300-350 | W58: 350-400 | Y58: 400-450 | AA58: 450-500 | AC58: 500-550 | AE58: 550-600 | AG58: 600-650 | AI58: 650-700 | AK58: 700-750 | AM58: 750-800 | AO58: 800-850 | AQ58: 850-900 | AS58: 900-950 | AU58: 950-1000 | AW58: 1000-1050 | AY58: 1100-1150 | BA58: 1150-1200 | BC58: 1200-1250 | BE58: 1250-1300 | BG58: >=1300
E59: Palmas de Gran Canaria, Las | F59: Alfa | G59: =$K$2 -> 3 | H59: 114 | I59: =$F$59 -> Alfa | J59: =$K$2 -> 3 | K59: =$F$59 -> Alfa | L59: =$K$2 -> 3 | M59: =$F$59 -> Alfa | N59: =$K$2 -> 3 | O59: =$F$59 -> Alfa | P59: =$K$2 -> 3 | Q59: =$F$59 -> Alfa | R59: =$K$2 -> 3 | S59: =$F$59 -> Alfa | T59: =$K$2 -> 3 | U59: =$F$59 -> Alfa | V59: =$K$2 -> 3 | W59: =$I$1 -> A | X59: =$J$2 -> 2 | Y59: A | Z59: 2 | AA59: A | AB59: 2 | AC59: A | AD59: 2 | AE59: A | AF59: 2 | AG59: A | AH59: 2 | AI59: A | AJ59: 2 | AK59: A | AL59: 2 | AM59: =$J$1 -> B | AN59: =$J$2 -> 2 | AO59: =$J$1 -> B | AP59: 2 | AQ59: =$J$1 -> B | AR59: 2 | AS59: =$J$1 -> B | AT59: 2 | AU59: =$J$1 -> B | AV59: 2 | AW59: =$K$1 -> C | AX59: =$J$2 -> 2 | AY59: C | AZ59: =$J$2 -> 2 | BA59: C | BB59: =$J$2 -> 2 | BC59: C | BD59: =$J$2 -> 2 | BE59: C | BF59: =$J$2 -> 2 | BG59: C | BH59: =$J$2 -> 2
E60: Santa Cruz de Tenerife | F60: =$F$59 -> Alfa | G60: =$K$2 -> 3 | H60: 0 | I60: =$F$59 -> Alfa | J60: =$K$2 -> 3 | K60: =$F$59 -> Alfa | L60: =$K$2 -> 3 | M60: =$F$59 -> Alfa | N60: =$K$2 -> 3 | O60: =$F$59 -> Alfa | P60: =$K$2 -> 3 | Q60: =$F$59 -> Alfa | R60: =$K$2 -> 3 | S60: =$F$59 -> Alfa | T60: =$K$2 -> 3 | U60: =$F$59 -> Alfa | V60: =$K$2 -> 3 | W60: A | X60: 2 | Y60: A | Z60: 2 | AA60: A | AB60: 2 | AC60: A | AD60: 2 | AE60: A | AF60: 2 | AG60: A | AH60: 2 | AI60: A | AJ60: 2 | AK60: A | AL60: 2 | AM60: =$J$1 -> B | AN60: 2 | AO60: =$J$1 -> B | AP60: 2 | AQ60: =$J$1 -> B | AR60: 2 | AS60: =$J$1 -> B | AT60: 2 | AU60: =$J$1 -> B | AV60: 2 | AW60: C | AX60: =$J$2 -> 2 | AY60: C | AZ60: =$J$2 -> 2 | BA60: C | BB60: =$J$2 -> 2 | BC60: C | BD60: =$J$2 -> 2 | BE60: C | BF60: =$J$2 -> 2 | BG60: C | BH60: =$J$2 -> 2

Sheet DG
C2: VERDE Edificios 2020 (Residencial privado) Nueva Edificación, Rehabilitación, Edificio Existente y Mixto
E3: DATOS GENERALES
D5: Datos de edificio
E8: Nombre del edificio
E10: Localidad
E12: Comunidad Autónoma
E14: Capital de Provincia
E16: Altura sobre el nivel del mar
E18: Zona climática de la localidad | F18: =CONCATENATE('zona clima'!C10,'zona clima'!C11) -> 
L19: Residencial colectivo
E20: Superficie construida total (m2)* | L20: Unifamiliar
E21: *Descontando plantas bajo rasante y aparcamientos | L21: Urbanizaciones
L22: Vivienda en un edificio
E23: Superficie útil de los espacios habitables del edificio (m2)* | L23: Edificios administrativos
L24: Equipamiento público
E25: Número de viviendas | L25: Edificios docentes
L26: Edificios comerciales
E27: Perfil de uso | L27: Alojamiento y hospedaje
L28: Servicios de restauración
E29: Tipo de actuación | L29: Industria ligera o logística
L30: Local o parte de un edificio
E31: Superficie de ampliación (equiparable a nueva edificación):
E33: Superficie rehabilitada
E35: Superficie de edificio existente sobre el que no se interviene:
L37: Nueva edificación
D38: Ajustes de la herramienta | L38: Rehabilitación
L39: Edificio existente
L40: Mixto
E41: ¿El edificio dispone de plazas de aparcamiento?
E43: Superficie libre de parcela
E45: Superficie ajardinada | L45: Sí
L46: No
E47: ¿El edificio dispone de sustancias refrigerantes en su instalación de climatización? | L47: No aplica
L48: No
E49: ¿El edificio se sitúa en una isla? | L49: No aplica
D52: Datos del promotor y equipo de proyecto
E55: Promotor
E57: Contacto promotor
E59: Equipo redactor
E61: Fecha de proyecto
E63: Fecha de construcción
D66: Datos del Evaluador Acreditado
E69: Nombre
E71: Apellidos
E73: Email
E75: Teléfono de contacto
D78: Datos de la certificación
E81: Código de la certifiacción
L82: Comercial | M82: Obra construida
E83: Fase de la certificación | M83: Proyecto de ejecución
M84: Obra construida
E85: Fecha de entrega de la evaluación
E87: Dirección postal de entrega de la certificación
D92: Documentos Justificativos | N92: a
N93: r
E95: DG 01
E97: DG 02
E99: DG 03
E101: DG 04
E103: DG 05
E105: DG 06
E107: DG 07
E109: DG 08
H394: a

Sheet CA
C2: VERDE Edificios 2020 Residencial privado Nueva Edificación, Rehabilitación, Edificio Existente y Mixto
F3: CRITERIOS APLICABLES
D4: NOTA: Cuando la celda de marcado aparece en blanco, el criterio no aplica por la tipología del edificio o el tipo de actuación indicados en la pestaña de Datos Generales.
C5: ='Matriz VERDE-GBCe'!U6 -> PE | E5: ='Matriz VERDE-GBCe'!V6 -> Parcela y emplazamiento | G5: =SUM(G9:G25) -> 0.1599859921
D7: Criterios
E9: ='Matriz VERDE-GBCe'!V7 -> PE 01 | F9: =VLOOKUP(E9,'Matriz VERDE-GBCe'!$V$6:W$55,2,FALSE) -> Proximidad al transporte publico. | G9: =VLOOKUP(E9,'Matriz VERDE-GBCe'!$V$6:AX$59,3,FALSE) -> 0.01500457949 | H9: 1 | I9: 1
E11: ='Matriz VERDE-GBCe'!V8 -> PE 02 | F11: =VLOOKUP(E11,'Matriz VERDE-GBCe'!$V$6:W$55,2,FALSE) -> Proximidad a equipamiento y servicios. | G11: =VLOOKUP(E11,'Matriz VERDE-GBCe'!$V$6:AX$59,3,FALSE) -> 0.01414255697 | H11: 1 | I11: 1
E13: ='Matriz VERDE-GBCe'!V9 -> PE 03 | F13: =VLOOKUP(E13,'Matriz VERDE-GBCe'!$V$6:W$55,2,FALSE) -> Facilidades para la bicicleta. | G13: =VLOOKUP(E13,'Matriz VERDE-GBCe'!$V$6:AX$59,3,FALSE) -> 0.01710575939 | H13: 1 | I13: 1
E15: ='Matriz VERDE-GBCe'!V10 -> PE 04 | F15: =VLOOKUP(E15,'Matriz VERDE-GBCe'!$V$6:W$55,2,FALSE) -> Capacidad de carga de vehículos eléctricos. | G15: =VLOOKUP(E15,'Matriz VERDE-GBCe'!$V$6:AX$59,3,FALSE) -> 0.01680943915 | H15: 1 | I15: 1
E17: ='Matriz VERDE-GBCe'!V11 -> PE 05 | F17: =VLOOKUP(E17,'Matriz VERDE-GBCe'!$V$6:W$55,2,FALSE) -> Clasificación de RSU. | G17: =VLOOKUP(E17,'Matriz VERDE-GBCe'!$V$6:AX$59,3,FALSE) -> 0.01185280965 | H17: 1 | I17: 1
E19: ='Matriz VERDE-GBCe'!V12 -> PE 06 | F19: =VLOOKUP(E19,'Matriz VERDE-GBCe'!$V$6:W$55,2,FALSE) -> Gestión y Restauración del hábitat. | G19: =VLOOKUP(E19,'Matriz VERDE-GBCe'!$V$6:AX$59,3,FALSE) -> 0.02394806314 | H19: 1 | I19: 1
E21: ='Matriz VERDE-GBCe'!V13 -> PE 07 | F21: =VLOOKUP(E21,'Matriz VERDE-GBCe'!$V$6:W$55,2,FALSE) -> Uso de plantas para crear sombras. | G21: =VLOOKUP(E21,'Matriz VERDE-GBCe'!$V$6:AX$59,3,FALSE) -> 0.01901837185 | H21: 1 | I21: 1
E23: ='Matriz VERDE-GBCe'!V14 -> PE 08 | F23: =VLOOKUP(E23,'Matriz VERDE-GBCe'!$V$6:W$55,2,FALSE) -> Efecto isla de calor. | G23: =VLOOKUP(E23,'Matriz VERDE-GBCe'!$V$6:AX$59,3,FALSE) -> 0.02144281019 | H23: 1 | I23: 1
G24: +
E25: ='Matriz VERDE-GBCe'!V15 -> PE 09 | F25: =VLOOKUP(E25,'Matriz VERDE-GBCe'!$V$6:W$55,2,FALSE) -> Contaminación lumínica. | G25: =VLOOKUP(E25,'Matriz VERDE-GBCe'!$V$6:AX$59,3,FALSE) -> 0.02066160228 | H25: 1 | I25: 1
C28: ='Matriz VERDE-GBCe'!U16 -> EA | E28: ='Matriz VERDE-GBCe'!V16 -> Energía y atmósfera | G28: =SUM(G32:G42) -> 0.1847152632
D30: Criterios
E32: ='Matriz VERDE-GBCe'!V17 -> EA 00 | F32: =VLOOKUP(E32,'Matriz VERDE-GBCe'!$V$6:W$55,2,FALSE) -> Demanda de calefacción y refrigeración | G32: =VLOOKUP(E32,'Matriz VERDE-GBCe'!$V$6:AX$55,3,FALSE) -> 0 | H32: 1 | I32: 1
E34: ='Matriz VERDE-GBCe'!V18 -> EA 01 | F34: =VLOOKUP(E34,'Matriz VERDE-GBCe'!$V$6:W$55,2,FALSE) -> Consumo de energía primaria | G34: =VLOOKUP(E34,'Matriz VERDE-GBCe'!$V$6:AX$55,3,FALSE) -> 0.07914444265 | H34: 1 | I34: 1
E36: ='Matriz VERDE-GBCe'!V19 -> EA 02 | F36: =VLOOKUP(E36,'Matriz VERDE-GBCe'!$V$6:W$55,2,FALSE) -> Generación distribuida | G36: =VLOOKUP(E36,'Matriz VERDE-GBCe'!$V$6:AX$55,3,FALSE) -> 0.05091320511 | H36: 1 | I36: 1
E38: ='Matriz VERDE-GBCe'!V20 -> EA 03 | F38: =VLOOKUP(E38,'Matriz VERDE-GBCe'!$V$6:W$55,2,FALSE) -> Consumo en zonas comunes | G38: =VLOOKUP(E38,'Matriz VERDE-GBCe'!$V$6:AX$55,3,FALSE) -> 0.02666882172 | H38: 1 | I38: 1
E40: ='Matriz VERDE-GBCe'!V21 -> EA 05 | F40: =VLOOKUP(E40,'Matriz VERDE-GBCe'!$V$6:W$55,2,FALSE) -> Emisión de NOx en calderas de combustión. | G40: =VLOOKUP(E40,'Matriz VERDE-GBCe'!$V$6:AX$55,3,FALSE) -> 0 | H40: 1 | I40: 1
E42: ='Matriz VERDE-GBCe'!V22 -> EA 04 | F42: =VLOOKUP(E42,'Matriz VERDE-GBCe'!$V$6:W$55,2,FALSE) -> Elección responsable de refrigerantes | G42: =VLOOKUP(E42,'Matriz VERDE-GBCe'!$V$6:AX$55,3,FALSE) -> 0.02798879371 | H42: 1 | I42: 1
C45: ='Matriz VERDE-GBCe'!U23 -> RN | E45: ='Matriz VERDE-GBCe'!V23 -> Recursos naturales | G45: =SUM(G49:G71) -> 0.2634556328
D47: Criterios
E49: ='Matriz VERDE-GBCe'!V24 -> RN 01 | F49: =VLOOKUP(E49,'Matriz VERDE-GBCe'!$V$6:W$59,2,FALSE) -> Consumo de agua en aparatos sanitarios | G49: =VLOOKUP(E49,'Matriz VERDE-GBCe'!$V$6:AX$55,3,FALSE) -> 0.02246646194 | H49: 1 | I49: 1
E51: ='Matriz VERDE-GBCe'!V25 -> RN 02 | F51: =VLOOKUP(E51,'Matriz VERDE-GBCe'!$V$6:W$59,2,FALSE) -> Necesidades de riego en jardines. | G51: =VLOOKUP(E51,'Matriz VERDE-GBCe'!$V$6:AX$55,3,FALSE) -> 0.0228974732 | H51: 1 | I51: 1
E53: ='Matriz VERDE-GBCe'!V26 -> RN 03 | F53: =VLOOKUP(E53,'Matriz VERDE-GBCe'!$V$6:W$59,2,FALSE) -> Consumos de agua singulares. | G53: =VLOOKUP(E53,'Matriz VERDE-GBCe'!$V$6:AX$55,3,FALSE) -> 0.01901837185 | H53: 1 | I53: 1
E55: ='Matriz VERDE-GBCe'!V27 -> RN 04 | F55: =VLOOKUP(E55,'Matriz VERDE-GBCe'!$V$6:W$59,2,FALSE) -> Uso de agua no potable. | G55: =VLOOKUP(E55,'Matriz VERDE-GBCe'!$V$6:AX$55,3,FALSE) -> 0.02187382145 | H55: 1 | I55: 1
E57: ='Matriz VERDE-GBCe'!V28 -> RN 05 | F57: =VLOOKUP(E57,'Matriz VERDE-GBCe'!$V$6:W$59,2,FALSE) -> Uso de materiales reciclados. | G57: =VLOOKUP(E57,'Matriz VERDE-GBCe'!$V$6:AX$55,3,FALSE) -> 0.01901837185 | H57: 1 | I57: 1
E59: ='Matriz VERDE-GBCe'!V29 -> RN 06 | F59: =VLOOKUP(E59,'Matriz VERDE-GBCe'!$V$6:W$55,2,FALSE) -> Elección responsable de materiales | G59: =VLOOKUP(E59,'Matriz VERDE-GBCe'!$V$6:AX$55,3,FALSE) -> 0.01971876515 | H59: 1 | I59: 1
E61: ='Matriz VERDE-GBCe'!V30 -> RN 07 | F61: =VLOOKUP(E61,'Matriz VERDE-GBCe'!$V$6:W$59,2,FALSE) -> Uso de materiales de producción local. | G61: =VLOOKUP(E61,'Matriz VERDE-GBCe'!$V$6:AX$55,3,FALSE) -> 0.02071547869 | H61: 1 | I61: 1
E63: ='Matriz VERDE-GBCe'!V31 -> RN 08 | F63: =VLOOKUP(E63,'Matriz VERDE-GBCe'!$V$6:W$59,2,FALSE) -> El edificio como banco de materiales | G63: =VLOOKUP(E63,'Matriz VERDE-GBCe'!$V$6:AX$55,3,FALSE) -> 0.02270890577 | H63: 1 | I63: 1
E65: ='Matriz VERDE-GBCe'!V32 -> RN 09 | F65: =VLOOKUP(E65,'Matriz VERDE-GBCe'!$V$6:W$59,2,FALSE) -> Gestión de los residuos de la construcción. | G65: =VLOOKUP(E65,'Matriz VERDE-GBCe'!$V$6:AX$55,3,FALSE) -> 0.01643230429 | H65: 1 | I65: 1
E67: ='Matriz VERDE-GBCe'!V33 -> RN 10 | F67: =VLOOKUP(E67,'Matriz VERDE-GBCe'!$V$6:W$59,2,FALSE) -> Nivel de intervención en rehabilitaciones | G67: =VLOOKUP(E67,'Matriz VERDE-GBCe'!$V$6:AX$59,3,FALSE) -> 0 | H67: 1 | I67: 1
E69: ='Matriz VERDE-GBCe'!V34 -> RN 11 | F69: =VLOOKUP(E69,'Matriz VERDE-GBCe'!$V$6:W$59,2,FALSE) -> Impacto de los materiales de la construcción. | G69: =VLOOKUP(E69,'Matriz VERDE-GBCe'!$V$6:AX$55,3,FALSE) -> 0.05756694144 | H69: 1 | I69: 1
E71: ='Matriz VERDE-GBCe'!V35 -> RN 12 | F71: =VLOOKUP(E71,'Matriz VERDE-GBCe'!$V$6:W$59,2,FALSE) -> Ecoetiquetado de producto. | G71: =VLOOKUP(E71,'Matriz VERDE-GBCe'!$V$6:AX$55,3,FALSE) -> 0.02103873714 | H71: 1 | I71: 1
C74: ='Matriz VERDE-GBCe'!U36 -> AI | E74: ='Matriz VERDE-GBCe'!V36 -> Ambiente Interior. | G74: =SUM(G78:G86) -> 0.07855180217
D76: Criterios
E78: ='Matriz VERDE-GBCe'!V37 -> AI 01 | F78: =VLOOKUP(E78,'Matriz VERDE-GBCe'!$V$6:W$59,2,FALSE) -> Limitación de las emisiones de COVs | G78: =VLOOKUP(E78,'Matriz VERDE-GBCe'!$V$6:AX$55,3,FALSE) -> 0.01996120899 | H78: 1 | I78: 1
E80: ='Matriz VERDE-GBCe'!V38 -> AI 02 | F80: =VLOOKUP(E80,'Matriz VERDE-GBCe'!$V$6:W$59,2,FALSE) -> Control de la calidad del aire | G80: =VLOOKUP(E80,'Matriz VERDE-GBCe'!$V$6:AX$55,3,FALSE) -> 0.01953019773 | H80: 1 | I80: 1
E82: ='Matriz VERDE-GBCe'!V39 -> AI 03 | F82: =VLOOKUP(E82,'Matriz VERDE-GBCe'!$V$6:W$59,2,FALSE) -> Iluminación natural. | G82: =VLOOKUP(E82,'Matriz VERDE-GBCe'!$V$6:AX$55,3,FALSE) -> 0.01953019773 | H82: 1 | I82: 1
E84: ='Matriz VERDE-GBCe'!V40 -> AI 04 | F84: =VLOOKUP(E84,'Matriz VERDE-GBCe'!$V$6:W$59,2,FALSE) -> Iluminación artificial | G84: =VLOOKUP(E84,'Matriz VERDE-GBCe'!$V$6:AX$55,3,FALSE) -> 0 | H84: 1 | I84: 1
E85: ='Matriz VERDE-GBCe'!V42 -> Aspectos sociales
E86: ='Matriz VERDE-GBCe'!V41 -> AI 05 | F86: =VLOOKUP(E86,'Matriz VERDE-GBCe'!$V$6:W$59,2,FALSE) -> Protección frente al ruido. | G86: =VLOOKUP(E86,'Matriz VERDE-GBCe'!$V$6:AX$55,3,FALSE) -> 0.01953019773 | H86: 1 | I86: 1
C89: ='Matriz VERDE-GBCe'!U52 -> CE | E89: ='Matriz VERDE-GBCe'!V52 -> Calidad de la edificación | G89: =SUM(G93:G105) -> 0.1378697268
D91: Criterios
E93: ='Matriz VERDE-GBCe'!V53 -> CE 01 | F93: =VLOOKUP(E93,'Matriz VERDE-GBCe'!$V$6:W$59,2,FALSE) -> Diseño pasivo | G93: =VLOOKUP(E93,'Matriz VERDE-GBCe'!$V$6:AX$55,3,FALSE) -> 0.02976671516 | H93: 1 | I93: 1
E95: ='Matriz VERDE-GBCe'!V54 -> CE 02 | F95: =VLOOKUP(E95,'Matriz VERDE-GBCe'!$V$6:W$59,2,FALSE) -> Control parcial de los sistemas de clima | G95: =VLOOKUP(E95,'Matriz VERDE-GBCe'!$V$6:AX$55,3,FALSE) -> 0 | H95: 1 | I95: 1
E97: ='Matriz VERDE-GBCe'!V55 -> CE 03 | F97: =VLOOKUP(E97,'Matriz VERDE-GBCe'!$V$6:W$59,2,FALSE) -> Control local de la iluminación | G97: =VLOOKUP(E97,'Matriz VERDE-GBCe'!$V$6:AX$55,3,FALSE) -> 0 | H97: 1 | I97: 1
E99: ='Matriz VERDE-GBCe'!V56 -> CE 04 | F99: =VLOOKUP(E99,'Matriz VERDE-GBCe'!$V$6:W$59,2,FALSE) -> Calidad en la construcción | G99: =VLOOKUP(E99,'Matriz VERDE-GBCe'!$V$6:AX$59,3,FALSE) -> 0.0365012661 | H99: 1 | I99: 1
E101: ='Matriz VERDE-GBCe'!V57 -> CE 05 | F101: =VLOOKUP(E101,'Matriz VERDE-GBCe'!$V$6:W$59,2,FALSE) -> Puesta en marcha sistemática | G101: =VLOOKUP(E101,'Matriz VERDE-GBCe'!$V$6:AX$59,3,FALSE) -> 0.03790205269 | H101: 1 | I101: 1
E103: ='Matriz VERDE-GBCe'!V58 -> CE 06 | F103: =VLOOKUP(E103,'Matriz VERDE-GBCe'!$V$6:W$59,2,FALSE) -> Custodia de la documentación del proyecto | G103: =VLOOKUP(E103,'Matriz VERDE-GBCe'!$V$6:AX$59,3,FALSE) -> 0.0336996929 | H103: 1 | I103: 1
E105: ='Matriz VERDE-GBCe'!V59 -> CE 07 | F105: =VLOOKUP(E105,'Matriz VERDE-GBCe'!$V$6:W$59,2,FALSE) -> Certificaciones voluntarias de edificios | G105: =VLOOKUP(E105,'Matriz VERDE-GBCe'!$V$6:AX$59,3,FALSE) -> 0 | H105: 1 | I105: 1
C108: ='Matriz VERDE-GBCe'!U42 -> AS | E108: ='Matriz VERDE-GBCe'!V42 -> Aspectos sociales | G108: =SUM(G112:G128) -> 0.1754215829
D110: Criterios
E112: ='Matriz VERDE-GBCe'!V43 -> AS 01 | F112: =VLOOKUP(E112,'Matriz VERDE-GBCe'!$V$6:W$59,2,FALSE) -> Espacios para todas las personas | G112: =VLOOKUP(E112,'Matriz VERDE-GBCe'!$V$6:AX$59,3,FALSE) -> 0.01918000108 | H112: 1 | I112: 1
E114: ='Matriz VERDE-GBCe'!V44 -> AS 02 | F114: =VLOOKUP(E114,'Matriz VERDE-GBCe'!$V$6:W$59,2,FALSE) -> Espacios para la comunicación | G114: =VLOOKUP(E114,'Matriz VERDE-GBCe'!$V$6:AX$55,3,FALSE) -> 0.01847960778 | H114: 1 | I114: 1
E116: ='Matriz VERDE-GBCe'!V45 -> AS 03 | F116: =VLOOKUP(E116,'Matriz VERDE-GBCe'!$V$6:W$59,2,FALSE) -> Derecho al sol | G116: =VLOOKUP(E116,'Matriz VERDE-GBCe'!$V$6:AX$55,3,FALSE) -> 0.01742901783 | H116: 1 | I116: 1
E118: ='Matriz VERDE-GBCe'!V46 -> AS 04 | F118: =VLOOKUP(E118,'Matriz VERDE-GBCe'!$V$6:W$59,2,FALSE) -> Derecho a la intimidad | G118: =VLOOKUP(E118,'Matriz VERDE-GBCe'!$V$6:AX$55,3,FALSE) -> 0.01680943915 | H118: 1 | I118: 1
E120: ='Matriz VERDE-GBCe'!V47 -> AS 05 | F120: =VLOOKUP(E120,'Matriz VERDE-GBCe'!$V$6:W$59,2,FALSE) -> Contacto visual con el exterior | G120: =VLOOKUP(E120,'Matriz VERDE-GBCe'!$V$6:AX$55,3,FALSE) -> 0.01786002909 | H120: 1 | I120: 1
E122: ='Matriz VERDE-GBCe'!V48 -> AS 06 | F122: =VLOOKUP(E122,'Matriz VERDE-GBCe'!$V$6:W$59,2,FALSE) -> Espacios abiertos privados | G122: =VLOOKUP(E122,'Matriz VERDE-GBCe'!$V$6:AX$55,3,FALSE) -> 0.01821022574 | H122: 1 | I122: 1
E124: ='Matriz VERDE-GBCe'!V49 -> AS 07 | F124: =VLOOKUP(E124,'Matriz VERDE-GBCe'!$V$6:W$59,2,FALSE) -> Diseño inclusivo | G124: =VLOOKUP(E124,'Matriz VERDE-GBCe'!$V$6:AX$55,3,FALSE) -> 0.0207424169 | H124: 1 | I124: 1
E126: ='Matriz VERDE-GBCe'!V50 -> AS 08 | F126: =VLOOKUP(E126,'Matriz VERDE-GBCe'!$V$6:W$59,2,FALSE) -> Conexión con la naturaleza | G126: =VLOOKUP(E126,'Matriz VERDE-GBCe'!$V$6:AX$55,3,FALSE) -> 0.02734227682 | H126: 1 | I126: 1
E128: ='Matriz VERDE-GBCe'!V51 -> AS 09 | F128: =VLOOKUP(E128,'Matriz VERDE-GBCe'!$V$6:W$59,2,FALSE) -> El edificio como herramienta de comunicación | G128: =VLOOKUP(E128,'Matriz VERDE-GBCe'!$V$6:AX$55,3,FALSE) -> 0.0193685685 | H128: 1 | I128: 1
G135: =G5+G28+G45+G74+G89+G108 -> 1
G136: =SUM(G5:G132)/2 -> 1
G137: 1
G138: 0

Sheet PRE
B2: VERDE Edificios 2020 (Residencial privado) Nueva Edificación, Rehabilitación, Edificio Existente y Mixto | Y2: SEGURO | Z2: SÍ
J3: PRE-EVALUACIÓN | Y3: PROBABLE | Z3: NO
Y4: DUDOSO
B5: ='Matriz VERDE-GBCe'!U6 -> PE | D5: ='Matriz VERDE-GBCe'!V6 -> Parcela y emplazamiento | O5: Valoración total | Q5: ='Matriz VERDE-GBCe'!X6 -> 0.1599859921 | Y5: NO CUMPLE
Y6: NO APLICA
D8: ='Matriz VERDE-GBCe'!V7 -> PE 01 | E8: =VLOOKUP($D8,'Matriz VERDE-GBCe'!$V$6:$AH$55,2,FALSE) -> Proximidad al transporte publico. | O8: =VLOOKUP($D8,'Matriz VERDE-GBCe'!$V$6:$AH$55,3,FALSE) -> 0.01500457949 | Y8: Target | Z8: SEGURO | AB8: PROBABLE | AD8: DUDOSO | AF8: NO CUMPLE | AH8: NO APLICA
D10: Se cumple con el número de líneas determinado en el radio correspondiente | Y10: 1 | Z10: =+IF($Q10="seguro",$Y10,0) -> 0 | AB10: =+IF($Q10="probable",$Y10,0) -> 0 | AD10: =+IF($Q10="dudoso",$Y10,0) -> 0 | AF10: =+IF($Q10="NO CUMPLE",$Y10,0) -> 0 | AH10: =+IF($Q10="no aplica",2,0) -> 0
D12: Valoración obtenida: | H12: SEGURO | J12: PROBABLE | L12: DUDOSO | X12: =Z12+AB12+AD12+AF12 -> 0 | Y12: =SUM(Y9:Y10) -> 1 | Z12: =IF($O8="",0,SUM(Z9:Z10)*$O8/$Y12) -> 0 | AB12: =IF($O8="",0,SUM(AB9:AB10)*$O8/$Y12) -> 0 | AD12: =IF($O8="",0,SUM(AD9:AD10)*$O8/$Y12) -> 0 | AF12: =IF($O8="",0,SUM(AF9:AF10)*$O8/$Y12) -> 0
H13: =Z12 -> 0 | J13: =AB12 -> 0 | L13: =AD12 -> 0
D16: ='Matriz VERDE-GBCe'!V8 -> PE 02 | E16: =VLOOKUP($D16,'Matriz VERDE-GBCe'!$V$6:$AH$55,2,FALSE) -> Proximidad a equipamiento y servicios. | O16: =VLOOKUP($D16,'Matriz VERDE-GBCe'!$V$6:$AH$55,3,FALSE) -> 0.01414255697 | Y16: Target | Z16: SEGURO | AB16: PROBABLE | AD16: DUDOSO | AF16: NO CUMPLE | AH16: NO APLICA
D18: Se cumple con el número de equipamientos determinados en el radio correspondiente | Y18: 1 | Z18: =+IF($Q18="seguro",$Y18,0) -> 0 | AB18: =+IF($Q18="probable",$Y18,0) -> 0 | AD18: =+IF($Q18="dudoso",$Y18,0) -> 0 | AF18: =+IF($Q18="NO CUMPLE",$Y18,0) -> 0 | AH18: =+IF($Q18="no aplica",2,0) -> 0
D20: Valoración obtenida: | H20: SEGURO | J20: PROBABLE | L20: DUDOSO | X20: =Z20+AB20+AD20+AF20 -> 0 | Y20: =SUM(Y18:Y18) -> 1 | Z20: =IF($O16="",0,SUM(Z17:Z18)*$O16/$Y20) -> 0 | AB20: =IF($O16="",0,SUM(AB17:AB18)*$O16/$Y20) -> 0 | AD20: =IF($O16="",0,SUM(AD17:AD18)*$O16/$Y20) -> 0 | AF20: =IF($O16="",0,SUM(AF17:AF18)*$O16/$Y20) -> 0
H21: =Z20 -> 0 | J21: =AB20 -> 0 | L21: =AD20 -> 0
D24: ='Matriz VERDE-GBCe'!V9 -> PE 03 | E24: =VLOOKUP($D24,'Matriz VERDE-GBCe'!$V$6:$AH$55,2,FALSE) -> Facilidades para la bicicleta. | O24: =VLOOKUP($D24,'Matriz VERDE-GBCe'!$V$6:$AH$55,3,FALSE) -> 0.01710575939
D26: =IF('DG '!F29="","",'DG '!F29) ->  | Y26: Target | Z26: SEGURO | AB26: PROBABLE | AD26: DUDOSO | AF26: NO CUMPLE | AH26: NO APLICA
D28: Se cumple con el número de aparcabicis determinado y las medidas de seguridad para los elementos y el emplazamiento de los mismos | Y28: =IF(D26="Unifamiliar",0,1) -> 1 | Z28: =+IF($Q28="seguro",$Y28,0) -> 0 | AB28: =+IF($Q28="probable",$Y28,0) -> 0 | AD28: =+IF($Q28="dudoso",$Y28,0) -> 0 | AF28: =+IF($Q28="NO CUMPLE",$Y28,0) -> 0 | AH28: =+IF($Q28="no aplica",2,0) -> 0
D31: No se dispone espacio libre en la parcela o espacio de aparcamiento pero existe un aparcamiento para bicicletas en vía pública a menos de 300 m | Y31: =IF(D26="Nueva Edificación",0,0.5) -> 0.5 | Z31: =+IF($Q31="seguro",$Y31,0) -> 0 | AB31: =+IF($Q31="probable",$Y31,0) -> 0 | AD31: =+IF($Q31="dudoso",$Y31,0) -> 0 | AF31: =+IF($Q31="NO CUMPLE",$Y31,0) -> 0
D33: Valoración obtenida: | H33: SEGURO | J33: PROBABLE | L33: DUDOSO | X33: =Z33+AB33+AD33+AF33 -> 0 | Y33: =SUM(Y28:Y28) -> 1 | Z33: =IF($O24="",0,MAX(Z27:Z32)*$O24) -> 0 | AB33: =IF($O24="",0,MAX(AB27:AB32)*$O24) -> 0 | AD33: =IF($O24="",0,MAX(AD27:AD32)*$O24) -> 0 | AF33: =IF($O24="",0,MAX(AF27:AF32)*$O24) -> 0
H34: =Z33 -> 0 | J34: =AB33 -> 0 | L34: =AD33 -> 0
D37: ='Matriz VERDE-GBCe'!V10 -> PE 04 | E37: =VLOOKUP($D37,'Matriz VERDE-GBCe'!$V$6:$AH$55,2,FALSE) -> Capacidad de carga de vehículos eléctricos. | O37: =VLOOKUP($D37,'Matriz VERDE-GBCe'!$V$6:$AH$55,3,FALSE) -> 0.01680943915
D39: =IF('DG '!F27=0,"",'DG '!F27) -> 
D41: =IF('DG '!F29=0,"",'DG '!F29) ->  | Y41: Target | Z41: SEGURO | AB41: PROBABLE | AD41: DUDOSO | AF41: NO CUMPLE | AH41: NO APLICA
D43: NOTA: Este criterio se evalúa por fórmulas lineales, la puntuación puede variar en la evaluación final. Ver la guía.
D45: ¿Todas las plazas de aparcamiento sin carga cuentan con una preinstalación de carga para vehículos?
D48: El porcentaje de plazas con carga para vehículos eléctricos es igula o superior al 35% con,al menos, 2 plazas. | Y48: 0.5 | Z48: =+IF($Q48="seguro",$Y48,0) -> 0 | AB48: =+IF($Q48="probable",$Y48,0) -> 0 | AD48: =+IF($Q48="dudoso",$Y48,0) -> 0 | AF48: =+IF($Q48="NO CUMPLE",$Y48,0) -> 0 | AH48: =+IF($Q48="no aplica",2,0) -> 0
D51: El porcentaje de plazas con carga para vehículos eléctricos es igula o superior al 50% con,al menos, 2 plazas. | Y51: 0.5 | Z51: =+IF($Q51="seguro",$Y51,0) -> 0 | AB51: =+IF($Q51="probable",$Y51,0) -> 0 | AD51: =+IF($Q51="dudoso",$Y51,0) -> 0 | AF51: =+IF($Q51="NO CUMPLE",$Y51,0) -> 0 | AH51: =+IF($Q51="no aplica",2,0) -> 0
D53: Valoración obtenida: | H53: SEGURO | J53: PROBABLE | L53: DUDOSO | X53: =Z53+AB53+AD53+AF53 -> 0 | Y53: =SUM(Y48:Y51) -> 1 | Z53: =IF($O37="",0,SUM(Z44:Z51)*$O37) -> 0 | AB53: =IF($O37="",0,SUM(AB44:AB51)*$O37) -> 0 | AD53: =IF($O37="",0,SUM(AD44:AD51)*$O37) -> 0 | AF53: =IF($O37="",0,SUM(AF44:AF51)*$O37) -> 0
H54: =IF(Q45="Seguro",Z53,0) -> 0 | I54: =IF(R45="Seguro",AA53,0) -> 0 | J54: =IF(Q45="Seguro",AB53,0) -> 0 | K54: =IF(R45="Seguro",AC53,0) -> 0 | L54: =IF(Q45="Seguro",AD53,0) -> 0
D57: ='Matriz VERDE-GBCe'!V11 -> PE 05 | E57: =VLOOKUP($D57,'Matriz VERDE-GBCe'!$V$6:$AH$55,2,FALSE) -> Clasificación de RSU. | O57: =VLOOKUP($D57,'Matriz VERDE-GBCe'!$V$6:$AH$55,3,FALSE) -> 0.01185280965 | W57: =IF('DG '!F27="Unifamiliar","Uni",IF('DG '!F27="Residencial colectivo","Res","")) ->  | Y57: Target | Z57: SEGURO | AB57: PROBABLE | AD57: DUDOSO | AF57: NO CUMPLE | AH57: NO APLICA | AJ57: =IF(#REF!="","",IF(#REF!="rehabilitación","RH","NE")) ->  | AK57: =IF(#REF!="unifamiliar","Uni", "Res") -> 
D59: =IF('DG '!F27=0,"",'DG '!F27) -> 
D61: Se cumplen las condiciones del almacén contenedores de residuos | Y61: =IF(D59="Unifamiliar",0,0.5) -> 0.5 | Z61: =+IF($Q61="seguro",$Y61,0) -> 0 | AB61: =+IF($Q61="probable",$Y61,0) -> 0 | AD61: =+IF($Q61="dudoso",$Y61,0) -> 0 | AF61: =+IF($Q61="NO CUMPLE",$Y61,0) -> 0 | AH61: =+IF($Q61="no aplica",2,0) -> 0 | AK61: =IF(AK57="uni",0.35,IF(AJ57="ne",0.3,IF(AJ57="rh",0.4,0))) -> 
AK63: =IF(AK57="uni",0.35,IF(AJ57="ne",0.2,IF(AJ57="rh",0.2,0))) -> 
D64: Existe un sistema de revalorización de los residuos producidos en la parcela | Y64: =IF(D59="Unifamiliar",1,0.25) -> 0.25 | Z64: =+IF($Q64="seguro",$Y64,0) -> 0 | AB64: =+IF($Q64="probable",$Y64,0) -> 0 | AD64: =+IF($Q64="dudoso",$Y64,0) -> 0 | AF64: =+IF($Q64="NO CUMPLE",$Y64,0) -> 0 | AH64: =+IF($Q64="no aplica",2,0) -> 0 | AK64: =IF(AK57="uni",0,IF(AJ57="ne",0.3,IF(AJ57="rh",0.2,0))) -> 
D67: Se cumplen otras medidas de reducción, clasificación o gestión de residuos | Y67: =IF(D59="Unifamiliar",0,0.25) -> 0.25 | Z67: =+IF($Q67="seguro",$Y67,0) -> 0 | AB67: =+IF($Q67="probable",$Y67,0) -> 0 | AD67: =+IF($Q67="dudoso",$Y67,0) -> 0 | AF67: =+IF($Q67="NO CUMPLE",$Y67,0) -> 0 | AH67: =+IF($Q67="no aplica",2,0) -> 0
D69: Valoración obtenida: | H69: SEGURO | J69: PROBABLE | L69: DUDOSO | X69: =Z69+AB69+AD69+AF69 -> 0 | Y69: =SUM(Y61:Y67) -> 1 | Z69: =IF($O57="",0,SUM(Z61:Z67)*$O57/Y69) -> 0 | AB69: =IF($O57="",0,SUM(AB61:AB67)*$O57/$Y69) -> 0 | AD69: =IF($O57="",0,SUM(AD61:AD67)*$O57/$Y69) -> 0 | AF69: =IF($O57="",0,SUM(AF61:AF67)*$O57/$Y69) -> 0
H70: =Z69 -> 0 | J70: =AB69 -> 0 | L70: =AD69 -> 0
D73: ='Matriz VERDE-GBCe'!V12 -> PE 06 | E73: =VLOOKUP($D73,'Matriz VERDE-GBCe'!$V$6:$AH$55,2,FALSE) -> Gestión y Restauración del hábitat. | O73: =VLOOKUP($D73,'Matriz VERDE-GBCe'!$V$6:$AH$55,3,FALSE) -> 0.02394806314 | Y73: Target | Z73: SEGURO | AB73: PROBABLE | AD73: DUDOSO | AF73: NO CUMPLE | AH73: NO APLICA
D75: NOTA: Este criterio se evalúa por fórmulas lineales, la puntuación puede variar en la evaluación final. Ver la guía.
D77: El porcentaje de superficie ajardinada ocupado por plantas autóctonas es superior al 50 % | Y77: 0.5 | Z77: =+IF($Q77="seguro",$Y77,0) -> 0 | AB77: =+IF($Q77="probable",$Y77,0) -> 0 | AD77: =+IF($Q77="dudoso",$Y77,0) -> 0 | AF77: =+IF($Q77="NO CUMPLE",$Y77,0) -> 0 | AH77: =+IF($Q77="no aplica",2,0) -> 0
D80: El porcentaje de superficie ajardinada ocupado por plantas autóctonas es superior al 75% | Y80: 0.5 | Z80: =+IF($Q80="seguro",$Y80,0) -> 0 | AB80: =+IF($Q80="probable",$Y80,0) -> 0 | AD80: =+IF($Q80="dudoso",$Y80,0) -> 0 | AF80: =+IF($Q80="NO CUMPLE",$Y80,0) -> 0 | AH80: =+IF($Q80="no aplica",2,0) -> 0
D82: Valoración obtenida: | H82: SEGURO | J82: PROBABLE | L82: DUDOSO | X82: =Z82+AB82+AD82+AF82 -> 0 | Y82: =SUM(Y76:Y80) -> 1 | Z82: =IF($O73="",0,MAX(Z77:Z80)*$O73/$Y82) -> 0 | AB82: =IF($O73="",0,MAX(AB77:AB80)*$O73/$Y82) -> 0 | AD82: =IF($O73="",0,MAX(AD77:AD80)*$O73/$Y82) -> 0 | AF82: =IF($O73="",0,MAX(AF77:AF80)*$O73/$Y82) -> 0
H83: =Z82 -> 0 | J83: =AB82 -> 0 | L83: =AD82 -> 0
D86: ='Matriz VERDE-GBCe'!V13 -> PE 07 | E86: =VLOOKUP($D86,'Matriz VERDE-GBCe'!$V$6:$AH$55,2,FALSE) -> Uso de plantas para crear sombras. | O86: =VLOOKUP($D86,'Matriz VERDE-GBCe'!$V$6:$AH$55,3,FALSE) -> 0.01901837185 | Y86: Target | Z86: SEGURO | AB86: PROBABLE | AD86: DUDOSO | AF86: NO CUMPLE | AH86: NO APLICA
D88: NOTA: Este criterio se evalúa por fórmulas lineales, la puntuación puede variar en la evaluación final. Ver la guía.
D90: Se cumplen los requisitos de sombreamiento para la fachada oeste | Y90: 0.4 | Z90: =+IF($Q90="seguro",$Y90,0) -> 0 | AB90: =+IF($Q90="probable",$Y90,0) -> 0 | AD90: =+IF($Q90="dudoso",$Y90,0) -> 0 | AF90: =+IF($Q90="NO CUMPLE",$Y90,0) -> 0 | AH90: =+IF($Q90="no aplica",2,0) -> 0
D93: Se cumplen los requisitos de sombreamiento de la fachada este | Y93: 0.3 | Z93: =+IF($Q93="seguro",$Y93,0) -> 0 | AB93: =+IF($Q93="probable",$Y93,0) -> 0 | AD93: =+IF($Q93="dudoso",$Y93,0) -> 0 | AF93: =+IF($Q93="NO CUMPLE",$Y93,0) -> 0 | AH93: =+IF($Q93="no aplica",2,0) -> 0
D96: Se cumplen los requisitos de sombreamiento de la fachada sur | Y96: 0.3 | Z96: =+IF($Q96="seguro",$Y96,0) -> 0 | AB96: =+IF($Q96="probable",$Y96,0) -> 0 | AD96: =+IF($Q96="dudoso",$Y96,0) -> 0 | AF96: =+IF($Q96="NO CUMPLE",$Y96,0) -> 0
D98: Valoración obtenida: | H98: SEGURO | J98: PROBABLE | L98: DUDOSO | X98: =Z98+AB98+AD98+AF98 -> 0 | Y98: =SUM(Y90:Y96) -> 1 | Z98: =IF($O86="",0,SUM(Z90:Z96)*$O86/$Y98) -> 0 | AB98: =IF($O86="",0,SUM(AB90:AB96)*$O86/$Y98) -> 0 | AD98: =IF($O86="",0,SUM(AD90:AD96)*$O86/$Y98) -> 0 | AF98: =IF($O86="",0,SUM(AF90:AF96)*$O86/$Y98) -> 0
H99: =Z98 -> 0 | J99: =AB98 -> 0 | L99: =AD98 -> 0
D102: ='Matriz VERDE-GBCe'!V14 -> PE 08 | E102: =VLOOKUP($D102,'Matriz VERDE-GBCe'!$V$6:$AH$55,2,FALSE) -> Efecto isla de calor. | O102: =VLOOKUP($D102,'Matriz VERDE-GBCe'!$V$6:$AH$55,3,FALSE) -> 0.02144281019 | Y102: Target | Z102: SEGURO | AB102: PROBABLE | AD102: DUDOSO | AF102: NO CUMPLE | AH102: NO APLICA
D104: NOTA: Este criterio se evalúa por fórmulas lineales, la puntuación puede variar en la evaluación final. Ver la guía.
D106: El porcentaje de superficie libre de parcela más cubierta que evita la isla de calor es superior al 70% | Y106: 0.7 | Z106: =+IF($Q106="seguro",$Y106,0) -> 0 | AB106: =+IF($Q106="probable",$Y106,0) -> 0 | AD106: =+IF($Q106="dudoso",$Y106,0) -> 0 | AF106: =+IF($Q106="NO CUMPLE",$Y106,0) -> 0 | AH106: =+IF($Q106="no aplica",2,0) -> 0
D109: El porcentaje de superficie de fachadas este, sur y oeste que evita la isla de calor es superior al 70% | Y109: 0.3 | Z109: =+IF($Q109="seguro",$Y109,0) -> 0 | AB109: =+IF($Q109="probable",$Y109,0) -> 0 | AD109: =+IF($Q109="dudoso",$Y109,0) -> 0 | AF109: =+IF($Q109="NO CUMPLE",$Y109,0) -> 0 | AH109: =+IF($Q109="no aplica",2,0) -> 0
D111: Valoración obtenida: | H111: SEGURO | J111: PROBABLE | L111: DUDOSO | X111: =Z111+AB111+AD111+AF111 -> 0 | Y111: =SUM(Y106:Y109) -> 1 | Z111: =IF($O102="",0,SUM(Z106:Z109)*$O102/$Y111) -> 0 | AB111: =IF($O102="",0,SUM(AB106:AB109)*$O102/$Y111) -> 0 | AD111: =IF($O102="",0,SUM(AD106:AD109)*$O102/$Y111) -> 0 | AF111: =IF($O102="",0,SUM(AF106:AF109)*$O102/$Y111) -> 0
H112: =Z111 -> 0 | J112: =AB111 -> 0 | L112: =AD111 -> 0
D115: ='Matriz VERDE-GBCe'!V15 -> PE 09 | E115: =VLOOKUP($D115,'Matriz VERDE-GBCe'!$V$6:$AH$55,2,FALSE) -> Contaminación lumínica. | O115: =VLOOKUP($D115,'Matriz VERDE-GBCe'!$V$6:$AH$55,3,FALSE) -> 0.02066160228 | Y115: Target | Z115: SEGURO | AB115: PROBABLE | AD115: DUDOSO | AF115: NO CUMPLE | AH115: NO APLICA
D117: El FHS mayor de las luminarias instaladas reduce en más de un 55 % el de la zona de protección lumínica del proyecto | Y117: 1 | Z117: =+IF($Q117="seguro",$Y117,0) -> 0 | AB117: =+IF($Q117="probable",$Y117,0) -> 0 | AD117: =+IF($Q117="dudoso",$Y117,0) -> 0 | AF117: =+IF($Q117="NO CUMPLE",$Y117,0) -> 0 | AH117: =+IF($Q117="no aplica",2,0) -> 0
D119: Valoración obtenida: | H119: SEGURO | J119: PROBABLE | L119: DUDOSO | X119: =Z119+AB119+AD119+AF119 -> 0 | Y119: =SUM(Y117:Y117) -> 1 | Z119: =IF($O115="",0,SUM(Z117:Z117)*$O115/$Y119) -> 0 | AB119: =IF($O115="",0,SUM(AB117:AB117)*$O115/$Y119) -> 0 | AD119: =IF($O115="",0,SUM(AD117:AD117)*$O115/$Y119) -> 0 | AF119: =IF($O115="",0,SUM(AF117:AF117)*$O115/$Y119) -> 0
H120: =Z119 -> 0 | J120: =AB119 -> 0 | L120: =AD119 -> 0
F122: SEGURO | H122: PROBABLE | J122: DUDOSO | L122: NO CUMPLE
D124: SUBTOTAL | F124: =H13+H21+H34+H54+H70+H83+H99+H112+H120 -> 0 | G124: =I13+I21+I34+I54+I70+I83+I99+I112+I120 -> 0 | H124: =J13+J21+J34+J54+J70+J83+J99+J112+J120 -> 0 | I124: =K13+K21+K34+K54+K70+K83+K99+K112+K120 -> 0 | J124: =L13+L21+L34+L54+L70+L83+L99+L112+L120 -> 0 | L124: =$AF12+$AF20+$AF33+$AF69+$AF82+$AF98+$AF111+$AF119+AF53 -> 0 | X124: =F124+H124+J124+L124 -> 0
B128: ='Matriz VERDE-GBCe'!U16 -> EA | D128: ='Matriz VERDE-GBCe'!V16 -> Energía y atmósfera | O128: Valoración total | Q128: ='Matriz VERDE-GBCe'!X16 -> 0.1847152632
D132: ='Matriz VERDE-GBCe'!V18 -> EA 01 | E132: =VLOOKUP($D132,'Matriz VERDE-GBCe'!$V$6:$AH$55,2,FALSE) -> Consumo de energía primaria | O132: =VLOOKUP($D132,'Matriz VERDE-GBCe'!$V$6:$AH$55,3,FALSE) -> 0.07914444265 | W132: =IF(D134="Nueva Edificación","NE","RH") -> RH
D134: =IF('DG '!F29=0,"",'DG '!F29) ->  | Y134: Target | Z134: SEGURO | AB134: PROBABLE | AD134: DUDOSO | AF134: NO CUMPLE | AH134: NO APLICA
D136: Consumo límite de enrgía primaria no renovable | Y136: 0.1 | Z136: =+IF($Q138="seguro",$Y136,0) -> 0 | AB136: =+IF($Q138="probable",$Y136,0) -> 0 | AD136: =+IF($Q138="dudoso",$Y136,0) -> 0 | AF136: =+IF($Q138="NO CUMPLE",$Y136,0) -> 0 | AH136: =+IF($Q136="no aplica",2,0) -> 0
D138: =IF($W132="NE","El consumo de energía primaria no renovable previsto en el proyecto reduce en mas de un 30 % al consumo energía primaria no renovable límite fijado por el DB HE 0","El consumo de energía primaria no renovable previsto en el proyecto reduce en mas de un 15 % al consumo energía primaria no renovable límite fijado por el DB HE 0") -> El consumo de energía primaria no renovable previsto en el proyecto reduce en mas de un 15 % al consumo energía primaria no renovable límite fijado por el DB HE 0
Y139: 0.3 | Z139: =+IF($Q141="seguro",$Y139,0) -> 0 | AB139: =+IF($Q141="probable",$Y139,0) -> 0 | AD139: =+IF($Q141="dudoso",$Y139,0) -> 0 | AF139: =+IF($Q141="NO CUMPLE",$Y139,0) -> 0 | AH139: =+IF($Q139="no aplica",2,0) -> 0
D141: =IF($W132="NE","El consumo de energía primaria no renovable previsto en el proyecto reduce en mas de un 60 % al consumo energía primaria no renovable límite fijado por el DB HE 0","El consumo de energía primaria no renovable previsto en el proyecto reduce en mas de un 30 % al consumo energía primaria no renovable límite fijado por el DB HE 0") -> El consumo de energía primaria no renovable previsto en el proyecto reduce en mas de un 30 % al consumo energía primaria no renovable límite fijado por el DB HE 0
Y142: 0.6 | Z142: =+IF($Q144="seguro",$Y142,0) -> 0 | AB142: =+IF($Q144="probable",$Y142,0) -> 0 | AD142: =+IF($Q144="dudoso",$Y142,0) -> 0 | AF142: =+IF($Q144="NO CUMPLE",$Y142,0) -> 0 | AH142: =+IF($Q142="no aplica",2,0) -> 0
D144: =IF($W132="NE","El consumo de energía primaria no renovable previsto en el proyecto reduce en mas de un 90 % al consumo energía primaria no renovable límite fijado por el DB HE 0","El consumo de energía primaria no renovable previsto en el proyecto reduce en mas de un 45 % al consumo energía primaria no renovable límite fijado por el DB HE 0") -> El consumo de energía primaria no renovable previsto en el proyecto reduce en mas de un 45 % al consumo energía primaria no renovable límite fijado por el DB HE 0
Y145: =SUM(Y136:Y144) -> 1 | Z145: =IF($O132="",0,SUM(Z135:Z144)*$O132*0.5) -> 0 | AB145: =IF($O132="",0,SUM(AB135:AB144)*$O132*0.5) -> 0 | AD145: =IF($O132="",0,SUM(AD136:AD144)*$O132*0.5) -> 0 | AF145: =IF($O132="",0,SUM(AF136:AF144)*$O132*0.5) -> 0
D147: Consumo límite de enrgía primaria total | Y147: Target | Z147: SEGURO | AB147: PROBABLE | AD147: DUDOSO | AF147: NO CUMPLE | AH147: NO APLICA
D149: El consumo de energía primaria total previsto en el proyecto reduce en mas de un 5 % al consumo energía primaria total límite fijado por el DB HE 0 | Y149: 0.1 | Z149: =+IF($Q149="seguro",$Y149,0) -> 0 | AB149: =+IF($Q149="probable",$Y149,0) -> 0 | AD149: =+IF($Q149="dudoso",$Y149,0) -> 0 | AF149: =+IF($Q149="NO CUMPLE",$Y149,0) -> 0 | AH149: =+IF($Q149="no aplica",2,0) -> 0
D152: El consumo de energía primaria total previsto en el proyecto reduce en mas de un 15 % al consumo energía primaria total límite fijado por el DB HE 0 | Y152: 0.3 | Z152: =+IF($Q152="seguro",$Y152,0) -> 0 | AB152: =+IF($Q152="probable",$Y152,0) -> 0 | AD152: =+IF($Q152="dudoso",$Y152,0) -> 0 | AF152: =+IF($Q152="NO CUMPLE",$Y152,0) -> 0 | AH152: =+IF($Q152="no aplica",2,0) -> 0
D155: El consumo de energía primaria total previsto en el proyecto reduce en mas de un 25 % al consumo energía primaria total límite fijado por el DB HE 0 | Y155: 0.6 | Z155: =+IF($Q155="seguro",$Y155,0) -> 0 | AB155: =+IF($Q155="probable",$Y155,0) -> 0 | AD155: =+IF($Q155="dudoso",$Y155,0) -> 0 | AF155: =+IF($Q155="NO CUMPLE",$Y155,0) -> 0 | AH155: =+IF($Q155="no aplica",2,0) -> 0
D158: El consumo de energía primaria total de calefacción y/o refrigeración es inferior a 15kWh/m2, se aporta ensayo Blower door cumpliendo las especificaciones ddel criterio | Y158: =SUM(Y149:Y156) -> 1 | Z158: =IF($O132="",0,SUM(Z148:Z157)*$O132*0.5) -> 0 | AB158: =IF($O132="",0,SUM(AB148:AB157)*$O132*0.5) -> 0 | AD158: =IF($O132="",0,SUM(AD148:AD157)*$O132*0.5) -> 0 | AF158: =IF($O132="",0,SUM(AF148:AF157)*$O132*0.5) -> 0
Y160: =Z160+AB160+AD160+AF160 -> 0 | Z160: =Z145+Z158 -> 0 | AB160: =AB145+AB158 -> 0 | AD160: =AD158+AD145 -> 0 | AF160: =AF145+AF158 -> 0
D161: Valoración obtenida: | H161: SEGURO | J161: PROBABLE | L161: DUDOSO | Z161: =+IF($Q158="seguro",$Z160,IF(Q158="",(Z145+Z158)*0.9,Z160)) -> 0 | AB161: =+IF($Q158="Probable",$AB160,IF(Q158="",(AB145+AB158)*0.9,AB160)) -> 0 | AD161: =+IF($Q158="Dudoso",$AD160,IF(Q158="",(AD145+AD158)*0.9,AD160)) -> 0 | AF161: =+IF($Q158="seguro",$AF160,IF(Q158="",(AF145+AF158)*0.9,AF160)) -> 0
H162: =Z160 -> 0 | J162: =AB160 -> 0 | L162: =AD160 -> 0
D165: ='Matriz VERDE-GBCe'!V19 -> EA 02 | E165: =VLOOKUP($D165,'Matriz VERDE-GBCe'!$V$6:$AH$55,2,FALSE) -> Generación distribuida | O165: =VLOOKUP($D165,'Matriz VERDE-GBCe'!$V$6:$AH$55,3,FALSE) -> 0.05091320511 | W165: =IF(OR(D167="Nueva Edificación",D167="Rehabilitación"),"NE","EE") -> EE
D167: =IF('DG '!F29=0,"",'DG '!F29) ->  | Y167: Target | Z167: SEGURO | AB167: PROBABLE | AD167: DUDOSO | AF167: NO CUMPLE | AH167: NO APLICA
D169: =IF(W165="NE","La producción de energía renovable en la parcela es mas de un 30 % respecto de los límites fijados en el criterio", "La producción de energía renovable en la parcela, es mas de un 70 % respecto del estudio de potencial de renovables del edificio") -> La producción de energía renovable en la parcela, es mas de un 70 % respecto del estudio de potencial de renovables del edificio | Y169: 0.1 | Z169: =+IF($Q169="seguro",$Y169,0) -> 0 | AB169: =+IF($Q169="probable",$Y169,0) -> 0 | AD169: =+IF($Q169="dudoso",$Y169,0) -> 0 | AF169: =+IF($Q169="NO CUMPLE",$Y169,0) -> 0 | AH169: =+IF($Q169="no aplica",2,0) -> 0
D172: =IF(W165="NE","La producción de energía renovable en la parcela es mas de un 60 % respecto de los límites fijados en el criterio", "La producción de energía renovable en la parcela, es mas de un 80 % respecto del estudio de potencial de renovables del edificio") -> La producción de energía renovable en la parcela, es mas de un 80 % respecto del estudio de potencial de renovables del edificio | Y172: 0.3 | Z172: =+IF($Q172="seguro",$Y172,0) -> 0 | AB172: =+IF($Q172="probable",$Y172,0) -> 0 | AD172: =+IF($Q172="dudoso",$Y172,0) -> 0 | AF172: =+IF($Q172="NO CUMPLE",$Y172,0) -> 0 | AH172: =+IF($Q172="no aplica",2,0) -> 0
D175: =IF(W165="NE","La producción de energía renovable en la parcela es mas de un 90 % respecto de los límites fijados en el criterio", "La producción de energía renovable en la parcela, es mas de un 90 % respecto del estudio de potencial de renovables del edificio") -> La producción de energía renovable en la parcela, es mas de un 90 % respecto del estudio de potencial de renovables del edificio | Y175: 0.6 | Z175: =+IF($Q175="seguro",$Y175,0) -> 0 | AB175: =+IF($Q175="probable",$Y175,0) -> 0 | AD175: =+IF($Q175="dudoso",$Y175,0) -> 0 | AF175: =+IF($Q175="NO CUMPLE",$Y175,0) -> 0 | AH175: =+IF($Q175="no aplica",2,0) -> 0
D178: Se prevée que la generación de energía renovable en la parcela sea superior al consumo de energía primaria total del edificio | Y178: =SUM(Y169:Y176) -> 1 | Z178: =IF($O165="",0,IF(W165="NE",(SUM(Z169:Z176)*$O165*0.8),(SUM(Z169:Z176)*$O165))) -> 0 | AB178: =IF($O165="",0,SUM(AB169:AB176)*$O165*0.8) -> 0 | AD178: =IF($O165="",0,SUM(AD169:AD176)*$O165*0.8) -> 0 | AF178: =IF($O165="",0,SUM(AF169:AF176)*$O165*0.8) -> 0
Z180: =+IF(AND($Q178="seguro",W165="NE"),$O165*0.2,0) -> 0 | AB180: =+IF($Q178="probable",$O165*0.2,0) -> 0 | AD180: =+IF($Q178="provable",$O165*0.2,0) -> 0 | AF180: =+IF($Q178="no cumple",$O165*0.2,0) -> 0
D181: Valoración obtenida: | H181: SEGURO | J181: PROBABLE | L181: DUDOSO | Y181: =Z181+AB181+AD181+AF181 -> 0 | Z181: =IF((Z178+Z180)>O165,O165,(Z178+Z180)) -> 0 | AB181: =AB178+AB180 -> 0 | AD181: =AD178+AD180 -> 0 | AF181: =AF178+AF180 -> 0
H182: =Z181 -> 0 | J182: =AB181 -> 0 | L182: =AD181 -> 0
D185: ='Matriz VERDE-GBCe'!V20 -> EA 03 | E185: =VLOOKUP($D185,'Matriz VERDE-GBCe'!$V$6:$AH$55,2,FALSE) -> Consumo en zonas comunes | O185: =VLOOKUP($D185,'Matriz VERDE-GBCe'!$V$6:$AH$55,3,FALSE) -> 0.02666882172 | Y185: Target | Z185: SEGURO | AB185: PROBABLE | AD185: DUDOSO | AF185: NO CUMPLE | AH185: NO APLICA
D187: El ascensor cuenta con una clasificación, al menos B, según la norma UNE 25745-2 | Y187: 0.5 | Z187: =+IF($Q187="seguro",$Y187,0) -> 0 | AB187: =+IF($Q187="probable",$Y187,0) -> 0 | AD187: =+IF($Q187="dudoso",$Y187,0) -> 0 | AF187: =+IF($Q187="NO CUMPLE",$Y187,0) -> 0 | AH187: =+IF($Q187="no aplica",2,0) -> 0
D190: El VEEI de las zonas comunes es igual o inferior a 3 | Y190: 0.3 | Z190: =+IF($Q190="seguro",$Y190,0) -> 0 | AB190: =+IF($Q190="probable",$Y190,0) -> 0 | AD190: =+IF($Q190="dudoso",$Y190,0) -> 0 | AF190: =+IF($Q190="NO CUMPLE",$Y190,0) -> 0 | AH190: =+IF($Q190="no aplica",2,0) -> 0
D193: La iluminación de zonas comunes cuenta con los siguientes dispositivos de ahorro:
F195: Detector de presencia combinado con sonda de iluminación | Y195: =IF(Q195="",0,0.2) -> 0 | Z195: =+IF($Q195="seguro",$Y195,0) -> 0 | AB195: =+IF($Q195="probable",$Y195,0) -> 0 | AD195: =+IF($Q195="dudoso",$Y195,0) -> 0 | AF195: =+IF($Q195="NO CUMPLE",$Y195,0) -> 0 | AH195: =+IF($Q195="no aplica",2,0) -> 0
F198: Detector de presencia | Y198: =IF(Q195="",0.15,0) -> 0.15 | Z198: =+IF(Z195=0,IF($Q198="seguro",$Y198,0),0) -> 0 | AB198: =+IF(AB195=0,IF($Q198="probable",$Y198,0),0) -> 0 | AD198: =+IF(AD195=0,IF($Q198="dudoso",$Y198,0),0) -> 0 | AF198: =+IF(AF195=0,IF($Q198="no cumple",$Y198,0),0) -> 0 | AH198: =+IF($Q198="no aplica",2,0) -> 0
F201: Sonda de iluminación | Y201: =IF(AND(Q195="",Q198=""),0.1,0) -> 0.1 | Z201: =+IF(AND(Z195=0,Z198=0),IF($Q201="seguro",$Y201,0),0) -> 0 | AB201: =+IF(AND(AB195=0,AB198=0),IF($Q201="probable",$Y201,0),0) -> 0 | AD201: =+IF(AND(AD195=0,AD198=0),IF($Q201="dudoso",$Y201,0),0) -> 0 | AF201: =+IF(AND(AF195=0,AF198=0),IF($Q201="no cumple",$Y201,0),0) -> 0 | AH201: =+IF($Q201="no aplica",2,0) -> 0
F204: Temporizador | Y204: =IF(Q195="",0.05,0) -> 0.05 | Z204: =+IF(AND(Z195=0,Z198=0),IF($Q204="seguro",$Y204,0),0) -> 0 | AB204: =+IF(AND(AB195=0,AB198=0),IF($Q204="probable",$Y204,0),0) -> 0 | AD204: =+IF(AND(AD195=0,AD198=0),IF($Q204="dudoso",$Y204,0),0) -> 0 | AF204: =+IF(AND(AF195=0,AF198=0),IF($Q204="no cumple",$Y204,0),0) -> 0 | AH204: =+IF($Q204="no aplica",2,0) -> 0
D206: Valoración obtenida: | H206: SEGURO | J206: PROBABLE | L206: DUDOSO | X206: =Z206+AB206+AD206+AF206 -> 0 | Y206: =SUM(Y186:Y197) -> 0.8 | Z206: =IF($O185="",0,SUM(Z186:Z204)*$O185) -> 0 | AB206: =IF($O185="",0,SUM(AB186:AB204)*$O185) -> 0 | AD206: =IF($O185="",0,SUM(AD186:AD204)*$O185) -> 0 | AF206: =IF($O185="",0,SUM(AF186:AF204)*$O185) -> 0
H207: =Z206 -> 0 | J207: =AB206 -> 0 | L207: =AD206 -> 0
D210: ='Matriz VERDE-GBCe'!V22 -> EA 04 | F210: =VLOOKUP($D210,'Matriz VERDE-GBCe'!$V$6:$AH$55,2,FALSE) -> Elección responsable de refrigerantes | O210: =VLOOKUP($D210,'Matriz VERDE-GBCe'!$V$6:$AH$55,3,FALSE) -> 0.02798879371 | Y210: Target | Z210: SEGURO | AB210: PROBABLE | AD210: DUDOSO | AF210: NO CUMPLE | AH210: NO APLICA
D212: Todos los refrigerantes empleados tienen un potencial de calentamiento entre 700 y 450 | Y212: 0.5 | Z212: =+IF($Q212="seguro",$Y212,0) -> 0 | AB212: =+IF($Q212="probable",$Y212,0) -> 0 | AD212: =+IF($Q212="dudoso",$Y212,0) -> 0 | AF212: =+IF($Q212="NO CUMPLE",$Y212,0) -> 0 | AH212: =+IF($Q212="no aplica",2,0) -> 0
D215: Todos los refrigerantes empleados tienen un potencial de calentamiento entre 450 y 150 o inferior | Y215: 0.5 | Z215: =+IF($Q215="seguro",$Y215,0) -> 0 | AB215: =+IF($Q215="probable",$Y215,0) -> 0 | AD215: =+IF($Q215="dudoso",$Y215,0) -> 0 | AF215: =+IF($Q215="NO CUMPLE",$Y215,0) -> 0 | AH215: =+IF($Q215="no aplica",2,0) -> 0
D217: Valoración obtenida: | H217: SEGURO | J217: PROBABLE | L217: DUDOSO | X217: =Z217+AB217+AD217+AF217 -> 0 | Y217: =SUM(Y212:Y215) -> 1 | Z217: =IF($O210="",0,SUM(Z212:Z215)*$O210) -> 0 | AB217: =IF($O210="",0,SUM(AB212:AB215)*$O210) -> 0 | AD217: =IF($O210="",0,SUM(AD212:AD215)*$O210) -> 0 | AF217: =IF($O210="",0,SUM(AF212:AF215)*$O210) -> 0
H218: =Z217 -> 0 | J218: =AB217 -> 0 | L218: =AD217 -> 0
F220: SEGURO | H220: PROBABLE | J220: DUDOSO | L220: NO CUMPLE
D222: SUBTOTAL | F222: =H162+H182+H207+H218 -> 0 | H222: =J162+J182+J207+J218 -> 0 | J222: =+L162+L182+L207+L218 -> 0 | L222: =$AF160+$AF181+$AF206+$AF217 -> 0 | X222: =F222+H222+J222+L222 -> 0
B226: ='Matriz VERDE-GBCe'!U23 -> RN | D226: ='Matriz VERDE-GBCe'!V23 -> Recursos naturales | O226: Valoración total | Q226: ='Matriz VERDE-GBCe'!X23 -> 0.2634556328
D229: ='Matriz VERDE-GBCe'!V24 -> RN 01 | E229: =VLOOKUP($D229,'Matriz VERDE-GBCe'!$V$6:$AH$55,2,FALSE) -> Consumo de agua en aparatos sanitarios | O229: =VLOOKUP($D229,'Matriz VERDE-GBCe'!$V$6:$AH$55,3,FALSE) -> 0.02246646194 | Y229: Target | Z229: SEGURO | AB229: PROBABLE | AD229: DUDOSO | AF229: NO CUMPLE | AH229: NO APLICA
D231: El consumo de agua en sanitarios se reduce en un 20% | Y231: 0.5 | Z231: =+IF($Q231="seguro",$Y231,0) -> 0 | AB231: =+IF($Q231="probable",$Y231,0) -> 0 | AD231: =+IF($Q231="dudoso",$Y231,0) -> 0 | AF231: =+IF($Q231="NO CUMPLE",$Y231,0) -> 0 | AH231: =+IF($Q231="no aplica",2,0) -> 0
D234: El consumo de agua en sanitarios se reduce en un 30% | Y234: 0.5 | Z234: =+IF($Q234="seguro",$Y234,0) -> 0 | AB234: =+IF($Q234="probable",$Y234,0) -> 0 | AD234: =+IF($Q234="dudoso",$Y234,0) -> 0 | AF234: =+IF($Q234="NO CUMPLE",$Y234,0) -> 0 | AH234: =+IF($Q234="no aplica",2,0) -> 0
D236: Valoración obtenida: | H236: SEGURO | J236: PROBABLE | L236: DUDOSO | X236: =Z236+AB236+AD236+AF236 -> 0 | Y236: =SUM(Y231:Y234) -> 1 | Z236: =IF($O229="",0,SUM(Z231:Z234)*$O229/$Y236) -> 0 | AB236: =IF($O229="",0,SUM(AB231:AB234)*$O229/$Y236) -> 0 | AD236: =IF($O229="",0,SUM(AD231:AD234)*$O229/$Y236) -> 0 | AF236: =IF($O229="",0,SUM(AF231:AF234)*$O229/$Y236) -> 0
H237: =Z236 -> 0 | J237: =AB236 -> 0 | L237: =AD236 -> 0
D240: ='Matriz VERDE-GBCe'!V25 -> RN 02 | E240: =VLOOKUP($D240,'Matriz VERDE-GBCe'!$V$6:$AH$55,2,FALSE) -> Necesidades de riego en jardines. | O240: =VLOOKUP($D240,'Matriz VERDE-GBCe'!$V$6:$AH$55,3,FALSE) -> 0.0228974732 | Y240: Target | Z240: SEGURO | AB240: PROBABLE | AD240: DUDOSO | AF240: NO CUMPLE | AH240: NO APLICA
D242: Las necesidades de riego en jardines se reducen en un 40 % | Y242: 0.35 | Z242: =+IF($Q242="seguro",$Y242,0) -> 0 | AB242: =+IF($Q242="probable",$Y242,0) -> 0 | AD242: =+IF($Q242="dudoso",$Y242,0) -> 0 | AF242: =+IF($Q242="NO CUMPLE",$Y242,0) -> 0 | AH242: =+IF($Q242="no aplica",2,0) -> 0
D245: Las necesidades de riego en jardines se reducen en un 60 % | Y245: 0.35 | Z245: =+IF($Q245="seguro",$Y245,0) -> 0 | AB245: =+IF($Q245="probable",$Y245,0) -> 0 | AD245: =+IF($Q245="dudoso",$Y245,0) -> 0 | AF245: =+IF($Q245="NO CUMPLE",$Y245,0) -> 0 | AH245: =+IF($Q245="no aplica",2,0) -> 0
D248: Las necesidades de riego en jardines se reducen en un 80 % | Y248: 0.3 | Z248: =+IF($Q248="seguro",$Y248,0) -> 0 | AB248: =+IF($Q248="probable",$Y248,0) -> 0 | AD248: =+IF($Q248="dudoso",$Y248,0) -> 0 | AF248: =+IF($Q248="NO CUMPLE",$Y248,0) -> 0 | AH248: =+IF($Q248="no aplica",2,0) -> 0
D250: Valoración obtenida: | H250: SEGURO | J250: PROBABLE | L250: DUDOSO | X250: =Z250+AB250+AD250+AF250 -> 0 | Y250: =SUM(Y241:Y248) -> 1 | Z250: =IF($O240="",0,SUM(Z241:Z248)*$O240/$Y250) -> 0 | AB250: =IF($O240="",0,SUM(AB242:AB248)*$O240/$Y250) -> 0 | AD250: =IF($O240="",0,SUM(AD242:AD248)*$O240/$Y250) -> 0 | AF250: =IF($O240="",0,SUM(AF242:AF248)*$O240/$Y250) -> 0
H251: =Z250 -> 0 | J251: =AB250 -> 0 | L251: =AD250 -> 0
D254: ='Matriz VERDE-GBCe'!V26 -> RN 03 | E254: =VLOOKUP($D254,'Matriz VERDE-GBCe'!$V$6:$AH$55,2,FALSE) -> Consumos de agua singulares. | O254: =VLOOKUP($D254,'Matriz VERDE-GBCe'!$V$6:$AH$55,3,FALSE) -> 0.01901837185 | Y254: Target | Z254: SEGURO | AB254: PROBABLE | AD254: DUDOSO | AF254: NO CUMPLE | AH254: NO APLICA
D256: Se reutiliza el 80 % de las aguas grises producidas | Y256: 0.6 | Z256: =+IF($Q256="seguro",$Y256,0) -> 0 | AB256: =+IF($Q256="probable",$Y256,0) -> 0 | AD256: =+IF($Q256="dudoso",$Y256,0) -> 0 | AF256: =+IF($Q256="NO CUMPLE",$Y256,0) -> 0 | AH256: =+IF($Q256="no aplica",2,0) -> 0
D259: Se han instalado aparatos sanitarios eficientes en zonas comunes | Y259: 0.4 | Z259: =+IF($Q259="seguro",$Y259,0) -> 0 | AB259: =+IF($Q259="probable",$Y259,0) -> 0 | AD259: =+IF($Q259="dudoso",$Y259,0) -> 0 | AF259: =+IF($Q259="NO CUMPLE",$Y259,0) -> 0 | AH259: =+IF($Q259="no aplica",2,0) -> 0
D261: Valoración obtenida: | H261: SEGURO | J261: PROBABLE | L261: DUDOSO | X261: =Z261+AB261+AD261+AF261 -> 0 | Y261: =SUM(Y256:Y259) -> 1 | Z261: =IF($O254="",0,SUM(Z256:Z259)*$O254/$Y261) -> 0 | AB261: =IF($O254="",0,SUM(AB256:AB259)*$O254/$Y261) -> 0 | AD261: =IF($O254="",0,SUM(AD256:AD259)*$O254/$Y261) -> 0 | AF261: =IF($O254="",0,SUM(AF256:AF259)*$O254/$Y261) -> 0
H262: =Z261 -> 0 | J262: =AB261 -> 0 | L262: =AD261 -> 0
D265: ='Matriz VERDE-GBCe'!V27 -> RN 04 | E265: =VLOOKUP($D265,'Matriz VERDE-GBCe'!$V$6:$AH$55,2,FALSE) -> Uso de agua no potable. | O265: =VLOOKUP($D265,'Matriz VERDE-GBCe'!$V$6:$AH$55,3,FALSE) -> 0.02187382145 | Y265: Target | Z265: SEGURO | AB265: PROBABLE | AD265: DUDOSO | AF265: NO CUMPLE | AH265: NO APLICA
D267: Las aguas recuperadas cubren el 30 % de las necesidades | Y267: 0.35 | Z267: =+IF($Q267="seguro",$Y267,0) -> 0 | AB267: =+IF($Q267="probable",$Y267,0) -> 0 | AD267: =+IF($Q267="dudoso",$Y267,0) -> 0 | AF267: =+IF($Q267="NO CUMPLE",$Y267,0) -> 0 | AH267: =+IF($Q267="no aplica",2,0) -> 0
D270: Las aguas recuperadas cubren el 60 % de las necesidades | Y270: 0.35 | Z270: =+IF($Q270="seguro",$Y270,0) -> 0 | AB270: =+IF($Q270="probable",$Y270,0) -> 0 | AD270: =+IF($Q270="dudoso",$Y270,0) -> 0 | AF270: =+IF($Q270="NO CUMPLE",$Y270,0) -> 0 | AH270: =+IF($Q270="no aplica",2,0) -> 0
D273: Las aguas recuperadas cubren el 90 % de las necesidades | Y273: 0.3 | Z273: =+IF($Q273="seguro",$Y273,0) -> 0 | AB273: =+IF($Q273="probable",$Y273,0) -> 0 | AD273: =+IF($Q273="dudoso",$Y273,0) -> 0 | AF273: =+IF($Q273="NO CUMPLE",$Y273,0) -> 0 | AH273: =+IF($Q273="no aplica",2,0) -> 0
D275: Valoración obtenida: | H275: SEGURO | J275: PROBABLE | L275: DUDOSO | X275: =Z275+AB275+AD275+AF275 -> 0 | Y275: =SUM(Y266:Y273) -> 1 | Z275: =IF($O265="",0,SUM(Z266:Z273)*$O265/$Y275) -> 0 | AB275: =IF($O265="",0,SUM(AB267:AB273)*$O265/$Y275) -> 0 | AD275: =IF($O265="",0,SUM(AD267:AD273)*$O265/$Y275) -> 0 | AF275: =IF($O265="",0,SUM(AF267:AF273)*$O265/$Y275) -> 0
H276: =Z275 -> 0 | J276: =AB275 -> 0 | L276: =AD275 -> 0
D279: ='Matriz VERDE-GBCe'!V28 -> RN 05 | E279: =VLOOKUP($D279,'Matriz VERDE-GBCe'!$V$6:$AH$55,2,FALSE) -> Uso de materiales reciclados. | O279: =VLOOKUP($D279,'Matriz VERDE-GBCe'!$V$6:$AH$55,3,FALSE) -> 0.01901837185 | Y279: Target | Z279: SEGURO | AB279: PROBABLE | AD279: DUDOSO | AF279: NO CUMPLE | AH279: NO APLICA
D281: Se ha instalado un 70 % de los elementos cerámicos, áridos, étreos y hormigones reciclados | Y281: 0.25 | Z281: =+IF($Q281="seguro",$Y281,0) -> 0 | AB281: =+IF($Q281="probable",$Y281,0) -> 0 | AD281: =+IF($Q281="dudoso",$Y281,0) -> 0 | AF281: =+IF($Q281="NO CUMPLE",$Y281,0) -> 0 | AH281: =+IF($Q281="no aplica",2,0) -> 0
D284: Se ha instalado un 90 % de los elementos cerámicos, áridos, étreos y hormigones reciclados | Y284: 0.5 | Z284: =+IF($Q284="seguro",$Y284,0) -> 0 | AB284: =+IF(AND($Q284="probable",AB281=0),$Y284/2,IF($Q284="probable",Y284,0)) -> 0 | AD284: =+IF(AND($Q284="dudoso",AD281=0),$Y284/2,IF($Q284="dudoso",Y284,0)) -> 0 | AF284: =+IF(AND($Q284="No cumple",AF281=0),$Y284/2,IF($Q284="No cumple",Y284,0)) -> 0 | AH284: =+IF(AND($Q284="No aplica",AH281=0),$Y284/2,IF($Q284="No aplica",Y284,0)) -> 0
D287: Se ha instalado un 20 % de resto de materiales reciclados | Y287: 0.25 | Z287: =+IF($Q287="seguro",$Y287,0) -> 0 | AB287: =+IF($Q287="probable",$Y287,0) -> 0 | AD287: =+IF($Q287="dudoso",$Y287,0) -> 0 | AF287: =+IF($Q287="NO CUMPLE",$Y287,0) -> 0 | AH287: =+IF($Q287="no aplica",2,0) -> 0
D290: Se ha instalado un 30 % de resto de materiales reciclados | Y290: 0.5 | Z290: =+IF($Q290="seguro",$Y290,0) -> 0 | AB290: =+IF(AND($Q290="probable",AB287=0),$Y290/2,IF($Q290="probable",Y290,0)) -> 0 | AD290: =+IF(AND($Q290="dudoso",AD287=0),$Y290/2,IF($Q290="dudoso",Y290,0)) -> 0 | AF290: =+IF(AND($Q290="No cumple",AF287=0),$Y290/2,IF($Q290="No cumple",Y290,0)) -> 0 | AH290: =+IF(AND($Q290="No cumple",AH287=0),$Y290/2,IF($Q290="No cumple",AA290,0)) -> 0
D292: Valoración obtenida: | H292: SEGURO | J292: PROBABLE | L292: DUDOSO | X292: =Z292+AB292+AD292+AF292 -> 0 | Y292: =MAX(Y280:Y284)+MAX(Y286:Y290) -> 1 | Z292: =IF($O279="",0,(MAX(Z280:Z284)+MAX(Z286:Z290))*$O279/$Y292) -> 0 | AB292: =IF($O279="",0,(MAX(AB280:AB284)+MAX(AB286:AB290))*$O279/$Y292) -> 0 | AD292: =IF($O279="",0,(MAX(AD280:AD284)+MAX(AD286:AD290))*$O279/$Y292) -> 0 | AF292: =IF($O279="",0,(MAX(AF280:AF284)+MAX(AF286:AF290))*$O279/$Y292) -> 0
H293: =Z292 -> 0 | J293: =AB292 -> 0 | L293: =AD292 -> 0
D296: ='Matriz VERDE-GBCe'!V29 -> RN 06 | E296: =VLOOKUP($D296,'Matriz VERDE-GBCe'!$V$6:$AH$55,2,FALSE) -> Elección responsable de materiales | O296: =VLOOKUP($D296,'Matriz VERDE-GBCe'!$V$6:$AH$55,3,FALSE) -> 0.01971876515 | Y296: Target | Z296: SEGURO | AB296: PROBABLE | AD296: DUDOSO | AF296: NO CUMPLE | AH296: NO APLICA
D298: Al menos el 30 % de la maderas tienen certificado de origen en cadena de custodia | Y298: 0.3 | Z298: =+IF($Q298="seguro",$Y298,0) -> 0 | AB298: =+IF($Q298="probable",$Y298,0) -> 0 | AD298: =+IF($Q298="dudoso",$Y298,0) -> 0 | AF298: =+IF($Q298="NO CUMPLE",$Y298,0) -> 0 | AH298: =+IF($Q298="no aplica",2,0) -> 0
D301: Al menos el 50 % de la maderas tienen certificado de origen en cadena de custodia | Y301: 0.7 | Z301: =+IF($Q301="seguro",$Y301,0) -> 0 | AB301: =+IF($Q301="probable",$Y301,0) -> 0 | AD301: =+IF($Q301="dudoso",$Y301,0) -> 0 | AF301: =+IF($Q301="NO CUMPLE",$Y301,0) -> 0 | AH301: =+IF($Q301="no aplica",2,0) -> 0
D304: Al menos el 10 % de los materiales disponen de un documento de procedencia de materias primas | Y304: 0.3 | Z304: =+IF($Q304="seguro",$Y304,0) -> 0 | AB304: =+IF($Q304="probable",$Y304,0) -> 0 | AD304: =+IF($Q304="dudoso",$Y304,0) -> 0 | AF304: =+IF($Q304="NO CUMPLE",$Y304,0) -> 0 | AH304: =+IF($Q304="no aplica",2,0) -> 0
D306: Valoración obtenida: | H306: SEGURO | J306: PROBABLE | L306: DUDOSO | X306: =Z306+AB306+AD306+AF306 -> 0 | Y306: =MAX(Y298:Y301)+Y304 -> 1 | Z306: =IF($O296="",0,(MAX(Z297:Z301)+Z304)*O296/$Y306) -> 0 | AB306: =IF($O296="",0,(MAX(AB297:AB301)+AB304)*O296/$Y306) -> 0 | AD306: =IF($O296="",0,(MAX(AD297:AD301)+AD304)*O296/$Y306) -> 0 | AF306: =IF($O296="",0,(MAX(AF297:AF301)+AF304)*O296/$Y306) -> 0
H307: =Z306 -> 0 | J307: =AB306 -> 0 | L307: =AD306 -> 0
D310: ='Matriz VERDE-GBCe'!V30 -> RN 07 | E310: =VLOOKUP($D310,'Matriz VERDE-GBCe'!$V$6:$AH$55,2,FALSE) -> Uso de materiales de producción local. | O310: =VLOOKUP($D310,'Matriz VERDE-GBCe'!$V$6:$AH$55,3,FALSE) -> 0.02071547869 | Y310: Target | Z310: SEGURO | AB310: PROBABLE | AD310: DUDOSO | AF310: NO CUMPLE | AH310: NO APLICA
D312: El 60% de los elementos cerámicos, áridos, pétreos y hormigones reciclados son de origen local | Y312: 0.2 | Z312: =+IF($Q312="seguro",$Y312,0) -> 0 | AB312: =+IF($Q312="probable",$Y312,0) -> 0 | AD312: =+IF($Q312="dudoso",$Y312,0) -> 0 | AF312: =+IF($Q312="NO CUMPLE",$Y312,0) -> 0 | AH312: =+IF($Q312="no aplica",2,0) -> 0
D315: El 80% de los elementos cerámicos, áridos, pétreos y hormigones reciclados son de origen local | Y315: 0.2 | Z315: =+IF($Q315="seguro",$Y315,0) -> 0 | AB315: =+IF($Q315="probable",$Y315,0) -> 0 | AD315: =+IF($Q315="dudoso",$Y315,0) -> 0 | AF315: =+IF($Q315="NO CUMPLE",$Y315,0) -> 0 | AH315: =+IF($Q315="no aplica",2,0) -> 0
D318: El 60% de resto de materiales son de origen local | Y318: 0.3 | Z318: =+IF($Q318="seguro",$Y318,0) -> 0 | AB318: =+IF($Q318="probable",$Y318,0) -> 0 | AD318: =+IF($Q318="dudoso",$Y318,0) -> 0 | AF318: =+IF($Q318="NO CUMPLE",$Y318,0) -> 0 | AH318: =+IF($Q318="no aplica",2,0) -> 0
D321: El 80% de resto de materiales son de origen local | Y321: 0.3 | Z321: =+IF($Q321="seguro",$Y321,0) -> 0 | AB321: =+IF($Q321="probable",$Y321,0) -> 0 | AD321: =+IF($Q321="dudoso",$Y321,0) -> 0 | AF321: =+IF($Q321="NO CUMPLE",$Y321,0) -> 0 | AH321: =+IF($Q321="no aplica",2,0) -> 0
D323: Valoración obtenida: | H323: SEGURO | J323: PROBABLE | L323: DUDOSO | X323: =Z323+AB323+AD323+AF323 -> 0 | Y323: =SUM(Y312:Y321) -> 1 | Z323: =IF($O310="",0,(SUM(Z311:Z322))*$O310/$Y323) -> 0 | AB323: =IF($O310="",0,(SUM(AB312:AB322))*$O310/$Y323) -> 0 | AD323: =IF($O310="",0,(SUM(AD311:AD322))*$O310/$Y323) -> 0 | AF323: =IF($O310="",0,(SUM(AF311:AF322))*$O310/$Y323) -> 0
H324: =Z323 -> 0 | J324: =AB323 -> 0 | L324: =AD323 -> 0
D327: ='Matriz VERDE-GBCe'!V31 -> RN 08 | E327: =VLOOKUP($D327,'Matriz VERDE-GBCe'!$V$6:$AH$55,2,FALSE) -> El edificio como banco de materiales | O327: =VLOOKUP($D327,'Matriz VERDE-GBCe'!$V$6:$AH$55,3,FALSE) -> 0.02270890577 | Y327: Target | Z327: SEGURO | AB327: PROBABLE | AD327: DUDOSO | AF327: NO CUMPLE | AH327: NO APLICA
D329: El 50% de los favorecen el reciclaje al final de su ciclo de vida del edificio | Y329: 0.2 | Z329: =+IF($Q329="seguro",$Y329,0) -> 0 | AB329: =+IF($Q329="probable",$Y329,0) -> 0 | AD329: =+IF($Q329="dudoso",$Y329,0) -> 0 | AF329: =+IF($Q329="NO CUMPLE",$Y329,0) -> 0 | AH329: =+IF($Q329="no aplica",2,0) -> 0
D332: El 60% de los favorecen el reciclaje al final de su ciclo de vida del edificio | Y332: 0.2 | Z332: =+IF($Q332="seguro",$Y332,0) -> 0 | AB332: =+IF($Q332="probable",$Y332,0) -> 0 | AD332: =+IF($Q332="dudoso",$Y332,0) -> 0 | AF332: =+IF($Q332="NO CUMPLE",$Y332,0) -> 0 | AH332: =+IF($Q332="no aplica",2,0) -> 0
D335: EL 60% de los elementos de los cerramientos exteriores garantizan su recuperación al fin de vida del edificio | Y335: 0.1 | Z335: =+IF($Q335="seguro",$Y335,0) -> 0 | AB335: =+IF($Q335="probable",$Y335,0) -> 0 | AD335: =+IF($Q335="dudoso",$Y335,0) -> 0 | AF335: =+IF($Q335="NO CUMPLE",$Y335,0) -> 0 | AH335: =+IF($Q335="no aplica",2,0) -> 0
D338: EL 60% de los elementos de la cubierta garantizan su recuperación al fin de vida del edificio | Y338: 0.1 | Z338: =+IF($Q338="seguro",$Y338,0) -> 0 | AB338: =+IF($Q338="probable",$Y338,0) -> 0 | AD338: =+IF($Q338="dudoso",$Y338,0) -> 0 | AF338: =+IF($Q338="NO CUMPLE",$Y338,0) -> 0 | AH338: =+IF($Q338="no aplica",2,0) -> 0
D341: EL 60% de los elementos de la extructura garantizan su recuperación al fin de vida del edificio | Y341: 0.1 | Z341: =+IF($Q341="seguro",$Y341,0) -> 0 | AB341: =+IF($Q341="probable",$Y341,0) -> 0 | AD341: =+IF($Q341="dudoso",$Y341,0) -> 0 | AF341: =+IF($Q341="NO CUMPLE",$Y341,0) -> 0 | AH341: =+IF($Q341="no aplica",2,0) -> 0
D344: EL 60% de los elementos de lal divisiones interiores garantizan su recuperación al fin de vida del edificio | Y344: 0.1 | Z344: =+IF($Q344="seguro",$Y344,0) -> 0 | AB344: =+IF($Q344="probable",$Y344,0) -> 0 | AD344: =+IF($Q344="dudoso",$Y344,0) -> 0 | AF344: =+IF($Q344="NO CUMPLE",$Y344,0) -> 0 | AH344: =+IF($Q344="no aplica",2,0) -> 0
D347: Existe un estudio del posible uso de los materiales después de su desmontaje al final de la vida del edificio | Y347: 0.2 | Z347: =+IF($Q347="seguro",$Y347,0) -> 0 | AB347: =+IF($Q347="probable",$Y347,0) -> 0 | AD347: =+IF($Q347="dudoso",$Y347,0) -> 0 | AF347: =+IF($Q347="NO CUMPLE",$Y347,0) -> 0 | AH347: =+IF($Q347="no aplica",2,0) -> 0
D349: Valoración obtenida: | H349: SEGURO | J349: PROBABLE | L349: DUDOSO | X349: =Z349+AB349+AD349+AF349 -> 0 | Y349: =Y329+Y332++Y335+Y338+Y341+Y344+Y347 -> 1 | Z349: =IF($O327="",0,(SUM(Z328:Z347))*$O327/$Y349) -> 0 | AB349: =IF($O327="",0,(SUM(AB328:AB347))*$O327/$Y349) -> 0 | AD349: =IF($O327="",0,(+SUM(AD329:AD347))*$O327/$Y349) -> 0 | AF349: =IF($O327="",0,(+SUM(AF328:AF347))*$O327/$Y349) -> 0
H350: =Z349 -> 0 | J350: =AB349 -> 0 | L350: =AD349 -> 0
D353: ='Matriz VERDE-GBCe'!V32 -> RN 09 | E353: =VLOOKUP($D353,'Matriz VERDE-GBCe'!$V$6:$AH$55,2,FALSE) -> Gestión de los residuos de la construcción. | O353: =VLOOKUP($D353,'Matriz VERDE-GBCe'!$V$6:$AH$55,3,FALSE) -> 0.01643230429 | Y353: Target | Z353: SEGURO | AB353: PROBABLE | AD353: DUDOSO | AF353: NO CUMPLE | AH353: NO APLICA
D355: Se garantiza la revalorización del 65% de los residuos de la construcción | Y355: 0.25 | Z355: =+IF($Q355="seguro",$Y355,0) -> 0 | AB355: =+IF($Q355="probable",$Y355,0) -> 0 | AD355: =+IF($Q355="dudoso",$Y355,0) -> 0 | AF355: =+IF($Q355="NO CUMPLE",$Y355,0) -> 0 | AH355: =+IF($Q355="no aplica",2,0) -> 0
D358: Se garantiza la revalorización del 75% de los residuos de la construcción | Y358: 0.25 | Z358: =+IF($Q358="seguro",$Y358,0) -> 0 | AB358: =+IF($Q358="probable",$Y358,0) -> 0 | AD358: =+IF($Q358="dudoso",$Y358,0) -> 0 | AF358: =+IF($Q358="NO CUMPLE",$Y358,0) -> 0 | AH358: =+IF($Q358="no aplica",2,0) -> 0
D361: Se ha realizadoo unanálisis de posibles alternativas en la utilización de sistemas o materiales para minimizar los residuos de obra | Y361: 0.5 | Z361: =+IF($Q361="seguro",$Y361,0) -> 0 | AB361: =+IF($Q361="probable",$Y361,0) -> 0 | AD361: =+IF($Q361="dudoso",$Y361,0) -> 0 | AF361: =+IF($Q361="NO CUMPLE",$Y361,0) -> 0 | AH361: =+IF($Q361="no aplica",2,0) -> 0
D363: Valoración obtenida: | H363: SEGURO | J363: PROBABLE | L363: DUDOSO | X363: =Z363+AB363+AD363+AF363 -> 0 | Y363: =SUM(Y354:Y362) -> 1 | Z363: =IF($O353="",0,(Z355+Z358+Z361)*$O353/$Y363) -> 0 | AB363: =IF($O353="",0,(AB355+AB358+AB361)*$O353/$Y363) -> 0 | AD363: 0 | AF363: 0
H364: =Z363 -> 0 | J364: =AB363 -> 0 | L364: =AD363 -> 0
D367: ='Matriz VERDE-GBCe'!V33 -> RN 10 | E367: =VLOOKUP($D367,'Matriz VERDE-GBCe'!$V$6:$AH$55,2,FALSE) -> Nivel de intervención en rehabilitaciones | O367: =VLOOKUP($D367,'Matriz VERDE-GBCe'!$V$6:$AH$55,3,FALSE) -> 0
D368: =IF('DG '!F29=0,"",'DG '!F29) ->  | Y368: Target | Z368: SEGURO | AB368: PROBABLE | AD368: DUDOSO | AF368: NO CUMPLE | AH368: NO APLICA
D370: Se conservan mas del 80% de los elementos de los cerramientos exteriores verticales. | Y370: 0.2 | Z370: =+IF($Q370="seguro",$Y370,0) -> 0 | AB370: =+IF($Q370="probable",$Y370,0) -> 0 | AD370: =+IF($Q370="dudoso",$Y370,0) -> 0 | AF370: =+IF($Q370="NO CUMPLE",$Y370,0) -> 0 | AH370: =+IF($Q370="no aplica",2,0) -> 0
D373: Se conservan mas del 80% de la cubierta. | Y373: 0.2 | Z373: =+IF($Q373="seguro",$Y373,0) -> 0 | AB373: =+IF($Q373="probable",$Y373,0) -> 0 | AD373: =+IF($Q373="dudoso",$Y373,0) -> 0 | AF373: =+IF($Q373="NO CUMPLE",$Y373,0) -> 0 | AH373: =+IF($Q373="no aplica",2,0) -> 0
D376: Se conservan mas del 80% de los elementos de la estructura. | Y376: 0.2 | Z376: =+IF($Q376="seguro",$Y376,0) -> 0 | AB376: =+IF($Q376="probable",$Y376,0) -> 0 | AD376: =+IF($Q376="dudoso",$Y376,0) -> 0 | AF376: =+IF($Q376="NO CUMPLE",$Y376,0) -> 0 | AH376: =+IF($Q376="no aplica",2,0) -> 0
D379: Se conservan mas del 80% de los elementos de las particiones interiores. | Y379: 0.2 | Z379: =+IF($Q379="seguro",$Y379,0) -> 0 | AB379: =+IF($Q379="probable",$Y379,0) -> 0 | AD379: =+IF($Q379="dudoso",$Y379,0) -> 0 | AF379: =+IF($Q379="NO CUMPLE",$Y379,0) -> 0 | AH379: =+IF($Q379="no aplica",2,0) -> 0
D382: Se conservan mas del 80% de los elementos de las cajas de escalera y huecos de ascensores. | Y382: 0.2 | Z382: =+IF($Q382="seguro",$Y382,0) -> 0 | AB382: =+IF($Q382="probable",$Y382,0) -> 0 | AD382: =+IF($Q382="dudoso",$Y382,0) -> 0 | AF382: =+IF($Q382="NO CUMPLE",$Y382,0) -> 0 | AH382: =+IF($Q382="no aplica",2,0) -> 0
D384: Valoración obtenida: | H384: SEGURO | J384: PROBABLE | L384: DUDOSO | X384: =Z384+AB384+AD384+AF384 -> 0 | Y384: =SUM(Y370:Y382) -> 1 | Z384: =IF($O367="",0,SUM(Z370:Z382)*$O367/$Y384) -> 0 | AB384: =IF($O367="",0,SUM(AB370:AB382)*$O367/$Y384) -> 0 | AD384: =IF($O367="",0,SUM(AD370:AD382)*$O367/$Y384) -> 0 | AF384: =IF($O367="",0,SUM(AF370:AF382)*$O367/$Y384) -> 0
H385: =IF(D368="Rehabilitación",Z384,0) -> 0 | J385: =IF(D368="Rehabilitación",AB384,0) -> 0 | L385: =IF(D368="Rehabilitación",AD384,0) -> 0
D388: ='Matriz VERDE-GBCe'!V34 -> RN 11 | E388: =VLOOKUP($D388,'Matriz VERDE-GBCe'!$V$6:$AH$55,2,FALSE) -> Impacto de los materiales de la construcción. | O388: =VLOOKUP($D388,'Matriz VERDE-GBCe'!$V$6:$AH$55,3,FALSE) -> 0.05756694144 | Y388: Target | Z388: SEGURO | AB388: PROBABLE | AD388: DUDOSO | AF388: NO CUMPLE | AH388: NO APLICA
D390: Existe un ACV parcial en las etapas A1, A2, A3 según la EN 15978 que contempla los indicadores GWP (kg CO2 eq) y ADP (MJ). | Y390: 0.5 | Z390: =+IF($Q390="seguro",$Y390,0) -> 0 | AB390: =+IF($Q390="probable",$Y390,0) -> 0 | AD390: =+IF($Q390="dudoso",$Y390,0) -> 0 | AF390: =+IF($Q390="NO CUMPLE",$Y390,0) -> 0 | AH390: =+IF($Q390="no aplica",2,0) -> 0
D393: Existe un ACV completo en las etapas A1, A2, A3, A4, A5, B4, C3 y C4 según la EN 15978 que contempla los indicadores GWP(kg CO2 eq) y ADP (MJ). | Y393: 0.3 | Z393: =+IF($Q393="seguro",$Y393,0) -> 0 | AB393: =+IF($Q393="probable",$Y393,0) -> 0 | AD393: =+IF($Q393="dudoso",$Y393,0) -> 0 | AF393: =+IF($Q393="NO CUMPLE",$Y393,0) -> 0 | AH393: =+IF($Q393="no aplica",2,0) -> 0
D396: El ACV que demuestra una reducción del 15% en los indicadores GWP (kg CO2 eq) y/o ADP (MJ). | Y396: 0.1 | Z396: =+IF($Q396="seguro",$Y396,0) -> 0 | AB396: =+IF($Q396="probable",$Y396,0) -> 0 | AD396: =+IF($Q396="dudoso",$Y396,0) -> 0 | AF396: =+IF($Q396="NO CUMPLE",$Y396,0) -> 0 | AH396: =+IF($Q396="no aplica",2,0) -> 0
D399: Existe un ACV parcial o completo que contempla todos los indicadores establecidos en la norma EN 15978 | Y399: 0.1 | Z399: =+IF($Q399="seguro",$Y399,0) -> 0 | AB399: =+IF($Q399="probable",$Y399,0) -> 0 | AD399: =+IF($Q399="dudoso",$Y399,0) -> 0 | AF399: =+IF($Q399="NO CUMPLE",$Y399,0) -> 0 | AH399: =+IF($Q399="no aplica",2,0) -> 0
D401: Valoración obtenida: | H401: SEGURO | J401: PROBABLE | L401: DUDOSO | X401: =Z401+AB401+AD401+AF401 -> 0 | Y401: =SUM(Y390:Y399) -> 1 | Z401: =IF($O388="",0,SUM(Z390:Z399)*$O388/$Y401) -> 0 | AB401: =IF($O388="",0,SUM(AB390:AB399)*$O388/$Y401) -> 0 | AD401: =IF($O388="",0,SUM(AD390:AD399)*$O388/$Y401) -> 0 | AF401: =IF($O388="",0,SUM(AF390:AF399)*$O388/$Y401) -> 0
H402: =Z401 -> 0 | J402: =AB401 -> 0 | L402: =AD401 -> 0
D405: ='Matriz VERDE-GBCe'!V35 -> RN 12 | E405: =VLOOKUP($D405,'Matriz VERDE-GBCe'!$V$6:$AH$55,2,FALSE) -> Ecoetiquetado de producto. | O405: =VLOOKUP($D405,'Matriz VERDE-GBCe'!$V$6:$AH$55,3,FALSE) -> 0.02103873714 | Y405: Target | Z405: SEGURO | AB405: PROBABLE | AD405: DUDOSO | AF405: NO CUMPLE | AH405: NO APLICA
D407: El porcentaje en masa de los materiales con ecoetiqueta tipo I está por encima del 15% | Y407: 0.2 | Z407: =+IF($Q407="seguro",$Y407,0) -> 0 | AB407: =+IF($Q407="probable",$Y407,0) -> 0 | AD407: =+IF($Q407="dudoso",$Y407,0) -> 0 | AF407: =+IF($Q407="NO CUMPLE",$Y407,0) -> 0 | AH407: =+IF($Q407="no aplica",2,0) -> 0
D410: El porcentaje en masa de los elementos cerámicos, áridos, pétreos y hormigones con DAP está por encima del 90% | Y410: 0.3 | Z410: =+IF($Q410="seguro",$Y410,0) -> 0 | AB410: =+IF($Q410="probable",$Y410,0) -> 0 | AD410: =+IF($Q410="dudoso",$Y410,0) -> 0 | AF410: =+IF($Q410="NO CUMPLE",$Y410,0) -> 0 | AH410: =+IF($Q410="no aplica",2,0) -> 0
D413: El porcentaje en masa del resto de materiales con DAP está por encima del 30% | Y413: 0.5 | Z413: =+IF($Q413="seguro",$Y413,0) -> 0 | AB413: =+IF($Q413="probable",$Y413,0) -> 0 | AD413: =+IF($Q413="dudoso",$Y413,0) -> 0 | AF413: =+IF($Q413="NO CUMPLE",$Y413,0) -> 0 | AH413: =+IF($Q413="no aplica",2,0) -> 0
D416: Entre los materiales con DAPs se encuentran, al menos, las siguientes familias: elementos estructurales, aislamientos y revestimientos. | Y416: 0.2 | Z416: =+IF($Q416="seguro",$Y416,0) -> 0 | AB416: =+IF($Q416="probable",$Y416,0) -> 0 | AD416: =+IF($Q416="dudoso",$Y416,0) -> 0 | AF416: =+IF($Q416="NO CUMPLE",$Y416,0) -> 0 | AH416: =+IF($Q416="no aplica",2,0) -> 0
D419: El 50% de las DAPs cuentan con un ACV en todas las fases del ciclo de vida | Y419: 0.2 | Z419: =+IF($Q419="seguro",$Y419,0) -> 0 | AB419: =+IF($Q419="probable",$Y419,0) -> 0 | AD419: =+IF($Q419="dudoso",$Y419,0) -> 0 | AF419: =+IF($Q419="NO CUMPLE",$Y419,0) -> 0 | AH419: =+IF($Q419="no aplica",2,0) -> 0
D421: Valoración obtenida: | H421: SEGURO | J421: PROBABLE | L421: DUDOSO | X421: =Z421+AB421+AD421 -> 0 | Y421: =IF((SUM(Y406:Y415))=1,1,SUM(Y407:Y419)) -> 1 | Z421: =IF((SUM(Z406:Z415))=1,O405,SUM(Z406:Z420)*O405) -> 0 | AB421: =IF(Z421=O405,0,IF((SUM(AB406:AB415))=1,O405,SUM(AB406:AB420)*O405)) -> 0 | AD421: =IF(OR(SUM(AB406:AB413)=O405,SUM(Z406:Z413)=O405,Z421=O405,(Z421+AB421=O405)),0,IF((SUM(AD406:AD415))=1,O405,SUM(AD407:AD420)*O405)) -> 0 | AF421: =IF(OR(Z421=O405,AB421=O405,AD421=O405,(Z421+AB421+AD421=O405)),0,IF((SUM(AF406:AF415))=1,O405,SUM(AF407:AF419)*O405)) -> 0
H422: =Z421 -> 0 | J422: =AB421 -> 0 | L422: =AD421 -> 0
F424: SEGURO | H424: PROBABLE | J424: DUDOSO | L424: NO CUMPLE
D426: SUBTOTAL | F426: =H237+H251+H262+H276+H293+H307+H324+H350+H364+H402+H422+H385 -> 0 | H426: =J237+J251+J262+J276+J293+J307+J324+J350+J364+J402+J422+J385 -> 0 | J426: =L237+L251+L262+L276+L293+L307+L324+L350+L364+L402+L422+L385 -> 0 | L426: =$AF236+$AF250+$AF261+$AF275+$AF292+$AF306+$AF323+$AF349+$AF363+$AF401+$AF421+AF384 -> 0 | X426: =F426+H426+J426+L426 -> 0
B430: ='Matriz VERDE-GBCe'!U36 -> AI | D430: ='Matriz VERDE-GBCe'!V36 -> Ambiente Interior. | O430: Valoración total | Q430: ='Matriz VERDE-GBCe'!X36 -> 0.07855180217
D433: ='Matriz VERDE-GBCe'!V37 -> AI 01 | E433: =VLOOKUP($D433,'Matriz VERDE-GBCe'!$V$6:$AH$55,2,FALSE) -> Limitación de las emisiones de COVs | O433: =VLOOKUP($D433,'Matriz VERDE-GBCe'!$V$6:$AH$55,3,FALSE) -> 0.01996120899 | Y433: Target | Z433: SEGURO | AB433: PROBABLE | AD433: DUDOSO | AF433: NO CUMPLE | AH433: NO APLICA
D435: Se ha realizado un ensayo tal y cómo se describe en la guía, también en cuanto a sus resultados | Y435: 1 | Z435: =+IF($Q435="seguro",$Y435,0) -> 0 | AB435: =+IF($Q435="probable",$Y435,0) -> 0 | AD435: =+IF($Q435="dudoso",$Y435,0) -> 0 | AF435: =+IF($Q435="NO CUMPLE",$Y435,0) -> 0 | AH435: =+IF($Q435="no aplica",2,0) -> 0
D438: Las pinturas, barnices, adhesivos, sellantes y derivados de la madera, tienen emisiones de COVs nulas | Y438: 0.6 | Z438: =+IF($Q438="seguro",$Y438,0) -> 0 | AB438: =+IF($Q438="probable",$Y438,0) -> 0 | AD438: =+IF($Q438="dudoso",$Y438,0) -> 0 | AF438: =+IF($Q438="NO CUMPLE",$Y438,0) -> 0 | AH438: =+IF($Q438="no aplica",2,0) -> 0
D441: Las pinturas, barnices, adhesivos, sellantes y derivados de la madera, tienen emisiones de COVs por debajo de las indicadas en la guía | Y441: 0.4 | Z441: =+IF($Q441="seguro",$Y441,0) -> 0 | AB441: =+IF($Q441="probable",$Y441,0) -> 0 | AD441: =+IF($Q441="dudoso",$Y441,0) -> 0 | AF441: =+IF($Q441="NO CUMPLE",$Y441,0) -> 0 | AH441: =+IF($Q441="no aplica",2,0) -> 0
D443: Valoración obtenida: | H443: SEGURO | J443: PROBABLE | L443: DUDOSO | X443: =Z443+AB443+AD443+AF443 -> 0 | Y443: =IF(Y435=1,1,SUM(Y438:Y441)) -> 1 | Z443: =IF($O433="",0,IF(Z435=1,$O433/Y443,SUM(Z438:Z441)*$O433/Y443)) -> 0 | AB443: =IF($O433="",0,IF(AB435=1,$O433/Y443,SUM(AB438:AB441)*$O433/Y443)) -> 0 | AD443: =IF($O433="",0,IF(AD435=1,$O433/Y443,SUM(AD438:AD441)*$O433/Y443)) -> 0 | AF443: =IF($O433="",0,IF(AF435=1,$O433/Y443,SUM(AF438:AF441)*$O433/Y443)) -> 0
H444: =Z443 -> 0 | J444: =AB443 -> 0 | L444: =AD443 -> 0
D447: ='Matriz VERDE-GBCe'!V38 -> AI 02 | E447: =VLOOKUP($D447,'Matriz VERDE-GBCe'!$V$6:$AH$55,2,FALSE) -> Control de la calidad del aire | O447: =VLOOKUP($D447,'Matriz VERDE-GBCe'!$V$6:$AH$55,3,FALSE) -> 0.01953019773
D450: =IF('DG '!F29=0,"",'DG '!F29) ->  | Y450: Target | Z450: SEGURO | AB450: PROBABLE | AD450: DUDOSO | AF450: NO CUMPLE | AH450: NO APLICA
D452: =IF(OR(D450="Rehabilitación", D450="Edificio existente"),"El porcentaje de las viviendas que cuentan con una ventilación natural oscila entre el 60 y el 70%", "El porcentaje de las viviendas que cuentan con una ventilación natural oscila entre el 70 y el 80%") -> El porcentaje de las viviendas que cuentan con una ventilación natural oscila entre el 70 y el 80% | Y452: 0.35 | Z452: =+IF($Q452="seguro",$Y452,0) -> 0 | AB452: =+IF($Q452="probable",$Y452,0) -> 0 | AD452: =+IF($Q452="dudoso",$Y452,0) -> 0 | AF452: =+IF($Q452="NO CUMPLE",$Y452,0) -> 0 | AH452: =+IF($Q452="no aplica",2,0) -> 0
... 168 more rows

Sheet PE
C2: ='Matriz VERDE-GBCe'!U6 -> PE | E2: ='Matriz VERDE-GBCe'!V6 -> Parcela y emplazamiento | Y2: EJEMPLO 1
E5: ='Matriz VERDE-GBCe'!V7 -> PE 01 | F5: =VLOOKUP($E5,'Matriz VERDE-GBCe'!$V$7:$AH$55,2,FALSE) -> Proximidad al transporte publico. | G5: =VLOOKUP($E5,'Matriz VERDE-GBCe'!$V$7:$AH$55,3,FALSE) -> 0.01500457949 | P5: w
F7: =IF('DG '!F27='DG '!L21,"Comprueba las particularidades de este criterio para urbanizaciones en GEA.","") ->  | T7: SE ADJUNTA | V7: SÍ | W7: NO
T8: NO SE ADJUNTA | V8: NO
F9: Número de habitantes del municipio | M9: 10000 | T9: NO APLICA | Y9: 10000
F11: Densidad del entorno de la parcela en viv./ha | M11: 1.5 | Y11: 150
F13: =CONCATENATE(N13,O13,P13,Q13,R13) -> Se cumple con el requisito de 2 líneas de transporte público en las paradas situadas en un radio de 1000 m | M13: Sí | N13: Se cumple con el requisito de | O13: =IF(AND($I$11>100,$I$9>100000),6,IF(OR(AND($I$11>100,AND($I$9<100000,$I$9>20000)),AND($I$11<100,$I$9>20000)),4,2)) -> 2 | P13: líneas de transporte público en las paradas situadas en un radio de | Q13: =IF(AND($I$11>100,$I$9>100000),300,IF(OR(AND($I$11>100,AND($I$9<100000,$I$9>20000)),AND($I$11<100,$I$9>20000)),600,1000)) -> 1000 | R13: m | Y13: SÍ
E15: NOTAS
E17: DOCUMENTOS JUSTIFICATIVOS | N17: Valoración del criterio:
E19: PE 01.01 | F19: Plano de situación del edificio en formato que permita la comprobación de las medidas con herramientas de libre acceso, indicando el círculo del diámetro adecuado para el caso de estudio y la situación de las paradas de transporte público. | N19: =IF(G13="sí",G5,0) -> 0
E21: PE 01.02 | F21: =IF(#REF!=#REF!,CONCATENATE(PE!N21,PE!O21,PE!P21),CONCATENATE(PE!N21,PE!O21,PE!Q21)) ->  | N21: Información de los tipos de transporte público y líneas de cada uno de ellos con los horarios de servicio en las paradas incluidas en el diámetro aplicable al caso de estudio | O21: vigentes a fecha de | P21: visado del proyecto. | Q21: puesta en servicio del edificio.
E23: VALORACIÓN DEL CRITERIO | G23: =IF($I13="SÍ",$G5,0) -> 0
E27: ='Matriz VERDE-GBCe'!V8 -> PE 02 | F27: =VLOOKUP($E27,'Matriz VERDE-GBCe'!$V$7:$AH$55,2,FALSE) -> Proximidad a equipamiento y servicios. | G27: =VLOOKUP($E27,'Matriz VERDE-GBCe'!$V$7:$AH$55,3,FALSE) -> 0.01414255697
F29: =IF('DG '!F27='DG '!L21,"Comprueba las particularidades de este criterio para urbanizaciones en GEA.",IF('DG '!F27='DG '!L20,"Comprueba las particularidades de este criterio para unifamiliares en GEA.","")) -> 
F31: Número de habitantes del municipio | G31: =I9 -> 0 | N31: =IF(AND($G$33>100,$G$31>100000),"A",IF(OR(AND($G$33>100,AND($G$31<100000,$G$31>20000)),AND($G$33<100,$G$31>20000)),"B","C")) -> C | O31: A | P31: B | Q31: C
F33: Densidad del entorno de la parcela en viv./ha | G33: =I11 -> 0 | O33: =IF(OR($I$35<3,$I$37<3,$I$39<2),0,$G$27) -> 0 | P33: =IF(OR($I$35<3,$I$37<2,$I$39<1),0,$G$27) -> 0 | Q33: =IF(OR($I$35<2,$I$37<1),0,$G$27) -> 0
F35: Número de equipamientos de PRIORIDAD 1 | M35: 5 | Y35: 5
F37: Número de equipamientos de PRIORIDAD 2 | M37: 3 | Y37: 3
F39: Número de equipamientos de PRIORIDAD 3 | M39: 0 | Y39: 0
E41: NOTAS
E43: DOCUMENTOS JUSTIFICATIVOS
E45: PE 02.01 | F45: =CONCATENATE(N45,O45,P45) ->  | N45: Plano de situación del edificio en formato que permita la comprobación de las medidas con herramientas de libre acceso, indicando el círculo de diámetro | O45: =IF(#REF!="unifamiliar",1000,800) ->  | P45: y la situación de Los equipamientos indicando su prioridad y su función.
E47: VALORACIÓN DEL CRITERIO | G47: =IF($N31="A",$O33,IF($N31="B",$P33,IF($N31="C",$Q33,0))) -> 0
E51: ='Matriz VERDE-GBCe'!V9 -> PE 03 | F51: =VLOOKUP($E51,'Matriz VERDE-GBCe'!$V$7:$AH$55,2,FALSE) -> Facilidades para la bicicleta. | G51: =VLOOKUP($E51,'Matriz VERDE-GBCe'!$V$7:$AH$55,3,FALSE) -> 0.01710575939
F53: =IF('DG '!F29='DG '!L38,"Comprueba las particularidades de este criterio para rehabilitaciones en GEA.",IF('DG '!F29='DG '!L39,"Comprueba las particularidades de este criterio para edificios existentes en GEA.",IF('DG '!F29='DG '!L40,"Comprueba las particularidades de este criterio para actuaciones mixtas en GEA.",""))) -> 
F55: ='DG '!F27 -> 0
F57: Número de aparcabicis requerido | G57: =IF('DG '!F25="","",'DG '!F25) -> 
F59: Número de aparcabicis del proyecto | M59: 75 | Y59: 75
F61: El proyecto no tiene aparcabicis, pero hay uno público a menos de 300 m que cumple con las exigencias del criterio en cuanto a diseño y número de plazas.
F64: Se reserva una franja de 0,5 m de ancho entre el espacio ocupados por las bicis y los viales de circulación tanto peatonal, cómo de vehículos | Y64: SÍ
F67: Se ofrece un entorno cómodo para los ciclistas con espacio suficiente para realizar las maniobras necesarias | Y67: SÍ
F70: La instalación cumple con las normativas de accesibilidad de peatones y personas con movilidad reducida. | Y70: SÍ
F73: Los paracabaicis están anclados a una estructura permanente y permiten el anclaje de la bicicleta en dos puntos, al menos una rueda y un bastidor. | Y73: SÍ
F76: El espacio de aparcamiento está debidamente iluminado y ofrece sensación de seguridad. | Y76: SÍ
F79: El aparcabicis previene robos o actos de vandalismo, en caso de desanclar el elemento de aparcamiento del suelo, las bicicletas no podrán ser separadas de él sin romper el candado. | Y79: SÍ
E82: NOTAS
E84: DOCUMENTOS JUSTIFICATIVOS
E86: PE 03.01 | F86: Plano con la situación de los aparcabicis y la justificación de que se cumplen las distancias de seguridad
E88: PE 03.02 | F88: Detalle o ficha técnica de los aparcabicis seleccionados
E90: PE 03.03 | F90: Copia de las facturas de los aparcabicis (pudiendo ocultar el precio)
E92: PE 03.04 | F92: Fotografías de obra construida de los aparcabicis y su relación con el entorno
E94: PE 03.05 | F94: Memoria de cálculos justificativos del número de aparcabicis en función de los ocupantes del edificio
E96: VALORACIÓN DEL CRITERIO | G96: =IF(AND(OR('DG '!F29='DG '!L38,'DG '!F29='DG '!L39,'DG '!F29='DG '!L40),PE!I61="sí"),PE!G51/2,IF(OR($I59<$G57,COUNTIF($I64:$I79,"Sí")<6),0,$G51)) -> 0
E100: ='Matriz VERDE-GBCe'!V10 -> PE 04 | F100: =VLOOKUP($E100,'Matriz VERDE-GBCe'!$V$7:$AH$55,2,FALSE) -> Capacidad de carga de vehículos eléctricos. | G100: =VLOOKUP($E100,'Matriz VERDE-GBCe'!$V$7:$AH$55,3,FALSE) -> 0.01680943915
F102: =IF(OR('DG '!F27='DG '!L20,'DG '!F27='DG '!L21,'DG '!F29='DG '!L39),"Comprueba las particularidades de este criterio para la tipología y la actuación a evaluar en GEA","") -> 
F104: =IF('DG '!F27='DG '!L20,"¿Se cuenta en la parcela con, al menos, un punto de carga para vehículos eléctricos?",IF('DG '!F27='DG '!L21,"¿Se cuenta con un punto de carga para vehículos eléctricos por cada vivienda?","¿El edificio cuenta con aparcamiento privado?")) -> ¿El edificio cuenta con aparcamiento privado? | N104: =IF(OR('DG '!F27= 'DG '!L20,'DG '!F27= 'DG '!L21),1,0) -> 0
F106: =IF(OR('DG '!F27= 'DG '!L20,'DG '!F27= 'DG '!L21,'DG '!F29='DG '!L39),"","¿Todas las plazas de aparcamiento sin carga cuentan con una preinstalación de carga para vehículos eléctricos?") -> ¿Todas las plazas de aparcamiento sin carga cuentan con una preinstalación de carga para vehículos eléctricos? | M106: =IF(OR(I104="No",I104=""),0,I110/I108) -> 0 | N106: =IF(('DG '!F29= 'DG '!L39),1,0) -> 0 | O106: Edificio existente
F108: =IF(OR('DG '!F27= 'DG '!L20,'DG '!F27= 'DG '!L21),"","Número de plazas de aparcamiento.") -> Número de plazas de aparcamiento. | N108: =IF(OR(I104="No",I104=""),0,G100) -> 0 | O108: unifamiliar y urbanización
F110: =IF(OR('DG '!F27='DG '!L20,'DG '!F27='DG '!L21),"","Número de plazas con carga para vehículos eléctricos.") -> Número de plazas con carga para vehículos eléctricos.
F112: Porcentaje de plazas con carga para vehículos eléctricos | G112: =IF(N106=0,M112,M106) -> 0 | M112: =IF(OR(I104="No",I106="No",I104="",I106=""),0,(I110/I108)) -> 0 | N112: =IFERROR(IF(G112<=0.2,0,IF(G112>0.5,G$100,((G112-0.2)/0.3)*G$100)),0) -> 0
E114: NOTAS
E116: DOCUMENTOS JUSTIFICATIVOS | N116: =IF(OR(I104="No",I106="No",I104="",I106=""),0,N112) -> 0
E118: PE 04.01 | F118: Extracto de la memoria del proyecto y planos de aparcamiento donde se indique el número de plazas de aparcamiento y cuántas de ellas tienen carga para vehículos eléctricos o preinstalación.
E120: PE 04.02 | F120: Extracto de la memoria de instalaciones y planos de instalación eléctrica del proyecto en el que se justifique el cumplimiento de la (ITC) BT-52 del REBT.
E122: PE 04.03 | F122: Justificación de que el edificio dispone de los requisitos de potencia necesarios para cubrir el consumo de los puntos de carga de vehículos a través del contrato con la compañía de suministro eléctrico. (nuevo pasar al GEA)
E124: VALORACIÓN DEL CRITERIO | G124: =IF(N104=1,N108,N112) -> 0
E128: ='Matriz VERDE-GBCe'!V11 -> PE 05 | F128: =VLOOKUP($E128,'Matriz VERDE-GBCe'!$V$7:$AH$55,2,FALSE) -> Clasificación de RSU. | G128: =VLOOKUP($E128,'Matriz VERDE-GBCe'!$V$7:$AH$55,3,FALSE) -> 0.01185280965
E130: Espacio para conenedores separadores de fracciones:
F132: =IF(OR('DG '!F29='DG '!L38,'DG '!F29='DG '!L39,'DG '!F29='DG '!L40,'DG '!F27='DG '!L20),"Comprueba las particularidades de este criterio para la actuación a evaluar en GEA","") -> 
F134: Superficie para almacén de contenedores exigida en el CTE | M134: 23 | N134: =IF('DG '!F29="rehabilitación","RH",IF('DG '!F29="NUEVA EDIFICACIÓN","NE","")) ->  | O134: =IF('DG '!F27="unifamiliar","Uni", "Res") -> Res | R134: NE | Y134: 23
F136: Superficie del almacén de contenedores del edificio | N136: =IF(AND(OR('DG '!F29='DG '!L38,'DG '!F29='DG '!L39,'DG '!F29='DG '!L40),I142="Sí"),1,IF(AND(OR('DG '!F29='DG '!L38,'DG '!F29='DG '!L39,'DG '!F29='DG '!L40),I138="Sí",I136>=('DG '!F23/20)*10),1,IF(AND(I136>=(I134+I134*0.15),I140="sí"),1,0))) -> 0 | O136: =IF(OR('DG '!F27="Unifamiliar",N$136=0),0,0.5*G128) -> 0 | Y136: 30
F138: =IF(OR('DG '!F29='DG '!L38,'DG '!F29='DG '!L39,'DG '!F29='DG '!L40),"¿Se demuestra la imposibilidad de cumplir con los requisitos de superficie de la medida?","") -> 
F140: El almacén de contenedores dispone de la señalética adecuada | Y140: SÍ
F142: =IF(OR('DG '!F29='DG '!L38,'DG '!F29='DG '!L39,'DG '!F29='DG '!L40),"¿Existe un punto de recogida selectiva a menos de 50 metros de la entrada principal?","") ->  | I142: NO
E144: Sistema de revalorización de residuos en la parcela:
F146: Existe un sistema de revalorización de los residuos generados en el edificio | N146: =IF(I146="sí",1,0) -> 0 | O146: =IF(N$146=0,0,IF('DG '!F27="Unifamiliar",PE!G128,0.25*G128)) -> 0 | Y146: NO
E148: Otras medidas de mejora
F150: Se han diseñado medidas de mejora en el edificio que favorezcan la reducción, clasificación o recogida de resíduos. | N150: =IF(OR('DG '!F27="Unifamiliar",I150="No",I150=""),0,1) -> 0 | O150: =IF(N$150=0,0,(0.25*G128)) -> 0 | Y150: NO
E153: NOTAS
E155: DOCUMENTOS JUSTIFICATIVOS
E157: PE 05.01 | F157: Plano en formato que permita la comprobación de las medidas con herramientas de libre acceso, en el que se sitúe, para cada medida cumplida
E159: PE 05.02 | F159: Descripción y fichas técnicas del sistema de revalorización de residuos
E161: PE 05.03 | F161: Memoria justificativa de la medida adoptada para incentivar la reducción, separación o reciclado de RSU
E163: PE 05.04 | F163: Copia de las facturas de los sistemas implantados (pudiendo ocultar el precio).
E165: PE 05.05 | F165: Fotografías de obra construida que justifiquen el cumplimiento de las medidas. Deberán aparecer los espacios para contenedores o almacenaje con sus correspondientes carteles y, si hubiera, los sistemas de revalorización instalados, así como la señalética adecuada como espacio para contenedores de residuos.
E167: PE 05.06 | F167: Plano en el que se sitúe el local destinado al almacenamiento de muebles y enseres hasta su traslado. (Solo para usos distintos del residencial privado)
E169: VALORACIÓN DEL CRITERIO | G169: =SUM($O136+$O146+$O150) -> 0
E173: ='Matriz VERDE-GBCe'!V12 -> PE 06 | F173: =VLOOKUP($E173,'Matriz VERDE-GBCe'!$V$7:$AH$55,2,FALSE) -> Gestión y Restauración del hábitat. | G173: =VLOOKUP($E173,'Matriz VERDE-GBCe'!$V$7:$AH$55,3,FALSE) -> 0.02394806314
F175: ¿Alguna de las especies vegetales plantadas en la parcela o el edificio está recogida en el catálogo de especies invasoras del Ministerio para la Transición Ecológica?
F178: Superficie ajardinada de la parcela y el edificio | Y178: 1000
F180: Superficie cubierta por plantas autóctonas | Y180: 800
F182: Porcentaje de la superficie ajardinada ocupada por plantas autóctonas | G182: =IF(OR(I178=0,I178=""),0,I180/I178) -> 0
E184: NOTAS
E186: DOCUMENTOS JUSTIFICATIVOS
E188: PE 06.01 | F188: Plano de jardinería en el que se incluya el cuadro de cálculo indicando las especies utilizadas, la superficie ocupada por las mismas y si son autóctonas o adaptadas o no.
E190: PE 06.02 | F190: Copia de las facturas (pudiendo ocultar el precio) donde se indique la o las especies plantadas y la superficie ocupadas por las mismas o las unidades entregadas
E192: PE 06.03 | F192: Fotografías de la superficie ajardinada donde se puedan apreciar las especies plantadas y la superficie ocupada por las mismas, serán necesarias fotografías generales y de detalle
E194: PE 06.04 | F194: Informe de Evaluador en el que se garantice que ninguna especie de las plantadas está recogida en el listado de especies invasoras del Ministerio de Transición Ecológica
E196: VALORACIÓN DEL CRITERIO | G196: =IF(OR(I175="Sí",I175=""),0,IF(G182<0.3,0,IF(G182>0.8,G173,G173*((G182-0.3)*100/50)))) -> 0
E200: ='Matriz VERDE-GBCe'!V13 -> PE 07 | F200: =VLOOKUP($E200,'Matriz VERDE-GBCe'!$V$7:$AH$55,2,FALSE) -> Uso de plantas para crear sombras. | G200: =VLOOKUP($E200,'Matriz VERDE-GBCe'!$V$7:$AH$55,3,FALSE) -> 0.01901837185
F202: ¿Existen elementos vegetales que sombreen las fachadas este y/u oeste?
F204: Porcentaje de fachada OESTE sombreada | N204: =IF(OR(I202="",I202="no"),0,IF(I204<0.2,0,IF(I204>=0.6,0.7*G200,G200*0.7*((I204-0.2)*100/40)))) -> 0
F206: Porcentaje de fachada ESTE sombreada | N206: =IF(OR(I202="",I202="no"),0,IF(I206<0.2,0,IF(I206>0.6,0.3*G200,G200*0.3*((I206-0.2)*100/40)))) -> 0
E208: NOTAS
E210: DOCUMENTOS JUSTIFICATIVOS
E212: PE 07.01 | F212: Plano de planta de la parcela donde se sitúen los árboles con potencial de sombreamiento para las fachadas este y oeste indicando las especies de que se trata.
E214: PE 07.02 | F214: Plano de fachada este y oeste en el que se indique la superficie sombreada por los árboles.
E216: PE 07.03 | F216: Memoria de sombreamiento donde se justifique el cumplimiento de los criterios establecidos..
E218: PE 07.04 | F218: Copia de las facturas (pudiendo ocultar el precio) donde se indique la o las especies plantadas y la superficie ocupadas por las mismas o las unidades entregadas.
E220: PE 07.05 | F220: Fotografías de la superficie ajardinada donde se puedan apreciar las especies plantadas y la superficie ocupada por las mismas, serán necesarias fotografías generales y de detalle.
E222: VALORACIÓN DEL CRITERIO | G222: =N206+N204 -> 0
E226: ='Matriz VERDE-GBCe'!V14 -> PE 08 | F226: =VLOOKUP($E226,'Matriz VERDE-GBCe'!$V$7:$AH$55,2,FALSE) -> Efecto isla de calor. | G226: =VLOOKUP($E226,'Matriz VERDE-GBCe'!$V$7:$AH$55,3,FALSE) -> 0.02144281019
E228: Porcentaje de superficie libre de parcela y cubierta que evita la isla de calor
F230: Superficie libre de parcela
F232: Superficie de cubierta
F234: Superficie con pavimento permeable
F236: Superficies sombreadas por elementos con alta reflectividad, vegetales o paneles solares tanto fotovoltaicos como térmicos)
F239: Superficies con un pavimento con alta reflectividad
F241: ¿Se aportan documentos que justifiquen el IRS?
F243: Porcentaje de superficie libre de parcela más cubierta que evitan la isla de calor | G243: =IF(I230+I232=0,0,(I234+I236+I239)/(I230+I232)) -> 0 | N243: =IF(G243="","",IF(G243<0.4,0,IF(G243>0.7,0.7*G226,G226*0.7*((G243-0.4)*100/30)))) -> 0 | O243: =IF(OR(I241="No",I241=""),0.8*N243,N243) -> 0
E245: Porcentaje de superficie de fachadas este, sur y oeste que evita la isla de calor
F247: Superficies de fachada E-S-O
F249: Superficies de fachada E-S-O de colores claros, sombreadas o cubiertas por vegetación
F251: ¿Se aportan documentos que justifiquen el IRS?
F253: Porcentaje de superficie de fachadas E-S-O que evitan la isla de calor | G253: =IF(OR(I247=0,I247=""),0,I249/I247) -> 0 | N253: =IF(G253="",0,IF(G253<0.4,0,IF(G253>0.7,0.3*G226,G226*0.3*((G253-0.4)*100/30)))) -> 0 | O253: =IF(OR(I251="No",I251=""),0.8*N253,N253) -> 0
E255: NOTAS
E257: DOCUMENTOS JUSTIFICATIVOS
E259: PE 08.01 | F259: Plano de urbanización indicando el límite de las superficies en parcela y cubierta que estén ajardinadas, sombreadas, con un acabado permeable o con un IRS superior a 70.
E261: PE 08.02 | F261: Memoria del cálculo del porcentaje de la superficie que evita la isla de calor en zona libre de parcela y cubierta.
E263: PE 08.03 | F263: Detalle constructivo de las zonas ajardinadas donde se detalle el espesor de tierra previsto.
E265: PE 08.04 | F265: Detalle constructivo de las zonas con pavimento permeable donde se detalle el espesor y composición de la base del pavimento.
E267: PE 08.05 | F267: Memoria del cálculo del porcentaje de la superficie de fachadas este, sur y oeste que evita la isla de calor.
E269: PE 08.06 | F269: Estudio de soleamiento tanto de la superficie libre de parcela y cubiertas, como de las fachadas este, sur y oeste.
E271: PE 08.07 | F271: Justificación del IRS de los materiales de acabado
E273: VALORACIÓN DEL CRITERIO | G273: =IFERROR($O243+$O253,0) -> 0
D276: <
E277: ='Matriz VERDE-GBCe'!V15 -> PE 09 | F277: =VLOOKUP($E277,'Matriz VERDE-GBCe'!$V$7:$AH$55,2,FALSE) -> Contaminación lumínica. | G277: =VLOOKUP($E277,'Matriz VERDE-GBCe'!$V$7:$AH$55,3,FALSE) -> 0.02066160228 | N277: E1 | O277: ≤ 1% | P277: 0.01 | Q277: 0.01
N278: E2 | O278: ≤ 5% | P278: 0.02 | Q278: 0.05
F279: Zona de protección lumínica de la parcela | M279: E2 | N279: E3 | O279: ≤ 15% | P279: 0.03 | Q279: 0.15
N280: E4 | O280: ≤ 25% | P280: 0.05 | Q280: 0.25
F281: FHS límite para el área de protección lumínica | G281: =IF(I279="","",VLOOKUP(I279,N277:O280,2,FALSE)) -> 
F283: FHS más alto de las luminarias instaladas en la parcela | M283: 3 | Q283: =VLOOKUP(I279,N277:Q280,4,FALSE) -> 
P284: 0.05
F285: Porcentaje de mejora respecto a la exigencia normativa | G285: =IF(I283="",0,1-(I283/Q283)) -> 0
E287: NOTAS
E289: DOCUMENTOS JUSTIFICATIVOS
E291: PE 09.01 | F291: Plano de parcela con localización de la luminarias exteriores e indicación del tipo de luminaria.
E293: PE 09.02 | F293: Curvas fotométricas de las luminarias empleadas o documento técnico donde aparezca el FHS.
E295: PE 09.03 | F295: Identificación y justificación de la zona de protección lumínica.
E297: VALORACIÓN DEL CRITERIO | G297: =IF(I279="",0,IF(G285<0.2,0,IF(G285>0.6,G277,G277*((G285-0.2)*100/40)))) -> 0
G301: VALORACIÓN ÁREA
G303: SUBTOTAL | I303: =IFERROR(G23+G47+G96+G124+G169+G196+G222+G273+G297,"") -> 0
G305: SOBRE | I305: =VLOOKUP(C$2,'Matriz VERDE-GBCe'!$U$4:$AH$55,4,FALSE) -> 0.1599859921
G311: SÍ | I311: x
G312: NO

Sheet EA
C2: ='Matriz VERDE-GBCe'!U16 -> EA | E2: ='Matriz VERDE-GBCe'!V16 -> Energía y atmósfera
E5: ='Matriz VERDE-GBCe'!V18 -> EA 01 | F5: =VLOOKUP($E5,'Matriz VERDE-GBCe'!$V$7:$AH$55,2,FALSE) -> Consumo de energía primaria | G5: =VLOOKUP($E5,'Matriz VERDE-GBCe'!$V$7:$AH$55,3,FALSE) -> 0.07914444265 | O5: =IF('DG '!F29="","",IF(OR('DG '!F29="rehabilitación",'DG '!F29="Edificio existente"),"RH","NE")) ->  | P5: =IF(OR('DG '!F27="unifamiliar",'DG '!F27="urbanizaciones"),"Uni",IF('DG '!F27="","","Res")) ->  | U5: SE ADJUNTA | W5: SÍ | X5: NO
U6: NO SE ADJUNTA | W6: NO
F7: =IF('DG '!F29='DG '!L40,"Ponte en contacto con GBCe para fijar los datos a introducir.","") ->  | O7: Opción para Mixtos en E7 | U7: NO APLICA
F9: ¿Se ha utilizado un método simplificado para la calificación energética del edificio?
F11: ¿La demanda de calefacción y refrigeración cumple con los límites que fijaba el DB He 2017?
E13: NUEVA EDIFICACIÓN, REHABILITACIÓN Y EDIFICIO EXISTENTE
F15: Demanda de calefacción del edificio en kWh/m2
F17: Demanda de refrigeración del edificio en kWh/m2
F19: Emisiones de CO2 del edificio de referencia en kgCO2 eq./m2.
F21: Emisiones de CO2 del proyecto en kgCO2 eq./m2. | O21: Alfa | P21: A | Q21: B | R21: C | S21: D | T21: E | W21: Energía primaría no renovable
E23: Consumo de energía primaria no renovable | O23: 20 | P23: 25 | Q23: 28 | R23: 32 | S23: 38 | T23: 43 | U23: Obra nueva
F25: Consumo límite de energía primaría no renovable para el edificio en kWh/m2 | G25: =Q29 ->  | O25: AA | P25: A | Q25: B | R25: C | S25: D | T25: E
F27: Consumo de energía primaría no renovable para el edificio en kWh/m2 | O27: 40 | P27: 50 | Q27: 55 | R27: 65 | S27: 70 | T27: 80 | U27: Reformas- mas del 25% de la superficie
F29: Porcentaje de reducción del consumo de enería primaria no renovable del proyecto | G29: =IF(OR(I27="",I27>G25),0,IF(I27=0,1,1-(I27/G25))) -> 0 | P29: ='zona clima'!C10 ->  | Q29: =IF('DG '!F23="","",IF(P29="","",IF(O5="NE",(HLOOKUP(P29,O21:T23,3)),(HLOOKUP(P29,O25:T27,3))))) ->  | R29: =IF(G29="","",G29*0.5*G5) -> 0 | T29: =IF(G29="","",IF(G29>=0.5,0.5*G5,(G29/0.5)*0.5*G5)) -> 0 | U29: Rehabilitación
F31: Valoración del indicador | G31: =IF(O5="",0,IF(O5="NE",R29,T29)) -> 0
E33: Consumo de energía primaria Total
F35: Consumo límite de energía primaría total para el edificio en kWh/m2 | G35: =Q43 ->  | O35: Alfa | P35: A | Q35: B | R35: C | S35: D | T35: E | W35: Energía primaria total
F37: Consumo de energía primaría total para el edificio en kWh/m2 | O37: 40 | P37: 50 | Q37: 56 | R37: 64 | S37: 76 | T37: 86 | U37: Obra nueva
F39: Porcentaje de reducción del consumo de enería primaria total del proyecto | G39: =IF(OR(I37="",I37=0,I37>G35),0,1-(I37/G35)) -> 0 | O39: AA | P39: A | Q39: B | R39: C | S39: D | T39: E
F41: Valoración del indicador | G41: =R43 -> 0 | O41: 55 | P41: 75 | Q41: 80 | R41: 90 | S41: 105 | T41: 115 | U41: Reformas- mas del 25% de la superficie
P43: ='zona clima'!C10 ->  | Q43: =IF('DG '!F23="","",IF(P43="","",IF(O5="NE",(HLOOKUP(P43,O35:T37,3)),(HLOOKUP(P43,O39:T41,3))))) ->  | R43: =IFERROR(IF(G39=0,0,IF(G39>=0.3,0.5*G5,(G39/0.3*0.5*G5))),0) -> 0
E45: Consumo de energía primaria total para calefacción y/o refrigeración es igual o inferior 15 kWh/m2
F47: ¿Se ha realizado el ensayo blower door y cumple con las especificaciones del criterio? | R47: =IF(I47="",1,IF(AND(I37<=30,I47="No"),0.9,1)) -> 1
E49: NOTAS
E51: DOCUMENTOS JUSTIFICATIVOS
E53: EA 01.01 | F53: Archivos completos del programa de simulación empleado para realizar la justificación del criterio.
E55: EA 01.02 | F55: Certificado de eficiencia energética junto con el justificante de registro en la comunidad autónoma correspondiente a la localidad en la que se encuentra el edificio
E57: EA 01.03 | F57: Informe de verificación de requisitos del CTE DB HE generado por la herramienta de calificación energética empleada o resultado de una simulación horaria realizada con un programa alternativo
E59: EA 01.03 SOLO RH-NO RESIDENCIALES | F59: Archivos completos del programa de simulación empleado para el edificio de referencia según el documento reconocido Condiciones técnicas de los procedimientos para la evaluación de la eficiencia energética de los edificios de febrero del 2020
E61: EA 01.04 | F61: Esquemas de principio de las instalaciones del edificio, con mención expresa de todos y cada uno de los equipos, anexando las correspondientes fichas técnicas de los fabricantes
E63: EA 01.05 | F63: Ensayo blower door conforme a la norma UNE EN ISO 9972:2015 2019 del edificio en fase de uso que justifique que las renovaciones por hora no son superiores a 5 %.
E65: VALORACIÓN DEL CRITERIO | G65: =IF(OR(I21="",I11="No",I11=""),0,IF(OR(I9="No",I9=""),(G31+G41)*R47,(G31+G41)*R47*0.8)) -> 0 | N65: Con Mixtos revisar fórmula de valoración
E69: ='Matriz VERDE-GBCe'!V19 -> EA 02 | F69: =VLOOKUP($E69,'Matriz VERDE-GBCe'!$V$7:$AH$55,2,FALSE) -> Generación distribuida | G69: =VLOOKUP($E69,'Matriz VERDE-GBCe'!$V$7:$AH$55,3,FALSE) -> 0.05091320511 | N69: Mixtos en E59 | Q69: SÍ | R69: NO
F71: =IF('DG '!F29='DG '!L40,"Ponte en contacto con GBCe para fijar los datos a introducir.","") -> 
E73: NUEVA EDIFICACIÓN Y REHABILITACIÓN | O73: =IF(G83=0,0,IF(G85=Q69,G69,IF(G83>=0.8,0.8*G69,(G83/0.8)*0.8*G69))) -> 0
F75: Consumo de Energía primaria total del edificio en kWh/m2 * | O75: Nueva edificación y rehabilitación
F77: Energía renovable mínima fijado por el DB HE 04 en kWh/m2 para el proyecto
F79: Energía primaria renovable generada en la parcela en kWh/m2
F81: Energía primaria renovable generada en la parcela en kWh/m2 a considerar | G81: =IF(I77>I79,0,I79-I77) -> 0
F83: Porcentaje de energía renovable producida en la parcela | G83: =IF(OR(I75="",I77>I79),0,IF(I79>I75,1,(G81/I75))) -> 0
F85: ¿es un edificio que genera más energía renovable que su consumo de energía primaría total?* | G85: =IF(OR(G81<I75:I75=0,I75=""),R69,Q69) -> NO
E87: EDIFICIOS EXISTENTES | O87: =IF(OR(G93="",G93<=0.6),0,((G93-0.6)/0.4)*G69) -> 0 | P87: Edificio existente
F89: Potencial de renovables en el edificio o parcela en kWh/m2
F91: Energía primaria renovable generada en la parcela en kWh/m2
F93: Porcentaje de energía renovable producida en la parcela | G93: =IFERROR((I91/I89),0) -> 0
E95: NOTAS
E97: DOCUMENTOS JUSTIFICATIVOS
E99: EA 02.01 | F99: Archivos completos del programa de simulación empleado para realizar la justificación del criterio.
E101: EA 02.02 | F101: Proyecto de las instalaciones de generación de energía renovable del edificio con mención expresa de todos y cada uno de los equipos, anexando las correspondientes fichas técnicas de los fabricantes, junto con los cálculos de la estimación de la generación de energías renovables.
E103: EA 02.03 | F103: Justificación del cumplimiento del DB HE 0, DB HE 1, DB HE 4 y DB HE 5
E105: EA 02.04 | F105: Justificación del uso de la energía renovable, en caso de ser edificio positivo en energía.
E107: VALORACIÓN DEL CRITERIO | G107: =IFERROR(IF(OR('DG '!F29='DG '!L37,'DG '!F29='DG '!L38),$O73,IF(('DG '!F29='DG '!L39),$O87,IF('DG '!F29='DG '!L40,((O73*'DG '!F31)+(O87*('DG '!F35+'DG '!F37)))/('DG '!F31+'DG '!F35+'DG '!F37),0))),0) -> 0 | N107: Con Mixtos revisar fórmula de valoración
E111: ='Matriz VERDE-GBCe'!V20 -> EA 03 | F111: =VLOOKUP($E111,'Matriz VERDE-GBCe'!$V$7:$AH$55,2,FALSE) -> Consumo en zonas comunes | G111: =VLOOKUP($E111,'Matriz VERDE-GBCe'!$V$7:$AH$55,3,FALSE) -> 0.02666882172
E113: Ascensores y montacargas:
F115: El ascensor cuenta con una clasificación, al menos B, según la norma UNE EN ISO 25745-2 | N115: =IF($I115="sí",$G111*0.5,0) -> 0
E117: Sistemas de iluminación eneficientes:
F119: VEEI de los sistemas de iluminación en zonas comunes
F121: Superficie útil total de las zonas comunes
N122: SI
F123: ¿Existen detectores de presencia en combinación con sondas de iluminación en zonas comunes?
F125: Superficie cubierta por los detectores de presencia en combinación con sondas de iluminación | N125: =IF(I121="",0,I125/I$121) -> 0 | O125: =N125*0.2 -> 0
F127: ¿Existen detectores de presencia en zonas comunes?
F129: Superficie cubierta por los detectores de presencia | N129: =IF(I121="",0,I129/I$121) -> 0 | O129: =IF(O125=0,N129*0.15,0) -> 0
F131: ¿Existen sondas de iluminación en zonas comunes?
F133: Superficie cubierta por las sondas de iluminación | N133: =IF(I121="",0,I133/I$121) -> 0 | O133: =IF(AND(O125=0,O129=0),N133*0.1,0) -> 0
F135: ¿Existen temporizadores en zonas comunes?
F137: Superficie cubierta por los temporizadores | N137: =IF(I121="",0,I137/I$121) -> 0 | O137: =IF(AND(O125=0,O129=0),N137*0.05,0) -> 0 | P137: =SUM(O125:O137) -> 0 | Q137: =P137*G111 -> 0
E139: NOTAS
E141: DOCUMENTOS JUSTIFICATIVOS
E143: EA 03.01 | F143: Clasificación del ascensor o elemento de elevación y transporte según la norma UNE EN ISO 25745 2.
E145: EA 03.03 | F145: Cálculo del VEEI en zonas comunes
E147: EA 03.04 | F147: Ficha técnica del dispositivo de ahorro de iluminación instalado en las zonas comunes
E149: EA 03.05 | F149: Copia de las facturas (pudiendo ocultar el precio) donde se indique el ascensor o elemento de elevación y transporte instalado
E151: VALORACIÓN DEL CRITERIO | G151: =IF($I115="sí",$G111*0.5,0)+IF(OR($I119>3,I119=""),0,$G111*0.3)+$Q137 -> 0
E155: ='Matriz VERDE-GBCe'!V22 -> EA 04 | F155: =VLOOKUP($E155,'Matriz VERDE-GBCe'!$V$7:$AH$55,2,FALSE) -> Elección responsable de refrigerantes | G155: =VLOOKUP($E155,'Matriz VERDE-GBCe'!$V$7:$AH$55,3,FALSE) -> 0.02798879371
F157: Potencial de calentamiento global superior de los refrigerantes empleados
E159: NOTAS
E161: DOCUMENTOS JUSTIFICATIVOS
E163: PE 04.01 | F163: Documentación técnica del refrigerante empleado que justifique su potencial de calentamiento global (GWP)
E165: VALORACIÓN DEL CRITERIO | G165: =IF(OR($I157="",I157>=700),0,IF($I157<150,G155,((700-I157)/550)*G155)) -> 0
G169: VALORACIÓN ÁREA
G171: SUBTOTAL | I171: =G65+G107+G151+G165 -> 0
G173: SOBRE | I173: =VLOOKUP(C$2,'Matriz VERDE-GBCe'!$U$7:$AH$55,4,FALSE) -> 0.1847152632

Sheet RN
C2: ='Matriz VERDE-GBCe'!U23 -> RN | E2: ='Matriz VERDE-GBCe'!V23 -> Recursos naturales
N3: Coste
E5: ='Matriz VERDE-GBCe'!V24 -> RN 01 | F5: =VLOOKUP($E5,'Matriz VERDE-GBCe'!$V$7:$AH$55,2,FALSE) -> Consumo de agua en aparatos sanitarios | G5: =VLOOKUP($E5,'Matriz VERDE-GBCe'!$V$7:$AH$55,3,FALSE) -> 0.02246646194 | T5: SE ADJUNTA | V5: SÍ | W5: NO
T6: NO SE ADJUNTA | V6: NO
T7: NO APLICA
V8: NO
F9: Ir a la hoja de cálculo del criterio
V10: NO
F11: Consumo de agua en sanitarios de referencia en l/persona día | G11: ='RN 01'!J51 -> 0
V12: NO
F13: Consumo de agua en sanitarios del proyecto l/persona día | G13: ='RN 01'!J34 -> 0
V14: NO
F15: Porcentaje de reducción del consumo de agua en aparatos sanitarios | G15: ='RN 01'!J55 -> 
E17: NOTAS
E19: DOCUMENTOS JUSTIFICATIVOS
E21: RN 01.01 | F21: Fichas técnicas con los caudales de los aparatos sanitarios aportados por el fabricante.
E23: RN 01.02 | F23: Pestaña de ayuda RN 01
E25: VALORACIÓN DEL CRITERIO | G25: =IF($G15="",0,IF($G15<0.1,0,IF($G15>0.3,$G5,(((($G15*100)-10)/20)*$G5)))) -> 0
E29: ='Matriz VERDE-GBCe'!V25 -> RN 02 | F29: =VLOOKUP($E29,'Matriz VERDE-GBCe'!$V$7:$AH$55,2,FALSE) -> Necesidades de riego en jardines. | G29: =VLOOKUP($E29,'Matriz VERDE-GBCe'!$V$7:$AH$55,3,FALSE) -> 0.0228974732
F31: Ir a la hoja de cálculo del criterio
F33: ¿Existen zonas ajardinadas con una superficie mayor a 20 m2?
F35: Necesidades de agua para riego de referencia (m3/año) | G35: ='RN 02'!S29 -> 
F37: Necesidades de agua para riego del proyecto (m3/año) | G37: ='RN 02'!G29 -> 0
F39: Porcentaje de reducción de las necesidades de riego | G39: ='RN 02'!AA29 -> 
E41: NOTAS
E43: DOCUMENTOS JUSTIFICATIVOS
E45: RN 02.01 | F45: Plano de jardinería con indicación clara de las especies vegetales a plantar y su superficie de ocupación y sistema de riego empleado en cada zona. El plano deberá presentarse en formato que permita la comprobación de las medidas con herramientas de libre acceso.
E47: RN 02.02 | F47: Herramienta de cálculo HACES RN 02
E49: RN 02.03 | F49: Memoria de la instalación de riego.
E51: VALORACIÓN DEL CRITERIO | G51: =IF(OR($G39="",I33="No",I33=""),0,IF($G39<0.2,0,IF($G39>0.8,$G29,(((($G39*100)-20)/60)*$G29)))) -> 0
E55: ='Matriz VERDE-GBCe'!V26 -> RN 03 | F55: =VLOOKUP($E55,'Matriz VERDE-GBCe'!$V$7:$AH$55,2,FALSE) -> Consumos de agua singulares. | G55: =VLOOKUP($E55,'Matriz VERDE-GBCe'!$V$7:$AH$55,3,FALSE) -> 0.01901837185
F57: ¿Existen elementos singulares consumidores de agua?
F59: ¿Se consideran los aparatos sanitarios eficientes?
F61: ¿Existe un sistema de recogida y reutilización de aguas grises que cubra el 80% de las aguas grises producidas?
E64: NOTAS
E66: DOCUMENTOS JUSTIFICATIVOS
E68: RN 03.01 | F68: Fichas técnicas con los caudales de los aparatos sanitarios aportados por el fabricante.
E70: RN 03.02 | F70: Memoria de proyecto del sistema de reciclado y reutilización de las aguas grises generadas por elementos singulares como piscinas, jacuzzis, etc.
E72: VALORACIÓN DEL CRITERIO | G72: =IF($I57="no",0,(IF($I59="sí",$G55*0.4,0)+IF($I61="sí",$G55*0.6,0))) -> 0
E76: ='Matriz VERDE-GBCe'!V27 -> RN 04 | F76: =VLOOKUP($E76,'Matriz VERDE-GBCe'!$V$7:$AH$55,2,FALSE) -> Uso de agua no potable. | G76: =VLOOKUP($E76,'Matriz VERDE-GBCe'!$V$7:$AH$55,3,FALSE) -> 0.02187382145
F78: Recuperación mensual de aguas grises del sistema (l)
F80: Volumen de acumulación de aguas grises (l)
F82: Volumen de agua no potable utilizada para baldeo u otros usos (l)
F84: Superficie de captación de aguas pluviales en m2
F86: Coeficiente de rendimiento de la superficie de captación (e)
F88: Rendimiento hidráulico del filtro (h)
F90: Volumen del aljibe de aguas pluviales (l)
F92: Porcentaje de necesidades de agua cubiertas con agua no potable | G92: =IFERROR('RN 04'!L33,0) -> 0
E94: NOTAS
E96: DOCUMENTOS JUSTIFICATIVOS
E98: RN 04.01 | F98: Proyecto del sistema de recogida, almacenamiento y distribución del aguas pluviales.
E100: RN 04.02 | F100: Proyecto del sistema de recogida, almacenamiento y distribución de aguas grises
E102: RN 04.03 | F102: Memoria del cálculo realizado para obtención de los datos necesarios para evaluar el criterio siguiendo el método de evaluación descrito en la guía.
E104: RN 04.04 | F104: Informe de puesta en marcha de las instalaciones de recogida, almacenamiento y distribución de aguas grises y/o pluviales.
E106: VALORACIÓN DEL CRITERIO | G106: =IF($G92=0,0,IF(G92<0.2,0,IF(G92>=0.9,G76,(G92-0.2/0.7)*G76))) -> 0
E110: Materiales
F112: Completar los datos de este apartado antes de rellenar los criterios de materiales
F114: Vida útil de referencia en años
F116: Unidad Funcional Equivalente (UFE) | I116: masa | N116: masa | O116: =IF(I116="masa",1,0.8) -> 1
N117: coste
F118: =IF(I116="coste", "Coste en € total de los materiales de la obra.","Kilogramos totales de los materiales de la obra.") -> Kilogramos totales de los materiales de la obra.
F120: =IF(I116="coste", "Coste en € total de los elementos cerámicos, áridos, pétreos y hormigones.","Kilogramos totales de los elementos cerámicos, áridos, pétreos y hormigones.") -> Kilogramos totales de los elementos cerámicos, áridos, pétreos y hormigones.
F122: =IF(I116="coste", "Coste en € total de madera o derivados de madera materiales empleados en la obra como encofrados de hormigón o palets.","Kilogramos totales de madera o derivados de madera materiales empleados en la obra como encofrados de hormigón o palets.") -> Kilogramos totales de madera o derivados de madera materiales empleados en la obra como encofrados de hormigón o palets.
N124: coste
E128: ='Matriz VERDE-GBCe'!V28 -> RN 05 | F128: =VLOOKUP($E128,'Matriz VERDE-GBCe'!$V$7:$Y$60,2,FALSE) -> Uso de materiales reciclados. | G128: =VLOOKUP($E128,'Matriz VERDE-GBCe'!$V$7:$Y$60,3,FALSE) -> 0.01901837185
F130: =IF(I116="coste", "Coste en € total de los elementos cerámicos, áridos, pétreos y hormigones, sin incluir hormigones estruturales.","Kilogramos totales de los elementos cerámicos, áridos, pétreos y hormigones, sin incluir hormigones estruturales.") -> Kilogramos totales de los elementos cerámicos, áridos, pétreos y hormigones, sin incluir hormigones estruturales.
F132: =IF(I116="coste", "Contenido en € de reciclados PRE-CONSUMO entre los elementos cerámicos, áridos, pétreos y hormigones.", "Contenido en kg de reciclados PRE-CONSUMO entre los elementos cerámicos, áridos, pétreos y hormigones.") -> Contenido en kg de reciclados PRE-CONSUMO entre los elementos cerámicos, áridos, pétreos y hormigones.
F134: =IF(I116="coste", "Contenido en € de reciclados POST-CONSUMO entre los elementos cerámicos, áridos, pétreos y hormigones.", "Contenido en kg de reciclados POST-CONSUMO entre los elementos cerámicos, áridos, pétreos y hormigones.") -> Contenido en kg de reciclados POST-CONSUMO entre los elementos cerámicos, áridos, pétreos y hormigones.
F136: =CONCATENATE("Porcentaje en ",I116," de elementos cerámicos, áridos, pétreos y hormigones reciclados") -> Porcentaje en masa de elementos cerámicos, áridos, pétreos y hormigones reciclados | G136: =IF(OR(I$130=0,I$130=""),"",((0.5*I132+I134)/I$130)) ->  | N136: =IF(OR(G136="",G136<0.4),0,((G136-0.4)/0.6)*G$128*0.5) -> 0
F138: =IF(I116="coste", "Contenido en € de reciclados PRE-CONSUMO entre el resto de materiales.", "Contenido en kg de reciclados PRE-CONSUMO entre el resto de materiales.") -> Contenido en kg de reciclados PRE-CONSUMO entre el resto de materiales.
F140: =IF(I116="coste", "Contenido en € de reciclados POST-CONSUMO entre el resto de materiales.", "Contenido en kg de reciclados POST-CONSUMO entre el resto de materiales.") -> Contenido en kg de reciclados POST-CONSUMO entre el resto de materiales.
F142: =CONCATENATE("Porcentaje en ",I116," resto de materiales") -> Porcentaje en masa resto de materiales | G142: =IF(OR(I$118=0,I$118=""),"",((0.5*I138+I140)/(I118-I120))) ->  | N142: =IF(OR(G142="",G142<0.1),0,IF(G142>=0.3,G128*0.5,((G142-0.1)/0.2)*G$128*0.5)) -> 0
E144: NOTAS
E146: DOCUMENTOS JUSTIFICATIVOS
E148: RN 05.01 | F148: Documentos de presupuesto de contrata desglosado en materiales (descontando la mano de obra) donde se detallen los materiales reciclados postconsumo y preconsumo.
E150: RN 05.02 | F150: =CONCATENATE(N150,O150,P150) -> Memoria justificativa de la evaluación del criterio en la que se detallen los materiales reciclados, justificación del porcentaje de reciclado incorporado y su masa sobre el total. | N150: Memoria justificativa de la evaluación del criterio en la que se detallen los materiales reciclados, justificación del porcentaje de reciclado incorporado y su | O150: =I116 -> masa | P150: sobre el total.
E152: RN 05.03 | F152: Certificado del porcentaje del contenido de material reciclado distinguiendo entre preconsumo y postconsumo.. Estos certificados pueden otorgarse por el productor o por entidades externas como el Distintiu de la Generalitat u otros similares.
E154: VALORACIÓN DEL CRITERIO | G154: =(N136+N142)*O116 -> 0
E158: ='Matriz VERDE-GBCe'!V29 -> RN 06 | F158: =VLOOKUP($E158,'Matriz VERDE-GBCe'!$V$7:$AH$55,2,FALSE) -> Elección responsable de materiales | G158: =VLOOKUP($E158,'Matriz VERDE-GBCe'!$V$7:$AH$55,3,FALSE) -> 0.01971876515
F160: =CONCATENATE("Cantidad en ",I116," de maderas o productos derivados de la madera con certificado de origen en cadena de custodia.") -> Cantidad en masa de maderas o productos derivados de la madera con certificado de origen en cadena de custodia. | N160: =IF(G163="",0,IF(G163<0.2,0,IF(G163>0.5,G158*0.7,((((G163*100)-20)/30))*G158*0.7))) -> 0
F163: =CONCATENATE("Porcentaje en ",I$116," de maderas o productos derivados de la madera con certificado de origen en cadena de custodia.") -> Porcentaje en masa de maderas o productos derivados de la madera con certificado de origen en cadena de custodia. | G163: =IF(OR(I122=0,I122=""),"",(I160/I122)) -> 
F166: =CONCATENATE("Contenido en ",I116," de materiales con documento reconocido de procedencia de materias primas.") -> Contenido en masa de materiales con documento reconocido de procedencia de materias primas. | N166: =IF(G168="",0,IF(G168<=0.05,0,IF(G168>=0.15,G158*0.3,((((G168*100)-5)/10))*G158*0.3))) -> 0
F168: =CONCATENATE("Porcentaje en ",I$116," de materiales con documento reconocido de procedencia de materias primas.") -> Porcentaje en masa de materiales con documento reconocido de procedencia de materias primas. | G168: =IF(OR(I$118=0,I$118=""),"",(I$166/(I$118-I122))) -> 
E170: NOTAS
E172: DOCUMENTOS JUSTIFICATIVOS
M173: 0.4
